Workbook

Sheet Instructions
C35: Date of Optimization | D35: 2019-07-02 | F35: AAA | G35: AA | H35: A | I35: BBB | J35: BBB-
F36: 0 | G36: 0 | H36: 50 | I36: 50 | J36: 0

Sheet Net of Default Costs
B1: Default and Transition costs come from the appropriate tab of the EIOPA_RDR_20141231_PD_CoD spreadsheet
C2: Find it here | F2: https://eiopa.europa.eu/Publications/Standards/EIOPA_RFR_20141231.zip
B3: Note that Classes below BBB have been excluded due to the difficulty of matching up spreads and default costs
B4: Ignore spreads and RC beyond year 20 | H4: Weight Financials: | J4: 0.5 | U4: CORPORATE BONDS
D5: Loading | E5: 0.35 | H5: We do not have stats, but Europe seems heavily into financials (varying by country)
H6: However they are using 50% mix for their model.
A7: =I10 -> JPY | C7: Discount Rates | E7: 12.31.2014 | J7: Composite. PD+CoD | V7: Financial. Probability of default (probability) | AF7: Financial. Probability of default (percentages) | AP7: Financial. Fundamental spread (percentages) | AZ7: Financial. Cost of downgrade (percentages)
R8: Weighted
B9: Risk | C9: Gross | D9: Risk | E9: Net | F9: Gross | I9: Weights | J9: 0.05 | K9: 0.12 | L9: 0.45 | M9: 0.39 | R9: Average | Y9: Credit quality steps | AI9: Credit quality steps | AS9: Credit quality steps | BC9: Credit quality steps
B10: Free | C10: Spread | D10: Correction | E10: spread | F10: Rate | I10: =U10 -> JPY | J10: 0 | K10: 1 | L10: 2 | M10: 3 | N10: 4 | O10: 5 | P10: 6 | U10: JPY | V10: 0 | W10: 1 | X10: 2 | Y10: 3 | Z10: 4 | AA10: 5 | AB10: 6 | AE10: JPY | AF10: 0 | AG10: 1 | AH10: 2 | AI10: 3 | AJ10: 4 | AK10: 5 | AL10: 6 | AO10: JPY | AP10: 0 | AQ10: 1 | AR10: 2 | AS10: 3 | AT10: 4 | AU10: 5 | AV10: 6 | AY10: JPY | AZ10: 0 | BA10: 1 | BB10: 2 | BC10: 3 | BD10: 4 | BE10: 5 | BF10: 6
A11: 1 | B11: ='Data Entry'!M3 -> -0.001637398391 | C11: ='Final Spread'!B3 -> 0.0002262635998 | D11: =(R11*(1+E$5))/100 -> 0.0011907 | E11: =MAX(0,C11-D11) -> 0 | F11: =MAX(E11+B11,0) -> 0 | I11: 1 | J11: =$J$4*(AF11+AZ11)+(1-$J$4)*(AF51+AZ51) -> 0 | K11: =$J$4*(AG11+BA11)+(1-$J$4)*(AG51+BA51) -> 0.025 | L11: =$J$4*(AH11+BB11)+(1-$J$4)*(AH51+BB51) -> 0.055 | M11: =$J$4*(AI11+BC11)+(1-$J$4)*(AI51+BC51) -> 0.155 | N11: =$J$4*(AJ11+BD11)+(1-$J$4)*(AJ51+BD51) -> 0.68 | O11: =$J$4*(AK11+BE11)+(1-$J$4)*(AK51+BE51) -> 2.73 | P11: =$J$4*(AL11+BF11)+(1-$J$4)*(AL51+BF51) -> 21.49 | R11: =SUMPRODUCT(J$9:M$9,J11:M11) -> 0.0882 | T11: Maturity | U11: 1 | V11: 0 | W11: 0.0007 | X11: 0.001 | Y11: 0.0025 | Z11: 0.011 | AA11: 0.0332 | AB11: 0.1692 | AD11: Maturity | AE11: 1 | AF11: 0 | AG11: 0.05 | AH11: 0.07 | AI11: 0.18 | AJ11: 0.78 | AK11: 2.38 | AL11: 13.44 | AN11: Maturity | AO11: 1 | AP11: 0 | AQ11: 0.05 | AR11: 0.11 | AS11: 1.01 | AT11: 2.16 | AU11: 6.14 | AV11: 13.44 | AX11: Maturity | AY11: 1 | AZ11: 0 | BA11: 0 | BB11: 0 | BC11: 0 | BD11: 0 | BE11: 0 | BF11: 0
A12: =1+A11 -> 2 | B12: ='Data Entry'!M4 -> -0.001987083567 | C12: ='Final Spread'!B4 -> 0.0007753890849 | D12: 0.001654657212 | E12: =MAX(0,C12-D12) -> 0 | F12: =MAX(E12+B12,0) -> 0 | I12: 2 | J12: 0.01166186845 | K12: 0.03513855225 | L12: 0.08055421339 | M12: 0.2090207313 | N12: 0.8727792781 | O12: 2.933418401 | P12: 16.445 | R12: 0.1225672009 | U12: 2 | V12: 0.00027961 | W12: 0.00147632 | X12: 0.00211938 | Y12: 0.00552137 | Z12: 0.02428142 | AA12: 0.06730863 | AB12: 0.27444586 | AE12: 2 | AF12: 0.01 | AG12: 0.05 | AH12: 0.07 | AI12: 0.19 | AJ12: 0.85 | AK12: 2.39 | AL12: 10.79 | AO12: 2 | AP12: 0.02 | AQ12: 0.06 | AR12: 0.09 | AS12: 0.99 | AT12: 2.15 | AU12: 6.12 | AV12: 10.79 | AY12: 2 | AZ12: 0.008527638361 | BA12: 0.009452568407 | BB12: 0.0196264913 | BC12: 0.03086892462 | BD12: 0.09312743024 | BE12: 0.02343871169 | BF12: 0
A13: 3 | B13: ='Data Entry'!M5 -> -0.002149348796 | C13: ='Final Spread'!B5 -> 0.00132451457 | D13: 0.002178442169 | E13: 0 | F13: 0 | I13: 3 | J13: 0.02322944122 | K13: 0.05018889025 | L13: 0.1156668202 | M13: 0.2618766117 | N13: 1.038280755 | O13: 2.992774044 | P13: 12.76476575 | R13: 0.1613660866 | U13: 3 | V13: 0.000749237296 | W13: 0.002323652414 | X13: 0.003372945376 | Y13: 0.00902414611 | Z13: 0.03890402252 | AA13: 0.1002778228 | AB13: 0.3432175769 | AE13: 3 | AF13: 0.02 | AG13: 0.05 | AH13: 0.08 | AI13: 0.21 | AJ13: 0.9 | AK13: 2.34 | AL13: 8.76 | AO13: 3 | AP13: 0.03 | AQ13: 0.07 | AR13: 0.12 | AS13: 0.81 | AT13: 2.09 | AU13: 6.07 | AV13: 8.76 | AY13: 3 | AZ13: 0.01688979305 | BA13: 0.01882843593 | BB13: 0.03884741325 | BC13: 0.06050283317 | BD13: 0.1780787864 | BE13: 0.04952496563 | BF13: 0.004958274508
A14: 4 | B14: ='Data Entry'!M6 -> -0.002149428958 | C14: ='Final Spread'!B6 -> 0.001873640055 | D14: 0.002634871128 | E14: 0 | F14: 0 | I14: 4 | J14: 0.0297291497 | K14: 0.06518885455 | L14: 0.1454494788 | M14: 0.3087544966 | N14: 1.182498251 | O14: 2.977711579 | P14: 10.13272058 | R14: 0.1951756391 | U14: 4 | V14: 0.001356747817 | W14: 0.003242514677 | X14: 0.00477145944 | Y14: 0.01296649009 | Z14: 0.05422525645 | AA14: 0.1312365545 | AB14: 0.390797247 | AE14: 4 | AF14: 0.02 | AG14: 0.06 | AH14: 0.08 | AI14: 0.22 | AJ14: 0.94 | AK14: 2.27 | AL14: 7.22 | AO14: 4 | AP14: 0.05 | AQ14: 0.08 | AR14: 0.14 | AS14: 0.81 | AT14: 2.07 | AU14: 6.04 | AV14: 7.24 | AY14: 4 | AZ14: 0.02512258914 | BA14: 0.02816257686 | BB14: 0.05774722482 | BC14: 0.08907942066 | BD14: 0.2559685512 | BE14: 0.07752638055 | BF14: 0.01364157792
A15: 5 | B15: ='Data Entry'!M7 -> -0.002031105966 | C15: ='Final Spread'!B7 -> 0.00242276554 | D15: 0.00316415386 | E15: 0 | F15: 0 | I15: 5 | J15: 0.04119009624 | K15: 0.07518098961 | L15: 0.1800234932 | M15: 0.3648460819 | N15: 1.306340488 | O15: 2.917977477 | P15: 8.237845246 | R15: 0.2343817674 | U15: 5 | V15: 0.002071494612 | W15: 0.004236497683 | X15: 0.006322461566 | Y15: 0.01730462455 | Z15: 0.06980602491 | AA15: 0.1599089471 | AB15: 0.4257442597 | AE15: 5 | AF15: 0.03 | AG15: 0.06 | AH15: 0.09 | AI15: 0.24 | AJ15: 0.96 | AK15: 2.18 | AL15: 6.05 | AO15: 5 | AP15: 0.06 | AQ15: 0.1 | AR15: 0.16 | AS15: 0.74 | AT15: 2.06 | AU15: 6.04 | AV15: 6.08 | AY15: 5 | AZ15: 0.033265102 | BA15: 0.03749439433 | BB15: 0.07641724606 | BC15: 0.1167787064 | BD15: 0.3278023538 | BE15: 0.1068840229 | BF15: 0.02512073309
A16: 6 | B16: ='Data Entry'!M8 -> -0.001850253512 | C16: ='Final Spread'!B8 -> 0.002971891025 | D16: 0.003615220846 | E16: 0 | F16: 0 | I16: 6 | J16: 0.05264829446 | K16: 0.09021912063 | L16: 0.2095363701 | M16: 0.4103693872 | N16: 1.405699482 | O16: 2.838423011 | P16: 6.849470151 | R16: 0.2677941368 | U16: 6 | V16: 0.00287540502 | W16: 0.005310670865 | X16: 0.008030801354 | Y16: 0.02199390319 | Z16: 0.08534806415 | AA16: 0.1863069865 | AB16: 0.4529010469 | AE16: 6 | AF16: 0.03 | AG16: 0.06 | AH16: 0.09 | AI16: 0.25 | AJ16: 0.96 | AK16: 2.08 | AL16: 5.15 | AO16: 6 | AP16: 0.07 | AQ16: 0.11 | AR16: 0.19 | AS16: 0.78 | AT16: 2.06 | AU16: 6.03 | AV16: 6.03 | AY16: 6 | AZ16: 0.04136471235 | BA16: 0.04687385708 | BB16: 0.09496809085 | BC16: 0.1438021971 | BD16: 0.3945480403 | BE16: 0.137201828 | BF16: 0.03870014438
A17: 7 | B17: ='Data Entry'!M9 -> -0.001600922474 | C17: ='Final Spread'!B9 -> 0.003521016511 | D17: 0.004087222401 | E17: 0 | F17: 0 | I17: 7 | J17: 0.06413655792 | K17: 0.1003529008 | L17: 0.2441235522 | M17: 0.4555190779 | N17: 1.501334424 | O17: 2.753944162 | P17: 5.807142463 | R17: 0.3027572149 | U17: 7 | V17: 0.00375795052 | W17: 0.006470642244 | X17: 0.00989903777 | Y17: 0.02699009947 | Z17: 0.1006515175 | AA17: 0.2105707559 | AB17: 0.4750458148 | AE17: 7 | AF17: 0.04 | AG17: 0.06 | AH17: 0.1 | AI17: 0.26 | AJ17: 0.97 | AK17: 1.99 | AL17: 4.45 | AO17: 7 | AP17: 0.08 | AQ17: 0.12 | AR17: 0.21 | AS17: 0.78 | AT17: 2.06 | AU17: 6.03 | AV17: 6.03 | AY17: 7 | AZ17: 0.04946424052 | BA17: 0.05634707812 | BB17: 0.1135002512 | BC17: 0.1703281147 | BD17: 0.4570236007 | BE17: 0.1681803979 | BF17: 0.05385369329
A18: 8 | B18: ='Data Entry'!M10 -> -0.001313115705 | C18: ='Final Spread'!B10 -> 0.004203816246 | D18: 0.004539769486 | E18: 0 | F18: 0 | I18: 8 | J18: 0.07063988893 | K18: 0.1205587091 | L18: 0.2737380979 | M18: 0.5002513784 | N18: 1.573364758 | O18: 2.659263156 | P18: 5.000488705 | R18: 0.3362792212 | U18: 8 | V18: 0.004713259669 | W18: 0.00772199675 | X18: 0.01192777179 | Y18: 0.03225053182 | Z18: 0.1155857086 | AA18: 0.2328873569 | AB18: 0.4938033134 | AE18: 8 | AF18: 0.04 | AG18: 0.07 | AH18: 0.1 | AI18: 0.27 | AJ18: 0.96 | AK18: 1.89 | AL18: 3.88 | AO18: 8 | AP18: 0.1 | AQ18: 0.13 | AR18: 0.24 | AS18: 0.75 | AT18: 2.06 | AU18: 6.04 | AV18: 6.04 | AY18: 8 | AZ18: 0.05754575731 | BA18: 0.06589178387 | BB18: 0.1319749525 | BC18: 0.1963201415 | BD18: 0.515406811 | BE18: 0.1993976261 | BF18: 0.07011144964
A19: 9 | B19: ='Data Entry'!M11 -> -0.0009874608794 | C19: ='Final Spread'!B11 -> 0.004907306883 | D19: 0.005045948308 | E19: 0 | F19: 0 | I19: 9 | J19: 0.07728776493 | K19: 0.1360369251 | L19: 0.3088866559 | M19: 0.5502208572 | N19: 1.638561923 | O19: 2.569807946 | P19: 4.374420927 | R19: 0.3737739487 | U19: 9 | V19: 0.005738420572 | W19: 0.009069958742 | X19: 0.01411594173 | Y19: 0.03773490295 | Z19: 0.1300687295 | AA19: 0.2534513747 | AB19: 0.5101482577 | AE19: 9 | AF19: 0.04 | AG19: 0.07 | AH19: 0.11 | AI19: 0.28 | AJ19: 0.95 | AK19: 1.8 | AL19: 3.43 | AO19: 9 | AP19: 0.11 | AQ19: 0.15 | AR19: 0.26 | AS19: 0.74 | AT19: 2.06 | AU19: 6.04 | AV19: 6.04 | AY19: 9 | AZ19: 0.06577330759 | BA19: 0.07569485961 | BB19: 0.1507721916 | BC19: 0.2223620205 | BD19: 0.5714735848 | BE19: 0.2311363633 | BF19: 0.08732158077
A20: 10 | B20: ='Data Entry'!M12 -> -0.000648447926 | C20: ='Final Spread'!B12 -> 0.005590106618 | D20: 0.005462633958 | E20: 0.0001274726609 | F20: 0 | I20: 10 | J20: 0.08401112666 | K20: 0.1466814791 | L20: 0.3393177513 | M20: 0.5901134116 | N20: 1.701304023 | O20: 2.490116557 | P20: 3.873652254 | R20: 0.4046395524 | U20: 10 | V20: 0.006832449594 | W20: 0.01051919171 | X20: 0.01646109201 | Y20: 0.04340584867 | Z20: 0.1440530304 | AA20: 0.272446947 | AB20: 0.5246847475 | AE20: 10 | AF20: 0.04 | AG20: 0.07 | AH20: 0.11 | AI20: 0.29 | AJ20: 0.94 | AK20: 1.72 | AL20: 3.06 | AO20: 10 | AP20: 0.12 | AQ20: 0.16 | AR20: 0.28 | AS20: 0.74 | AT20: 2.07 | AU20: 6.04 | AV20: 6.04 | AY20: 10 | AZ20: 0.07406010856 | BA20: 0.08565706927 | BB20: 0.1696961719 | BC20: 0.2481731699 | BD20: 0.6246553735 | BE20: 0.2628589457 | BF20: 0.1051001493
A21: 11 | B21: ='Data Entry'!M13 -> -0.0003084899418 | C21: ='Final Spread'!B13 -> 0.006230790747 | D21: 0.005964110525 | E21: 0.0002666802225 | F21: 0 | I21: 11 | J21: 0.1008738772 | K21: 0.1675926578 | L21: 0.3752903338 | M21: 0.6352576969 | N21: 1.757490717 | O21: 2.410366329 | P21: 3.463122701 | R21: 0.4417859648 | U21: 11 | V21: 0.0079956386 | W21: 0.01207368485 | X21: 0.0189596185 | Y21: 0.04922923842 | Z21: 0.1575151653 | AA21: 0.2900408038 | AB21: 0.5378022409 | AE21: 11 | AF21: 0.05 | AG21: 0.08 | AH21: 0.12 | AI21: 0.3 | AJ21: 0.93 | AK21: 1.64 | AL21: 2.75 | AO21: 11 | AP21: 0.13 | AQ21: 0.17 | AR21: 0.31 | AS21: 0.75 | AT21: 2.07 | AU21: 6.05 | AV21: 6.05 | AY21: 11 | AZ21: 0.08248677001 | BA21: 0.09587185987 | BB21: 0.1889365495 | BC21: 0.2740429522 | BD21: 0.6758552626 | BE21: 0.2946598469 | BF21: 0.1233310844
A22: 12 | B22: ='Data Entry'!M14 -> 1.985124219e-05 | C22: ='Final Spread'!B14 -> 0.006871474876 | D22: 0.006449149983 | E22: 0.0004223248927 | F22: 0.0004421761349 | I22: 12 | J22: 0.107898709 | K22: 0.1788075439 | L22: 0.4119078276 | M22: 0.6807806421 | N22: 1.802504675 | O22: 2.335562362 | P22: 3.127750194 | R22: 0.4777148136 | U22: 12 | V22: 0.009229122007 | W22: 0.01373669665 | X22: 0.02160699067 | Y22: 0.05517428245 | Z22: 0.1704484555 | AA22: 0.306380672 | AB22: 0.5497632937 | AE22: 12 | AF22: 0.05 | AG22: 0.08 | AH22: 0.13 | AI22: 0.31 | AJ22: 0.91 | AK22: 1.56 | AL22: 2.49 | AO22: 12 | AP22: 0.14 | AQ22: 0.19 | AR22: 0.33 | AS22: 0.75 | AT22: 2.07 | AU22: 6.05 | AV22: 6.05 | AY22: 12 | AZ22: 0.09108168705 | BA22: 0.1063736567 | BB22: 0.2085637532 | BC22: 0.3000793336 | BD22: 0.7254639661 | BE22: 0.3264862817 | BF22: 0.1418786091
A23: 13 | B23: ='Data Entry'!M15 -> 0.0003365478206 | C23: ='Final Spread'!B15 -> 0.007512159005 | D23: 0.006925838841 | E23: 0.0005863201636 | F23: 0.0009228679842 | I23: 13 | J23: 0.1151466554 | K23: 0.1954239551 | L23: 0.449424203 | M23: 0.7219897451 | N23: 1.85210993 | O23: 2.270899862 | P23: 2.852540747 | R23: 0.5130250993 | U23: 13 | V23: 0.01053457562 | W23: 0.01551073682 | X23: 0.02439795014 | Y23: 0.06121349819 | Z23: 0.1828577252 | AA23: 0.3215961286 | AB23: 0.5607534297 | AE23: 13 | AF23: 0.05 | AG23: 0.08 | AH23: 0.13 | AI23: 0.31 | AJ23: 0.9 | AK23: 1.49 | AL23: 2.27 | AO23: 13 | AP23: 0.15 | AQ23: 0.2 | AR23: 0.36 | AS23: 0.75 | AT23: 2.07 | AU23: 6.05 | AV23: 6.05 | AY23: 13 | AZ23: 0.09992088663 | BA23: 0.1172536156 | BB23: 0.2287591437 | BC23: 0.3265463597 | BD23: 0.7742264022 | BE23: 0.3584873278 | BF23: 0.1607190513
A24: 14 | B24: ='Data Entry'!M16 -> 0.0006671053881 | C24: ='Final Spread'!B16 -> 0.008152843133 | D24: 0.007430036966 | E24: 0.000722806167 | F24: 0.001389911555 | I24: 14 | J24: 0.132667192 | K24: 0.2175228508 | L24: 0.4880537889 | M24: 0.7641353895 | N24: 1.896900715 | O24: 2.211528192 | P24: 2.622503426 | R24: 0.5503731086 | U24: 14 | V24: 0.01191399798 | W24: 0.01739757473 | X24: 0.02732668599 | Y24: 0.0673225801 | Z24: 0.1947555206 | AA24: 0.3358004246 | AB24: 0.5709098802 | AE24: 14 | AF24: 0.06 | AG24: 0.09 | AH24: 0.14 | AI24: 0.32 | AJ24: 0.88 | AK24: 1.43 | AL24: 2.09 | AO24: 14 | AP24: 0.16 | AQ24: 0.22 | AR24: 0.39 | AS24: 0.76 | AT24: 2.08 | AU24: 6.06 | AV24: 6.06 | AY24: 14 | AZ24: 0.1090654156 | BA24: 0.12858713 | BB24: 0.2496713313 | BC24: 0.3536539562 | BD24: 0.8227110811 | BE24: 0.3907802131 | BF24: 0.1798392919
A25: 15 | B25: ='Data Entry'!M17 -> 0.0009861278106 | C25: ='Final Spread'!B17 -> 0.008793527262 | D25: 0.007918759246 | E25: 0.0008747680159 | F25: 0.001860895826 | I25: 15 | J25: 0.140433033 | K25: 0.2300652296 | L25: 0.5227188188 | M25: 0.8121072085 | N25: 1.941651471 | O25: 2.162253068 | P25: 2.422529981 | R25: 0.586574759 | U25: 15 | V25: 0.01336954625 | W25: 0.01939826598 | X25: 0.03038698729 | Y25: 0.0734802081 | Z25: 0.2061593976 | AA25: 0.3490925572 | AB25: 0.5803384435 | AE25: 15 | AF25: 0.06 | AG25: 0.09 | AH25: 0.14 | AI25: 0.33 | AJ25: 0.87 | AK25: 1.37 | AL25: 1.92 | AO25: 15 | AP25: 0.18 | AQ25: 0.23 | AR25: 0.41 | AS25: 0.76 | AT25: 2.08 | AU25: 6.06 | AV25: 6.06 | AY25: 15 | AZ25: 0.1184804656 | BA25: 0.1403374593 | BB25: 0.2712291207 | BC25: 0.3812949821 | BD25: 0.8707023431 | BE25: 0.4231474534 | BF25: 0.1990877483
A26: 16 | B26: ='Data Entry'!M18 -> 0.001128656981 | C26: ='Final Spread'!B18 -> 0.009434211391 | D26: 0.008411909269 | E26: =E25 -> 0.0008747680159 | F26: 0.002003424997 | I26: 16 | J26: 0.1484183461 | K26: 0.2530141368 | L26: 0.563349414 | M26: 0.8508065135 | N26: 1.981173373 | O26: 2.112899067 | P26: 2.252520277 | R26: 0.6231043903 | U26: 16 | V26: 0.01490341019 | W26: 0.02151319161 | X26: 0.03357237407 | Y26: 0.07966782093 | Z26: 0.2170899845 | AA26: 0.3615592614 | AB26: 0.5891236038 | AE26: 16 | AF26: 0.06 | AG26: 0.1 | AH26: 0.15 | AI26: 0.33 | AJ26: 0.85 | AK26: 1.31 | AL26: 1.78 | AO26: 16 | AP26: 0.19 | AQ26: 0.25 | AR26: 0.44 | AS26: 0.76 | AT26: 2.08 | AU26: 6.06 | AV26: 6.06 | AY26: 16 | AZ26: 0.1281333673 | BA26: 0.1524697128 | BB26: 0.2933668835 | BC26: 0.4093731338 | BD26: 0.9180217997 | BE26: 0.4553930658 | BF26: 0.2183247955
A27: 17 | B27: ='Data Entry'!M19 -> 0.001426748586 | C27: ='Final Spread'!B19 -> 0.01007489552 | D27: 0.00893346295 | E27: 0.0008747680159 | F27: 0.002301516602 | I27: 17 | J27: 0.1616232152 | K27: 0.2713735056 | L27: 0.5999791273 | M27: 0.9002600195 | N27: 2.025553014 | O27: 2.073419005 | P27: 2.107426067 | R27: 0.6617379963 | U27: 17 | V27: 0.01651771465 | W27: 0.02374210535 | X27: 0.03687620838 | Y27: 0.08586937356 | Z27: 0.2275696046 | AA27: 0.3732767877 | AB27: 0.5973347725 | AE27: 17 | AF27: 0.06 | AG27: 0.1 | AH27: 0.15 | AI27: 0.34 | AJ27: 0.84 | AK27: 1.26 | AL27: 1.66 | AO27: 17 | AP27: 0.2 | AQ27: 0.27 | AR27: 0.47 | AS27: 0.78 | AT27: 2.09 | AU27: 6.06 | AV27: 6.06 | AY27: 17 | AZ27: 0.1380238686 | BA27: 0.1649871579 | BB27: 0.3160946876 | BC27: 0.4379006123 | BD27: 0.9647493731 | BE27: 0.4874531269 | BF27: 0.237476981
A28: 18 | B28: ='Data Entry'!M20 -> 0.001730945595 | C28: ='Final Spread'!B20 -> 0.01071557965 | D28: 0.009442073842 | E28: 0.0008747680159 | F28: 0.002605713611 | I28: 18 | J28: 0.1750108189 | K28: 0.2900887194 | L28: 0.6424999891 | M28: 0.9403248585 | N28: 2.064513737 | O28: 2.03361038 | P28: 1.972142473 | R28: 0.6994128772 | U28: 18 | V28: 0.0182144439 | W28: 0.0260841861 | X28: 0.0402917872 | Y28: 0.09207109207 | Z28: 0.2376213079 | AA28: 0.3843124341 | AB28: 0.6050302644 | AE28: 18 | AF28: 0.07 | AG28: 0.1 | AH28: 0.16 | AI28: 0.34 | AJ28: 0.82 | AK28: 1.21 | AL28: 1.54 | AO28: 18 | AP28: 0.21 | AQ28: 0.28 | AR28: 0.5 | AS28: 0.81 | AT28: 2.09 | AU28: 6.07 | AV28: 6.07 | AY28: 18 | AZ28: 0.1481061598 | BA28: 0.1778383014 | BB28: 0.339317337 | BC28: 0.4667429196 | BD28: 1.010625274 | BE28: 0.519110443 | BF28: 0.2564030761
A29: 19 | B29: ='Data Entry'!M21 -> 0.001843431285 | C29: ='Final Spread'!B21 -> 0.01135626378 | D29: 0.009940794249 | E29: 0.0008747680159 | F29: 0.002718199301 | I29: 19 | J29: 0.1886319759 | K29: 0.3142447047 | L29: 0.6811518682 | M29: 0.9812713474 | N29: 2.098650313 | O29: 1.993668696 | P29: 1.861723892 | R29: 0.7363551295 | U29: 19 | V29: 0.01999538397 | W29: 0.02853809291 | X29: 0.04381241915 | Y29: 0.09826123495 | Z29: 0.247268198 | AA29: 0.3947258402 | AB29: 0.6122599239 | AE29: 19 | AF29: 0.07 | AG29: 0.11 | AH29: 0.16 | AI29: 0.34 | AJ29: 0.8 | AK29: 1.16 | AL29: 1.44 | AO29: 19 | AP29: 0.23 | AQ29: 0.3 | AR29: 0.53 | AS29: 0.84 | AT29: 2.1 | AU29: 6.08 | AV29: 6.08 | AY29: 19 | AZ29: 0.1584430068 | BA29: 0.1911020047 | BB29: 0.3631930699 | BC29: 0.4961193291 | BD29: 1.056195169 | BE29: 0.5505528355 | BF29: 0.2751614882
A30: 20 | B30: ='Data Entry'!M22 -> 0.002236976431 | C30: ='Final Spread'!B22 -> 0.01199694791 | D30: 0.0105153895 | E30: 0.0008747680159 | F30: 0.003111744447 | I30: 20 | J30: 0.197400568 | K30: 0.3287081413 | L30: 0.730637962 | M30: 1.027732442 | N30: 2.137215435 | O30: 1.963191516 | P30: 1.760992432 | R30: 0.7789177407 | U30: 20 | V30: 0.02186207959 | W30: 0.03110202089 | X30: 0.04743148684 | Y30: 0.1044298665 | Z30: 0.2565329738 | AA30: 0.4045700709 | AB30: 0.6190669241 | AE30: 20 | AF30: 0.07 | AG30: 0.11 | AH30: 0.17 | AI30: 0.35 | AJ30: 0.79 | AK30: 1.12 | AL30: 1.35 | AO30: 20 | AP30: 0.24 | AQ30: 0.32 | AR30: 0.56 | AS30: 0.87 | AT30: 2.11 | AU30: 6.08 | AV30: 6.08 | AY30: 20 | AZ30: 0.1689280586 | BA30: 0.2046531424 | BB30: 0.3874863963 | BC30: 0.5257024604 | BD30: 1.100763134 | BE30: 0.5813657178 | BF30: 0.2935236637
A31: 21 | B31: ='Data Entry'!M23 -> 0.002387053618 | C31: ='Final Spread'!B23 -> 0.01247533435 | D31: 0.01100608773 | E31: 0.0008747680159 | F31: 0.003261821634 | I31: 21 | J31: 0.2162726902 | K31: 0.3534120068 | L31: 0.7708261066 | M31: 1.064540857 | N31: 2.169898087 | O31: 1.926977917 | P31: 1.664850467 | R31: 0.8152657577 | U31: 21 | V31: 0.02381580349 | W31: 0.03377375641 | X31: 0.05114249679 | Y31: 0.110568646 | Z31: 0.2654376266 | AA31: 0.413892522 | AB31: 0.6254890469 | AE31: 21 | AF31: 0.08 | AG31: 0.12 | AH31: 0.17 | AI31: 0.35 | AJ31: 0.77 | AK31: 1.07 | AL31: 1.26 | AO31: 21 | AP31: 0.25 | AQ31: 0.34 | AR31: 0.58 | AS31: 0.9 | AT31: 2.11 | AU31: 6.09 | AV31: 6.09 | AY31: 21 | AZ31: 0.1795076678 | BA31: 0.2184285256 | BB31: 0.4120834288 | BC31: 0.5553385221 | BD31: 1.144044394 | BE31: 0.6113390236 | BF31: 0.3113612028
A32: 22 | B32: ='Data Entry'!M24 -> 0.002537257952 | C32: ='Final Spread'!B24 -> 0.01295372079 | D32: 0.01151462451 | E32: 0.0008747680159 | F32: 0.003412025968 | I32: 22 | J32: 0.2252355783 | K32: 0.3733387625 | L32: 0.8117086767 | M32: 1.106676445 | N32: 2.201693258 | O32: 1.899972548 | P32: 1.57826126 | R32: 0.8529351487 | U32: 22 | V32: 0.02585753614 | W32: 0.03655073078 | X32: 0.05493911853 | Y32: 0.1166706336 | Z32: 0.2740032483 | AA32: 0.4227356761 | AB32: 0.6315596258 | AE32: 22 | AF32: 0.08 | AG32: 0.12 | AH32: 0.18 | AI32: 0.35 | AJ32: 0.75 | AK32: 1.03 | AL32: 1.18 | AO32: 22 | AP32: 0.27 | AQ32: 0.35 | AR32: 0.61 | AS32: 0.94 | AT32: 2.12 | AU32: 6.1 | AV32: 6.1 | AY32: 22 | AZ32: 0.1901668391 | BA32: 0.2324111895 | BB32: 0.4369602136 | BC32: 0.5849991924 | BD32: 1.186035914 | BE32: 0.6404120373 | BF32: 0.3286227577
A33: 23 | B33: ='Data Entry'!M25 -> 0.002686627778 | C33: ='Final Spread'!B25 -> 0.01343210724 | D33: 0.01201450496 | E33: 0.0008747680159 | F33: 0.003561395794 | I33: 23 | J33: 0.2392764801 | K33: 0.3984707609 | L33: 0.8532800636 | M33: 1.144120478 | N33: 2.227594907 | O33: 1.872126728 | P33: 1.506193953 | R33: 0.8899633302 | U33: 23 | V33: 0.02798795414 | W33: 0.03943007143 | X33: 0.05881521456 | Y33: 0.1227301146 | Z33: 0.2822499194 | AA33: 0.4311377369 | AB33: 0.6373082617 | AE33: 23 | AF33: 0.08 | AG33: 0.13 | AH33: 0.18 | AI33: 0.35 | AJ33: 0.73 | AK33: 0.99 | AL33: 1.11 | AO33: 23 | AP33: 0.28 | AQ33: 0.37 | AR33: 0.64 | AS33: 0.97 | AT33: 2.13 | AU33: 6.1 | AV33: 6.1 | AY33: 23 | AZ33: 0.2008907248 | BA33: 0.2465840516 | BB33: 0.4620929774 | BC33: 0.6146566683 | BD33: 1.226732565 | BE33: 0.6685325734 | BF33: 0.3452654882
A34: 24 | B34: ='Data Entry'!M26 -> 0.002834347647 | C34: ='Final Spread'!B26 -> 0.01391049368 | D34: 0.01252704126 | E34: 0.0008747680159 | F34: 0.003709115663 | I34: 24 | J34: 0.2483800767 | K34: 0.4137860452 | L34: 0.8955261072 | M34: 1.186843346 | N34: 2.257571658 | O34: 1.843386844 | P34: 1.433618511 | R34: 0.9279289823 | U34: 24 | V34: 0.03020742596 | W34: 0.04240865036 | X34: 0.06276486251 | Y34: 0.1287424409 | Z34: 0.2901966535 | AA34: 0.4391331628 | AB34: 0.642761381 | AE34: 24 | AF34: 0.08 | AG34: 0.13 | AH34: 0.18 | AI34: 0.35 | AJ34: 0.71 | AK34: 0.95 | AL34: 1.04 | AO34: 24 | AP34: 0.3 | AQ34: 0.39 | AR34: 0.67 | AS34: 1 | AT34: 2.13 | AU34: 6.11 | AV34: 6.11 | AY34: 24 | AZ34: 0.2116614534 | BA34: 0.260925993 | BB34: 0.4874505553 | BC34: 0.6442734047 | BD34: 1.266105691 | BE34: 0.6956448509 | BF34: 0.3612485126
A35: 25 | B35: ='Data Entry'!M27 -> 0.002979725763 | C35: ='Final Spread'!B27 -> 0.01438888012 | D35: 0.01306394349 | E35: 0.0008747680159 | F35: 0.003854493779 | I35: 25 | J35: 0.2675279397 | K35: 0.4342573729 | L35: 0.9434213495 | M35: 1.224801612 | N35: 2.286562166 | O35: 1.813691988 | P35: 1.370504449 | R35: 0.9676995178 | U35: 25 | V35: 0.03251601371 | W35: 0.04548312916 | X35: 0.06678237076 | Y35: 0.1347038887 | Z35: 0.297861381 | AA35: 0.446753119 | AB35: 0.6479426817 | AE35: 25 | AF35: 0.09 | AG35: 0.13 | AH35: 0.19 | AI35: 0.35 | AJ35: 0.7 | AK35: 0.91 | AL35: 0.98 | AO35: 25 | AP35: 0.31 | AQ35: 0.41 | AR35: 0.7 | AS35: 1.03 | AT35: 2.13 | AU35: 6.11 | AV35: 6.11 | AY35: 25 | AZ35: 0.2224574753 | BA35: 0.2754109528 | BB35: 0.5129926148 | BC35: 0.673799931 | BD35: 1.304099976 | BE35: 0.7216868036 | BF35: 0.3765310928
A36: 26 | B36: ='Data Entry'!M28 -> 0.003081710029 | C36: ='Final Spread'!B28 -> 0.01486726657 | D36: 0.01357777313 | E36: 0.0008747680159 | F36: 0.003956478045 | I36: 26 | J36: 0.2767186306 | K36: 0.4598850516 | L36: 0.9870130648 | M36: 1.26303322 | N36: 2.314661665 | O36: 1.788056475 | P36: 1.311853906 | R36: 1.005760973 | U36: 26 | V36: 0.03491347986 | W36: 0.04865000076 | X36: 0.07086228869 | Y36: 0.1406115331 | Z36: 0.3052609599 | AA36: 0.454025862 | AB36: 0.6528734955 | AE36: 26 | AF36: 0.09 | AG36: 0.14 | AH36: 0.19 | AI36: 0.35 | AJ36: 0.68 | AK36: 0.87 | AL36: 0.92 | AO36: 26 | AP36: 0.32 | AQ36: 0.43 | AR36: 0.73 | AS36: 1.05 | AT36: 2.14 | AU36: 6.11 | AV36: 6.11 | AY36: 26 | AZ36: 0.2332781353 | BA36: 0.2900385869 | BB36: 0.5387284047 | BC36: 0.7032534593 | BD36: 1.340798155 | BE36: 0.7466740575 | BF36: 0.3911142653
A37: 27 | B37: ='Data Entry'!M29 -> 0.00318026373 | C37: ='Final Spread'!B29 -> 0.01534565301 | D37: 0.0140675382 | E37: 0.0008747680159 | F37: 0.004055031746 | I37: 27 | J37: 0.291034333 | K37: 0.480807184 | L37: 1.026710101 | M37: 1.301978827 | N37: 2.337734767 | O37: 1.766835733 | P37: 1.262808524 | R37: 1.042039867 | U37: 27 | V37: 0.03739929797 | W37: 0.05190562754 | X37: 0.07499941238 | Y37: 0.1464631363 | Z37: 0.3124112047 | AA37: 0.460977069 | AB37: 0.6575730863 | AE37: 27 | AF37: 0.09 | AG37: 0.14 | AH37: 0.19 | AI37: 0.35 | AJ37: 0.66 | AK37: 0.84 | AL37: 0.87 | AO37: 27 | AP37: 0.34 | AQ37: 0.44 | AR37: 0.76 | AS37: 1.08 | AT37: 2.14 | AU37: 6.12 | AV37: 6.12 | AY37: 27 | AZ37: 0.2442248418 | BA37: 0.3049371125 | BB37: 0.5649140586 | BC37: 0.7329781974 | BD37: 1.376948669 | BE37: 0.7709712633 | BF37: 0.4051762505
A38: 28 | B38: ='Data Entry'!M30 -> 0.003274960843 | C38: ='Final Spread'!B30 -> 0.01582403945 | D38: 0.01462797755 | E38: 0.0008747680159 | F38: 0.004149728858 | I38: 28 | J38: 0.3055878514 | K38: 0.4972149889 | L38: 1.07807821 | M38: 1.342239762 | N38: 2.366920011 | O38: 1.740494646 | P38: 1.21355457 | R38: 1.083553893 | U38: 28 | V38: 0.03997266647 | W38: 0.05524627605 | X38: 0.07918878672 | Y38: 0.152257049 | Z38: 0.319326927 | AA38: 0.4676301217 | AB38: 0.6620589011 | AE38: 28 | AF38: 0.1 | AG38: 0.14 | AH38: 0.2 | AI38: 0.35 | AJ38: 0.64 | AK38: 0.8 | AL38: 0.82 | AO38: 28 | AP38: 0.35 | AQ38: 0.46 | AR38: 0.79 | AS38: 1.11 | AT38: 2.14 | AU38: 6.12 | AV38: 6.12 | AY38: 28 | AZ38: 0.2554358384 | BA38: 0.3202841153 | BB38: 0.5919012923 | BC38: 0.7634378558 | BD38: 1.413510542 | BE38: 0.795055739 | BF38: 0.4189532587
A39: 29 | B39: ='Data Entry'!M31 -> 0.003365438731 | C39: ='Final Spread'!B31 -> 0.0163024259 | D39: 0.01520029011 | E39: 0.0008747680159 | F39: 0.004240206747 | I39: 29 | J39: 0.3205042342 | K39: 0.5243236688 | L39: 1.126774935 | M39: 1.384499083 | N39: 2.398471142 | O39: 1.724527789 | P39: 1.174289092 | R39: 1.125947415 | U39: 29 | V39: 0.04263252488 | W39: 0.05866814816 | X39: 0.08342570459 | Y39: 0.1579921244 | Z39: 0.326021983 | AA39: 0.4740063517 | AB39: 0.6663467805 | AE39: 29 | AF39: 0.1 | AG39: 0.15 | AH39: 0.2 | AI39: 0.35 | AJ39: 0.63 | AK39: 0.77 | AL39: 0.78 | AO39: 29 | AP39: 0.37 | AQ39: 0.48 | AR39: 0.82 | AS39: 1.14 | AT39: 2.14 | AU39: 6.12 | AV39: 6.12 | AY39: 29 | AZ39: 0.2670636597 | BA39: 0.3362792481 | BB39: 0.6200863684 | BC39: 0.7951461563 | BD39: 1.451504741 | BE39: 0.8194356056 | BF39: 0.4326966832
A40: 30 | B40: ='Data Entry'!M32 -> 0.003451388718 | C40: ='Final Spread'!B32 -> 0.01678081234 | D40: 0.01576614558 | E40: 0.0008747680159 | F40: 0.004326156734 | I40: 30 | J40: 0.3309232933 | K40: 0.5473775152 | L40: 1.173575079 | M40: 1.429544573 | N40: 2.433800398 | O40: 1.709467369 | P40: 1.135221447 | R40: 1.167862635 | U40: 30 | V40: 0.04537757174 | W40: 0.06216740903 | X40: 0.0877057037 | Y40: 0.1636676423 | Z40: 0.3325093244 | AA40: 0.4801252543 | AB40: 0.6704511397 | AE40: 30 | AF40: 0.1 | AG40: 0.15 | AH40: 0.2 | AI40: 0.35 | AJ40: 0.61 | AK40: 0.74 | AL40: 0.74 | AO40: 30 | AP40: 0.38 | AQ40: 0.5 | AR40: 0.85 | AS40: 1.18 | AT40: 2.15 | AU40: 6.12 | AV40: 6.12 | AY40: 30 | AZ40: 0.2792781966 | BA40: 0.3531488683 | BB40: 0.6499208923 | BC40: 0.8286804701 | BD40: 1.492041455 | BE40: 0.8446574392 | BF40: 0.4466749409
A41: 31 | B41: ='Data Entry'!M33 -> 0.003585447596 | E41: 0.0008747680159 | F41: 0.004460215612
A42: 32 | B42: ='Data Entry'!M34 -> 0.003777834108 | E42: 0.0008747680159 | F42: 0.004652602124
A43: 33 | B43: ='Data Entry'!M35 -> 0.00402473115 | E43: 0.0008747680159 | F43: 0.004899499166
A44: =1+A43 -> 34 | B44: ='Data Entry'!M36 -> 0.004322387155 | E44: 0.0008747680159 | F44: 0.005197155171
A45: 35 | B45: ='Data Entry'!M37 -> 0.004667102365 | E45: 0.0008747680159 | F45: 0.005541870381
A46: 36 | B46: ='Data Entry'!M38 -> 0.005055225818 | E46: 0.0008747680159 | F46: 0.005929993834
A47: 37 | B47: ='Data Entry'!M39 -> 0.005483146846 | E47: 0.0008747680159 | F47: 0.006357914862 | V47: Non-financial. Probability of default (probability) | AF47: Non-financial. Probability of default (percentages) | AP47: Non-financial. Fundamental spread (percentages) | AZ47: Non-financial. Cost of downgrade (percentages)
A48: 38 | B48: ='Data Entry'!M40 -> 0.005947291348 | E48: 0.0008747680159 | F48: 0.006822059364
A49: 39 | B49: ='Data Entry'!M41 -> 0.006444116426 | E49: 0.0008747680159 | F49: 0.007318884441 | Y49: Credit quality steps | AI49: Credit quality steps | AS49: Credit quality steps | BC49: Credit quality steps
A50: 40 | B50: ='Data Entry'!M42 -> 0.006970107523 | E50: 0.0008747680159 | F50: 0.007844875539 | U50: JPY | V50: 0 | W50: 1 | X50: 2 | Y50: 3 | Z50: 4 | AA50: 5 | AB50: 6 | AE50: JPY | AF50: 0 | AG50: 1 | AH50: 2 | AI50: 3 | AJ50: 4 | AK50: 5 | AL50: 6 | AO50: JPY | AP50: 0 | AQ50: 1 | AR50: 2 | AS50: 3 | AT50: 4 | AU50: 5 | AV50: 6 | AY50: JPY | AZ50: 0 | BA50: 1 | BB50: 2 | BC50: 3 | BD50: 4 | BE50: 5 | BF50: 6
A51: 41 | B51: ='Data Entry'!M43 -> 0.007521775562 | E51: 0.0008747680159 | F51: 0.008396543578 | T51: Maturity | U51: 1 | V51: 0 | W51: 0 | X51: 0.0005 | Y51: 0.0019 | Z51: 0.0083 | AA51: 0.0427 | AB51: 0.3256 | AD51: Maturity | AE51: 1 | AF51: 0 | AG51: 0 | AH51: 0.04 | AI51: 0.13 | AJ51: 0.58 | AK51: 3.08 | AL51: 29.54 | AN51: Maturity | AO51: 1 | AP51: 0 | AQ51: 0 | AR51: 0.04 | AS51: 0.13 | AT51: 1.27 | AU51: 20.18 | AV51: 29.54 | AX51: Maturity | AY51: 1 | AZ51: 0 | BA51: 0 | BB51: 0 | BC51: 0 | BD51: 0 | BE51: 0 | BF51: 0
A52: 42 | B52: ='Data Entry'!M44 -> 0.008095652781 | E52: 0.0008747680159 | F52: 0.008970420797 | U52: 2 | V52: 1.366e-05 | W52: 8.797e-05 | X52: 0.00121255 | Y52: 0.00448965 | Z52: 0.02019262 | AA52: 0.09474471 | AB52: 0.48924141 | AE52: 2 | AF52: 0 | AG52: 0 | AH52: 0.04 | AI52: 0.16 | AJ52: 0.71 | AK52: 3.42 | AL52: 22.1 | AO52: 2 | AP52: 0.01 | AQ52: 0.01 | AR52: 0.07 | AS52: 0.19 | AT52: 1.26 | AU52: 20.16 | AV52: 22.1 | AY52: 2 | AZ52: 0.004796098547 | BA52: 0.01082453608 | BB52: 0.03148193547 | BC52: 0.03717253788 | BD52: 0.09243112596 | BE52: 0.03339808947 | BF52: 0
A53: 43 | B53: ='Data Entry'!M45 -> 0.008688291909 | E53: 0.0008747680159 | F53: 0.009563059925 | U53: 3 | V53: 5.2615662e-05 | W53: 0.000285705689 | X53: 0.002177073029 | Y53: 0.007786574 | Z53: 0.03523885593 | AA53: 0.1472572493 | AB53: 0.5772976181 | AE53: 3 | AF53: 0 | AG53: 0.01 | AH53: 0.05 | AI53: 0.18 | AJ53: 0.82 | AK53: 3.53 | AL53: 16.76 | AO53: 3 | AP53: 0.01 | AQ53: 0.03 | AR53: 0.11 | AS53: 0.25 | AT53: 1.18 | AU53: 20.09 | AV53: 20.09 | AY53: 3 | AZ53: 0.009569089379 | BA53: 0.02154934458 | BB53: 0.06248622722 | BC53: 0.07325039028 | BD53: 0.1784827228 | BE53: 0.06602312284 | BF53: 0.004573219717
A54: 44 | B54: ='Data Entry'!M46 -> 0.009296262412 | E54: 0.0008747680159 | F54: 0.01017103043 | U54: 4 | V54: 0.0001289689854 | W54: 0.0006100993397 | X54: 0.003424201052 | Y54: 0.01181153763 | Z54: 0.0527337935 | AA54: 0.1967847028 | AB54: 0.6293520911 | AE54: 4 | AF54: 0 | AG54: 0.01 | AH54: 0.06 | AI54: 0.2 | AJ54: 0.91 | AK54: 3.51 | AL54: 13.02 | AO54: 4 | AP54: 0.02 | AQ54: 0.04 | AR54: 0.15 | AS54: 0.31 | AT54: 1.17 | AU54: 20.08 | AV54: 20.08 | AY54: 4 | AZ54: 0.01433571026 | BA54: 0.03221513225 | BB54: 0.09315173272 | BC54: 0.1084295725 | BD54: 0.2590279506 | BE54: 0.09789677651 | BF54: 0.01179958034
A55: 45 | B55: ='Data Entry'!M47 -> 0.009916151347 | E55: 0.0008747680159 | F55: 0.01079091936 | U55: 5 | V55: 0.0002544758932 | W55: 0.001076643091 | X55: 0.00497984044 | Y55: 0.01656893937 | Z55: 0.07197347429 | AA55: 0.2422345041 | AB55: 0.6636589766 | AE55: 5 | AF55: 0 | AG55: 0.01 | AH55: 0.07 | AI55: 0.23 | AJ55: 0.99 | AK55: 3.42 | AL55: 10.38 | AO55: 5 | AP55: 0.02 | AQ55: 0.06 | AR55: 0.19 | AS55: 0.37 | AT55: 1.32 | AU55: 20.07 | AV55: 20.07 | AY55: 5 | AZ55: 0.01911509049 | BA55: 0.04286758489 | BB55: 0.1236297403 | BC55: 0.1429134574 | BD55: 0.3348786229 | BE55: 0.129070931 | BF55: 0.0205697598
A56: 46 | B56: ='Data Entry'!M48 -> 0.01054455819 | E56: 0.0008747680159 | F56: 0.01141932621 | U56: 6 | V56: 0.00044043215 | W56: 0.001700695765 | X56: 0.006866098389 | Y56: 0.02204371697 | Z56: 0.09234884452 | AA56: 0.2835025608 | AB56: 0.688728766 | AE56: 6 | AF56: 0.01 | AG56: 0.02 | AH56: 0.08 | AI56: 0.25 | AJ56: 1.05 | AK56: 3.3 | AL56: 8.48 | AO56: 6 | AP56: 0.03 | AQ56: 0.07 | AR56: 0.23 | AS56: 0.43 | AT56: 1.46 | AU56: 20.07 | AV56: 20.07 | AY56: 6 | AZ56: 0.02393187658 | BA56: 0.05356438417 | BB56: 0.1541046494 | BC56: 0.1769365774 | BD56: 0.4068509241 | BE56: 0.1596441939 | BF56: 0.03024015775
A57: 47 | B57: ='Data Entry'!M49 -> 0.01117809648 | E57: 0.0008747680159 | F57: 0.0120528645 | U57: 7 | V57: 0.0006977889574 | W57: 0.002497739174 | X57: 0.009101192736 | Y57: 0.02820422165 | Z57: 0.1133671119 | AA57: 0.3208661113 | AB57: 0.708604337 | AE57: 7 | AF57: 0.01 | AG57: 0.02 | AH57: 0.09 | AI57: 0.27 | AJ57: 1.1 | AK57: 3.16 | AL57: 7.07 | AO57: 7 | AP57: 0.04 | AQ57: 0.09 | AR57: 0.27 | AS57: 0.48 | AT57: 1.57 | AU57: 20.07 | AV57: 20.07 | AY57: 7 | AZ57: 0.02880887533 | BA57: 0.06435872358 | BB57: 0.1847468533 | BC57: 0.210710041 | BD57: 0.4756452469 | BE57: 0.1897079256 | BF57: 0.04043123283
A58: 48 | B58: ='Data Entry'!M50 -> 0.01181339074 | E58: =E57 -> 0.0008747680159 | F58: 0.01268815875 | U58: 8 | V58: 0.001037303621 | W58: 0.003483202383 | X58: 0.0116991872 | Y58: 0.03500666576 | Z58: 0.1346448045 | AA58: 0.3547208277 | AB58: 0.7252668602 | AE58: 8 | AF58: 0.01 | AG58: 0.03 | AH58: 0.1 | AI58: 0.29 | AJ58: 1.13 | AK58: 3.01 | AL58: 6 | AO58: 8 | AP58: 0.04 | AQ58: 0.1 | AR58: 0.32 | AS58: 0.54 | AT58: 1.67 | AU58: 20.07 | AV58: 20.07 | AY58: 8 | AZ58: 0.03373402055 | BA58: 0.07522563441 | BB58: 0.2155012433 | BC58: 0.2441826153 | BD58: 0.5413227045 | BE58: 0.2191286866 | BF58: 0.05086595957
A59: 49 | B59: ='Data Entry'!M51 -> 0.01244707638 | E59: 0.0008747680159 | F59: 0.0133218444 | U59: 9 | V59: 0.001469652832 | W59: 0.004672128548 | X59: 0.01466984368 | Y59: 0.04239942068 | Z59: 0.1558916408 | AA59: 0.3854717349 | AB59: 0.7397354697 | AE59: 9 | AF59: 0.01 | AG59: 0.04 | AH59: 0.11 | AI59: 0.32 | AJ59: 1.15 | AK59: 2.86 | AL59: 5.17 | AO59: 9 | AP59: 0.05 | AQ59: 0.12 | AR59: 0.36 | AS59: 0.59 | AT59: 1.76 | AU59: 20.07 | AV59: 20.07 | AY59: 9 | AZ59: 0.03880222227 | BA59: 0.08637899061 | BB59: 0.2470011202 | BC59: 0.2780796939 | BD59: 0.6056502619 | BE59: 0.2484795279 | BF59: 0.06152027258
A60: 50 | B60: ='Data Entry'!M52 -> 0.01307579784 | E60: 0.0008747680159 | F60: 0.01395056585 | U60: 10 | V60: 0.002005489247 | W60: 0.006078814339 | X60: 0.01801865728 | Y60: 0.05032659234 | Z60: 0.1768930952 | AA60: 0.413491944 | AB60: 0.7525719246 | AE60: 10 | AF60: 0.01 | AG60: 0.04 | AH60: 0.12 | AI60: 0.33 | AJ60: 1.17 | AK60: 2.72 | AL60: 4.51 | AO60: 10 | AP60: 0.06 | AQ60: 0.14 | AR60: 0.4 | AS60: 0.65 | AT60: 1.84 | AU60: 20.08 | AV60: 20.08 | AY60: 10 | AZ60: 0.04396214476 | BA60: 0.09770588884 | BB60: 0.2789393307 | BC60: 0.3120536532 | BD60: 0.667952672 | BE60: 0.277374168 | BF60: 0.07220435775
A61: 51 | B61: ='Data Entry'!M53 -> 0.01369620855 | E61: 0.0008747680159 | F61: 0.01457097656 | U61: 11 | V61: 0.00265544395 | W61: 0.007716481841 | X61: 0.02174705487 | Y61: 0.05873077667 | Z61: 0.1974946143 | AA61: 0.4391105447 | AB61: 0.7641138238 | AE61: 11 | AF61: 0.02 | AG61: 0.05 | AH61: 0.13 | AI61: 0.35 | AJ61: 1.18 | AK61: 2.58 | AL61: 3.97 | AO61: 11 | AP61: 0.07 | AQ61: 0.16 | AR61: 0.44 | AS61: 0.7 | AT61: 1.91 | AU61: 20.08 | AV61: 20.08 | AY61: 11 | AZ61: 0.04926098431 | BA61: 0.1093134557 | BB61: 0.3116441181 | BC61: 0.3464724416 | BD61: 0.7291261706 | BE61: 0.3060728106 | BF61: 0.08291431831
A62: 52 | B62: ='Data Entry'!M54 -> 0.01430496922 | E62: 0.0008747680159 | F62: 0.01517973723 | U62: 12 | V62: 0.003430085325 | W62: 0.009597008135 | X62: 0.02585271378 | Y62: 0.06755507466 | Z62: 0.2175883365 | AA62: 0.4626124308 | AB62: 0.7745836591 | AE62: 12 | AF62: 0.02 | AG62: 0.05 | AH62: 0.14 | AI62: 0.37 | AJ62: 1.18 | AK62: 2.45 | AL62: 3.53 | AO62: 12 | AP62: 0.07 | AQ62: 0.17 | AR62: 0.49 | AS62: 0.75 | AT62: 1.97 | AU62: 20.08 | AV62: 20.08 | AY62: 12 | AZ62: 0.05471573103 | BA62: 0.1212414311 | BB62: 0.3452519021 | BC62: 0.3814819506 | BD62: 0.789545384 | BE62: 0.3346384418 | BF62: 0.09362177903
A63: 53 | B63: ='Data Entry'!M55 -> 0.01489874814 | E63: 0.0008747680159 | F63: 0.01577351615 | U63: 13 | V63: 0.00433984657 | W63: 0.01173072033 | X63: 0.03032995578 | Y63: 0.07674449864 | Z63: 0.2371023194 | AA63: 0.4842425046 | AB63: 0.784140818 | AE63: 13 | AF63: 0.02 | AG63: 0.06 | AH63: 0.16 | AI63: 0.39 | AJ63: 1.18 | AK63: 2.33 | AL63: 3.17 | AO63: 13 | AP63: 0.08 | AQ63: 0.19 | AR63: 0.54 | AS63: 0.81 | AT63: 2.03 | AU63: 20.09 | AV63: 20.09 | AY63: 13 | AZ63: 0.06037242419 | BA63: 0.1335942946 | BB63: 0.3800892623 | BC63: 0.4174331305 | BD63: 0.8499934583 | BE63: 0.3633123952 | BF63: 0.1043624435
A64: 54 | B64: ='Data Entry'!M56 -> 0.01547421919 | E64: 0.0008747680159 | F64: 0.0163489872 | U64: 14 | V64: 0.005394933388 | W64: 0.01412625496 | X64: 0.03517017905 | Y64: 0.08624690207 | Z64: 0.2559919732 | AA64: 0.5042110384 | AB64: 0.7929071713 | AE64: 14 | AF64: 0.03 | AG64: 0.07 | AH64: 0.17 | AI64: 0.4 | AJ64: 1.18 | AK64: 2.21 | AL64: 2.86 | AO64: 14 | AP64: 0.09 | AQ64: 0.21 | AR64: 0.58 | AS64: 0.86 | AT64: 2.09 | AU64: 20.09 | AV64: 20.09 | AY64: 14 | AZ64: 0.06626896841 | BA64: 0.1464585715 | BB64: 0.4164362466 | BC64: 0.4546168228 | BD64: 0.9110903497 | BE64: 0.3922761719 | BF64: 0.1151675601
A65: 55 | B65: ='Data Entry'!M57 -> 0.01602806255 | E65: 0.0008747680159 | F65: 0.01690283057 | U65: 15 | V65: 0.006605221564 | W65: 0.01679047637 | X65: 0.04036229983 | Y65: 0.09601354793 | Z65: 0.2742333323 | AA65: 0.5226989003 | AB65: 0.8009802688 | AE65: 15 | AF65: 0.03 | AG65: 0.07 | AH65: 0.18 | AI65: 0.42 | AJ65: 1.17 | AK65: 2.11 | AL65: 2.6 | AO65: 15 | AP65: 0.1 | AQ65: 0.23 | AR65: 0.63 | AS65: 0.91 | AT65: 2.14 | AU65: 20.09 | AV65: 20.09 | AY65: 15 | AZ65: 0.07238560048 | BA65: 0.1597929999 | BB65: 0.454208517 | BC65: 0.4929194348 | BD65: 0.9726005988 | BE65: 0.4213586829 | BF65: 0.1259722143
A66: 56 | B66: ='Data Entry'!M58 -> 0.01655696345 | E66: 0.0008747680159 | F66: 0.01743173147 | U66: 16 | V66: 0.007980152284 | W66: 0.01972844664 | X66: 0.04589318338 | Y66: 0.1059994098 | Z66: 0.2918178099 | AA66: 0.5398621911 | AB66: 0.8084405993 | AE66: 16 | AF66: 0.03 | AG66: 0.08 | AH66: 0.19 | AI66: 0.43 | AJ66: 1.16 | AK66: 2.01 | AL66: 2.37 | AO66: 16 | AP66: 0.11 | AQ66: 0.26 | AR66: 0.68 | AS66: 0.97 | AT66: 2.2 | AU66: 20.1 | AV66: 20.1 | AY66: 16 | AZ66: 0.07870332492 | BA66: 0.1735585607 | BB66: 0.4933319446 | BC66: 0.5322398931 | BD66: 1.034324947 | BE66: 0.4504050684 | BF66: 0.1367157577
A67: 57 | B67: ='Data Entry'!M59 -> 0.01705761189 | E67: 0.0008747680159 | F67: 0.01793237991 | U67: 17 | V67: 0.009528631142 | W67: 0.02294343896 | X67: 0.05174805089 | Y67: 0.1161632798 | Z67: 0.3087481342 | AA67: 0.5558361916 | AB67: 0.8153559084 | AE67: 17 | AF67: 0.04 | AG67: 0.09 | AH67: 0.2 | AI67: 0.45 | AJ67: 1.15 | AK67: 1.92 | AL67: 2.17 | AO67: 17 | AP67: 0.12 | AQ67: 0.28 | AR67: 0.74 | AS67: 1.02 | AT67: 2.25 | AU67: 20.1 | AV67: 20.1 | AY67: 17 | AZ67: 0.08522256183 | BA67: 0.1877598533 | BB67: 0.5338635669 | BC67: 0.5726194267 | BD67: 1.096356656 | BE67: 0.4793848835 | BF67: 0.1473751528
A68: 58 | B68: ='Data Entry'!M60 -> 0.01752670184 | E68: 0.0008747680159 | F68: 0.01840146986 | U68: 18 | V68: 0.01125893521 | W68: 0.02643698662 | X68: 0.05791085414 | Y68: 0.1264677398 | Z68: 0.3250352136 | AA68: 0.570738659 | AB68: 0.8217839881 | AE68: 18 | AF68: 0.04 | AG68: 0.1 | AH68: 0.21 | AI68: 0.46 | AJ68: 1.14 | AK68: 1.83 | AL68: 1.99 | AO68: 18 | AP68: 0.13 | AQ68: 0.3 | AR68: 0.79 | AS68: 1.07 | AT68: 2.29 | AU68: 20.1 | AV68: 20.1 | AY68: 18 | AZ68: 0.09191547794 | BA68: 0.2023391374 | BB68: 0.5756826411 | BC68: 0.6139067974 | BD68: 1.158402201 | BE68: 0.5081103173 | BF68: 0.157881869
A69: 59 | B69: ='Data Entry'!M61 -> 0.01796093145 | E69: 0.0008747680159 | F69: 0.01883569946 | U69: 19 | V69: 0.01317863111 | W69: 0.03020896 | X69: 0.06436461337 | Y69: 0.1368790402 | Z69: 0.3406957311 | AA69: 0.5846725575 | AB69: 0.8277746164 | AE69: 19 | AF69: 0.05 | AG69: 0.11 | AH69: 0.22 | AI69: 0.47 | AJ69: 1.12 | AK69: 1.74 | AL69: 1.84 | AO69: 19 | AP69: 0.15 | AQ69: 0.32 | AR69: 0.84 | AS69: 1.12 | AT69: 2.34 | AU69: 20.11 | AV69: 20.11 | AY69: 19 | AZ69: 0.09882094499 | BA69: 0.2173874046 | BB69: 0.6191106665 | BC69: 0.6564233657 | BD69: 1.221105458 | BE69: 0.5367845559 | BF69: 0.1682862966
A70: 60 | B70: ='Data Entry'!M62 -> 0.01835700213 | E70: 0.0008747680159 | F70: 0.01923177015 | U70: 20 | V70: 0.01529450602 | W70: 0.03425766488 | X70: 0.07109171683 | Y70: 0.1473669174 | Z70: 0.3557503074 | AA70: 0.597728313 | AB70: 0.8333709867 | AE70: 20 | AF70: 0.05 | AG70: 0.11 | AH70: 0.24 | AI70: 0.48 | AJ70: 1.1 | AK70: 1.66 | AL70: 1.7 | AO70: 20 | AP70: 0.16 | AQ70: 0.35 | AR70: 0.9 | AS70: 1.18 | AT70: 2.38 | AU70: 20.12 | AV70: 20.12 | AY70: 20 | AZ70: 0.1058730775 | BA70: 0.2327631402 | BB70: 0.6637895278 | BC70: 0.699762424 | BD70: 1.283667735 | BE70: 0.5650173144 | BF70: 0.1784612011
A71: 61 | B71: ='Data Entry'!M63 -> 0.0187402335 | E71: 0.0008747680159 | F71: 0.01961500151 | U71: 21 | V71: 0.01761251244 | W71: 0.03857995612 | X71: 0.07807418229 | Y71: 0.1579043749 | Z71: 0.3702221059 | AA71: 0.609985677 | AB71: 0.8386108085 | AE71: 21 | AF71: 0.06 | AG71: 0.12 | AH71: 0.25 | AI71: 0.48 | AJ71: 1.08 | AK71: 1.58 | AL71: 1.57 | AO71: 21 | AP71: 0.17 | AQ71: 0.37 | AR71: 0.95 | AS71: 1.23 | AT71: 2.43 | AU71: 20.13 | AV71: 20.13 | AY71: 21 | AZ71: 0.1130377126 | BA71: 0.2483954879 | BB71: 0.7095687843 | BC71: 0.7437431927 | BD71: 1.34575178 | BE71: 0.5926168105 | BF71: 0.188339732
A72: 62 | B72: ='Data Entry'!M64 -> 0.01911123988 | E72: 0.0008747680159 | F72: 0.01998600789 | U72: 22 | V72: 0.02013772711 | W72: 0.04317136149 | X72: 0.08529388203 | Y72: 0.1684674448 | Z72: 0.384135781 | AA72: 0.62151527 | AB72: 0.8435271764 | AE72: 22 | AF72: 0.06 | AG72: 0.13 | AH72: 0.25 | AI72: 0.49 | AJ72: 1.06 | AK72: 1.51 | AL72: 1.45 | AO72: 22 | AP72: 0.18 | AQ72: 0.39 | AR72: 1.01 | AS72: 1.28 | AT72: 2.46 | AU72: 20.13 | AV72: 20.13 | AY72: 22 | AZ72: 0.1203043176 | BA72: 0.2642663356 | BB72: 0.7564571398 | BC72: 0.7883536985 | BD72: 1.407350603 | BE72: 0.6195330579 | BF72: 0.1978997627
A73: 63 | B73: ='Data Entry'!M65 -> 0.01947059702 | E73: 0.0008747680159 | F73: 0.02034536504 | U73: 23 | V73: 0.02287432366 | W73: 0.04802621148 | X73: 0.09273273376 | Y73: 0.1790349424 | Z73: 0.397516693 | AA73: 0.6323798641 | AB73: 0.8481492723 | AE73: 23 | AF73: 0.07 | AG73: 0.14 | AH73: 0.26 | AI73: 0.49 | AJ73: 1.03 | AK73: 1.44 | AL73: 1.35 | AO73: 23 | AP73: 0.19 | AQ73: 0.42 | AR73: 1.07 | AS73: 1.33 | AT73: 2.5 | AU73: 20.14 | AV73: 20.14 | AY73: 23 | AZ73: 0.1276622354 | BA73: 0.2803574702 | BB73: 0.8044671498 | BC73: 0.8335842868 | BD73: 1.468457249 | BE73: 0.6457208819 | BF73: 0.207122417
A74: 64 | B74: ='Data Entry'!M66 -> 0.0198188451 | E74: 0.0008747680159 | F74: 0.02069361311 | U74: 24 | V74: 0.02582555845 | W74: 0.05313777129 | X74: 0.1003728601 | Y74: 0.1895882227 | Z74: 0.4103903272 | AA74: 0.6426354535 | AB74: 0.8525029379 | AE74: 24 | AF74: 0.07 | AG74: 0.14 | AH74: 0.27 | AI74: 0.5 | AJ74: 1.01 | AK74: 1.37 | AL74: 1.25 | AO74: 24 | AP74: 0.21 | AQ74: 0.44 | AR74: 1.13 | AS74: 1.38 | AT74: 2.54 | AU74: 20.14 | AV74: 20.14 | AY74: 24 | AZ74: 0.1350987 | BA74: 0.2966460973 | BB74: 0.8536016592 | BC74: 0.8794132865 | BD74: 1.529037626 | BE74: 0.6711288367 | BF74: 0.2159885095
A75: 65 | B75: ='Data Entry'!M67 -> 0.02015649137 | E75: 0.0008747680159 | F75: 0.02103125939 | U75: 25 | V75: 0.02899376846 | W75: 0.05849837225 | X75: 0.1081967202 | Y75: 0.2001109445 | Z75: 0.4227818715 | AA75: 0.6523321511 | AB75: 0.8566111471 | AE75: 25 | AF75: 0.08 | AG75: 0.15 | AH75: 0.28 | AI75: 0.5 | AJ75: 0.98 | AK75: 1.3 | AL75: 1.16 | AO75: 25 | AP75: 0.22 | AQ75: 0.47 | AR75: 1.18 | AS75: 1.43 | AT75: 2.57 | AU75: 20.15 | AV75: 20.15 | AY75: 25 | AZ75: 0.1425984041 | BA75: 0.3131037929 | BB75: 0.9038500841 | BC75: 0.9258032937 | BD75: 1.589024355 | BE75: 0.6956971724 | BF75: 0.2244778044
A76: =1+A75 -> 66 | B76: ='Data Entry'!M68 -> 0.0204840127 | E76: 0.0008747680159 | F76: =MAX(E76+B76,0) -> 0.02135878071 | U76: 26 | V76: 0.03238038035 | W76: 0.0640995403 | X76: 0.1161872153 | Y76: 0.2105888464 | Z76: 0.4347159156 | AA76: 0.6615149442 | AB76: 0.8604943985 | AE76: 26 | AF76: 0.08 | AG76: 0.16 | AH76: 0.29 | AI76: 0.5 | AJ76: 0.96 | AK76: 1.24 | AL76: 1.08 | AO76: 26 | AP76: 0.23 | AQ76: 0.49 | AR76: 1.24 | AS76: 1.47 | AT76: 2.61 | AU76: 20.15 | AV76: 20.15 | AY76: 26 | AZ76: 0.150159126 | BA76: 0.3297315162 | BB76: 0.9552977249 | BC76: 0.9728129813 | BD76: 1.648525175 | BE76: 0.7194388928 | BF76: 0.2325935464
A77: 67 | B77: ='Data Entry'!M69 -> 0.02080185776 | E77: 0.0008747680159 | F77: 0.02167662577 | U77: 27 | V77: 0.03598592917 | W77: 0.06993211972 | X77: 0.1243277733 | Y77: 0.2210095364 | Z77: 0.4462162422 | AA77: 0.6702243331 | AB77: 0.8641710435 | AE77: 27 | AF77: 0.09 | AG77: 0.17 | AH77: 0.29 | AI77: 0.5 | AJ77: 0.93 | AK77: 1.18 | AL77: 1.01 | AO77: 27 | AP77: 0.24 | AQ77: 0.51 | AR77: 1.3 | AS77: 1.52 | AT77: 2.64 | AU77: 20.15 | AV77: 20.15 | AY77: 27 | AZ77: 0.1578438241 | BA77: 0.3466772556 | BB77: 1.008506144 | BC77: 1.020979457 | BD77: 1.708520866 | BE77: 0.7427002018 | BF77: 0.2404407985
A78: 68 | B78: ='Data Entry'!M70 -> 0.02111044911 | E78: 0.0008747680159 | F78: 0.02198521712 | U78: 28 | V78: 0.03981008565 | W78: 0.07598639078 | X78: 0.1326024128 | Y78: 0.2313622969 | Z78: 0.4573056891 | AA78: 0.6784968742 | AB78: 0.8676575622 | AE78: 28 | AF78: 0.09 | AG78: 0.17 | AH78: 0.3 | AI78: 0.5 | AJ78: 0.91 | AK78: 1.12 | AL78: 0.94 | AO78: 28 | AP78: 0.26 | AQ78: 0.54 | AR78: 1.36 | AS78: 1.57 | AT78: 2.68 | AU78: 20.15 | AV78: 20.15 | AY78: 28 | AZ78: 0.1657398645 | BA78: 0.3641458626 | BB78: 1.064255127 | BC78: 1.071041667 | BD78: 1.770329479 | BE78: 0.765933553 | BF78: 0.2481558813
A79: 69 | B79: ='Data Entry'!M71 -> 0.02141018505 | E79: 0.0008747680159 | F79: 0.02228495307 | U79: 29 | V79: 0.04385169069 | W79: 0.08225218041 | X79: 0.1409957913 | Y79: 0.2416379055 | Z79: 0.4680060642 | AA79: 0.6863656439 | AB79: 0.8709687964 | AE79: 29 | AF79: 0.1 | AG79: 0.18 | AH79: 0.31 | AI79: 0.5 | AJ79: 0.88 | AK79: 1.07 | AL79: 0.88 | AO79: 29 | AP79: 0.27 | AQ79: 0.56 | AR79: 1.43 | AS79: 1.63 | AT79: 2.72 | AU79: 20.16 | AV79: 20.16 | AY79: 29 | AZ79: 0.1739448086 | BA79: 0.3823680895 | BB79: 1.123463502 | BC79: 1.12385201 | BD79: 1.835437543 | BE79: 0.7896199717 | BF79: 0.2558815002
A80: 70 | B80: ='Data Entry'!M72 -> 0.02170144136 | E80: 0.0008747680159 | F80: 0.02257620938 | U80: 30 | V80: 0.0481087958 | W80: 0.0887189652 | X80: 0.1494932382 | Y80: 0.2518284708 | Z80: 0.4783381006 | AA80: 0.6938606368 | AB80: 0.8741181478 | AE80: 30 | AF80: 0.1 | AG80: 0.19 | AH80: 0.31 | AI80: 0.5 | AJ80: 0.86 | AK80: 1.02 | AL80: 0.82 | AO80: 30 | AP80: 0.28 | AQ80: 0.59 | AR80: 1.5 | AS80: 1.68 | AT80: 2.77 | AU80: 20.16 | AV80: 20.16 | AY80: 30 | AZ80: 0.1825683899 | BA80: 0.4016061621 | BB80: 1.187229265 | BC80: 1.180408676 | BD80: 1.905559341 | BE80: 0.814277299 | BF80: 0.2637679538
A81: 71 | B81: ='Data Entry'!M73 -> 0.02198457284 | E81: 0.0008747680159 | F81: 0.02285934086
A82: 72 | B82: ='Data Entry'!M74 -> 0.02225991478 | E82: 0.0008747680159 | F82: 0.0231346828
A83: 73 | B83: ='Data Entry'!M75 -> 0.02252778427 | E83: 0.0008747680159 | F83: 0.02340255228
A84: 74 | B84: ='Data Entry'!M76 -> 0.02278848141 | E84: 0.0008747680159 | F84: 0.02366324942
A85: 75 | B85: ='Data Entry'!M77 -> 0.02304229046 | E85: 0.0008747680159 | F85: 0.02391705847
A86: 76 | B86: ='Data Entry'!M78 -> 0.02328948084 | E86: 0.0008747680159 | F86: 0.02416424885
A87: 77 | B87: ='Data Entry'!M79 -> 0.02353030811 | E87: 0.0008747680159 | F87: 0.02440507613
A88: 78 | B88: ='Data Entry'!M80 -> 0.02376501484 | E88: 0.0008747680159 | F88: 0.02463978286
A89: 79 | B89: ='Data Entry'!M81 -> 0.02399383142 | E89: 0.0008747680159 | F89: 0.02486859944
A90: 80 | B90: ='Data Entry'!M82 -> 0.02421697683 | E90: =E89 -> 0.0008747680159 | F90: 0.02509174485
A91: 81 | B91: ='Data Entry'!M83 -> 0.02443465932 | E91: 0.0008747680159 | F91: 0.02530942733
A92: 82 | B92: ='Data Entry'!M84 -> 0.02464707706 | E92: 0.0008747680159 | F92: 0.02552184507
A93: 83 | B93: ='Data Entry'!M85 -> 0.02485441877 | E93: 0.0008747680159 | F93: 0.02572918678
A94: 84 | B94: ='Data Entry'!M86 -> 0.02505686424 | E94: 0.0008747680159 | F94: 0.02593163225
A95: 85 | B95: ='Data Entry'!M87 -> 0.02525458487 | E95: 0.0008747680159 | F95: 0.02612935289
A96: 86 | B96: ='Data Entry'!M88 -> 0.02544774418 | E96: 0.0008747680159 | F96: 0.02632251219
A97: 87 | B97: ='Data Entry'!M89 -> 0.02563649818 | E97: 0.0008747680159 | F97: 0.0265112662
A98: 88 | B98: ='Data Entry'!M90 -> 0.02582099589 | E98: 0.0008747680159 | F98: 0.0266957639
A99: 89 | B99: ='Data Entry'!M91 -> 0.02600137966 | E99: 0.0008747680159 | F99: 0.02687614767
A100: 90 | B100: ='Data Entry'!M92 -> 0.02617778557 | E100: 0.0008747680159 | F100: 0.02705255359
A101: 91 | B101: ='Data Entry'!M93 -> 0.02635034377 | E101: 0.0008747680159 | F101: 0.02722511178
A102: 92 | B102: ='Data Entry'!M94 -> 0.02651917878 | E102: 0.0008747680159 | F102: 0.02739394679
A103: 93 | B103: ='Data Entry'!M95 -> 0.02668440981 | E103: 0.0008747680159 | F103: 0.02755917783
A104: 94 | B104: ='Data Entry'!M96 -> 0.02684615104 | E104: 0.0008747680159 | F104: 0.02772091906
A105: 95 | B105: ='Data Entry'!M97 -> 0.02700451188 | E105: 0.0008747680159 | F105: 0.02787927989
A106: 96 | B106: ='Data Entry'!M98 -> 0.02715959719 | E106: 0.0008747680159 | F106: 0.02803436521
A107: 97 | B107: ='Data Entry'!M99 -> 0.02731150757 | E107: 0.0008747680159 | F107: 0.02818627559
A108: 98 | B108: ='Data Entry'!M100 -> 0.02746033952 | E108: 0.0008747680159 | F108: 0.02833510754
A109: 99 | B109: ='Data Entry'!M101 -> 0.02760618568 | E109: 0.0008747680159 | F109: 0.0284809537
A110: 100 | B110: ='Data Entry'!M102 -> 0.027749135 | E110: 0.0008747680159 | F110: 0.02862390302

Sheet Final Spread
B1: Final | E1: =N8 -> 0 | F1: =N9 -> 0 | G1: =N10 -> 0.5 | H1: =N11 -> 0.5 | I1: =N12 -> 0
A2: Duration | B2: Spread | D2: Maturity | E2: AAA | F2: AA | G2: A | H2: BBB | I2: BBB- | K2: Weighted
A3: 1 | B3: =B4+B4-B5 -> 0.0002262635998 | D3: 1 | E3: 0 | F3: 0 | G3: =Results!L3 -> 0.003623901686 | H3: =Results!M3 -> 0.006583958852 | I3: =Results!N3 -> 0.00611567846 | K3: =SUMPRODUCT(E$1:I$1,E3:I3) -> 0.005103930269
A4: =1+A3 -> 2 | B4: =B5+B5-B6 -> 0.0007753890849 | D4: 2 | E4: 0 | F4: 0 | G4: =Results!L4 -> 0.001964890977 | H4: =Results!M4 -> 0.004439876832 | I4: =Results!N4 -> 0.006045762447 | K4: 0.003202383905
A5: 3 | B5: =B6+B6-B7 -> 0.00132451457 | D5: 3 | E5: 0 | F5: 0 | G5: =Results!L5 -> 0.001622217144 | H5: =Results!M5 -> 0.0030982869 | I5: =Results!N5 -> 0.007727086664 | K5: 0.002360252022 | M5: Weightings
A6: 4 | B6: =B7+B7-B8 -> 0.001873640055 | D6: 4 | E6: 0 | F6: 0 | G6: =Results!L6 -> 0.001996791228 | H6: =Results!M6 -> 0.002380188252 | I6: =Results!N6 -> 0.009519451976 | K6: 0.00218848974 | M6: Actual | N6: Weightings
A7: 5 | B7: =K7 -> 0.00242276554 | D7: 5 | E7: 0 | F7: 0 | G7: =Results!L7 -> 0.002683696817 | H7: =Results!M7 -> 0.002161834264 | I7: =Results!N7 -> 0.01097943963 | K7: 0.00242276554 | M7: Filings | N7: Used
A8: 6 | B8: =0.5*B7+0.5*B9 -> 0.002971891025 | D8: 6 | E8: 0 | F8: 0 | G8: =Results!L8 -> 0.003463278197 | H8: =Results!M8 -> 0.002362053601 | I8: =Results!N8 -> 0.01207633987 | K8: 0.002912665899 | M8: AAA 5% | N8: =Instructions!F36/100 -> 0
A9: 7 | B9: =K9 -> 0.003521016511 | D9: 7 | E9: 0 | F9: 0 | G9: =Results!L9 -> 0.004178900815 | H9: =Results!M9 -> 0.002863132206 | I9: =Results!N9 -> 0.01283701278 | K9: 0.003521016511 | M9: AA 10% | N9: =Instructions!G36/100 -> 0
A10: 8 | B10: =0.67*B9+0.33*B12 -> 0.004203816246 | D10: 8 | E10: 0 | F10: 0 | G10: =Results!L10 -> 0.004788196872 | H10: =Results!M10 -> 0.003604241673 | I10: =Results!N10 -> 0.01334782002 | K10: 0.004196219273 | M10: A 40% | N10: =Instructions!H36/100 -> 0.5
A11: 9 | B11: =0.33*B9+0.67*B12 -> 0.004907306883 | D11: 9 | E11: 0 | F11: 0 | G11: =Results!L11 -> 0.005264164854 | H11: =Results!M11 -> 0.004512485041 | I11: =Results!N11 -> 0.01366045052 | K11: 0.004888324947 | M11: BBB 35% | N11: =Instructions!I36/100 -> 0.5
A12: 10 | B12: =K12 -> 0.005590106618 | D12: 10 | E12: 0 | F12: 0 | G12: =Results!L12 -> 0.005627102712 | H12: =Results!M12 -> 0.005553110525 | I12: =Results!N12 -> 0.01383915166 | K12: 0.005590106618 | M12: BB 5% | N12: =Instructions!J36/100 -> 0
A13: 11 | B13: =0.9*B12+0.1*B22 -> 0.006230790747 | D13: 11 | E13: 0 | F13: 0 | G13: =Results!L13 -> 0.00589621774 | H13: =Results!M13 -> 0.006691054403 | I13: =Results!N13 -> 0.01392568974 | K13: 0.006293636072 | M13: B 5%
A14: 12 | B14: =0.8*B12+0.2*B22 -> 0.006871474876 | D14: 12 | E14: 0 | F14: 0 | G14: =Results!L14 -> 0.006095058583 | H14: =Results!M14 -> 0.007901072 | I14: =Results!N14 -> 0.01395395334 | K14: 0.006998065292
A15: 13 | B15: =0.7*B12+0.3*B22 -> 0.007512159005 | D15: 13 | E15: 0 | F15: 0 | G15: =Results!L15 -> 0.006235390887 | H15: =Results!M15 -> 0.009153314664 | I15: =Results!N15 -> 0.01393948519 | K15: 0.007694352775
A16: 14 | B16: =0.6*B12+0.4*B22 -> 0.008152843133 | D16: 14 | E16: 0 | F16: 0 | G16: =Results!L16 -> 0.006302628122 | H16: =Results!M16 -> 0.01039888634 | I16: =Results!N16 -> 0.01386817827 | K16: 0.00835075723
A17: 15 | B17: =0.5*B12+0.5*B22 -> 0.008793527262 | D17: 15 | E17: 0 | F17: 0 | G17: =Results!L17 -> 0.006331683764 | H17: =Results!M17 -> 0.01164508206 | I17: =Results!N17 -> 0.01377392001 | K17: 0.008988382913
A18: 16 | B18: =0.4*B12+0.6*B22 -> 0.009434211391 | D18: 16 | E18: 0 | F18: 0 | G18: =Results!L18 -> 0.006495533959 | H18: =Results!M18 -> 0.01304305807 | I18: =Results!N18 -> 0.01382809204 | K18: 0.009769296015
A19: 17 | B19: =0.3*B12+0.7*B22 -> 0.01007489552 | D19: 17 | E19: 0 | F19: 0 | G19: =Results!L19 -> 0.006468758744 | H19: =Results!M19 -> 0.01425043803 | I19: =Results!N19 -> 0.01370357349 | K19: 0.01035959839
A20: 18 | B20: =0.2*B12+0.8*B22 -> 0.01071557965 | D20: 18 | E20: 0 | F20: 0 | G20: =Results!L20 -> 0.006406261381 | H20: =Results!M20 -> 0.01540916495 | I20: =Results!N20 -> 0.01355366898 | K20: 0.01090771316
A21: 19 | B21: =0.1*B12+0.9*B22 -> 0.01135626378 | D21: 19 | E21: 0 | F21: 0 | G21: =Results!L21 -> 0.006510317698 | H21: =Results!M21 -> 0.0167117928 | I21: =Results!N21 -> 0.01357923663 | K21: 0.01161105525
A22: 20 | B22: =K22 -> 0.01199694791 | D22: 20 | E22: 0 | F22: 0 | G22: =Results!L22 -> 0.006311812569 | H22: =Results!M22 -> 0.01768208324 | I22: =Results!N22 -> 0.01330994035 | K22: 0.01199694791
A23: 21 | B23: =0.9*B22+0.1*B32 -> 0.01247533435 | D23: 21 | E23: 0 | F23: 0 | G23: =Results!L23 -> 0.006338281346 | H23: =Results!M23 -> 0.01884251739 | I23: =Results!N23 -> 0.01327227916 | K23: 0.01259039937
A24: 22 | B24: =0.8*B22+0.2*B32 -> 0.01295372079 | D24: 22 | E24: 0 | F24: 0 | G24: =Results!L24 -> 0.00634861652 | H24: =Results!M24 -> 0.01994856952 | I24: =Results!N24 -> 0.01322427133 | K24: 0.01314859302
A25: 23 | B25: =0.7*B22+0.3*B32 -> 0.01343210724 | D25: 23 | E25: 0 | F25: 0 | G25: =Results!L25 -> 0.006345849145 | H25: =Results!M25 -> 0.02100113724 | I25: =Results!N25 -> 0.01316821141 | K25: 0.01367349319
A26: 24 | B26: =0.6*B22+0.4*B32 -> 0.01391049368 | D26: 24 | E26: 0 | F26: 0 | G26: =Results!L26 -> 0.006332526974 | H26: =Results!M26 -> 0.02200163613 | I26: =Results!N26 -> 0.01310602565 | K26: 0.01416708155
A27: 25 | B27: =0.5*B22+0.5*B32 -> 0.01438888012 | D27: 25 | E27: 0 | F27: 0 | G27: =Results!L27 -> 0.006310801138 | H27: =Results!M27 -> 0.02295185841 | I27: =Results!N27 -> 0.01303933892 | K27: 0.01463132977
A28: 26 | B28: =0.4*B22+0.6*B32 -> 0.01486726657 | D28: 26 | E28: 0 | F28: 0 | G28: =Results!L28 -> 0.006322960809 | H28: =Results!M28 -> 0.02389432487 | I28: =Results!N28 -> 0.01300999286 | K28: 0.01510864284
A29: 27 | B29: =0.3*B22+0.7*B32 -> 0.01534565301 | D29: 27 | E29: 0 | F29: 0 | G29: =Results!L29 -> 0.006330097711 | H29: =Results!M29 -> 0.02479080323 | I29: =Results!N29 -> 0.01297869676 | K29: 0.01556045047
A30: 28 | B30: =0.2*B22+0.8*B32 -> 0.01582403945 | D30: 28 | E30: 0 | F30: 0 | G30: =Results!L30 -> 0.006333542805 | H30: =Results!M30 -> 0.02564362833 | I30: =Results!N30 -> 0.01294645313 | K30: 0.01598858557
A31: 29 | B31: =0.1*B22+0.9*B32 -> 0.0163024259 | D31: 29 | E31: 0 | F31: 0 | G31: =Results!L31 -> 0.006334439183 | H31: =Results!M31 -> 0.02645518254 | I31: =Results!N31 -> 0.01291412159 | K31: 0.01639481086
A32: 30 | B32: =K32 -> 0.01678081234 | D32: 30 | E32: 0 | F32: 0 | G32: =Results!L32 -> 0.006333772101 | H32: =Results!M32 -> 0.02722785258 | I32: =Results!N32 -> 0.01288244153 | K32: 0.01678081234
D33: avg | E33: =AVERAGE(E3:E32) -> 0 | F33: =AVERAGE(F3:F32) -> 0 | G33: =AVERAGE(G3:G32) -> 0.005386589749 | H33: =AVERAGE(H3:H32) -> 0.01310675416 | I33: =AVERAGE(I3:I32) -> 0.01247085881

Sheet Results
K1: Spreads | R1: Raw Yields
I2: Maturity | J2: AAA | K2: AA | L2: A | M2: BBB | N2: BBB- | P2: Maturity | Q2: AAA | R2: AA | S2: A | T2: BBB | U2: BBB-
I3: ='All Curves'!A10 -> 1 | L3: ='All Curves'!J10 -> 0.003623901686 | M3: ='All Curves'!K10 -> 0.006583958852 | N3: ='All Curves'!L10 -> 0.00611567846 | P3: =I3 -> 1 | Q3: ='All Curves'!C10 ->  | R3: ='All Curves'!D10 ->  | S3: ='All Curves'!E10 -> 0.001986503295 | T3: ='All Curves'!F10 -> 0.004946560461 | U3: ='All Curves'!G10 -> 0.004478280068
I4: ='All Curves'!A11 -> 2 | L4: ='All Curves'!J11 -> 0.001964890977 | M4: ='All Curves'!K11 -> 0.004439876832 | N4: ='All Curves'!L11 -> 0.006045762447 | P4: 2 | Q4: ='All Curves'!C11 ->  | R4: ='All Curves'!D11 ->  | S4: ='All Curves'!E11 -> -2.219259005e-05 | T4: ='All Curves'!F11 -> 0.002452793264 | U4: ='All Curves'!G11 -> 0.004058678879
I5: ='All Curves'!A12 -> 3 | L5: ='All Curves'!J12 -> 0.001622217144 | M5: ='All Curves'!K12 -> 0.0030982869 | N5: ='All Curves'!L12 -> 0.007727086664 | P5: 3 | Q5: ='All Curves'!C12 ->  | R5: ='All Curves'!D12 ->  | S5: ='All Curves'!E12 -> -0.000527131652 | T5: ='All Curves'!F12 -> 0.0009489381035 | U5: ='All Curves'!G12 -> 0.005577737867
I6: ='All Curves'!A13 -> 4 | L6: ='All Curves'!J13 -> 0.001996791228 | M6: ='All Curves'!K13 -> 0.002380188252 | N6: ='All Curves'!L13 -> 0.009519451976 | P6: 4 | Q6: ='All Curves'!C13 ->  | R6: ='All Curves'!D13 ->  | S6: ='All Curves'!E13 -> -0.0001526377297 | T6: ='All Curves'!F13 -> 0.000230759294 | U6: ='All Curves'!G13 -> 0.007370023019
I7: ='All Curves'!A14 -> 5 | L7: ='All Curves'!J14 -> 0.002683696817 | M7: ='All Curves'!K14 -> 0.002161834264 | N7: ='All Curves'!L14 -> 0.01097943963 | P7: 5 | Q7: ='All Curves'!C14 ->  | R7: ='All Curves'!D14 ->  | S7: ='All Curves'!E14 -> 0.0006525908512 | T7: ='All Curves'!F14 -> 0.000130728298 | U7: ='All Curves'!G14 -> 0.008948333665
I8: ='All Curves'!A15 -> 6 | L8: ='All Curves'!J15 -> 0.003463278197 | M8: ='All Curves'!K15 -> 0.002362053601 | N8: ='All Curves'!L15 -> 0.01207633987 | P8: 6 | Q8: ='All Curves'!C15 ->  | R8: ='All Curves'!D15 ->  | S8: ='All Curves'!E15 -> 0.001613024684 | T8: ='All Curves'!F15 -> 0.0005118000889 | U8: ='All Curves'!G15 -> 0.01022608636
I9: ='All Curves'!A16 -> 7 | L9: ='All Curves'!J16 -> 0.004178900815 | M9: ='All Curves'!K16 -> 0.002863132206 | N9: ='All Curves'!L16 -> 0.01283701278 | P9: 7 | Q9: ='All Curves'!C16 ->  | R9: ='All Curves'!D16 ->  | S9: ='All Curves'!E16 -> 0.002577978341 | T9: ='All Curves'!F16 -> 0.001262209732 | U9: ='All Curves'!G16 -> 0.0112360903
I10: ='All Curves'!A17 -> 8 | L10: ='All Curves'!J17 -> 0.004788196872 | M10: ='All Curves'!K17 -> 0.003604241673 | N10: ='All Curves'!L17 -> 0.01334782002 | P10: 8 | Q10: ='All Curves'!C17 ->  | R10: ='All Curves'!D17 ->  | S10: ='All Curves'!E17 -> 0.003475081167 | T10: ='All Curves'!F17 -> 0.002291125968 | U10: ='All Curves'!G17 -> 0.01203470432
I11: ='All Curves'!A18 -> 9 | L11: ='All Curves'!J18 -> 0.005264164854 | M11: ='All Curves'!K18 -> 0.004512485041 | N11: ='All Curves'!L18 -> 0.01366045052 | P11: 9 | Q11: ='All Curves'!C18 ->  | R11: ='All Curves'!D18 ->  | S11: ='All Curves'!E18 -> 0.004276703974 | T11: ='All Curves'!F18 -> 0.003525024162 | U11: ='All Curves'!G18 -> 0.01267298964
I12: ='All Curves'!A19 -> 10 | L12: ='All Curves'!J19 -> 0.005627102712 | M12: ='All Curves'!K19 -> 0.005553110525 | N12: ='All Curves'!L19 -> 0.01383915166 | P12: 10 | Q12: ='All Curves'!C19 ->  | R12: ='All Curves'!D19 ->  | S12: ='All Curves'!E19 -> 0.004978654786 | T12: ='All Curves'!F19 -> 0.004904662599 | U12: ='All Curves'!G19 -> 0.01319070374
I13: ='All Curves'!A20 -> 11 | L13: ='All Curves'!J20 -> 0.00589621774 | M13: ='All Curves'!K20 -> 0.006691054403 | N13: ='All Curves'!L20 -> 0.01392568974 | P13: 11 | Q13: ='All Curves'!C20 ->  | R13: ='All Curves'!D20 ->  | S13: ='All Curves'!E20 -> 0.005587727798 | T13: ='All Curves'!F20 -> 0.006382564462 | U13: ='All Curves'!G20 -> 0.01361719979
I14: ='All Curves'!A21 -> 12 | L14: ='All Curves'!J21 -> 0.006095058583 | M14: ='All Curves'!K21 -> 0.007901072 | N14: ='All Curves'!L21 -> 0.01395395334 | P14: 12 | Q14: ='All Curves'!C21 ->  | R14: ='All Curves'!D21 ->  | S14: ='All Curves'!E21 -> 0.006114909825 | T14: ='All Curves'!F21 -> 0.007920923243 | U14: ='All Curves'!G21 -> 0.01397380458
I15: ='All Curves'!A22 -> 13 | L15: ='All Curves'!J22 -> 0.006235390887 | M15: ='All Curves'!K22 -> 0.009153314664 | N15: ='All Curves'!L22 -> 0.01393948519 | P15: 13 | Q15: ='All Curves'!C22 ->  | R15: ='All Curves'!D22 ->  | S15: ='All Curves'!E22 -> 0.006571938708 | T15: ='All Curves'!F22 -> 0.009489862484 | U15: ='All Curves'!G22 -> 0.01427603302
I16: ='All Curves'!A23 -> 14 | L16: ='All Curves'!J23 -> 0.006302628122 | M16: ='All Curves'!K23 -> 0.01039888634 | N16: ='All Curves'!L23 -> 0.01386817827 | P16: 14 | Q16: ='All Curves'!C23 ->  | R16: ='All Curves'!D23 ->  | S16: ='All Curves'!E23 -> 0.00696973351 | T16: ='All Curves'!F23 -> 0.01106599173 | U16: ='All Curves'!G23 -> 0.01453528366
I17: ='All Curves'!A24 -> 15 | L17: ='All Curves'!J24 -> 0.006331683764 | M17: ='All Curves'!K24 -> 0.01164508206 | N17: ='All Curves'!L24 -> 0.01377392001 | P17: 15 | Q17: ='All Curves'!C24 ->  | R17: ='All Curves'!D24 ->  | S17: ='All Curves'!E24 -> 0.007317811575 | T17: ='All Curves'!F24 -> 0.01263120987 | U17: ='All Curves'!G24 -> 0.01476004782
I18: ='All Curves'!A25 -> 16 | L18: ='All Curves'!J25 -> 0.006495533959 | M18: ='All Curves'!K25 -> 0.01304305807 | N18: ='All Curves'!L25 -> 0.01382809204 | P18: 16 | Q18: ='All Curves'!C25 ->  | R18: ='All Curves'!D25 ->  | S18: ='All Curves'!E25 -> 0.00762419094 | T18: ='All Curves'!F25 -> 0.01417171505 | U18: ='All Curves'!G25 -> 0.01495674902
I19: ='All Curves'!A26 -> 17 | L19: ='All Curves'!J26 -> 0.006468758744 | M19: ='All Curves'!K26 -> 0.01425043803 | N19: ='All Curves'!L26 -> 0.01370357349 | P19: 17 | Q19: ='All Curves'!C26 ->  | R19: ='All Curves'!D26 ->  | S19: ='All Curves'!E26 -> 0.00789550733 | T19: ='All Curves'!F26 -> 0.01567718662 | U19: ='All Curves'!G26 -> 0.01513032208
I20: ='All Curves'!A27 -> 18 | L20: ='All Curves'!J27 -> 0.006406261381 | M20: ='All Curves'!K27 -> 0.01540916495 | N20: ='All Curves'!L27 -> 0.01355366898 | P20: 18 | Q20: ='All Curves'!C27 ->  | R20: ='All Curves'!D27 ->  | S20: ='All Curves'!E27 -> 0.008137206976 | T20: ='All Curves'!F27 -> 0.01714011054 | U20: ='All Curves'!G27 -> 0.01528461458
I21: ='All Curves'!A28 -> 19 | L21: ='All Curves'!J28 -> 0.006510317698 | M21: ='All Curves'!K28 -> 0.0167117928 | N21: ='All Curves'!L28 -> 0.01357923663 | P21: 19 | Q21: ='All Curves'!C28 ->  | R21: ='All Curves'!D28 ->  | S21: ='All Curves'!E28 -> 0.008353748982 | T21: ='All Curves'!F28 -> 0.01855522409 | U21: ='All Curves'!G28 -> 0.01542266791
I22: ='All Curves'!A29 -> 20 | L22: ='All Curves'!J29 -> 0.006311812569 | M22: ='All Curves'!K29 -> 0.01768208324 | N22: ='All Curves'!L29 -> 0.01330994035 | P22: 20 | Q22: ='All Curves'!C29 ->  | R22: ='All Curves'!D29 ->  | S22: ='All Curves'!E29 -> 0.008548789 | T22: ='All Curves'!F29 -> 0.01991905967 | U22: ='All Curves'!G29 -> 0.01554691678
I23: ='All Curves'!A30 -> 21 | L23: ='All Curves'!J30 -> 0.006338281346 | M23: ='All Curves'!K30 -> 0.01884251739 | N23: ='All Curves'!L30 -> 0.01327227916 | P23: 21 | Q23: ='All Curves'!C30 ->  | R23: ='All Curves'!D30 ->  | S23: ='All Curves'!E30 -> 0.008725334964 | T23: ='All Curves'!F30 -> 0.02122957101 | U23: ='All Curves'!G30 -> 0.01565933278
I24: ='All Curves'!A31 -> 22 | L24: ='All Curves'!J31 -> 0.00634861652 | M24: ='All Curves'!K31 -> 0.01994856952 | N24: ='All Curves'!L31 -> 0.01322427133 | P24: 22 | Q24: ='All Curves'!C31 ->  | R24: ='All Curves'!D31 ->  | S24: ='All Curves'!E31 -> 0.008885874472 | T24: ='All Curves'!F31 -> 0.02248582747 | U24: ='All Curves'!G31 -> 0.01576152928
I25: ='All Curves'!A32 -> 23 | L25: ='All Curves'!J32 -> 0.006345849145 | M25: ='All Curves'!K32 -> 0.02100113724 | N25: ='All Curves'!L32 -> 0.01316821141 | P25: 23 | Q25: ='All Curves'!C32 ->  | R25: ='All Curves'!D32 ->  | S25: ='All Curves'!E32 -> 0.009032476923 | T25: ='All Curves'!F32 -> 0.02368776502 | U25: ='All Curves'!G32 -> 0.01585483919
I26: ='All Curves'!A33 -> 24 | L26: ='All Curves'!J33 -> 0.006332526974 | M26: ='All Curves'!K33 -> 0.02200163613 | N26: ='All Curves'!L33 -> 0.01310602565 | P26: 24 | Q26: ='All Curves'!C33 ->  | R26: ='All Curves'!D33 ->  | S26: ='All Curves'!E33 -> 0.009166874621 | T26: ='All Curves'!F33 -> 0.02483598377 | U26: ='All Curves'!G33 -> 0.01594037329
I27: ='All Curves'!A34 -> 25 | L27: ='All Curves'!J34 -> 0.006310801138 | M27: ='All Curves'!K34 -> 0.02295185841 | N27: ='All Curves'!L34 -> 0.01303933892 | P27: 25 | Q27: ='All Curves'!C34 ->  | R27: ='All Curves'!D34 ->  | S27: ='All Curves'!E34 -> 0.009290526901 | T27: ='All Curves'!F34 -> 0.02593158417 | U27: ='All Curves'!G34 -> 0.01601906468
I28: ='All Curves'!A35 -> 26 | L28: ='All Curves'!J35 -> 0.006322960809 | M28: ='All Curves'!K35 -> 0.02389432487 | N28: ='All Curves'!L35 -> 0.01300999286 | P28: 26 | Q28: ='All Curves'!C35 ->  | R28: ='All Curves'!D35 ->  | S28: ='All Curves'!E35 -> 0.009404670838 | T28: ='All Curves'!F35 -> 0.0269760349 | U28: ='All Curves'!G35 -> 0.01609170289
I29: ='All Curves'!A36 -> 27 | L29: ='All Curves'!J36 -> 0.006330097711 | M29: ='All Curves'!K36 -> 0.02479080323 | N29: ='All Curves'!L36 -> 0.01297869676 | P29: 27 | Q29: ='All Curves'!C36 ->  | R29: ='All Curves'!D36 ->  | S29: ='All Curves'!E36 -> 0.009510361442 | T29: ='All Curves'!F36 -> 0.02797106696 | U29: ='All Curves'!G36 -> 0.01615896049
I30: ='All Curves'!A37 -> 28 | L30: ='All Curves'!J37 -> 0.006333542805 | M30: ='All Curves'!K37 -> 0.02564362833 | N30: ='All Curves'!L37 -> 0.01294645313 | P30: 28 | Q30: ='All Curves'!C37 ->  | R30: ='All Curves'!D37 ->  | S30: ='All Curves'!E37 -> 0.009608503648 | T30: ='All Curves'!F37 -> 0.02891858917 | U30: ='All Curves'!G37 -> 0.01622141397
I31: ='All Curves'!A38 -> 29 | L31: ='All Curves'!J38 -> 0.006334439183 | M31: ='All Curves'!K38 -> 0.02645518254 | N31: ='All Curves'!L38 -> 0.01291412159 | P31: 29 | Q31: ='All Curves'!C38 ->  | R31: ='All Curves'!D38 ->  | S31: ='All Curves'!E38 -> 0.009699877914 | T31: ='All Curves'!F38 -> 0.02982062127 | U31: ='All Curves'!G38 -> 0.01627956032
I32: ='All Curves'!A39 -> 30 | L32: ='All Curves'!J39 -> 0.006333772101 | M32: ='All Curves'!K39 -> 0.02722785258 | N32: ='All Curves'!L39 -> 0.01288244153 | P32: 30 | Q32: ='All Curves'!C39 ->  | R32: ='All Curves'!D39 ->  | S32: ='All Curves'!E39 -> 0.009785160818 | T32: ='All Curves'!F39 -> 0.0306792413 | U32: ='All Curves'!G39 -> 0.01633383025

Sheet Data Entry
L2: BMA Yield Curves with Swap Adjustment
B3: AAA | C3: NXT_CPN_DT | D3: MATURITY | E3: CPN_FREQ | F3: PX_CLEAN_MID | G3: INT_ACC | H3: CPN | I3: PX_DIRTY_MID | J3: Check | L3: 1 Year | M3: -0.001637398391
J4: =IF(ROUND(F4+G4,2)=ROUND(I4,2),1,0) -> 1 | L4: 2 Years | M4: -0.001987083567
L5: 3 Years | M5: -0.002149348796
L6: 4 Years | M6: -0.002149428958
L7: 5 Years | M7: -0.002031105966
L8: 6 Years | M8: -0.001850253512
L9: 7 Years | M9: -0.001600922474
L10: 8 Years | M10: -0.001313115705
L11: 9 Years | M11: -0.0009874608794
L12: 10 Years | M12: -0.000648447926
L13: 11 Years | M13: -0.0003084899418
L14: 12 Years | M14: 1.985124219e-05
L15: 13 Years | M15: 0.0003365478206
L16: 14 Years | M16: 0.0006671053881
L17: 15 Years | M17: 0.0009861278106
L18: 16 Years | M18: 0.001128656981
L19: 17 Years | M19: 0.001426748586
L20: 18 Years | M20: 0.001730945595
L21: 19 Years | M21: 0.001843431285
L22: 20 Years | M22: 0.002236976431
L23: 21 Years | M23: 0.002387053618
L24: 22 Years | M24: 0.002537257952
L25: 23 Years | M25: 0.002686627778
L26: 24 Years | M26: 0.002834347647
L27: 25 Years | M27: 0.002979725763
L28: 26 Years | M28: 0.003081710029
L29: 27 Years | M29: 0.00318026373
L30: 28 Years | M30: 0.003274960843
L31: 29 Years | M31: 0.003365438731
L32: 30 Years | M32: 0.003451388718
L33: 31 Years | M33: 0.003585447596
L34: 32 Years | M34: 0.003777834108
L35: 33 Years | M35: 0.00402473115
B36: AA | C36: NXT_CPN_DT | D36: MATURITY | E36: CPN_FREQ | F36: PX_CLEAN_MID | G36: INT_ACC | H36: CPN | I36: PX_DIRTY_MID | J36: Check | L36: 34 Years | M36: 0.004322387155
J37: =IF(ROUND(F37+G37,2)=ROUND(I37,2),1,0) -> 1 | L37: 35 Years | M37: 0.004667102365
L38: 36 Years | M38: 0.005055225818
L39: 37 Years | M39: 0.005483146846
L40: 38 Years | M40: 0.005947291348
L41: 39 Years | M41: 0.006444116426
L42: 40 Years | M42: 0.006970107523
L43: 41 Years | M43: 0.007521775562
L44: 42 Years | M44: 0.008095652781
L45: 43 Years | M45: 0.008688291909
L46: 44 Years | M46: 0.009296262412
L47: 45 Years | M47: 0.009916151347
L48: 46 Years | M48: 0.01054455819
L49: 47 Years | M49: 0.01117809648
L50: 48 Years | M50: 0.01181339074
L51: 49 Years | M51: 0.01244707638
L52: 50 Years | M52: 0.01307579784
L53: 51 Years | M53: 0.01369620855
L54: 52 Years | M54: 0.01430496922
L55: 53 Years | M55: 0.01489874814
L56: 54 Years | M56: 0.01547421919
L57: 55 Years | M57: 0.01602806255
L58: 56 Years | M58: 0.01655696345
L59: 57 Years | M59: 0.01705761189
L60: 58 Years | M60: 0.01752670184
L61: 59 Years | M61: 0.01796093145
L62: 60 Years | M62: 0.01835700213
L63: 61 Years | M63: 0.0187402335
L64: 62 Years | M64: 0.01911123988
L65: 63 Years | M65: 0.01947059702
L66: 64 Years | M66: 0.0198188451
L67: 65 Years | M67: 0.02015649137
L68: 66 Years | M68: 0.0204840127
L69: 67 Years | M69: 0.02080185776
L70: 68 Years | M70: 0.02111044911
B71: A | C71: NXT_CPN_DT | D71: MATURITY | E71: CPN_FREQ | F71: PX_CLEAN_MID | G71: INT_ACC | H71: CPN | I71: PX_DIRTY_MID | J71: Check | L71: 69 Years | M71: 0.02141018505
B72: EJ039590 Corp | C72: 9/1/2019 | D72: 3/1/2022 | E72: 2 | F72: 105.087 | G72: 1.670555556 | H72: 4.85 | I72: 106.7575556 | J72: =IF(ROUND(F72+G72,2)=ROUND(I72,2),1,0) -> 1 | L72: 70 Years | M72: 0.02170144136
B73: EK551722 Corp | C73: 10/30/2019 | D73: 10/30/2019 | E73: 2 | F73: 100.0375 | G73: 0.4604166667 | H73: 2.55 | I73: 100.4979167 | J73: =IF(ROUND(F73+G73,2)=ROUND(I73,2),1,0) -> 1 | L73: 71 Years | M73: 0.02198457284
B74: EI454423 Corp | C74: 11/9/2019 | D74: 11/9/2020 | E74: 1 | F74: 105.3985 | G74: 2.597260274 | H74: 4 | I74: 107.9957603 | J74: 1 | L74: 72 Years | M74: 0.02225991478
B75: EI178477 Corp | C75: 9/13/2019 | D75: 3/16/2020 | E75: 2 | F75: 100.959 | G75: 0.4556876 | H75: 1.459 | I75: 101.4146876 | J75: 1 | L75: 73 Years | M75: 0.02252778427
B76: EG656198 Corp | C76: 7/25/2019 | D76: 7/25/2019 | E76: 2 | F76: 100.114 | G76: 0.9929863 | H76: 2.21 | I76: 101.1069863 | J76: 1 | L76: 74 Years | M76: 0.02278848141
B77: EI581525 Corp | C77: 8/20/2019 | D77: 2/19/2021 | E77: 2 | F77: 102.246 | G77: 0.5376328 | H77: 1.422 | I77: 102.7836328 | J77: 1 | L77: 75 Years | M77: 0.02304229046
B78: EK430737 Corp | C78: 8/20/2019 | D78: 8/20/2024 | E78: 2 | F78: 103.178 | G78: 0.2956602 | H78: 0.782 | I78: 103.4736602 | J78: 1 | L78: 76 Years | M78: 0.02328948084
B79: EI454459 Corp | C79: 11/9/2019 | D79: 11/9/2020 | E79: 1 | F79: 105.4145 | G79: 2.597260274 | H79: 4 | I79: 108.0117603 | J79: 1 | L79: 77 Years | M79: 0.02353030811
B80: EK064982 Corp | C80: 8/20/2019 | D80: 2/20/2024 | E80: 2 | F80: 103.699 | G80: 0.3512383 | H80: 0.929 | I80: 104.0502383 | J80: 1 | L80: 78 Years | M80: 0.02376501484
B81: EK308588 Corp | C81: 12/20/2019 | D81: 6/20/2024 | E81: 2 | F81: 103.687 | G81: 0.043841 | H81: 0.889 | I81: 103.730841 | J81: 1 | L81: 79 Years | M81: 0.02399383142
C82: #N/A Field Not Applicable | D82: 2/13/2018 | E82: 2 | F82: #N/A N/A | G82: 0 | H82: 1.11 | I82: #N/A N/A | L82: 80 Years | M82: 0.02421697683
C83: #N/A Field Not Applicable | D83: 3/1/2016 | E83: 2 | F83: #N/A N/A | G83: 0 | H83: 1.7 | I83: #N/A N/A | L83: 81 Years | M83: 0.02443465932
B84: EI056625 Corp | C84: 11/20/2019 | D84: 11/20/2019 | E84: 2 | F84: 100.524 | G84: 0.1886164 | H84: 1.405 | I84: 100.7126164 | J84: 1 | L84: 82 Years | M84: 0.02464707706
B85: EI252319 Corp | C85: 11/20/2019 | D85: 5/20/2020 | E85: 2 | F85: 101.178 | G85: 0.1871397 | H85: 1.394 | I85: 101.3651397 | J85: 1 | L85: 83 Years | M85: 0.02485441877
B86: EG534044 Corp | C86: #N/A Field Not Applicable | D86: 6/13/2017 | E86: 2 | F86: #N/A N/A | G86: 0 | H86: 1.98 | I86: #N/A N/A | L86: 84 Years | M86: 0.02505686424
B87: EI257143 Corp | C87: 11/27/2019 | D87: 5/27/2030 | E87: 2 | F87: 120.062 | G87: 0.2601698 | H87: 2.261 | I87: 120.3221698 | J87: 1 | L87: 85 Years | M87: 0.02525458487
B88: EH746046 Corp | C88: #N/A Field Not Applicable | D88: 3/20/2019 | E88: 2 | F88: #N/A N/A | G88: 0 | H88: 1.61 | I88: #N/A N/A | L88: 86 Years | M88: 0.02544774418
B89: EJ758740 Corp | C89: 7/19/2019 | D89: 7/20/2021 | E89: 2 | F89: 102.016 | G89: 0.4792191 | H89: 1.035 | I89: 102.4952191 | J89: 1 | L89: 87 Years | M89: 0.02563649818
C90: #N/A Field Not Applicable | D90: 11/20/2015 | E90: 2 | F90: #N/A N/A | G90: 0 | H90: 0.62805 | I90: #N/A N/A | L90: 88 Years | M90: 0.02582099589
C91: #N/A Field Not Applicable | D91: 3/9/2015 | E91: 2 | F91: #N/A N/A | G91: 0 | H91: 0.56 | I91: #N/A N/A | L91: 89 Years | M91: 0.02600137966
B92: EH950435 Corp | C92: 8/20/2019 | D92: 8/20/2019 | E92: 2 | F92: 100.178 | G92: 0.5572931 | H92: 1.474 | I92: 100.7352931 | J92: 1 | L92: 90 Years | M92: 0.02617778557
B93: EF313148 Corp | C93: #N/A Field Not Applicable | D93: 3/16/2018 | E93: 2 | F93: #N/A N/A | G93: 0 | H93: 1.89 | I93: #N/A N/A | L93: 91 Years | M93: 0.02635034377
B94: EJ685885 Corp | C94: #N/A Field Not Applicable | D94: 5/18/2018 | E94: 2 | F94: #N/A N/A | G94: 0 | H94: 0.717 | I94: #N/A N/A | L94: 92 Years | M94: 0.02651917878
B95: EH379784 Corp | C95: #N/A Field Not Applicable | D95: 3/20/2018 | E95: 2 | F95: #N/A N/A | G95: 0 | H95: 1.82 | I95: #N/A N/A | L95: 93 Years | M95: 0.02668440981
B96: EF644022 Corp | C96: #N/A Field Not Applicable | D96: 8/31/2016 | E96: 2 | F96: #N/A N/A | G96: 0 | H96: 2.12 | I96: #N/A N/A | L96: 94 Years | M96: 0.02684615104
L97: 95 Years | M97: 0.02700451188
L98: 96 Years | M98: 0.02715959719
L99: 97 Years | M99: 0.02731150757
L100: 98 Years | M100: 0.02746033952
L101: 99 Years | M101: 0.02760618568
L102: 100 Years | M102: 0.027749135
B106: BBB | C106: NXT_CPN_DT | D106: MATURITY | E106: CPN_FREQ | F106: PX_CLEAN_MID | G106: INT_ACC | H106: CPN | I106: PX_DIRTY_MID | J106: Check
B107: EK515408 Corp | C107: 9/29/2019 | D107: 9/29/2019 | E107: 2 | F107: 100 | G107: 0.68 | H107: 2.55 | I107: 100.68 | J107: 1
B108: EK515402 Corp | C108: #N/A Field Not Applicable | D108: 9/29/2017 | E108: 2 | F108: #N/A N/A | G108: 0 | H108: 1.65 | I108: #N/A N/A
B109: EK507773 Corp | C109: #N/A Field Not Applicable | D109: 9/29/2017 | E109: 2 | F109: #N/A N/A | G109: 0 | H109: 1.65 | I109: #N/A N/A
B110: EK508355 Corp | C110: 9/29/2019 | D110: 9/29/2019 | E110: 2 | F110: 100 | G110: 0.68 | H110: 2.55 | I110: 100.68 | J110: 1
C111: #N/A Field Not Applicable | D111: 12/15/2015 | E111: 2 | F111: #N/A N/A | G111: 0 | H111: 0.89 | I111: #N/A N/A
B112: EI506214 Corp | C112: 12/13/2019 | D112: 12/15/2020 | E112: 2 | F112: 101.519 | G112: 0.105863 | H112: 1.68 | I112: 101.624863 | J112: 1
C113: #N/A Field Not Applicable | D113: 10/21/2015 | E113: 2 | F113: #N/A N/A | G113: 0 | H113: 1.46 | I113: #N/A N/A
C114: #N/A Field Not Applicable | D114: 3/9/2015 | E114: 2 | F114: #N/A N/A | G114: 0 | H114: 1.11 | I114: #N/A N/A
B115: EI220210 Corp | C115: 9/20/2019 | D115: 3/19/2020 | E115: 2 | F115: 101.042 | G115: 0.4610958 | H115: 1.53 | I115: 101.5030958 | J115: 1
B116: JJ114726 Corp | C116: #N/A Field Not Applicable | D116: 9/11/2017 | E116: 2 | F116: #N/A N/A | G116: 0 | H116: 3.175 | I116: #N/A N/A
B117: EF852718 Corp | C117: #N/A Field Not Applicable | D117: 11/25/2016 | E117: 2 | F117: #N/A N/A | G117: 0 | H117: 2.2 | I117: #N/A N/A
B118: EI805598 Corp | C118: #N/A Field Not Applicable | D118: 9/12/2016 | E118: 1 | F118: #N/A N/A | G118: 0 | H118: 0.99 | I118: #N/A N/A
B119: EI173292 Corp | C119: 9/13/2019 | D119: 3/14/2025 | E119: 2 | F119: 113.311 | G119: 0.7964383 | H119: 2.55 | I119: 114.1074383 | J119: 1
B120: EJ504526 Corp | C120: #N/A Field Not Applicable | D120: 1/27/2017 | E120: 2 | F120: #N/A N/A | G120: 0 | H120: 0.62 | I120: #N/A N/A
B121: EI681546 Corp | C121: 9/20/2019 | D121: 3/19/2021 | E121: 2 | F121: 102.12 | G121: 0.3896712 | H121: 1.293 | I121: 102.5096712 | J121: 1
B122: EH369947 Corp | C122: #N/A Field Not Applicable | D122: 3/20/2018 | E122: 2 | F122: #N/A N/A | G122: 0 | H122: 1.92 | I122: #N/A N/A
B123: EJ283587 Corp | C123: 12/20/2019 | D123: 6/20/2022 | E123: 2 | F123: 102.612 | G123: 0.0468986 | H123: 0.951 | I123: 102.6588986 | J123: 1
B124: JJ302637 Corp | C124: #N/A Field Not Applicable | D124: 3/17/2017 | E124: 2 | F124: #N/A N/A | G124: 0 | H124: 3.3 | I124: #N/A N/A
B125: EI385481 Corp | C125: 12/20/2019 | D125: 6/19/2020 | E125: 2 | F125: 100.985 | G125: 0.053063 | H125: 1.076 | I125: 101.038063 | J125: 1
B126: EI506186 Corp | C126: #N/A Field Not Applicable | D126: 12/15/2017 | E126: 2 | F126: #N/A N/A | G126: 0 | H126: 1.22 | I126: #N/A N/A
B127: EH854597 Corp | C127: #N/A Field Not Applicable | D127: 6/20/2019 | E127: 2 | F127: #N/A N/A | G127: 0 | H127: 1.942 | I127: #N/A N/A
C128: #N/A Field Not Applicable | D128: 5/25/2015 | E128: 2 | F128: #N/A N/A | G128: 0 | H128: 0.88 | I128: #N/A N/A
B129: EJ283642 Corp | C129: #N/A Field Not Applicable | D129: 6/20/2019 | E129: 2 | F129: #N/A N/A | G129: 0 | H129: 0.556 | I129: #N/A N/A
B130: EH530556 Corp | C130: 12/20/2019 | D130: 6/20/2028 | E130: 2 | F130: 119.755 | G130: 0.1228438 | H130: 2.491 | I130: 119.8778438 | J130: 1
B131: EI844468 Corp | C131: 9/20/2019 | D131: 9/17/2021 | E131: 2 | F131: 102.314 | G131: 0.3342191 | H131: 1.109 | I131: 102.6482191 | J131: 1
B141: BBB- | C141: NXT_CPN_DT | D141: MATURITY | E141: CPN_FREQ | F141: PX_CLEAN_MID | G141: INT_ACC | H141: CPN | I141: PX_DIRTY_MID | J141: Check
J142: =IF(ROUND(F142+G142,2)=ROUND(I142,2),1,0) -> 1
B143: EH861033 Corp | C143: 2016-12-20 | D143: 2019-06-20 | E143: 2 | F143: 104.907 | G143: 0.4475945 | H143: 2.068 | I143: 105.3545945 | J143: 1
B144: EJ047505 Corp | C144: 2016-09-20 | D144: 2022-03-18 | E144: 2 | F144: 104.432 | G144: 0.6605753 | H144: 1.41 | I144: 105.0925753 | J144: 1
J145: 1
B146: EI889959 Corp | C146: 2016-09-20 | D146: 2017-03-17 | E146: 2 | F146: 100.289 | G146: 0.3110794 | H146: 0.664 | I146: 100.6000794 | J146: 1
B147: EH662153 Corp | C147: 2016-12-20 | D147: 2018-12-20 | E147: 2 | F147: 103.985 | G147: 0.4337424 | H147: 2.004 | I147: 104.4187424 | J147: 1
B148: EI266115 Corp | C148: 2016-12-02 | D148: 2017-06-02 | E148: 2 | F148: 100.686 | G148: 0.2688 | H148: 1.022 | I148: 100.9548 | J148: 1
J149: 1
J150: 1

Sheet All Curves
A1: NSS | C1: AAA Rate | D1: AA Rate | E1: A Rate | F1: BBB Rate | G1: BBB- Rate
A2: b0 | C2: ='AAA Yield Curve'!B5 -> 0 | D2: ='AA Yield Curve'!B5 -> 0 | E2: ='A Yield Curve'!B5 -> 0.012258374 | F2: ='BBB Yield Curve'!B5 -> 0.05876926473 | G2: ='BBB- Yield Curve'!B5 -> 0.01790765811
A3: b1 | C3: ='AAA Yield Curve'!B6 -> 0 | D3: ='AA Yield Curve'!B6 -> 0 | E3: ='A Yield Curve'!B6 -> -0.00614912987 | F3: ='BBB Yield Curve'!B6 -> -0.05009064499 | G3: ='BBB- Yield Curve'!B6 -> -0.006147242991
A4: b2 | C4: ='AAA Yield Curve'!B7 -> 0 | D4: ='AA Yield Curve'!B7 -> 0 | E4: ='A Yield Curve'!B7 -> 6.248032358 | F4: ='BBB Yield Curve'!B7 -> 6.400515927 | G4: ='BBB- Yield Curve'!B7 -> -0.03811591141
A5: b3 | C5: ='AAA Yield Curve'!B8 -> 0 | D5: ='AA Yield Curve'!B8 -> 0 | E5: ='A Yield Curve'!B8 -> -6.281110876 | F5: ='BBB Yield Curve'!B8 -> -6.505052644 | G5: ='BBB- Yield Curve'!B8 -> 0.001170389123
A6: tau | C6: ='AAA Yield Curve'!B9 -> 0 | D6: ='AA Yield Curve'!B9 -> 0 | E6: ='A Yield Curve'!B9 -> 1.460220568 | F6: ='BBB Yield Curve'!B9 -> 5.333698681 | G6: ='BBB- Yield Curve'!B9 -> 1.095624509
A7: rho | C7: ='AAA Yield Curve'!B10 -> 0 | D7: ='AA Yield Curve'!B10 -> 0 | E7: ='A Yield Curve'!B10 -> 1.462913625 | F7: ='BBB Yield Curve'!B10 -> 5.339453221 | G7: ='BBB- Yield Curve'!B10 -> 1.094474458
A9: Year | B9: Risk Free Rate | C9: AAA Rate | D9: AA Rate | E9: A Rate | F9: BBB Rate | G9: BBB- Rate | H9: Spread AAA | I9: Spread AA | J9: Spread A | K9: Spread BBB | L9: Spread BBB-
A10: 1 | B10: ='Data Entry'!M3 -> -0.001637398391 | C10: =C$2+C$3*((1-EXP(-$A10/C$6))/($A10/C$6))+C$4*((1-EXP(-$A10/C$6))/($A10/C$6)-EXP(-$A10/C$6))+C$5*((1-EXP(-$A10/C$7))/($A10/C$7)-EXP(-$A10/C$7)) ->  | D10: =D$2+D$3*((1-EXP(-$A10/D$6))/($A10/D$6))+D$4*((1-EXP(-$A10/D$6))/($A10/D$6)-EXP(-$A10/D$6))+D$5*((1-EXP(-$A10/D$7))/($A10/D$7)-EXP(-$A10/D$7)) ->  | E10: =E$2+E$3*((1-EXP(-$A10/E$6))/($A10/E$6))+E$4*((1-EXP(-$A10/E$6))/($A10/E$6)-EXP(-$A10/E$6))+E$5*((1-EXP(-$A10/E$7))/($A10/E$7)-EXP(-$A10/E$7)) -> 0.001986503295 | F10: =F$2+F$3*((1-EXP(-$A10/F$6))/($A10/F$6))+F$4*((1-EXP(-$A10/F$6))/($A10/F$6)-EXP(-$A10/F$6))+F$5*((1-EXP(-$A10/F$7))/($A10/F$7)-EXP(-$A10/F$7)) -> 0.004946560461 | G10: 0.004478280068 | H10: =MAX(C10-$B10,0) ->  | I10: =MAX(D10-$B10,0) ->  | J10: =MAX(E10-$B10,0) -> 0.003623901686 | K10: 0.006583958852 | L10: 0.00611567846
A11: =A10+1 -> 2 | B11: ='Data Entry'!M4 -> -0.001987083567 | C11: =C$2+C$3*((1-EXP(-$A11/C$6))/($A11/C$6))+C$4*((1-EXP(-$A11/C$6))/($A11/C$6)-EXP(-$A11/C$6))+C$5*((1-EXP(-$A11/C$7))/($A11/C$7)-EXP(-$A11/C$7)) ->  | E11: -2.219259005e-05 | F11: 0.002452793264 | G11: 0.004058678879 | H11: =MAX(C11-$B11,0) ->  | I11: =MAX(D11-$B11,0) ->  | J11: =MAX(E11-$B11,0) -> 0.001964890977 | K11: =MAX(F11-$B11,0) -> 0.004439876832 | L11: =MAX(G11-$B11,0) -> 0.006045762447
A12: =A11+1 -> 3 | B12: ='Data Entry'!M5 -> -0.002149348796 | E12: -0.000527131652 | F12: 0.0009489381035 | G12: 0.005577737867 | J12: 0.001622217144 | K12: 0.0030982869 | L12: 0.007727086664
A13: 4 | B13: ='Data Entry'!M6 -> -0.002149428958 | E13: -0.0001526377297 | F13: 0.000230759294 | G13: 0.007370023019 | J13: 0.001996791228 | K13: 0.002380188252 | L13: 0.009519451976
A14: 5 | B14: ='Data Entry'!M7 -> -0.002031105966 | E14: 0.0006525908512 | F14: 0.000130728298 | G14: 0.008948333665 | J14: 0.002683696817 | K14: 0.002161834264 | L14: 0.01097943963
A15: 6 | B15: ='Data Entry'!M8 -> -0.001850253512 | E15: 0.001613024684 | F15: 0.0005118000889 | G15: 0.01022608636 | J15: 0.003463278197 | K15: 0.002362053601 | L15: 0.01207633987
A16: 7 | B16: ='Data Entry'!M9 -> -0.001600922474 | E16: 0.002577978341 | F16: 0.001262209732 | G16: 0.0112360903 | J16: 0.004178900815 | K16: 0.002863132206 | L16: 0.01283701278
A17: 8 | B17: ='Data Entry'!M10 -> -0.001313115705 | E17: 0.003475081167 | F17: 0.002291125968 | G17: 0.01203470432 | J17: 0.004788196872 | K17: 0.003604241673 | L17: 0.01334782002
A18: 9 | B18: ='Data Entry'!M11 -> -0.0009874608794 | E18: 0.004276703974 | F18: 0.003525024162 | G18: 0.01267298964 | J18: 0.005264164854 | K18: 0.004512485041 | L18: 0.01366045052
A19: 10 | B19: ='Data Entry'!M12 -> -0.000648447926 | E19: 0.004978654786 | F19: 0.004904662599 | G19: 0.01319070374 | J19: 0.005627102712 | K19: 0.005553110525 | L19: 0.01383915166
A20: 11 | B20: ='Data Entry'!M13 -> -0.0003084899418 | E20: 0.005587727798 | F20: 0.006382564462 | G20: 0.01361719979 | J20: 0.00589621774 | K20: 0.006691054403 | L20: 0.01392568974
A21: 12 | B21: ='Data Entry'!M14 -> 1.985124219e-05 | E21: 0.006114909825 | F21: 0.007920923243 | G21: 0.01397380458 | J21: 0.006095058583 | K21: 0.007901072 | L21: 0.01395395334
A22: 13 | B22: ='Data Entry'!M15 -> 0.0003365478206 | E22: 0.006571938708 | F22: 0.009489862484 | G22: 0.01427603302 | J22: 0.006235390887 | K22: 0.009153314664 | L22: 0.01393948519
A23: 14 | B23: ='Data Entry'!M16 -> 0.0006671053881 | E23: 0.00696973351 | F23: 0.01106599173 | G23: 0.01453528366 | J23: 0.006302628122 | K23: 0.01039888634 | L23: 0.01386817827
A24: 15 | B24: ='Data Entry'!M17 -> 0.0009861278106 | E24: 0.007317811575 | F24: 0.01263120987 | G24: 0.01476004782 | J24: 0.006331683764 | K24: 0.01164508206 | L24: 0.01377392001
A25: 16 | B25: ='Data Entry'!M18 -> 0.001128656981 | E25: 0.00762419094 | F25: 0.01417171505 | G25: 0.01495674902 | J25: 0.006495533959 | K25: 0.01304305807 | L25: 0.01382809204
A26: 17 | B26: ='Data Entry'!M19 -> 0.001426748586 | E26: 0.00789550733 | F26: 0.01567718662 | G26: 0.01513032208 | J26: 0.006468758744 | K26: 0.01425043803 | L26: 0.01370357349
A27: 18 | B27: ='Data Entry'!M20 -> 0.001730945595 | E27: 0.008137206976 | F27: 0.01714011054 | G27: 0.01528461458 | J27: 0.006406261381 | K27: 0.01540916495 | L27: 0.01355366898
A28: 19 | B28: ='Data Entry'!M21 -> 0.001843431285 | E28: 0.008353748982 | F28: 0.01855522409 | G28: 0.01542266791 | J28: 0.006510317698 | K28: 0.0167117928 | L28: 0.01357923663
A29: 20 | B29: ='Data Entry'!M22 -> 0.002236976431 | E29: 0.008548789 | F29: 0.01991905967 | G29: 0.01554691678 | J29: 0.006311812569 | K29: 0.01768208324 | L29: 0.01330994035
A30: 21 | B30: ='Data Entry'!M23 -> 0.002387053618 | E30: 0.008725334964 | F30: 0.02122957101 | G30: 0.01565933278 | J30: 0.006338281346 | K30: 0.01884251739 | L30: 0.01327227916
A31: 22 | B31: ='Data Entry'!M24 -> 0.002537257952 | E31: 0.008885874472 | F31: 0.02248582747 | G31: 0.01576152928 | J31: 0.00634861652 | K31: 0.01994856952 | L31: 0.01322427133
A32: 23 | B32: ='Data Entry'!M25 -> 0.002686627778 | E32: 0.009032476923 | F32: 0.02368776502 | G32: 0.01585483919 | J32: 0.006345849145 | K32: 0.02100113724 | L32: 0.01316821141
A33: 24 | B33: ='Data Entry'!M26 -> 0.002834347647 | E33: 0.009166874621 | F33: 0.02483598377 | G33: 0.01594037329 | J33: 0.006332526974 | K33: 0.02200163613 | L33: 0.01310602565
A34: 25 | B34: ='Data Entry'!M27 -> 0.002979725763 | E34: 0.009290526901 | F34: 0.02593158417 | G34: 0.01601906468 | J34: 0.006310801138 | K34: 0.02295185841 | L34: 0.01303933892
A35: 26 | B35: ='Data Entry'!M28 -> 0.003081710029 | E35: 0.009404670838 | F35: 0.0269760349 | G35: 0.01609170289 | J35: 0.006322960809 | K35: 0.02389432487 | L35: 0.01300999286
A36: 27 | B36: ='Data Entry'!M29 -> 0.00318026373 | E36: 0.009510361442 | F36: 0.02797106696 | G36: 0.01615896049 | J36: 0.006330097711 | K36: 0.02479080323 | L36: 0.01297869676
A37: 28 | B37: ='Data Entry'!M30 -> 0.003274960843 | E37: 0.009608503648 | F37: 0.02891858917 | G37: 0.01622141397 | J37: 0.006333542805 | K37: 0.02564362833 | L37: 0.01294645313
A38: 29 | B38: ='Data Entry'!M31 -> 0.003365438731 | E38: 0.009699877914 | F38: 0.02982062127 | G38: 0.01627956032 | J38: 0.006334439183 | K38: 0.02645518254 | L38: 0.01291412159
A39: 30 | B39: ='Data Entry'!M32 -> 0.003451388718 | E39: 0.009785160818 | F39: 0.0306792413 | G39: 0.01633383025 | J39: 0.006333772101 | K39: 0.02722785258 | L39: 0.01288244153
A40: 31 | B40: ='Data Entry'!M33 -> 0.003585447596 | E40: 0.009864941733 | F40: 0.03149654473 | G40: 0.01638459889 | J40: 0.006279494138 | K40: 0.02791109713 | L40: 0.01279915129
A41: 32 | B41: ='Data Entry'!M34 -> 0.003777834108 | E41: 0.009939736411 | F41: 0.03227461308 | G41: 0.01643219449 | J41: 0.006161902303 | K41: 0.02849677897 | L41: 0.01265436038
A42: 33 | B42: ='Data Entry'!M35 -> 0.00402473115 | E42: 0.01000999811 | F42: 0.03301549015 | G42: 0.01647690551 | J42: 0.005985266964 | K42: 0.028990759 | L42: 0.01245217436
A43: 34 | B43: ='Data Entry'!M36 -> 0.004322387155 | E43: 0.01007612679 | F43: 0.03372116451 | G43: 0.01651898647 | J43: 0.005753739639 | K43: 0.02939877735 | L43: 0.01219659931
A44: 35 | B44: ='Data Entry'!M37 -> 0.004667102365 | E44: 0.0101384767 | F44: 0.0343935569 | G44: 0.0165586628 | J44: 0.005471374339 | K44: 0.02972645454 | L44: 0.01189156043
A45: 36 | B45: ='Data Entry'!M38 -> 0.005055225818 | E45: 0.01019736273 | F45: 0.03503451158 | G45: 0.01659613489 | J45: 0.005142136915 | K45: 0.02997928576 | L45: 0.01154090907
A46: 37 | B46: ='Data Entry'!M39 -> 0.005483146846 | E46: 0.01025306574 | F46: 0.03564579082 | G46: 0.01663158146 | J46: 0.004769918892 | K46: 0.03016264398 | L46: 0.01114843462
A47: 38 | B47: ='Data Entry'!M40 -> 0.005947291348 | E47: 0.01030583701 | F47: 0.03622907187 | G47: 0.01666516243 | J47: 0.004358545658 | K47: 0.03028178052 | L47: 0.01071787108
A48: 39 | B48: ='Data Entry'!M41 -> 0.006444116426 | E48: 0.01035590206 | F48: 0.03678594574 | G48: 0.01669702129 | J48: 0.003911785631 | K48: 0.03034182932 | L48: 0.01025290487
A49: 40 | B49: ='Data Entry'!M42 -> 0.006970107523 | E49: 0.01040346385 | F49: 0.03731791763 | G49: 0.01672728721 | J49: 0.003433356331 | K49: 0.03034781011 | L49: 0.009757179689
A50: 41 | B50: ='Data Entry'!M43 -> 0.007521775562 | E50: 0.01044870557 | F50: 0.03782640824 | G50: 0.01675607675 | J50: 0.002926930004 | K50: 0.03030463268 | L50: 0.009234301185
A51: 42 | B51: ='Data Entry'!M44 -> 0.008095652781 | E51: 0.01049179291 | F51: 0.03831275611 | G51: 0.01678349535 | J51: 0.002396140128 | K51: 0.03021710333 | L51: 0.008687842569
A52: 43 | B52: ='Data Entry'!M45 -> 0.008688291909 | E52: 0.01053287619 | F52: 0.0387782204 | G52: 0.01680963867 | J52: 0.001844584281 | K52: 0.03008992849 | L52: 0.008121346761
A53: 44 | B53: ='Data Entry'!M46 -> 0.009296262412 | E53: 0.01057209205 | F53: 0.03922398414 | G53: 0.01683459366 | J53: 0.001275829637 | K53: 0.02992772173 | L53: 0.007538331245
A54: 45 | B54: ='Data Entry'!M47 -> 0.009916151347 | E54: =E$2+E$3*((1-EXP(-$A54/E$6))/($A54/E$6))+E$4*((1-EXP(-$A54/E$6))/($A54/E$6)-EXP(-$A54/E$6))+E$5*((1-EXP(-$A54/E$7))/($A54/E$7)-EXP(-$A54/E$7)) -> 0.01060956498 | F54: 0.03965115777 | G54: 0.01685843953 | J54: 0.0006934136343 | K54: 0.02973500642 | L54: 0.006942288187
A55: 46 | B55: ='Data Entry'!M48 -> 0.01054455819 | E55: 0.01064540866 | F55: 0.04006078274 | G55: 0.01688124863 | J55: 0.0001008504652 | K55: 0.02951622455 | L55: 0.006336690443
A56: 47 | B56: ='Data Entry'!M49 -> 0.01117809648 | E56: 0.01067972707 | F56: 0.04045383526 | G56: 0.01690308713 | J56: 0 | K56: 0.02927573877 | L56: 0.005724990648
A57: 48 | B57: ='Data Entry'!M50 -> 0.01181339074 | E57: 0.01071261555 | F57: 0.04083122997 | G57: 0.01692401569 | J57: 0 | K57: 0.02901783923 | L57: 0.005110624958
A58: 49 | B58: ='Data Entry'!M51 -> 0.01244707638 | E58: 0.01074416164 | F58: 0.04119382359 | G58: 0.01694409003 | J58: 0 | K58: 0.02874674721 | L58: 0.00449701365
A59: 50 | B59: ='Data Entry'!M52 -> 0.01307579784 | E59: 0.01077444588 | F59: 0.04154241847 | G59: 0.01696336139 | J59: 0 | K59: 0.02846662064 | L59: 0.003887563553
A60: 51 | B60: ='Data Entry'!M53 -> 0.01369620855 | E60: 0.01080354251 | F60: 0.04187776599 | G60: 0.01698187701 | J60: 0 | K60: 0.02818155745 | L60: 0.003285668466
A61: 52 | B61: ='Data Entry'!M54 -> 0.01430496922 | E61: 0.01083152004 | F61: 0.04220056983 | G61: 0.0169996805 | J61: 0 | K61: 0.02789560062 | L61: 0.00269471128
A62: 53 | B62: ='Data Entry'!M55 -> 0.01489874814 | E62: 0.01085844181 | F62: 0.04251148911 | G62: 0.01701681215 | J62: 0 | K62: 0.02761274097 | L62: 0.002118064012
A63: 54 | B63: ='Data Entry'!M56 -> 0.01547421919 | E63: 0.01088436648 | F63: 0.0428111413 | G63: 0.0170333093 | J63: 0 | K63: 0.02733692211 | L63: 0.00155909011
A64: 55 | B64: ='Data Entry'!M57 -> 0.01602806255 | E64: 0.01090934844 | F64: =F$2+F$3*((1-EXP(-$A64/F$6))/($A64/F$6))+F$4*((1-EXP(-$A64/F$6))/($A64/F$6)-EXP(-$A64/F$6))+F$5*((1-EXP(-$A64/F$7))/($A64/F$7)-EXP(-$A64/F$7)) -> 0.04310010504 | G64: 0.01704920655 | J64: 0 | K64: 0.02707204249 | L64: 0.001021143993
A65: 56 | B65: ='Data Entry'!M58 -> 0.01655696345 | E65: 0.01093343818 | F65: 0.04337892278 | G65: 0.01706453604 | J65: 0 | K65: 0.02682195932 | L65: 0.0005075725864
A66: 57 | B66: ='Data Entry'!M59 -> 0.01705761189 | E66: 0.01095668267 | F66: 0.04364810318 | G66: 0.01707932765 | J66: 0 | K66: 0.02659049129 | L66: 2.171576138e-05
A67: 58 | B67: ='Data Entry'!M60 -> 0.01752670184 | E67: 0.01097912562 | F67: 0.04390812348 | G67: 0.01709360921 | J67: 0 | K67: 0.02638142164 | L67: 0
A68: 59 | B68: ='Data Entry'!M61 -> 0.01796093145 | E68: 0.0110008078 | F68: 0.04415943161 | G68: 0.01710740665 | J68: 0 | K68: 0.02619850017 | L68: 0
A69: 60 | B69: ='Data Entry'!M62 -> 0.01835700213 | E69: 0.01102176724 | F69: 0.04440244822 | G69: 0.01712074418 | J69: 0 | K69: 0.02604544609 | L69: 0
A70: 61 | B70: ='Data Entry'!M63 -> 0.0187402335 | E70: 0.01104203948 | F70: 0.04463756852 | G70: 0.01713364441 | J70: 0 | K70: 0.02589733503 | L70: 0
A71: 62 | B71: ='Data Entry'!M64 -> 0.01911123988 | E71: 0.01106165778 | F71: 0.04486516409 | G71: 0.0171461285 | J71: 0 | K71: 0.02575392421 | L71: 0
A72: 63 | B72: ='Data Entry'!M65 -> 0.01947059702 | E72: 0.01108065327 | F72: 0.04508558441 | G72: 0.01715821627 | J72: 0 | K72: 0.02561498739 | L72: 0
A73: 64 | B73: ='Data Entry'!M66 -> 0.0198188451 | E73: 0.01109905516 | F73: 0.04529915842 | G73: 0.0171699263 | J73: 0 | K73: 0.02548031332 | L73: 0
A74: 65 | B74: ='Data Entry'!M67 -> 0.02015649137 | E74: 0.01111689083 | F74: 0.04550619591 | G74: 0.01718127602 | J74: 0 | K74: 0.02534970454 | L74: 0
A75: 66 | B75: ='Data Entry'!M68 -> 0.0204840127 | C75: =C$2+C$3*((1-EXP(-$A75/C$6))/($A75/C$6))+C$4*((1-EXP(-$A75/C$6))/($A75/C$6)-EXP(-$A75/C$6))+C$5*((1-EXP(-$A75/C$7))/($A75/C$7)-EXP(-$A75/C$7)) ->  | E75: 0.01113418603 | F75: 0.04570698878 | G75: 0.01719228181 | H75: =MAX(C75-$B75,0) ->  | I75: =MAX(D75-$B75,0) ->  | J75: =MAX(E75-$B75,0) -> 0 | K75: =MAX(F75-$B75,0) -> 0.02522297609 | L75: =MAX(G75-$B75,0) -> 0
A76: =A75+1 -> 67 | B76: ='Data Entry'!M69 -> 0.02080185776 | E76: 0.01115096496 | F76: 0.04590181231 | G76: 0.01720295907 | J76: 0 | K76: 0.02509995455 | L76: 0
A77: 68 | B77: ='Data Entry'!M70 -> 0.02111044911 | E77: 0.01116725038 | F77: 0.04609092618 | G77: 0.01721332229 | J77: 0 | K77: 0.02498047707 | L77: 0
A78: 69 | B78: ='Data Entry'!M71 -> 0.02141018505 | E78: 0.01118306377 | F78: 0.04627457559 | G78: 0.01722338512 | J78: 0 | K78: 0.02486439054 | L78: 0
A79: 70 | B79: ='Data Entry'!M72 -> 0.02170144136 | E79: 0.01119842535 | F79: 0.04645299217 | G79: 0.01723316045 | J79: 0 | K79: 0.02475155081 | L79: 0
A80: 71 | B80: ='Data Entry'!M73 -> 0.02198457284 | E80: 0.0112133542 | F80: 0.04662639489 | G80: 0.01724266042 | J80: 0 | K80: 0.02464182204 | L80: 0
A81: 72 | B81: ='Data Entry'!M74 -> 0.02225991478 | E81: 0.01122786836 | F81: 0.04679499084 | G81: 0.0172518965 | J81: 0 | K81: 0.02453507606 | L81: 0
A82: 73 | B82: ='Data Entry'!M75 -> 0.02252778427 | E82: 0.01124198488 | F82: 0.04695897608 | G82: 0.01726087953 | J82: 0 | K82: 0.02443119182 | L82: 0
A83: 74 | B83: ='Data Entry'!M76 -> 0.02278848141 | E83: 0.01125571987 | F83: 0.04711853627 | G83: 0.01726961979 | J83: 0 | K83: 0.02433005486 | L83: 0
A84: 75 | B84: ='Data Entry'!M77 -> 0.02304229046 | E84: 0.01126908859 | F84: 0.04727384734 | G84: 0.01727812696 | J84: 0 | K84: 0.02423155689 | L84: 0
A85: 76 | B85: ='Data Entry'!M78 -> 0.02328948084 | E85: 0.0112821055 | F85: 0.04742507616 | G85: 0.01728641027 | J85: 0 | K85: 0.02413559532 | L85: 0
A86: 77 | B86: ='Data Entry'!M79 -> 0.02353030811 | E86: 0.01129478431 | F86: 0.04757238102 | G86: 0.01729447842 | J86: 0 | K86: 0.02404207291 | L86: 0
A87: 78 | B87: ='Data Entry'!M80 -> 0.02376501484 | E87: 0.01130713803 | F87: 0.04771591224 | G87: 0.0173023397 | J87: 0 | K87: 0.0239508974 | L87: 0
A88: 79 | B88: ='Data Entry'!M81 -> 0.02399383142 | E88: 0.01131917899 | F88: 0.04785581259 | G88: 0.01731000196 | J88: 0 | K88: 0.02386198117 | L88: 0
A89: 80 | B89: ='Data Entry'!M82 -> 0.02421697683 | E89: 0.01133091893 | F89: 0.04799221782 | G89: 0.01731747266 | J89: 0 | K89: 0.02377524099 | L89: 0
A90: 81 | B90: ='Data Entry'!M83 -> 0.02443465932 | E90: 0.01134236899 | F90: 0.04812525699 | G90: 0.0173247589 | J90: 0 | K90: 0.02369059768 | L90: 0
A91: 82 | B91: ='Data Entry'!M84 -> 0.02464707706 | E91: 0.01135353978 | F91: 0.04825505296 | G91: 0.01733186743 | J91: 0 | K91: 0.02360797591 | L91: 0
A92: 83 | B92: ='Data Entry'!M85 -> 0.02485441877 | E92: 0.0113644414 | F92: 0.0483817227 | G92: 0.01733880466 | J92: 0 | K92: 0.02352730394 | L92: 0
A93: 84 | B93: ='Data Entry'!M86 -> 0.02505686424 | E93: 0.01137508345 | F93: 0.04850537766 | G93: 0.01734557673 | J93: 0 | K93: 0.02344851342 | L93: 0
A94: 85 | B94: ='Data Entry'!M87 -> 0.02525458487 | E94: 0.01138547511 | F94: 0.04862612404 | G94: 0.01735218945 | J94: 0 | K94: 0.02337153917 | L94: 0
A95: 86 | B95: ='Data Entry'!M88 -> 0.02544774418 | E95: 0.01139562509 | F95: 0.04874406318 | G95: 0.01735864839 | J95: 0 | K95: 0.02329631901 | L95: 0
A96: 87 | B96: ='Data Entry'!M89 -> 0.02563649818 | E96: 0.01140554175 | F96: 0.04885929175 | G96: 0.01736495885 | J96: 0 | K96: 0.02322279357 | L96: 0
A97: 88 | B97: ='Data Entry'!M90 -> 0.02582099589 | E97: 0.01141523302 | F97: 0.04897190204 | G97: 0.01737112588 | J97: 0 | K97: 0.02315090616 | L97: 0
A98: 89 | B98: ='Data Entry'!M91 -> 0.02600137966 | E98: 0.01142470652 | F98: 0.04908198224 | G98: 0.01737715433 | J98: 0 | K98: 0.02308060258 | L98: 0
A99: 90 | B99: ='Data Entry'!M92 -> 0.02617778557 | E99: 0.01143396949 | F99: 0.0491896166 | G99: 0.01738304882 | J99: 0 | K99: 0.02301183103 | L99: 0
A100: 91 | B100: ='Data Entry'!M93 -> 0.02635034377 | E100: 0.01144302888 | F100: 0.0492948857 | G100: 0.01738881376 | J100: 0 | K100: 0.02294454194 | L100: 0
A101: 92 | B101: ='Data Entry'!M94 -> 0.02651917878 | E101: 0.01145189133 | F101: 0.04939786662 | G101: 0.01739445337 | J101: 0 | K101: 0.02287868784 | L101: 0
A102: 93 | B102: ='Data Entry'!M95 -> 0.02668440981 | E102: 0.01146056318 | F102: 0.04949863311 | G102: 0.0173999717 | J102: 0 | K102: 0.0228142233 | L102: 0
A103: 94 | B103: ='Data Entry'!M96 -> 0.02684615104 | E103: 0.01146905053 | F103: 0.04959725583 | G103: 0.01740537262 | J103: 0 | K103: 0.02275110479 | L103: 0
A104: 95 | B104: ='Data Entry'!M97 -> 0.02700451188 | E104: 0.0114773592 | F104: 0.04969380245 | G104: 0.01741065984 | J104: 0 | K104: 0.02268929057 | L104: 0
A105: 96 | B105: ='Data Entry'!M98 -> 0.02715959719 | E105: 0.01148549477 | F105: 0.0497883378 | G105: 0.0174158369 | J105: 0 | K105: 0.02262874061 | L105: 0
A106: 97 | B106: ='Data Entry'!M99 -> 0.02731150757 | E106: 0.0114934626 | F106: 0.04988092409 | G106: 0.01742090722 | J106: 0 | K106: 0.02256941651 | L106: 0
A107: 98 | B107: ='Data Entry'!M100 -> 0.02746033952 | E107: 0.01150126782 | F107: 0.04997162095 | G107: 0.01742587407 | J107: 0 | K107: 0.02251128142 | L107: 0
A108: 99 | B108: ='Data Entry'!M101 -> 0.02760618568 | E108: 0.01150891536 | F108: 0.05006048562 | G108: 0.01743074057 | J108: 0 | K108: 0.02245429994 | L108: 0
A109: 100 | B109: ='Data Entry'!M102 -> 0.027749135 | E109: 0.01151640994 | F109: 0.05014757307 | G109: 0.01743550975 | J109: 0 | K109: 0.02239843807 | L109: 0
A110: 101 | B110: ='Data Entry'!M103 -> 0 | E110: 0.01152375612 | F110: 0.05023293607 | G110: 0.01744018449 | J110: 0.01152375612 | K110: 0.05023293607 | L110: 0.01744018449
A111: 102 | B111: ='Data Entry'!M104 -> 0 | E111: 0.01153095826 | F111: 0.05031662533 | G111: 0.01744476756 | J111: 0.01153095826 | K111: 0.05031662533 | L111: 0.01744476756
A112: 103 | B112: ='Data Entry'!M105 -> 0 | E112: 0.01153802055 | F112: 0.05039868959 | G112: 0.01744926164 | J112: 0.01153802055 | K112: 0.05039868959 | L112: 0.01744926164
A113: 104 | B113: ='Data Entry'!M106 -> 0 | E113: 0.01154494702 | F113: 0.05047917572 | G113: 0.0174536693 | J113: 0.01154494702 | K113: 0.05047917572 | L113: 0.0174536693
A114: 105 | B114: ='Data Entry'!M107 -> 0 | E114: 0.01155174156 | F114: 0.05055812881 | G114: 0.017457993 | J114: 0.01155174156 | K114: 0.05055812881 | L114: 0.017457993
A115: 106 | B115: ='Data Entry'!M108 -> 0 | E115: 0.01155840791 | F115: =F$2+F$3*((1-EXP(-$A115/F$6))/($A115/F$6))+F$4*((1-EXP(-$A115/F$6))/($A115/F$6)-EXP(-$A115/F$6))+F$5*((1-EXP(-$A115/F$7))/($A115/F$7)-EXP(-$A115/F$7)) -> 0.05063559224 | G115: 0.01746223513 | J115: 0.01155840791 | K115: 0.05063559224 | L115: 0.01746223513
A116: 107 | B116: ='Data Entry'!M109 -> 0 | E116: 0.01156494965 | F116: 0.05071160778 | G116: 0.01746639796 | J116: 0.01156494965 | K116: 0.05071160778 | L116: 0.01746639796
A117: 108 | B117: ='Data Entry'!M110 -> 0 | E117: 0.01157137024 | F117: 0.05078621563 | G117: 0.0174704837 | J117: 0.01157137024 | K117: 0.05078621563 | L117: 0.0174704837
A118: 109 | B118: ='Data Entry'!M111 -> 0 | E118: 0.01157767303 | F118: 0.05085945455 | G118: 0.01747449448 | J118: 0.01157767303 | K118: 0.05085945455 | L118: 0.01747449448
A119: 110 | B119: ='Data Entry'!M112 -> 0 | E119: 0.01158386122 | F119: 0.05093136186 | G119: 0.01747843233 | J119: 0.01158386122 | K119: 0.05093136186 | L119: 0.01747843233
A120: 111 | B120: ='Data Entry'!M113 -> 0 | E120: 0.01158993791 | F120: 0.05100197355 | G120: 0.01748229923 | J120: 0.01158993791 | K120: 0.05100197355 | L120: 0.01748229923
A121: 112 | B121: ='Data Entry'!M114 -> 0 | E121: 0.01159590609 | F121: 0.05107132432 | G121: 0.01748609707 | J121: 0.01159590609 | K121: 0.05107132432 | L121: 0.01748609707
A122: 113 | B122: ='Data Entry'!M115 -> 0 | E122: 0.01160176864 | F122: 0.05113944766 | G122: 0.0174898277 | J122: 0.01160176864 | K122: 0.05113944766 | L122: 0.0174898277
A123: 114 | B123: ='Data Entry'!M116 -> 0 | E123: 0.01160752833 | F123: 0.05120637585 | G123: 0.01749349288 | J123: 0.01160752833 | K123: 0.05120637585 | L123: 0.01749349288
A124: 115 | B124: ='Data Entry'!M117 -> 0 | E124: 0.01161318786 | F124: 0.05127214008 | G124: 0.01749709432 | J124: 0.01161318786 | K124: 0.05127214008 | L124: 0.01749709432
A125: 116 | B125: ='Data Entry'!M118 -> 0 | E125: 0.01161874981 | F125: 0.05133677045 | G125: 0.01750063366 | J125: 0.01161874981 | K125: 0.05133677045 | L125: 0.01750063366
A126: 117 | B126: ='Data Entry'!M119 -> 0 | E126: 0.01162421669 | F126: 0.05140029602 | G126: 0.0175041125 | J126: 0.01162421669 | K126: 0.05140029602 | L126: 0.0175041125
A127: 118 | B127: ='Data Entry'!M120 -> 0 | E127: 0.0116295909 | F127: 0.0514627449 | G127: 0.01750753238 | J127: 0.0116295909 | K127: 0.0514627449 | L127: 0.01750753238
A128: 119 | B128: ='Data Entry'!M121 -> 0 | E128: 0.01163487479 | F128: 0.05152414421 | G128: 0.01751089478 | J128: 0.01163487479 | K128: 0.05152414421 | L128: 0.01751089478
A129: 120 | B129: ='Data Entry'!M122 -> 0 | E129: 0.01164007062 | F129: 0.05158452021 | G129: 0.01751420114 | J129: 0.01164007062 | K129: 0.05158452021 | L129: 0.01751420114
A130: 121 | B130: ='Data Entry'!M123 -> 0 | E130: 0.01164518056 | F130: 0.05164389826 | G130: 0.01751745285 | J130: 0.01164518056 | K130: 0.05164389826 | L130: 0.01751745285
A131: 122 | B131: ='Data Entry'!M124 -> 0 | E131: 0.01165020674 | F131: 0.05170230289 | G131: 0.01752065126 | J131: 0.01165020674 | K131: 0.05170230289 | L131: 0.01752065126
A132: 123 | B132: ='Data Entry'!M125 -> 0 | E132: 0.01165515119 | F132: 0.05175975786 | G132: 0.01752379765 | J132: 0.01165515119 | K132: 0.05175975786 | L132: 0.01752379765
A133: 124 | B133: ='Data Entry'!M126 -> 0 | E133: 0.01166001589 | F133: 0.05181628614 | G133: 0.0175268933 | J133: 0.01166001589 | K133: 0.05181628614 | L133: 0.0175268933
A134: 125 | B134: ='Data Entry'!M127 -> 0 | E134: 0.01166480275 | F134: 0.05187190996 | G134: 0.01752993942 | J134: 0.01166480275 | K134: 0.05187190996 | L134: 0.01752993942
A135: 126 | B135: ='Data Entry'!M128 -> 0 | E135: 0.01166951364 | F135: 0.05192665087 | G135: 0.01753293719 | J135: 0.01166951364 | K135: 0.05192665087 | L135: 0.01753293719
A136: 127 | B136: ='Data Entry'!M129 -> 0 | E136: 0.01167415033 | F136: 0.05198052972 | G136: 0.01753588775 | J136: 0.01167415033 | K136: 0.05198052972 | L136: 0.01753588775
A137: 128 | B137: ='Data Entry'!M130 -> 0 | E137: 0.01167871458 | F137: 0.05203356671 | G137: 0.0175387922 | J137: 0.01167871458 | K137: 0.05203356671 | L137: 0.0175387922
A138: 129 | B138: ='Data Entry'!M131 -> 0 | E138: 0.01168320806 | F138: 0.05208578142 | G138: 0.01754165163 | J138: 0.01168320806 | K138: 0.05208578142 | L138: 0.01754165163
A139: 130 | B139: ='Data Entry'!M132 -> 0 | C139: =C$2+C$3*((1-EXP(-$A139/C$6))/($A139/C$6))+C$4*((1-EXP(-$A139/C$6))/($A139/C$6)-EXP(-$A139/C$6))+C$5*((1-EXP(-$A139/C$7))/($A139/C$7)-EXP(-$A139/C$7)) ->  | E139: 0.01168763242 | F139: 0.05213719283 | G139: 0.01754446706 | H139: =MAX(C139-$B139,0) ->  | I139: =MAX(D139-$B139,0) ->  | J139: =MAX(E139-$B139,0) -> 0.01168763242 | K139: =MAX(F139-$B139,0) -> 0.05213719283 | L139: =MAX(G139-$B139,0) -> 0.01754446706
A140: =A139+1 -> 131 | B140: ='Data Entry'!M133 -> 0 | E140: 0.01169198922 | F140: 0.05218781933 | G140: 0.01754723951 | J140: 0.01169198922 | K140: 0.05218781933 | L140: 0.01754723951
A141: 132 | B141: ='Data Entry'!M134 -> 0 | E141: 0.01169628002 | F141: 0.05223767876 | G141: 0.01754996996 | J141: 0.01169628002 | K141: 0.05223767876 | L141: 0.01754996996
A142: 133 | B142: ='Data Entry'!M135 -> 0 | E142: 0.01170050629 | F142: 0.05228678843 | G142: 0.01755265934 | J142: 0.01170050629 | K142: 0.05228678843 | L142: 0.01755265934
A143: 134 | B143: ='Data Entry'!M136 -> 0 | E143: 0.01170466948 | F143: 0.05233516512 | G143: 0.01755530859 | J143: 0.01170466948 | K143: 0.05233516512 | L143: 0.01755530859
A144: 135 | B144: ='Data Entry'!M137 -> 0 | E144: 0.01170877099 | F144: 0.05238282512 | G144: 0.01755791858 | J144: 0.01170877099 | K144: 0.05238282512 | L144: 0.01755791858
A145: 136 | B145: ='Data Entry'!M138 -> 0 | E145: 0.01171281219 | F145: 0.05242978423 | G145: 0.0175604902 | J145: 0.01171281219 | K145: 0.05242978423 | L145: 0.0175604902
A146: 137 | B146: ='Data Entry'!M139 -> 0 | E146: 0.0117167944 | F146: 0.05247605781 | G146: 0.01756302427 | J146: 0.0117167944 | K146: 0.05247605781 | L146: 0.01756302427
A147: 138 | B147: ='Data Entry'!M140 -> 0 | E147: 0.01172071889 | F147: 0.05252166076 | G147: 0.01756552162 | J147: 0.01172071889 | K147: 0.05252166076 | L147: 0.01756552162
A148: 139 | B148: ='Data Entry'!M141 -> 0 | E148: 0.01172458691 | F148: 0.05256660755 | G148: 0.01756798303 | J148: 0.01172458691 | K148: 0.05256660755 | L148: 0.01756798303
A149: 140 | B149: ='Data Entry'!M142 -> 0 | E149: 0.01172839967 | F149: 0.05261091224 | G149: 0.01757040928 | J149: 0.01172839967 | K149: 0.05261091224 | L149: 0.01757040928
A150: 141 | B150: ='Data Entry'!M143 -> 0 | E150: 0.01173215836 | F150: 0.0526545885 | G150: 0.01757280112 | J150: 0.01173215836 | K150: 0.0526545885 | L150: 0.01757280112
A151: 142 | B151: ='Data Entry'!M144 -> 0 | E151: 0.0117358641 | F151: 0.0526976496 | G151: 0.01757515926 | J151: 0.0117358641 | K151: 0.0526976496 | L151: 0.01757515926
A152: 143 | B152: ='Data Entry'!M145 -> 0 | E152: 0.01173951802 | F152: 0.05274010845 | G152: 0.01757748443 | J152: 0.01173951802 | K152: 0.05274010845 | L152: 0.01757748443
A153: 144 | B153: ='Data Entry'!M146 -> 0 | E153: 0.01174312118 | F153: 0.05278197759 | G153: 0.0175797773 | J153: 0.01174312118 | K153: 0.05278197759 | L153: 0.0175797773
A154: 145 | B154: ='Data Entry'!M147 -> 0 | E154: 0.01174667465 | F154: 0.05282326923 | G154: 0.01758203855 | J154: 0.01174667465 | K154: 0.05282326923 | L154: 0.01758203855
A155: 146 | B155: ='Data Entry'!M148 -> 0 | E155: 0.01175017944 | F155: 0.05286399522 | G155: 0.01758426882 | J155: 0.01175017944 | K155: 0.05286399522 | L155: 0.01758426882
A156: 147 | B156: ='Data Entry'!M149 -> 0 | E156: 0.01175363655 | F156: 0.05290416712 | G156: 0.01758646875 | J156: 0.01175363655 | K156: 0.05290416712 | L156: 0.01758646875
A157: 148 | B157: ='Data Entry'!M150 -> 0 | E157: 0.01175704693 | F157: 0.05294379616 | G157: 0.01758863895 | J157: 0.01175704693 | K157: 0.05294379616 | L157: 0.01758863895
A158: 149 | B158: ='Data Entry'!M151 -> 0 | E158: 0.01176041154 | F158: 0.05298289327 | G158: 0.01759078001 | J158: 0.01176041154 | K158: 0.05298289327 | L158: 0.01759078001
A159: 150 | B159: ='Data Entry'!M152 -> 0 | E159: 0.01176373129 | F159: 0.05302146908 | G159: 0.01759289254 | J159: 0.01176373129 | K159: 0.05302146908 | L159: 0.01759289254
A160: 151 | B160: ='Data Entry'!M153 -> 0 | E160: 0.01176700707 | F160: 0.05305953395 | G160: 0.01759497708 | J160: 0.01176700707 | K160: 0.05305953395 | L160: 0.01759497708
A161: 152 | B161: ='Data Entry'!M154 -> 0 | E161: 0.01177023975 | F161: 0.05309709797 | G161: 0.01759703419 | J161: 0.01177023975 | K161: 0.05309709797 | L161: 0.01759703419
A162: 153 | B162: ='Data Entry'!M155 -> 0 | E162: 0.01177343017 | F162: 0.05313417095 | G162: 0.01759906441 | J162: 0.01177343017 | K162: 0.05313417095 | L162: 0.01759906441
A163: 154 | B163: ='Data Entry'!M156 -> 0 | E163: 0.01177657916 | F163: 0.05317076247 | G163: 0.01760106826 | J163: 0.01177657916 | K163: 0.05317076247 | L163: 0.01760106826
A164: 155 | B164: ='Data Entry'!M157 -> 0 | E164: 0.01177968751 | F164: 0.05320688184 | G164: 0.01760304626 | J164: 0.01177968751 | K164: 0.05320688184 | L164: 0.01760304626
A165: 156 | B165: ='Data Entry'!M158 -> 0 | E165: 0.01178275601 | F165: 0.05324253814 | G165: 0.0176049989 | J165: 0.01178275601 | K165: 0.05324253814 | L165: 0.0176049989
A166: 157 | B166: ='Data Entry'!M159 -> 0 | E166: 0.01178578543 | F166: =F$2+F$3*((1-EXP(-$A166/F$6))/($A166/F$6))+F$4*((1-EXP(-$A166/F$6))/($A166/F$6)-EXP(-$A166/F$6))+F$5*((1-EXP(-$A166/F$7))/($A166/F$7)-EXP(-$A166/F$7)) -> 0.05327774022 | G166: 0.01760692667 | J166: 0.01178578543 | K166: 0.05327774022 | L166: 0.01760692667
A167: 158 | B167: ='Data Entry'!M160 -> 0 | E167: 0.01178877649 | F167: 0.0533124967 | G167: 0.01760883003 | J167: 0.01178877649 | K167: 0.0533124967 | L167: 0.01760883003
A168: 159 | B168: ='Data Entry'!M161 -> 0 | E168: 0.01179172994 | F168: 0.053346816 | G168: 0.01761070945 | J168: 0.01179172994 | K168: 0.053346816 | L168: 0.01761070945
A169: 160 | B169: ='Data Entry'!M162 -> 0 | E169: 0.01179464646 | F169: 0.0533807063 | G169: 0.01761256538 | J169: 0.01179464646 | K169: 0.0533807063 | L169: 0.01761256538
A170: 161 | B170: ='Data Entry'!M163 -> 0 | E170: 0.01179752676 | F170: 0.05341417561 | G170: 0.01761439826 | J170: 0.01179752676 | K170: 0.05341417561 | L170: 0.01761439826
A171: 162 | B171: ='Data Entry'!M164 -> 0 | E171: 0.01180037149 | F171: 0.05344723172 | G171: 0.0176162085 | J171: 0.01180037149 | K171: 0.05344723172 | L171: 0.0176162085
A172: 163 | B172: ='Data Entry'!M165 -> 0 | E172: 0.01180318133 | F172: 0.05347988223 | G172: 0.01761799654 | J172: 0.01180318133 | K172: 0.05347988223 | L172: 0.01761799654
A173: 164 | B173: ='Data Entry'!M166 -> 0 | E173: 0.01180595689 | F173: 0.05351213456 | G173: 0.01761976277 | J173: 0.01180595689 | K173: 0.05351213456 | L173: 0.01761976277
A174: 165 | B174: ='Data Entry'!M167 -> 0 | E174: 0.01180869881 | F174: 0.05354399595 | G174: 0.01762150759 | J174: 0.01180869881 | K174: 0.05354399595 | L174: 0.01762150759
A175: 166 | B175: ='Data Entry'!M168 -> 0 | E175: 0.0118114077 | F175: 0.05357547348 | G175: 0.01762323139 | J175: 0.0118114077 | K175: 0.05357547348 | L175: 0.01762323139
A176: 167 | B176: ='Data Entry'!M169 -> 0 | E176: 0.01181408414 | F176: 0.05360657402 | G176: 0.01762493454 | J176: 0.01181408414 | K176: 0.05360657402 | L176: 0.01762493454
A177: 168 | B177: ='Data Entry'!M170 -> 0 | E177: 0.01181672873 | F177: 0.05363730433 | G177: 0.01762661742 | J177: 0.01181672873 | K177: 0.05363730433 | L177: 0.01762661742
A178: 169 | B178: ='Data Entry'!M171 -> 0 | E178: 0.01181934201 | F178: 0.05366767095 | G178: 0.01762828038 | J178: 0.01181934201 | K178: 0.05366767095 | L178: 0.01762828038
A179: 170 | B179: ='Data Entry'!M172 -> 0 | E179: 0.01182192455 | F179: 0.05369768033 | G179: 0.01762992378 | J179: 0.01182192455 | K179: 0.05369768033 | L179: 0.01762992378
A180: 171 | B180: ='Data Entry'!M173 -> 0 | E180: 0.01182447689 | F180: 0.05372733872 | G180: 0.01763154796 | J180: 0.01182447689 | K180: 0.05372733872 | L180: 0.01763154796
A181: 172 | B181: ='Data Entry'!M174 -> 0 | E181: 0.01182699955 | F181: 0.05375665224 | G181: 0.01763315325 | J181: 0.01182699955 | K181: 0.05375665224 | L181: 0.01763315325
A182: 173 | B182: ='Data Entry'!M175 -> 0 | E182: 0.01182949304 | F182: 0.05378562688 | G182: 0.01763473998 | J182: 0.01182949304 | K182: 0.05378562688 | L182: 0.01763473998
A183: 174 | B183: ='Data Entry'!M176 -> 0 | E183: 0.01183195787 | F183: 0.05381426848 | G183: 0.01763630848 | J183: 0.01183195787 | K183: 0.05381426848 | L183: 0.01763630848
A184: 175 | B184: ='Data Entry'!M177 -> 0 | E184: 0.01183439454 | F184: 0.05384258274 | G184: 0.01763785905 | J184: 0.01183439454 | K184: 0.05384258274 | L184: 0.01763785905
A185: 176 | B185: ='Data Entry'!M178 -> 0 | E185: 0.01183680351 | F185: 0.05387057525 | G185: 0.01763939199 | J185: 0.01183680351 | K185: 0.05387057525 | L185: 0.01763939199
A186: 177 | B186: ='Data Entry'!M179 -> 0 | E186: 0.01183918527 | F186: 0.05389825146 | G186: 0.01764090762 | J186: 0.01183918527 | K186: 0.05389825146 | L186: 0.01764090762
A187: 178 | B187: ='Data Entry'!M180 -> 0 | E187: 0.01184154026 | F187: 0.05392561671 | G187: 0.01764240622 | J187: 0.01184154026 | K187: 0.05392561671 | L187: 0.01764240622
A188: 179 | B188: ='Data Entry'!M181 -> 0 | E188: 0.01184386894 | F188: 0.05395267619 | G188: 0.01764388807 | J188: 0.01184386894 | K188: 0.05395267619 | L188: 0.01764388807
A189: 180 | B189: ='Data Entry'!M182 -> 0 | E189: 0.01184617175 | F189: 0.05397943502 | G189: 0.01764535346 | J189: 0.01184617175 | K189: 0.05397943502 | L189: 0.01764535346
A190: 181 | B190: ='Data Entry'!M183 -> 0 | E190: 0.01184844911 | F190: 0.05400589817 | G190: 0.01764680266 | J190: 0.01184844911 | K190: 0.05400589817 | L190: 0.01764680266
A191: 182 | B191: ='Data Entry'!M184 -> 0 | E191: 0.01185070144 | F191: 0.05403207051 | G191: 0.01764823593 | J191: 0.01185070144 | K191: 0.05403207051 | L191: 0.01764823593
A192: 183 | B192: ='Data Entry'!M185 -> 0 | E192: 0.01185292916 | F192: 0.05405795682 | G192: 0.01764965354 | J192: 0.01185292916 | K192: 0.05405795682 | L192: 0.01764965354
A193: 184 | B193: ='Data Entry'!M186 -> 0 | E193: 0.01185513266 | F193: 0.05408356175 | G193: 0.01765105574 | J193: 0.01185513266 | K193: 0.05408356175 | L193: 0.01765105574
A194: 185 | B194: ='Data Entry'!M187 -> 0 | E194: 0.01185731235 | F194: 0.05410888988 | G194: 0.01765244278 | J194: 0.01185731235 | K194: 0.05410888988 | L194: 0.01765244278
A195: 186 | B195: ='Data Entry'!M188 -> 0 | E195: 0.01185946859 | F195: 0.05413394565 | G195: 0.0176538149 | J195: 0.01185946859 | K195: 0.05413394565 | L195: 0.0176538149
A196: 187 | B196: ='Data Entry'!M189 -> 0 | E196: 0.01186160178 | F196: 0.05415873346 | G196: 0.01765517235 | J196: 0.01186160178 | K196: 0.05415873346 | L196: 0.01765517235
A197: 188 | B197: ='Data Entry'!M190 -> 0 | E197: 0.01186371227 | F197: 0.05418325756 | G197: 0.01765651536 | J197: 0.01186371227 | K197: 0.05418325756 | L197: 0.01765651536
A198: 189 | B198: ='Data Entry'!M191 -> 0 | E198: 0.01186580042 | F198: 0.05420752215 | G198: 0.01765784416 | J198: 0.01186580042 | K198: 0.05420752215 | L198: 0.01765784416
A199: 190 | B199: ='Data Entry'!M192 -> 0 | E199: 0.0118678666 | F199: 0.05423153132 | G199: 0.01765915897 | J199: 0.0118678666 | K199: 0.05423153132 | L199: 0.01765915897
A200: 191 | B200: ='Data Entry'!M193 -> 0 | E200: 0.01186991114 | F200: 0.05425528909 | G200: 0.01766046001 | J200: 0.01186991114 | K200: 0.05425528909 | L200: 0.01766046001
A201: 192 | B201: ='Data Entry'!M194 -> 0 | E201: 0.01187193439 | F201: 0.05427879938 | G201: 0.0176617475 | J201: 0.01187193439 | K201: 0.05427879938 | L201: 0.0176617475
... 168 more rows

Sheet AAA Yield Curve
D1: Bond Name | E1: Next Coupon Date | F1: Maturity | G1: Cpn Payment Freq | H1: Clean Price | I1: AI | J1: Coupon Rate | K1: Cash Price | L1: Yield to Maturity | M1: Macauley Duration | N1: Duration | O1: Inverse of Macauley Duration | P1: Weights for Optimization
A2: Parameters | C2: 1 | D2: ='Data Entry'!B4 -> 0 | E2: ='Data Entry'!C4 -> 00:00:00 | F2: ='Data Entry'!D4 -> 00:00:00 | G2: ='Data Entry'!E4 -> 0 | H2: ='Data Entry'!F4 -> 0 | I2: ='Data Entry'!G4 -> 0 | J2: ='Data Entry'!H4/100 -> 0 | K2: ='Data Entry'!I4 -> 0 | L2: =YIELD(B$3,F2,J2,H2,100,G2,0) ->  | M2: =MDURATION(B$3,F2,J2,L2,G2,0) ->  | N2: =DURATION(B$3,F2,J2,L2,G2,0) ->  | O2: =1/M2 ->  | P2: =O2/$O$33 -> 
A3: Current Day t=0 | B3: =Instructions!D35 -> 2019-07-02 | C3: =C2+1 -> 2 | D3: ='Data Entry'!B5 -> 0 | E3: ='Data Entry'!C5 -> 00:00:00 | F3: ='Data Entry'!D5 -> 00:00:00 | G3: ='Data Entry'!E5 -> 0 | H3: ='Data Entry'!F5 -> 0 | I3: ='Data Entry'!G5 -> 0 | J3: ='Data Entry'!H5/100 -> 0 | K3: ='Data Entry'!I5 -> 0 | L3: =YIELD(B$3,F3,J3,H3,100,G3,0) ->  | M3: =MDURATION(B$3,F3,J3,L3,G3,0) ->  | N3: =DURATION(B$3,F3,J3,L3,G3,0) -> 
A4: Nelson Siegel Parameters
A5: b0
A6: b1
A7: b2
A8: b3
A9: tau
A10: rho
N33: Sum | O33: =SUM(O2:O32) -> 
A35: Payment Dates | B35: =IF(E2=0,F2,E2) -> 00:00:00 | C35: =B35+IF($G2=1,365,0)+IF($G2=2,182.5,0)+IF($G2=4,91.25,0) -> 00:00:00 | D35: =C35+IF($G2=1,365,0)+IF($G2=2,182.5,0)+IF($G2=4,91.25,0) -> 00:00:00 | E35: 00:00:00 | F35: 00:00:00 | G35: 00:00:00 | H35: 00:00:00 | I35: 00:00:00 | J35: 00:00:00 | K35: 00:00:00 | L35: 00:00:00 | M35: 00:00:00 | N35: 00:00:00 | O35: 00:00:00 | P35: 00:00:00 | Q35: 00:00:00 | R35: 00:00:00 | S35: 00:00:00 | T35: 00:00:00 | U35: 00:00:00 | V35: 00:00:00 | W35: 00:00:00 | X35: 00:00:00 | Y35: 00:00:00 | Z35: 00:00:00 | AA35: 00:00:00 | AB35: 00:00:00 | AC35: 00:00:00 | AD35: 00:00:00 | AE35: 00:00:00 | AF35: 00:00:00 | AG35: 00:00:00 | AH35: 00:00:00 | AI35: 00:00:00 | AJ35: 00:00:00 | AK35: 00:00:00 | AL35: 00:00:00 | AM35: 00:00:00 | AN35: 00:00:00 | AO35: 00:00:00 | AP35: 00:00:00 | AQ35: 00:00:00 | AR35: 00:00:00 | AS35: 00:00:00 | AT35: 00:00:00 | AU35: 00:00:00 | AV35: 00:00:00 | AW35: 00:00:00 | AX35: 00:00:00 | AY35: 00:00:00 | AZ35: 00:00:00 | BA35: 00:00:00 | BB35: 00:00:00 | BC35: 00:00:00 | BD35: 00:00:00 | BE35: 00:00:00 | BF35: 00:00:00 | BG35: 00:00:00 | BH35: 00:00:00 | BI35: 00:00:00 | BJ35: 00:00:00 | BK35: 00:00:00 | BL35: 00:00:00 | BM35: 00:00:00 | BN35: 00:00:00 | BO35: 00:00:00 | BP35: =BO35+IF($G2=1,365,0)+IF($G2=2,182.5,0)+IF($G2=4,91.25,0) -> 00:00:00 | BQ35: 00:00:00 | BR35: 00:00:00 | BS35: 00:00:00 | BT35: 00:00:00 | BU35: 00:00:00 | BV35: 00:00:00 | BW35: 00:00:00 | BX35: 00:00:00 | BY35: 00:00:00 | BZ35: 00:00:00 | CA35: 00:00:00 | CB35: 00:00:00 | CC35: 00:00:00 | CD35: 00:00:00 | CE35: 00:00:00 | CF35: 00:00:00 | CG35: 00:00:00 | CH35: 00:00:00 | CI35: 00:00:00 | CJ35: 00:00:00 | CK35: 00:00:00 | CL35: 00:00:00 | CM35: 00:00:00 | CN35: 00:00:00 | CO35: 00:00:00 | CP35: 00:00:00 | CQ35: 00:00:00 | CR35: 00:00:00 | CS35: 00:00:00 | CT35: 00:00:00 | CU35: 00:00:00 | CV35: 00:00:00 | CW35: 00:00:00 | CX35: 00:00:00 | CY35: 00:00:00 | CZ35: 00:00:00 | DA35: 00:00:00 | DB35: 00:00:00 | DC35: 00:00:00 | DD35: 00:00:00 | DE35: 00:00:00 | DF35: 00:00:00 | DG35: 00:00:00 | DH35: 00:00:00 | DI35: 00:00:00 | DJ35: 00:00:00 | DK35: 00:00:00 | DL35: 00:00:00 | DM35: 00:00:00 | DN35: 00:00:00 | DO35: 00:00:00 | DP35: 00:00:00 | DQ35: 00:00:00 | DR35: 00:00:00 | DS35: 00:00:00 | DT35: 00:00:00 | DU35: 00:00:00 | DV35: 00:00:00 | DW35: 00:00:00 | DX35: 00:00:00 | DY35: 00:00:00 | DZ35: 00:00:00 | EA35: 00:00:00 | EB35: =EA35+IF($G2=1,365,0)+IF($G2=2,182.5,0)+IF($G2=4,91.25,0) -> 00:00:00 | EC35: 00:00:00 | ED35: 00:00:00 | EE35: 00:00:00 | EF35: 00:00:00 | EG35: 00:00:00 | EH35: 00:00:00 | EI35: 00:00:00 | EJ35: 00:00:00 | EK35: 00:00:00 | EL35: 00:00:00 | EM35: 00:00:00 | EN35: 00:00:00 | EO35: 00:00:00 | EP35: 00:00:00 | EQ35: 00:00:00 | ER35: 00:00:00 | ES35: 00:00:00 | ET35: 00:00:00 | EU35: 00:00:00 | EV35: 00:00:00 | EW35: 00:00:00 | EX35: 00:00:00 | EY35: 00:00:00 | EZ35: 00:00:00 | FA35: 00:00:00 | FB35: 00:00:00 | FC35: 00:00:00 | FD35: 00:00:00 | FE35: 00:00:00 | FF35: 00:00:00 | FG35: 00:00:00 | FH35: 00:00:00 | FI35: 00:00:00 | FJ35: 00:00:00 | FK35: 00:00:00 | FL35: 00:00:00 | FM35: 00:00:00 | FN35: 00:00:00 | FO35: 00:00:00 | FP35: 00:00:00 | FQ35: 00:00:00 | FR35: 00:00:00 | FS35: 00:00:00 | FT35: 00:00:00 | FU35: 00:00:00 | FV35: 00:00:00 | FW35: 00:00:00 | FX35: 00:00:00 | FY35: 00:00:00 | FZ35: 00:00:00 | GA35: 00:00:00 | GB35: 00:00:00 | GC35: 00:00:00 | GD35: 00:00:00 | GE35: 00:00:00 | GF35: 00:00:00 | GG35: 00:00:00 | GH35: 00:00:00 | GI35: 00:00:00 | GJ35: 00:00:00 | GK35: 00:00:00 | GL35: 00:00:00 | GM35: 00:00:00 | GN35: =GM35+IF($G2=1,365,0)+IF($G2=2,182.5,0)+IF($G2=4,91.25,0) -> 00:00:00 | GO35: 00:00:00 | GP35: 00:00:00 | GQ35: 00:00:00 | GR35: 00:00:00 | GS35: 00:00:00
A36: Bond 1 | B36: =(IF(B35=F2,100,0)+IF(G2=1,1,0)*J2*100+IF(G2=2,0.5,0)*J2*100+IF(G2=4,0.25,0)*J2*100)*IF(ISBLANK(F2)=TRUE,0,1) -> 100 | C36: =IF(C35>$F2+1,0,1)*(IF(D36=0,100,0)+IF($G2=1,1,0)*$J2*100+IF($G2=2,0.5,0)*$J2*100+IF($G2=4,0.25,0)*$J2*100) -> 100 | D36: =IF(D35>$F2+1,0,1)*(IF(E36=0,100,0)+IF($G2=1,1,0)*$J2*100+IF($G2=2,0.5,0)*$J2*100+IF($G2=4,0.25,0)*$J2*100) -> 0 | E36: 100 | F36: 0 | G36: 100 | H36: 0 | I36: 100 | J36: 0 | K36: 100 | L36: 0 | M36: 100 | N36: 0 | O36: 100 | P36: 0 | Q36: 100 | R36: 0 | S36: 100 | T36: 0 | U36: 100 | V36: 0 | W36: 100 | X36: 0 | Y36: 100 | Z36: 0 | AA36: 100 | AB36: 0 | AC36: 100 | AD36: 0 | AE36: 100 | AF36: 0 | AG36: 100 | AH36: 0 | AI36: 100 | AJ36: 0 | AK36: 100 | AL36: 0 | AM36: 100 | AN36: 0 | AO36: 100 | AP36: 0 | AQ36: 100 | AR36: 0 | AS36: 100 | AT36: 0 | AU36: 100 | AV36: 0 | AW36: 100 | AX36: 0 | AY36: 100 | AZ36: 0 | BA36: 100 | BB36: 0 | BC36: 100 | BD36: 0 | BE36: 100 | BF36: 0 | BG36: 100 | BH36: 0 | BI36: 100 | BJ36: 0 | BK36: 100 | BL36: 0 | BM36: 100 | BN36: 0 | BO36: 100 | BP36: =IF(BP35>$F2+1,0,1)*(IF(BQ36=0,100,0)+IF($G2=1,1,0)*$J2*100+IF($G2=2,0.5,0)*$J2*100+IF($G2=4,0.25,0)*$J2*100) -> 0 | BQ36: 100 | BR36: 0 | BS36: 100 | BT36: 0 | BU36: 100 | BV36: 0 | BW36: 100 | BX36: 0 | BY36: 100 | BZ36: 0 | CA36: 100 | CB36: 0 | CC36: 100 | CD36: 0 | CE36: 100 | CF36: 0 | CG36: 100 | CH36: 0 | CI36: 100 | CJ36: 0 | CK36: 100 | CL36: 0 | CM36: 100 | CN36: 0 | CO36: 100 | CP36: 0 | CQ36: 100 | CR36: 0 | CS36: 100 | CT36: 0 | CU36: 100 | CV36: 0 | CW36: 100 | CX36: 0 | CY36: 100 | CZ36: 0 | DA36: 100 | DB36: 0 | DC36: 100 | DD36: 0 | DE36: 100 | DF36: 0 | DG36: 100 | DH36: 0 | DI36: 100 | DJ36: 0 | DK36: 100 | DL36: 0 | DM36: 100 | DN36: 0 | DO36: 100 | DP36: 0 | DQ36: 100 | DR36: 0 | DS36: 100 | DT36: 0 | DU36: 100 | DV36: 0 | DW36: 100 | DX36: 0 | DY36: 100 | DZ36: 0 | EA36: 100 | EB36: =IF(EB35>$F2+1,0,1)*(IF(EC36=0,100,0)+IF($G2=1,1,0)*$J2*100+IF($G2=2,0.5,0)*$J2*100+IF($G2=4,0.25,0)*$J2*100) -> 0 | EC36: 100 | ED36: 0 | EE36: 100 | EF36: 0 | EG36: 100 | EH36: 0 | EI36: 100 | EJ36: 0 | EK36: 100 | EL36: 0 | EM36: 100 | EN36: 0 | EO36: 100 | EP36: 0 | EQ36: 100 | ER36: 0 | ES36: 100 | ET36: 0 | EU36: 100 | EV36: 0 | EW36: 100 | EX36: 0 | EY36: 100 | EZ36: 0 | FA36: 100 | FB36: 0 | FC36: 100 | FD36: 0 | FE36: 100 | FF36: 0 | FG36: 100 | FH36: 0 | FI36: 100 | FJ36: 0 | FK36: 100 | FL36: 0 | FM36: 100 | FN36: 0 | FO36: 100 | FP36: 0 | FQ36: 100 | FR36: 0 | FS36: 100 | FT36: 0 | FU36: 100 | FV36: 0 | FW36: 100 | FX36: 0 | FY36: 100 | FZ36: 0 | GA36: 100 | GB36: 0 | GC36: 100 | GD36: 0 | GE36: 100 | GF36: 0 | GG36: 100 | GH36: 0 | GI36: 100 | GJ36: 0 | GK36: 100 | GL36: 0 | GM36: 100 | GN36: =IF(GN35>$F2+1,0,1)*(IF(GO36=0,100,0)+IF($G2=1,1,0)*$J2*100+IF($G2=2,0.5,0)*$J2*100+IF($G2=4,0.25,0)*$J2*100) -> 0 | GO36: 100 | GP36: 0 | GQ36: 100 | GR36: 0 | GS36: 100
A37: Payment Dates | B37: =IF(E3=0,F3,E3) -> 00:00:00 | C37: =B37+IF($G3=1,365,0)+IF($G3=2,182.5,0)+IF($G3=4,91.25,0) -> 00:00:00 | D37: =C37+IF($G3=1,365,0)+IF($G3=2,182.5,0)+IF($G3=4,91.25,0) -> 00:00:00 | E37: 00:00:00 | F37: 00:00:00 | G37: 00:00:00 | H37: 00:00:00 | I37: 00:00:00 | J37: 00:00:00 | K37: 00:00:00 | L37: 00:00:00 | M37: 00:00:00 | N37: 00:00:00 | O37: 00:00:00 | P37: 00:00:00 | Q37: 00:00:00 | R37: 00:00:00 | S37: 00:00:00 | T37: 00:00:00 | U37: 00:00:00 | V37: 00:00:00 | W37: 00:00:00 | X37: 00:00:00 | Y37: 00:00:00 | Z37: 00:00:00 | AA37: 00:00:00 | AB37: 00:00:00 | AC37: 00:00:00 | AD37: 00:00:00 | AE37: 00:00:00 | AF37: 00:00:00 | AG37: 00:00:00 | AH37: 00:00:00 | AI37: 00:00:00 | AJ37: 00:00:00 | AK37: 00:00:00 | AL37: 00:00:00 | AM37: 00:00:00 | AN37: 00:00:00 | AO37: 00:00:00 | AP37: 00:00:00 | AQ37: 00:00:00 | AR37: 00:00:00 | AS37: 00:00:00 | AT37: 00:00:00 | AU37: 00:00:00 | AV37: 00:00:00 | AW37: 00:00:00 | AX37: 00:00:00 | AY37: 00:00:00 | AZ37: 00:00:00 | BA37: 00:00:00 | BB37: 00:00:00 | BC37: 00:00:00 | BD37: 00:00:00 | BE37: 00:00:00 | BF37: 00:00:00 | BG37: 00:00:00 | BH37: 00:00:00 | BI37: 00:00:00 | BJ37: 00:00:00 | BK37: 00:00:00 | BL37: 00:00:00 | BM37: 00:00:00 | BN37: 00:00:00 | BO37: 00:00:00 | BP37: =BO37+IF($G3=1,365,0)+IF($G3=2,182.5,0)+IF($G3=4,91.25,0) -> 00:00:00 | BQ37: 00:00:00 | BR37: 00:00:00 | BS37: 00:00:00 | BT37: 00:00:00 | BU37: 00:00:00 | BV37: 00:00:00 | BW37: 00:00:00 | BX37: 00:00:00 | BY37: 00:00:00 | BZ37: 00:00:00 | CA37: 00:00:00 | CB37: 00:00:00 | CC37: 00:00:00 | CD37: 00:00:00 | CE37: 00:00:00 | CF37: 00:00:00 | CG37: 00:00:00 | CH37: 00:00:00 | CI37: 00:00:00 | CJ37: 00:00:00 | CK37: 00:00:00 | CL37: 00:00:00 | CM37: 00:00:00 | CN37: 00:00:00 | CO37: 00:00:00 | CP37: 00:00:00 | CQ37: 00:00:00 | CR37: 00:00:00 | CS37: 00:00:00 | CT37: 00:00:00 | CU37: 00:00:00 | CV37: 00:00:00 | CW37: 00:00:00 | CX37: 00:00:00 | CY37: 00:00:00 | CZ37: 00:00:00 | DA37: 00:00:00 | DB37: 00:00:00 | DC37: 00:00:00 | DD37: 00:00:00 | DE37: 00:00:00 | DF37: 00:00:00 | DG37: 00:00:00 | DH37: 00:00:00 | DI37: 00:00:00 | DJ37: 00:00:00 | DK37: 00:00:00 | DL37: 00:00:00 | DM37: 00:00:00 | DN37: 00:00:00 | DO37: 00:00:00 | DP37: 00:00:00 | DQ37: 00:00:00 | DR37: 00:00:00 | DS37: 00:00:00 | DT37: 00:00:00 | DU37: 00:00:00 | DV37: 00:00:00 | DW37: 00:00:00 | DX37: 00:00:00 | DY37: 00:00:00 | DZ37: 00:00:00 | EA37: 00:00:00 | EB37: =EA37+IF($G3=1,365,0)+IF($G3=2,182.5,0)+IF($G3=4,91.25,0) -> 00:00:00 | EC37: 00:00:00 | ED37: 00:00:00 | EE37: 00:00:00 | EF37: 00:00:00 | EG37: 00:00:00 | EH37: 00:00:00 | EI37: 00:00:00 | EJ37: 00:00:00 | EK37: 00:00:00 | EL37: 00:00:00 | EM37: 00:00:00 | EN37: 00:00:00 | EO37: 00:00:00 | EP37: 00:00:00 | EQ37: 00:00:00 | ER37: 00:00:00 | ES37: 00:00:00 | ET37: 00:00:00 | EU37: 00:00:00 | EV37: 00:00:00 | EW37: 00:00:00 | EX37: 00:00:00 | EY37: 00:00:00 | EZ37: 00:00:00 | FA37: 00:00:00 | FB37: 00:00:00 | FC37: 00:00:00 | FD37: 00:00:00 | FE37: 00:00:00 | FF37: 00:00:00 | FG37: 00:00:00 | FH37: 00:00:00 | FI37: 00:00:00 | FJ37: 00:00:00 | FK37: 00:00:00 | FL37: 00:00:00 | FM37: 00:00:00 | FN37: 00:00:00 | FO37: 00:00:00 | FP37: 00:00:00 | FQ37: 00:00:00 | FR37: 00:00:00 | FS37: 00:00:00 | FT37: 00:00:00 | FU37: 00:00:00 | FV37: 00:00:00 | FW37: 00:00:00 | FX37: 00:00:00 | FY37: 00:00:00 | FZ37: 00:00:00 | GA37: 00:00:00 | GB37: 00:00:00 | GC37: 00:00:00 | GD37: 00:00:00 | GE37: 00:00:00 | GF37: 00:00:00 | GG37: 00:00:00 | GH37: 00:00:00 | GI37: 00:00:00 | GJ37: 00:00:00 | GK37: 00:00:00 | GL37: 00:00:00 | GM37: 00:00:00 | GN37: =GM37+IF($G3=1,365,0)+IF($G3=2,182.5,0)+IF($G3=4,91.25,0) -> 00:00:00 | GO37: 00:00:00 | GP37: 00:00:00 | GQ37: 00:00:00 | GR37: 00:00:00 | GS37: 00:00:00
A38: Bond 2 | B38: =(IF(B37=F3,100,0)+IF(G3=1,1,0)*J3*100+IF(G3=2,0.5,0)*J3*100+IF(G3=4,0.25,0)*J3*100)*IF(ISBLANK(F3)=TRUE,0,1) -> 100 | C38: =IF(C37>$F3+1,0,1)*(IF(D38=0,100,0)+IF($G3=1,1,0)*$J3*100+IF($G3=2,0.5,0)*$J3*100+IF($G3=4,0.25,0)*$J3*100) -> 100 | D38: =IF(D37>$F3+1,0,1)*(IF(E38=0,100,0)+IF($G3=1,1,0)*$J3*100+IF($G3=2,0.5,0)*$J3*100+IF($G3=4,0.25,0)*$J3*100) -> 0 | E38: 100 | F38: 0 | G38: 100 | H38: 0 | I38: 100 | J38: 0 | K38: 100 | L38: 0 | M38: 100 | N38: 0 | O38: 100 | P38: 0 | Q38: 100 | R38: 0 | S38: 100 | T38: 0 | U38: 100 | V38: 0 | W38: 100 | X38: 0 | Y38: 100 | Z38: 0 | AA38: 100 | AB38: 0 | AC38: 100 | AD38: 0 | AE38: 100 | AF38: 0 | AG38: 100 | AH38: 0 | AI38: 100 | AJ38: 0 | AK38: 100 | AL38: 0 | AM38: 100 | AN38: 0 | AO38: 100 | AP38: 0 | AQ38: 100 | AR38: 0 | AS38: 100 | AT38: 0 | AU38: 100 | AV38: 0 | AW38: 100 | AX38: 0 | AY38: 100 | AZ38: 0 | BA38: 100 | BB38: 0 | BC38: 100 | BD38: 0 | BE38: 100 | BF38: 0 | BG38: 100 | BH38: 0 | BI38: 100 | BJ38: 0 | BK38: 100 | BL38: 0 | BM38: 100 | BN38: 0 | BO38: 100 | BP38: =IF(BP37>$F3+1,0,1)*(IF(BQ38=0,100,0)+IF($G3=1,1,0)*$J3*100+IF($G3=2,0.5,0)*$J3*100+IF($G3=4,0.25,0)*$J3*100) -> 0 | BQ38: 100 | BR38: 0 | BS38: 100 | BT38: 0 | BU38: 100 | BV38: 0 | BW38: 100 | BX38: 0 | BY38: 100 | BZ38: 0 | CA38: 100 | CB38: 0 | CC38: 100 | CD38: 0 | CE38: 100 | CF38: 0 | CG38: 100 | CH38: 0 | CI38: 100 | CJ38: 0 | CK38: 100 | CL38: 0 | CM38: 100 | CN38: 0 | CO38: 100 | CP38: 0 | CQ38: 100 | CR38: 0 | CS38: 100 | CT38: 0 | CU38: 100 | CV38: 0 | CW38: 100 | CX38: 0 | CY38: 100 | CZ38: 0 | DA38: 100 | DB38: 0 | DC38: 100 | DD38: 0 | DE38: 100 | DF38: 0 | DG38: 100 | DH38: 0 | DI38: 100 | DJ38: 0 | DK38: 100 | DL38: 0 | DM38: 100 | DN38: 0 | DO38: 100 | DP38: 0 | DQ38: 100 | DR38: 0 | DS38: 100 | DT38: 0 | DU38: 100 | DV38: 0 | DW38: 100 | DX38: 0 | DY38: 100 | DZ38: 0 | EA38: 100 | EB38: =IF(EB37>$F3+1,0,1)*(IF(EC38=0,100,0)+IF($G3=1,1,0)*$J3*100+IF($G3=2,0.5,0)*$J3*100+IF($G3=4,0.25,0)*$J3*100) -> 0 | EC38: 100 | ED38: 0 | EE38: 100 | EF38: 0 | EG38: 100 | EH38: 0 | EI38: 100 | EJ38: 0 | EK38: 100 | EL38: 0 | EM38: 100 | EN38: 0 | EO38: 100 | EP38: 0 | EQ38: 100 | ER38: 0 | ES38: 100 | ET38: 0 | EU38: 100 | EV38: 0 | EW38: 100 | EX38: 0 | EY38: 100 | EZ38: 0 | FA38: 100 | FB38: 0 | FC38: 100 | FD38: 0 | FE38: 100 | FF38: 0 | FG38: 100 | FH38: 0 | FI38: 100 | FJ38: 0 | FK38: 100 | FL38: 0 | FM38: 100 | FN38: 0 | FO38: 100 | FP38: 0 | FQ38: 100 | FR38: 0 | FS38: 100 | FT38: 0 | FU38: 100 | FV38: 0 | FW38: 100 | FX38: 0 | FY38: 100 | FZ38: 0 | GA38: 100 | GB38: 0 | GC38: 100 | GD38: 0 | GE38: 100 | GF38: 0 | GG38: 100 | GH38: 0 | GI38: 100 | GJ38: 0 | GK38: 100 | GL38: 0 | GM38: 100 | GN38: =IF(GN37>$F3+1,0,1)*(IF(GO38=0,100,0)+IF($G3=1,1,0)*$J3*100+IF($G3=2,0.5,0)*$J3*100+IF($G3=4,0.25,0)*$J3*100) -> 0 | GO38: 100 | GP38: 0 | GQ38: 100 | GR38: 0 | GS38: 100
A39: Payment Dates | B39: =IF(E4=0,F4,E4) -> 00:00:00 | C39: =B39+IF($G4=1,365,0)+IF($G4=2,182.5,0)+IF($G4=4,91.25,0) -> 00:00:00 | D39: =C39+IF($G4=1,365,0)+IF($G4=2,182.5,0)+IF($G4=4,91.25,0) -> 00:00:00 | E39: 00:00:00 | F39: 00:00:00 | G39: 00:00:00 | H39: 00:00:00 | I39: 00:00:00 | J39: 00:00:00 | K39: 00:00:00 | L39: 00:00:00 | M39: 00:00:00 | N39: 00:00:00 | O39: 00:00:00 | P39: 00:00:00 | Q39: 00:00:00 | R39: 00:00:00 | S39: 00:00:00 | T39: 00:00:00 | U39: 00:00:00 | V39: 00:00:00 | W39: 00:00:00 | X39: 00:00:00 | Y39: 00:00:00 | Z39: 00:00:00 | AA39: 00:00:00 | AB39: 00:00:00 | AC39: 00:00:00 | AD39: 00:00:00 | AE39: 00:00:00 | AF39: 00:00:00 | AG39: 00:00:00 | AH39: 00:00:00 | AI39: 00:00:00 | AJ39: 00:00:00 | AK39: 00:00:00 | AL39: 00:00:00 | AM39: 00:00:00 | AN39: 00:00:00 | AO39: 00:00:00 | AP39: 00:00:00 | AQ39: 00:00:00 | AR39: 00:00:00 | AS39: 00:00:00 | AT39: 00:00:00 | AU39: 00:00:00 | AV39: 00:00:00 | AW39: 00:00:00 | AX39: 00:00:00 | AY39: 00:00:00 | AZ39: 00:00:00 | BA39: 00:00:00 | BB39: 00:00:00 | BC39: 00:00:00 | BD39: 00:00:00 | BE39: 00:00:00 | BF39: 00:00:00 | BG39: 00:00:00 | BH39: 00:00:00 | BI39: 00:00:00 | BJ39: 00:00:00 | BK39: 00:00:00 | BL39: 00:00:00 | BM39: 00:00:00 | BN39: 00:00:00 | BO39: 00:00:00 | BP39: =BO39+IF($G4=1,365,0)+IF($G4=2,182.5,0)+IF($G4=4,91.25,0) -> 00:00:00 | BQ39: 00:00:00 | BR39: 00:00:00 | BS39: 00:00:00 | BT39: 00:00:00 | BU39: 00:00:00 | BV39: 00:00:00 | BW39: 00:00:00 | BX39: 00:00:00 | BY39: 00:00:00 | BZ39: 00:00:00 | CA39: 00:00:00 | CB39: 00:00:00 | CC39: 00:00:00 | CD39: 00:00:00 | CE39: 00:00:00 | CF39: 00:00:00 | CG39: 00:00:00 | CH39: 00:00:00 | CI39: 00:00:00 | CJ39: 00:00:00 | CK39: 00:00:00 | CL39: 00:00:00 | CM39: 00:00:00 | CN39: 00:00:00 | CO39: 00:00:00 | CP39: 00:00:00 | CQ39: 00:00:00 | CR39: 00:00:00 | CS39: 00:00:00 | CT39: 00:00:00 | CU39: 00:00:00 | CV39: 00:00:00 | CW39: 00:00:00 | CX39: 00:00:00 | CY39: 00:00:00 | CZ39: 00:00:00 | DA39: 00:00:00 | DB39: 00:00:00 | DC39: 00:00:00 | DD39: 00:00:00 | DE39: 00:00:00 | DF39: 00:00:00 | DG39: 00:00:00 | DH39: 00:00:00 | DI39: 00:00:00 | DJ39: 00:00:00 | DK39: 00:00:00 | DL39: 00:00:00 | DM39: 00:00:00 | DN39: 00:00:00 | DO39: 00:00:00 | DP39: 00:00:00 | DQ39: 00:00:00 | DR39: 00:00:00 | DS39: 00:00:00 | DT39: 00:00:00 | DU39: 00:00:00 | DV39: 00:00:00 | DW39: 00:00:00 | DX39: 00:00:00 | DY39: 00:00:00 | DZ39: 00:00:00 | EA39: 00:00:00 | EB39: =EA39+IF($G4=1,365,0)+IF($G4=2,182.5,0)+IF($G4=4,91.25,0) -> 00:00:00 | EC39: 00:00:00 | ED39: 00:00:00 | EE39: 00:00:00 | EF39: 00:00:00 | EG39: 00:00:00 | EH39: 00:00:00 | EI39: 00:00:00 | EJ39: 00:00:00 | EK39: 00:00:00 | EL39: 00:00:00 | EM39: 00:00:00 | EN39: 00:00:00 | EO39: 00:00:00 | EP39: 00:00:00 | EQ39: 00:00:00 | ER39: 00:00:00 | ES39: 00:00:00 | ET39: 00:00:00 | EU39: 00:00:00 | EV39: 00:00:00 | EW39: 00:00:00 | EX39: 00:00:00 | EY39: 00:00:00 | EZ39: 00:00:00 | FA39: 00:00:00 | FB39: 00:00:00 | FC39: 00:00:00 | FD39: 00:00:00 | FE39: 00:00:00 | FF39: 00:00:00 | FG39: 00:00:00 | FH39: 00:00:00 | FI39: 00:00:00 | FJ39: 00:00:00 | FK39: 00:00:00 | FL39: 00:00:00 | FM39: 00:00:00 | FN39: 00:00:00 | FO39: 00:00:00 | FP39: 00:00:00 | FQ39: 00:00:00 | FR39: 00:00:00 | FS39: 00:00:00 | FT39: 00:00:00 | FU39: 00:00:00 | FV39: 00:00:00 | FW39: 00:00:00 | FX39: 00:00:00 | FY39: 00:00:00 | FZ39: 00:00:00 | GA39: 00:00:00 | GB39: 00:00:00 | GC39: 00:00:00 | GD39: 00:00:00 | GE39: 00:00:00 | GF39: 00:00:00 | GG39: 00:00:00 | GH39: 00:00:00 | GI39: 00:00:00 | GJ39: 00:00:00 | GK39: 00:00:00 | GL39: 00:00:00 | GM39: 00:00:00 | GN39: =GM39+IF($G4=1,365,0)+IF($G4=2,182.5,0)+IF($G4=4,91.25,0) -> 00:00:00 | GO39: 00:00:00 | GP39: 00:00:00 | GQ39: 00:00:00 | GR39: 00:00:00 | GS39: 00:00:00
A40: Bond 3 | B40: =(IF(B39=F4,100,0)+IF(G4=1,1,0)*J4*100+IF(G4=2,0.5,0)*J4*100+IF(G4=4,0.25,0)*J4*100)*IF(ISBLANK(F4)=TRUE,0,1) -> 0 | C40: =IF(C39>$F4+1,0,1)*(IF(D40=0,100,0)+IF($G4=1,1,0)*$J4*100+IF($G4=2,0.5,0)*$J4*100+IF($G4=4,0.25,0)*$J4*100) -> 100 | D40: =IF(D39>$F4+1,0,1)*(IF(E40=0,100,0)+IF($G4=1,1,0)*$J4*100+IF($G4=2,0.5,0)*$J4*100+IF($G4=4,0.25,0)*$J4*100) -> 0 | E40: 100 | F40: 0 | G40: 100 | H40: 0 | I40: 100 | J40: 0 | K40: 100 | L40: 0 | M40: 100 | N40: 0 | O40: 100 | P40: 0 | Q40: 100 | R40: 0 | S40: 100 | T40: 0 | U40: 100 | V40: 0 | W40: 100 | X40: 0 | Y40: 100 | Z40: 0 | AA40: 100 | AB40: 0 | AC40: 100 | AD40: 0 | AE40: 100 | AF40: 0 | AG40: 100 | AH40: 0 | AI40: 100 | AJ40: 0 | AK40: 100 | AL40: 0 | AM40: 100 | AN40: 0 | AO40: 100 | AP40: 0 | AQ40: 100 | AR40: 0 | AS40: 100 | AT40: 0 | AU40: 100 | AV40: 0 | AW40: 100 | AX40: 0 | AY40: 100 | AZ40: 0 | BA40: 100 | BB40: 0 | BC40: 100 | BD40: 0 | BE40: 100 | BF40: 0 | BG40: 100 | BH40: 0 | BI40: 100 | BJ40: 0 | BK40: 100 | BL40: 0 | BM40: 100 | BN40: 0 | BO40: 100 | BP40: =IF(BP39>$F4+1,0,1)*(IF(BQ40=0,100,0)+IF($G4=1,1,0)*$J4*100+IF($G4=2,0.5,0)*$J4*100+IF($G4=4,0.25,0)*$J4*100) -> 0 | BQ40: 100 | BR40: 0 | BS40: 100 | BT40: 0 | BU40: 100 | BV40: 0 | BW40: 100 | BX40: 0 | BY40: 100 | BZ40: 0 | CA40: 100 | CB40: 0 | CC40: 100 | CD40: 0 | CE40: 100 | CF40: 0 | CG40: 100 | CH40: 0 | CI40: 100 | CJ40: 0 | CK40: 100 | CL40: 0 | CM40: 100 | CN40: 0 | CO40: 100 | CP40: 0 | CQ40: 100 | CR40: 0 | CS40: 100 | CT40: 0 | CU40: 100 | CV40: 0 | CW40: 100 | CX40: 0 | CY40: 100 | CZ40: 0 | DA40: 100 | DB40: 0 | DC40: 100 | DD40: 0 | DE40: 100 | DF40: 0 | DG40: 100 | DH40: 0 | DI40: 100 | DJ40: 0 | DK40: 100 | DL40: 0 | DM40: 100 | DN40: 0 | DO40: 100 | DP40: 0 | DQ40: 100 | DR40: 0 | DS40: 100 | DT40: 0 | DU40: 100 | DV40: 0 | DW40: 100 | DX40: 0 | DY40: 100 | DZ40: 0 | EA40: 100 | EB40: =IF(EB39>$F4+1,0,1)*(IF(EC40=0,100,0)+IF($G4=1,1,0)*$J4*100+IF($G4=2,0.5,0)*$J4*100+IF($G4=4,0.25,0)*$J4*100) -> 0 | EC40: 100 | ED40: 0 | EE40: 100 | EF40: 0 | EG40: 100 | EH40: 0 | EI40: 100 | EJ40: 0 | EK40: 100 | EL40: 0 | EM40: 100 | EN40: 0 | EO40: 100 | EP40: 0 | EQ40: 100 | ER40: 0 | ES40: 100 | ET40: 0 | EU40: 100 | EV40: 0 | EW40: 100 | EX40: 0 | EY40: 100 | EZ40: 0 | FA40: 100 | FB40: 0 | FC40: 100 | FD40: 0 | FE40: 100 | FF40: 0 | FG40: 100 | FH40: 0 | FI40: 100 | FJ40: 0 | FK40: 100 | FL40: 0 | FM40: 100 | FN40: 0 | FO40: 100 | FP40: 0 | FQ40: 100 | FR40: 0 | FS40: 100 | FT40: 0 | FU40: 100 | FV40: 0 | FW40: 100 | FX40: 0 | FY40: 100 | FZ40: 0 | GA40: 100 | GB40: 0 | GC40: 100 | GD40: 0 | GE40: 100 | GF40: 0 | GG40: 100 | GH40: 0 | GI40: 100 | GJ40: 0 | GK40: 100 | GL40: 0 | GM40: 100 | GN40: =IF(GN39>$F4+1,0,1)*(IF(GO40=0,100,0)+IF($G4=1,1,0)*$J4*100+IF($G4=2,0.5,0)*$J4*100+IF($G4=4,0.25,0)*$J4*100) -> 0 | GO40: 100 | GP40: 0 | GQ40: 100 | GR40: 0 | GS40: 100
A41: Payment Dates | B41: =IF(E5=0,F5,E5) -> 00:00:00 | C41: =B41+IF($G5=1,365,0)+IF($G5=2,182.5,0)+IF($G5=4,91.25,0) -> 00:00:00 | D41: =C41+IF($G5=1,365,0)+IF($G5=2,182.5,0)+IF($G5=4,91.25,0) -> 00:00:00 | E41: 00:00:00 | F41: 00:00:00 | G41: 00:00:00 | H41: 00:00:00 | I41: 00:00:00 | J41: 00:00:00 | K41: 00:00:00 | L41: 00:00:00 | M41: 00:00:00 | N41: 00:00:00 | O41: 00:00:00 | P41: 00:00:00 | Q41: 00:00:00 | R41: 00:00:00 | S41: 00:00:00 | T41: 00:00:00 | U41: 00:00:00 | V41: 00:00:00 | W41: 00:00:00 | X41: 00:00:00 | Y41: 00:00:00 | Z41: 00:00:00 | AA41: 00:00:00 | AB41: 00:00:00 | AC41: 00:00:00 | AD41: 00:00:00 | AE41: 00:00:00 | AF41: 00:00:00 | AG41: 00:00:00 | AH41: 00:00:00 | AI41: 00:00:00 | AJ41: 00:00:00 | AK41: 00:00:00 | AL41: 00:00:00 | AM41: 00:00:00 | AN41: 00:00:00 | AO41: 00:00:00 | AP41: 00:00:00 | AQ41: 00:00:00 | AR41: 00:00:00 | AS41: 00:00:00 | AT41: 00:00:00 | AU41: 00:00:00 | AV41: 00:00:00 | AW41: 00:00:00 | AX41: 00:00:00 | AY41: 00:00:00 | AZ41: 00:00:00 | BA41: 00:00:00 | BB41: 00:00:00 | BC41: 00:00:00 | BD41: 00:00:00 | BE41: 00:00:00 | BF41: 00:00:00 | BG41: 00:00:00 | BH41: 00:00:00 | BI41: 00:00:00 | BJ41: 00:00:00 | BK41: 00:00:00 | BL41: 00:00:00 | BM41: 00:00:00 | BN41: 00:00:00 | BO41: 00:00:00 | BP41: =BO41+IF($G5=1,365,0)+IF($G5=2,182.5,0)+IF($G5=4,91.25,0) -> 00:00:00 | BQ41: 00:00:00 | BR41: 00:00:00 | BS41: 00:00:00 | BT41: 00:00:00 | BU41: 00:00:00 | BV41: 00:00:00 | BW41: 00:00:00 | BX41: 00:00:00 | BY41: 00:00:00 | BZ41: 00:00:00 | CA41: 00:00:00 | CB41: 00:00:00 | CC41: 00:00:00 | CD41: 00:00:00 | CE41: 00:00:00 | CF41: 00:00:00 | CG41: 00:00:00 | CH41: 00:00:00 | CI41: 00:00:00 | CJ41: 00:00:00 | CK41: 00:00:00 | CL41: 00:00:00 | CM41: 00:00:00 | CN41: 00:00:00 | CO41: 00:00:00 | CP41: 00:00:00 | CQ41: 00:00:00 | CR41: 00:00:00 | CS41: 00:00:00 | CT41: 00:00:00 | CU41: 00:00:00 | CV41: 00:00:00 | CW41: 00:00:00 | CX41: 00:00:00 | CY41: 00:00:00 | CZ41: 00:00:00 | DA41: 00:00:00 | DB41: 00:00:00 | DC41: 00:00:00 | DD41: 00:00:00 | DE41: 00:00:00 | DF41: 00:00:00 | DG41: 00:00:00 | DH41: 00:00:00 | DI41: 00:00:00 | DJ41: 00:00:00 | DK41: 00:00:00 | DL41: 00:00:00 | DM41: 00:00:00 | DN41: 00:00:00 | DO41: 00:00:00 | DP41: 00:00:00 | DQ41: 00:00:00 | DR41: 00:00:00 | DS41: 00:00:00 | DT41: 00:00:00 | DU41: 00:00:00 | DV41: 00:00:00 | DW41: 00:00:00 | DX41: 00:00:00 | DY41: 00:00:00 | DZ41: 00:00:00 | EA41: 00:00:00 | EB41: =EA41+IF($G5=1,365,0)+IF($G5=2,182.5,0)+IF($G5=4,91.25,0) -> 00:00:00 | EC41: 00:00:00 | ED41: 00:00:00 | EE41: 00:00:00 | EF41: 00:00:00 | EG41: 00:00:00 | EH41: 00:00:00 | EI41: 00:00:00 | EJ41: 00:00:00 | EK41: 00:00:00 | EL41: 00:00:00 | EM41: 00:00:00 | EN41: 00:00:00 | EO41: 00:00:00 | EP41: 00:00:00 | EQ41: 00:00:00 | ER41: 00:00:00 | ES41: 00:00:00 | ET41: 00:00:00 | EU41: 00:00:00 | EV41: 00:00:00 | EW41: 00:00:00 | EX41: 00:00:00 | EY41: 00:00:00 | EZ41: 00:00:00 | FA41: 00:00:00 | FB41: 00:00:00 | FC41: 00:00:00 | FD41: 00:00:00 | FE41: 00:00:00 | FF41: 00:00:00 | FG41: 00:00:00 | FH41: 00:00:00 | FI41: 00:00:00 | FJ41: 00:00:00 | FK41: 00:00:00 | FL41: 00:00:00 | FM41: 00:00:00 | FN41: 00:00:00 | FO41: 00:00:00 | FP41: 00:00:00 | FQ41: 00:00:00 | FR41: 00:00:00 | FS41: 00:00:00 | FT41: 00:00:00 | FU41: 00:00:00 | FV41: 00:00:00 | FW41: 00:00:00 | FX41: 00:00:00 | FY41: 00:00:00 | FZ41: 00:00:00 | GA41: 00:00:00 | GB41: 00:00:00 | GC41: 00:00:00 | GD41: 00:00:00 | GE41: 00:00:00 | GF41: 00:00:00 | GG41: 00:00:00 | GH41: 00:00:00 | GI41: 00:00:00 | GJ41: 00:00:00 | GK41: 00:00:00 | GL41: 00:00:00 | GM41: 00:00:00 | GN41: =GM41+IF($G5=1,365,0)+IF($G5=2,182.5,0)+IF($G5=4,91.25,0) -> 00:00:00 | GO41: 00:00:00 | GP41: 00:00:00 | GQ41: 00:00:00 | GR41: 00:00:00 | GS41: 00:00:00
A42: Bond 4 | B42: =(IF(B41=F5,100,0)+IF(G5=1,1,0)*J5*100+IF(G5=2,0.5,0)*J5*100+IF(G5=4,0.25,0)*J5*100)*IF(ISBLANK(F5)=TRUE,0,1) -> 0 | C42: =IF(C41>$F5+1,0,1)*(IF(D42=0,100,0)+IF($G5=1,1,0)*$J5*100+IF($G5=2,0.5,0)*$J5*100+IF($G5=4,0.25,0)*$J5*100) -> 100 | D42: =IF(D41>$F5+1,0,1)*(IF(E42=0,100,0)+IF($G5=1,1,0)*$J5*100+IF($G5=2,0.5,0)*$J5*100+IF($G5=4,0.25,0)*$J5*100) -> 0 | E42: 100 | F42: 0 | G42: 100 | H42: 0 | I42: 100 | J42: 0 | K42: 100 | L42: 0 | M42: 100 | N42: 0 | O42: 100 | P42: 0 | Q42: 100 | R42: 0 | S42: 100 | T42: 0 | U42: 100 | V42: 0 | W42: 100 | X42: 0 | Y42: 100 | Z42: 0 | AA42: 100 | AB42: 0 | AC42: 100 | AD42: 0 | AE42: 100 | AF42: 0 | AG42: 100 | AH42: 0 | AI42: 100 | AJ42: 0 | AK42: 100 | AL42: 0 | AM42: 100 | AN42: 0 | AO42: 100 | AP42: 0 | AQ42: 100 | AR42: 0 | AS42: 100 | AT42: 0 | AU42: 100 | AV42: 0 | AW42: 100 | AX42: 0 | AY42: 100 | AZ42: 0 | BA42: 100 | BB42: 0 | BC42: 100 | BD42: 0 | BE42: 100 | BF42: 0 | BG42: 100 | BH42: 0 | BI42: 100 | BJ42: 0 | BK42: 100 | BL42: 0 | BM42: 100 | BN42: 0 | BO42: 100 | BP42: =IF(BP41>$F5+1,0,1)*(IF(BQ42=0,100,0)+IF($G5=1,1,0)*$J5*100+IF($G5=2,0.5,0)*$J5*100+IF($G5=4,0.25,0)*$J5*100) -> 0 | BQ42: 100 | BR42: 0 | BS42: 100 | BT42: 0 | BU42: 100 | BV42: 0 | BW42: 100 | BX42: 0 | BY42: 100 | BZ42: 0 | CA42: 100 | CB42: 0 | CC42: 100 | CD42: 0 | CE42: 100 | CF42: 0 | CG42: 100 | CH42: 0 | CI42: 100 | CJ42: 0 | CK42: 100 | CL42: 0 | CM42: 100 | CN42: 0 | CO42: 100 | CP42: 0 | CQ42: 100 | CR42: 0 | CS42: 100 | CT42: 0 | CU42: 100 | CV42: 0 | CW42: 100 | CX42: 0 | CY42: 100 | CZ42: 0 | DA42: 100 | DB42: 0 | DC42: 100 | DD42: 0 | DE42: 100 | DF42: 0 | DG42: 100 | DH42: 0 | DI42: 100 | DJ42: 0 | DK42: 100 | DL42: 0 | DM42: 100 | DN42: 0 | DO42: 100 | DP42: 0 | DQ42: 100 | DR42: 0 | DS42: 100 | DT42: 0 | DU42: 100 | DV42: 0 | DW42: 100 | DX42: 0 | DY42: 100 | DZ42: 0 | EA42: 100 | EB42: =IF(EB41>$F5+1,0,1)*(IF(EC42=0,100,0)+IF($G5=1,1,0)*$J5*100+IF($G5=2,0.5,0)*$J5*100+IF($G5=4,0.25,0)*$J5*100) -> 0 | EC42: 100 | ED42: 0 | EE42: 100 | EF42: 0 | EG42: 100 | EH42: 0 | EI42: 100 | EJ42: 0 | EK42: 100 | EL42: 0 | EM42: 100 | EN42: 0 | EO42: 100 | EP42: 0 | EQ42: 100 | ER42: 0 | ES42: 100 | ET42: 0 | EU42: 100 | EV42: 0 | EW42: 100 | EX42: 0 | EY42: 100 | EZ42: 0 | FA42: 100 | FB42: 0 | FC42: 100 | FD42: 0 | FE42: 100 | FF42: 0 | FG42: 100 | FH42: 0 | FI42: 100 | FJ42: 0 | FK42: 100 | FL42: 0 | FM42: 100 | FN42: 0 | FO42: 100 | FP42: 0 | FQ42: 100 | FR42: 0 | FS42: 100 | FT42: 0 | FU42: 100 | FV42: 0 | FW42: 100 | FX42: 0 | FY42: 100 | FZ42: 0 | GA42: 100 | GB42: 0 | GC42: 100 | GD42: 0 | GE42: 100 | GF42: 0 | GG42: 100 | GH42: 0 | GI42: 100 | GJ42: 0 | GK42: 100 | GL42: 0 | GM42: 100 | GN42: =IF(GN41>$F5+1,0,1)*(IF(GO42=0,100,0)+IF($G5=1,1,0)*$J5*100+IF($G5=2,0.5,0)*$J5*100+IF($G5=4,0.25,0)*$J5*100) -> 0 | GO42: 100 | GP42: 0 | GQ42: 100 | GR42: 0 | GS42: 100
A43: Payment Dates | B43: =IF(E6=0,F6,E6) -> 00:00:00 | C43: =B43+IF($G6=1,365,0)+IF($G6=2,182.5,0)+IF($G6=4,91.25,0) -> 00:00:00 | D43: =C43+IF($G6=1,365,0)+IF($G6=2,182.5,0)+IF($G6=4,91.25,0) -> 00:00:00 | E43: 00:00:00 | F43: 00:00:00 | G43: 00:00:00 | H43: 00:00:00 | I43: 00:00:00 | J43: 00:00:00 | K43: 00:00:00 | L43: 00:00:00 | M43: 00:00:00 | N43: 00:00:00 | O43: 00:00:00 | P43: 00:00:00 | Q43: 00:00:00 | R43: 00:00:00 | S43: 00:00:00 | T43: 00:00:00 | U43: 00:00:00 | V43: 00:00:00 | W43: 00:00:00 | X43: 00:00:00 | Y43: 00:00:00 | Z43: 00:00:00 | AA43: 00:00:00 | AB43: 00:00:00 | AC43: 00:00:00 | AD43: 00:00:00 | AE43: 00:00:00 | AF43: 00:00:00 | AG43: 00:00:00 | AH43: 00:00:00 | AI43: 00:00:00 | AJ43: 00:00:00 | AK43: 00:00:00 | AL43: 00:00:00 | AM43: 00:00:00 | AN43: 00:00:00 | AO43: 00:00:00 | AP43: 00:00:00 | AQ43: 00:00:00 | AR43: 00:00:00 | AS43: 00:00:00 | AT43: 00:00:00 | AU43: 00:00:00 | AV43: 00:00:00 | AW43: 00:00:00 | AX43: 00:00:00 | AY43: 00:00:00 | AZ43: 00:00:00 | BA43: 00:00:00 | BB43: 00:00:00 | BC43: 00:00:00 | BD43: 00:00:00 | BE43: 00:00:00 | BF43: 00:00:00 | BG43: 00:00:00 | BH43: 00:00:00 | BI43: 00:00:00 | BJ43: 00:00:00 | BK43: 00:00:00 | BL43: 00:00:00 | BM43: 00:00:00 | BN43: 00:00:00 | BO43: 00:00:00 | BP43: =BO43+IF($G6=1,365,0)+IF($G6=2,182.5,0)+IF($G6=4,91.25,0) -> 00:00:00 | BQ43: 00:00:00 | BR43: 00:00:00 | BS43: 00:00:00 | BT43: 00:00:00 | BU43: 00:00:00 | BV43: 00:00:00 | BW43: 00:00:00 | BX43: 00:00:00 | BY43: 00:00:00 | BZ43: 00:00:00 | CA43: 00:00:00 | CB43: 00:00:00 | CC43: 00:00:00 | CD43: 00:00:00 | CE43: 00:00:00 | CF43: 00:00:00 | CG43: 00:00:00 | CH43: 00:00:00 | CI43: 00:00:00 | CJ43: 00:00:00 | CK43: 00:00:00 | CL43: 00:00:00 | CM43: 00:00:00 | CN43: 00:00:00 | CO43: 00:00:00 | CP43: 00:00:00 | CQ43: 00:00:00 | CR43: 00:00:00 | CS43: 00:00:00 | CT43: 00:00:00 | CU43: 00:00:00 | CV43: 00:00:00 | CW43: 00:00:00 | CX43: 00:00:00 | CY43: 00:00:00 | CZ43: 00:00:00 | DA43: 00:00:00 | DB43: 00:00:00 | DC43: 00:00:00 | DD43: 00:00:00 | DE43: 00:00:00 | DF43: 00:00:00 | DG43: 00:00:00 | DH43: 00:00:00 | DI43: 00:00:00 | DJ43: 00:00:00 | DK43: 00:00:00 | DL43: 00:00:00 | DM43: 00:00:00 | DN43: 00:00:00 | DO43: 00:00:00 | DP43: 00:00:00 | DQ43: 00:00:00 | DR43: 00:00:00 | DS43: 00:00:00 | DT43: 00:00:00 | DU43: 00:00:00 | DV43: 00:00:00 | DW43: 00:00:00 | DX43: 00:00:00 | DY43: 00:00:00 | DZ43: 00:00:00 | EA43: 00:00:00 | EB43: =EA43+IF($G6=1,365,0)+IF($G6=2,182.5,0)+IF($G6=4,91.25,0) -> 00:00:00 | EC43: 00:00:00 | ED43: 00:00:00 | EE43: 00:00:00 | EF43: 00:00:00 | EG43: 00:00:00 | EH43: 00:00:00 | EI43: 00:00:00 | EJ43: 00:00:00 | EK43: 00:00:00 | EL43: 00:00:00 | EM43: 00:00:00 | EN43: 00:00:00 | EO43: 00:00:00 | EP43: 00:00:00 | EQ43: 00:00:00 | ER43: 00:00:00 | ES43: 00:00:00 | ET43: 00:00:00 | EU43: 00:00:00 | EV43: 00:00:00 | EW43: 00:00:00 | EX43: 00:00:00 | EY43: 00:00:00 | EZ43: 00:00:00 | FA43: 00:00:00 | FB43: 00:00:00 | FC43: 00:00:00 | FD43: 00:00:00 | FE43: 00:00:00 | FF43: 00:00:00 | FG43: 00:00:00 | FH43: 00:00:00 | FI43: 00:00:00 | FJ43: 00:00:00 | FK43: 00:00:00 | FL43: 00:00:00 | FM43: 00:00:00 | FN43: 00:00:00 | FO43: 00:00:00 | FP43: 00:00:00 | FQ43: 00:00:00 | FR43: 00:00:00 | FS43: 00:00:00 | FT43: 00:00:00 | FU43: 00:00:00 | FV43: 00:00:00 | FW43: 00:00:00 | FX43: 00:00:00 | FY43: 00:00:00 | FZ43: 00:00:00 | GA43: 00:00:00 | GB43: 00:00:00 | GC43: 00:00:00 | GD43: 00:00:00 | GE43: 00:00:00 | GF43: 00:00:00 | GG43: 00:00:00 | GH43: 00:00:00 | GI43: 00:00:00 | GJ43: 00:00:00 | GK43: 00:00:00 | GL43: 00:00:00 | GM43: 00:00:00 | GN43: =GM43+IF($G6=1,365,0)+IF($G6=2,182.5,0)+IF($G6=4,91.25,0) -> 00:00:00 | GO43: 00:00:00 | GP43: 00:00:00 | GQ43: 00:00:00 | GR43: 00:00:00 | GS43: 00:00:00
A44: Bond 5 | B44: =(IF(B43=F6,100,0)+IF(G6=1,1,0)*J6*100+IF(G6=2,0.5,0)*J6*100+IF(G6=4,0.25,0)*J6*100)*IF(ISBLANK(F6)=TRUE,0,1) -> 0 | C44: =IF(C43>$F6+1,0,1)*(IF(D44=0,100,0)+IF($G6=1,1,0)*$J6*100+IF($G6=2,0.5,0)*$J6*100+IF($G6=4,0.25,0)*$J6*100) -> 100 | D44: =IF(D43>$F6+1,0,1)*(IF(E44=0,100,0)+IF($G6=1,1,0)*$J6*100+IF($G6=2,0.5,0)*$J6*100+IF($G6=4,0.25,0)*$J6*100) -> 0 | E44: 100 | F44: 0 | G44: 100 | H44: 0 | I44: 100 | J44: 0 | K44: 100 | L44: 0 | M44: 100 | N44: 0 | O44: 100 | P44: 0 | Q44: 100 | R44: 0 | S44: 100 | T44: 0 | U44: 100 | V44: 0 | W44: 100 | X44: 0 | Y44: 100 | Z44: 0 | AA44: 100 | AB44: 0 | AC44: 100 | AD44: 0 | AE44: 100 | AF44: 0 | AG44: 100 | AH44: 0 | AI44: 100 | AJ44: 0 | AK44: 100 | AL44: 0 | AM44: 100 | AN44: 0 | AO44: 100 | AP44: 0 | AQ44: 100 | AR44: 0 | AS44: 100 | AT44: 0 | AU44: 100 | AV44: 0 | AW44: 100 | AX44: 0 | AY44: 100 | AZ44: 0 | BA44: 100 | BB44: 0 | BC44: 100 | BD44: 0 | BE44: 100 | BF44: 0 | BG44: 100 | BH44: 0 | BI44: 100 | BJ44: 0 | BK44: 100 | BL44: 0 | BM44: 100 | BN44: 0 | BO44: 100 | BP44: =IF(BP43>$F6+1,0,1)*(IF(BQ44=0,100,0)+IF($G6=1,1,0)*$J6*100+IF($G6=2,0.5,0)*$J6*100+IF($G6=4,0.25,0)*$J6*100) -> 0 | BQ44: 100 | BR44: 0 | BS44: 100 | BT44: 0 | BU44: 100 | BV44: 0 | BW44: 100 | BX44: 0 | BY44: 100 | BZ44: 0 | CA44: 100 | CB44: 0 | CC44: 100 | CD44: 0 | CE44: 100 | CF44: 0 | CG44: 100 | CH44: 0 | CI44: 100 | CJ44: 0 | CK44: 100 | CL44: 0 | CM44: 100 | CN44: 0 | CO44: 100 | CP44: 0 | CQ44: 100 | CR44: 0 | CS44: 100 | CT44: 0 | CU44: 100 | CV44: 0 | CW44: 100 | CX44: 0 | CY44: 100 | CZ44: 0 | DA44: 100 | DB44: 0 | DC44: 100 | DD44: 0 | DE44: 100 | DF44: 0 | DG44: 100 | DH44: 0 | DI44: 100 | DJ44: 0 | DK44: 100 | DL44: 0 | DM44: 100 | DN44: 0 | DO44: 100 | DP44: 0 | DQ44: 100 | DR44: 0 | DS44: 100 | DT44: 0 | DU44: 100 | DV44: 0 | DW44: 100 | DX44: 0 | DY44: 100 | DZ44: 0 | EA44: 100 | EB44: =IF(EB43>$F6+1,0,1)*(IF(EC44=0,100,0)+IF($G6=1,1,0)*$J6*100+IF($G6=2,0.5,0)*$J6*100+IF($G6=4,0.25,0)*$J6*100) -> 0 | EC44: 100 | ED44: 0 | EE44: 100 | EF44: 0 | EG44: 100 | EH44: 0 | EI44: 100 | EJ44: 0 | EK44: 100 | EL44: 0 | EM44: 100 | EN44: 0 | EO44: 100 | EP44: 0 | EQ44: 100 | ER44: 0 | ES44: 100 | ET44: 0 | EU44: 100 | EV44: 0 | EW44: 100 | EX44: 0 | EY44: 100 | EZ44: 0 | FA44: 100 | FB44: 0 | FC44: 100 | FD44: 0 | FE44: 100 | FF44: 0 | FG44: 100 | FH44: 0 | FI44: 100 | FJ44: 0 | FK44: 100 | FL44: 0 | FM44: 100 | FN44: 0 | FO44: 100 | FP44: 0 | FQ44: 100 | FR44: 0 | FS44: 100 | FT44: 0 | FU44: 100 | FV44: 0 | FW44: 100 | FX44: 0 | FY44: 100 | FZ44: 0 | GA44: 100 | GB44: 0 | GC44: 100 | GD44: 0 | GE44: 100 | GF44: 0 | GG44: 100 | GH44: 0 | GI44: 100 | GJ44: 0 | GK44: 100 | GL44: 0 | GM44: 100 | GN44: =IF(GN43>$F6+1,0,1)*(IF(GO44=0,100,0)+IF($G6=1,1,0)*$J6*100+IF($G6=2,0.5,0)*$J6*100+IF($G6=4,0.25,0)*$J6*100) -> 0 | GO44: 100 | GP44: 0 | GQ44: 100 | GR44: 0 | GS44: 100
A45: Payment Dates | B45: =IF(E7=0,F7,E7) -> 00:00:00 | C45: =B45+IF($G7=1,365,0)+IF($G7=2,182.5,0)+IF($G7=4,91.25,0) -> 00:00:00 | D45: =C45+IF($G7=1,365,0)+IF($G7=2,182.5,0)+IF($G7=4,91.25,0) -> 00:00:00 | E45: 00:00:00 | F45: 00:00:00 | G45: 00:00:00 | H45: 00:00:00 | I45: 00:00:00 | J45: 00:00:00 | K45: 00:00:00 | L45: 00:00:00 | M45: 00:00:00 | N45: 00:00:00 | O45: 00:00:00 | P45: 00:00:00 | Q45: 00:00:00 | R45: 00:00:00 | S45: 00:00:00 | T45: 00:00:00 | U45: 00:00:00 | V45: 00:00:00 | W45: 00:00:00 | X45: 00:00:00 | Y45: 00:00:00 | Z45: 00:00:00 | AA45: 00:00:00 | AB45: 00:00:00 | AC45: 00:00:00 | AD45: 00:00:00 | AE45: 00:00:00 | AF45: 00:00:00 | AG45: 00:00:00 | AH45: 00:00:00 | AI45: 00:00:00 | AJ45: 00:00:00 | AK45: 00:00:00 | AL45: 00:00:00 | AM45: 00:00:00 | AN45: 00:00:00 | AO45: 00:00:00 | AP45: 00:00:00 | AQ45: 00:00:00 | AR45: 00:00:00 | AS45: 00:00:00 | AT45: 00:00:00 | AU45: 00:00:00 | AV45: 00:00:00 | AW45: 00:00:00 | AX45: 00:00:00 | AY45: 00:00:00 | AZ45: 00:00:00 | BA45: 00:00:00 | BB45: 00:00:00 | BC45: 00:00:00 | BD45: 00:00:00 | BE45: 00:00:00 | BF45: 00:00:00 | BG45: 00:00:00 | BH45: 00:00:00 | BI45: 00:00:00 | BJ45: 00:00:00 | BK45: 00:00:00 | BL45: 00:00:00 | BM45: 00:00:00 | BN45: 00:00:00 | BO45: 00:00:00 | BP45: =BO45+IF($G7=1,365,0)+IF($G7=2,182.5,0)+IF($G7=4,91.25,0) -> 00:00:00 | BQ45: 00:00:00 | BR45: 00:00:00 | BS45: 00:00:00 | BT45: 00:00:00 | BU45: 00:00:00 | BV45: 00:00:00 | BW45: 00:00:00 | BX45: 00:00:00 | BY45: 00:00:00 | BZ45: 00:00:00 | CA45: 00:00:00 | CB45: 00:00:00 | CC45: 00:00:00 | CD45: 00:00:00 | CE45: 00:00:00 | CF45: 00:00:00 | CG45: 00:00:00 | CH45: 00:00:00 | CI45: 00:00:00 | CJ45: 00:00:00 | CK45: 00:00:00 | CL45: 00:00:00 | CM45: 00:00:00 | CN45: 00:00:00 | CO45: 00:00:00 | CP45: 00:00:00 | CQ45: 00:00:00 | CR45: 00:00:00 | CS45: 00:00:00 | CT45: 00:00:00 | CU45: 00:00:00 | CV45: 00:00:00 | CW45: 00:00:00 | CX45: 00:00:00 | CY45: 00:00:00 | CZ45: 00:00:00 | DA45: 00:00:00 | DB45: 00:00:00 | DC45: 00:00:00 | DD45: 00:00:00 | DE45: 00:00:00 | DF45: 00:00:00 | DG45: 00:00:00 | DH45: 00:00:00 | DI45: 00:00:00 | DJ45: 00:00:00 | DK45: 00:00:00 | DL45: 00:00:00 | DM45: 00:00:00 | DN45: 00:00:00 | DO45: 00:00:00 | DP45: 00:00:00 | DQ45: 00:00:00 | DR45: 00:00:00 | DS45: 00:00:00 | DT45: 00:00:00 | DU45: 00:00:00 | DV45: 00:00:00 | DW45: 00:00:00 | DX45: 00:00:00 | DY45: 00:00:00 | DZ45: 00:00:00 | EA45: 00:00:00 | EB45: =EA45+IF($G7=1,365,0)+IF($G7=2,182.5,0)+IF($G7=4,91.25,0) -> 00:00:00 | EC45: 00:00:00 | ED45: 00:00:00 | EE45: 00:00:00 | EF45: 00:00:00 | EG45: 00:00:00 | EH45: 00:00:00 | EI45: 00:00:00 | EJ45: 00:00:00 | EK45: 00:00:00 | EL45: 00:00:00 | EM45: 00:00:00 | EN45: 00:00:00 | EO45: 00:00:00 | EP45: 00:00:00 | EQ45: 00:00:00 | ER45: 00:00:00 | ES45: 00:00:00 | ET45: 00:00:00 | EU45: 00:00:00 | EV45: 00:00:00 | EW45: 00:00:00 | EX45: 00:00:00 | EY45: 00:00:00 | EZ45: 00:00:00 | FA45: 00:00:00 | FB45: 00:00:00 | FC45: 00:00:00 | FD45: 00:00:00 | FE45: 00:00:00 | FF45: 00:00:00 | FG45: 00:00:00 | FH45: 00:00:00 | FI45: 00:00:00 | FJ45: 00:00:00 | FK45: 00:00:00 | FL45: 00:00:00 | FM45: 00:00:00 | FN45: 00:00:00 | FO45: 00:00:00 | FP45: 00:00:00 | FQ45: 00:00:00 | FR45: 00:00:00 | FS45: 00:00:00 | FT45: 00:00:00 | FU45: 00:00:00 | FV45: 00:00:00 | FW45: 00:00:00 | FX45: 00:00:00 | FY45: 00:00:00 | FZ45: 00:00:00 | GA45: 00:00:00 | GB45: 00:00:00 | GC45: 00:00:00 | GD45: 00:00:00 | GE45: 00:00:00 | GF45: 00:00:00 | GG45: 00:00:00 | GH45: 00:00:00 | GI45: 00:00:00 | GJ45: 00:00:00 | GK45: 00:00:00 | GL45: 00:00:00 | GM45: 00:00:00 | GN45: =GM45+IF($G7=1,365,0)+IF($G7=2,182.5,0)+IF($G7=4,91.25,0) -> 00:00:00 | GO45: 00:00:00 | GP45: 00:00:00 | GQ45: 00:00:00 | GR45: 00:00:00 | GS45: 00:00:00
A46: Bond 6 | B46: =(IF(B45=F7,100,0)+IF(G7=1,1,0)*J7*100+IF(G7=2,0.5,0)*J7*100+IF(G7=4,0.25,0)*J7*100)*IF(ISBLANK(F7)=TRUE,0,1) -> 0 | C46: =IF(C45>$F7+1,0,1)*(IF(D46=0,100,0)+IF($G7=1,1,0)*$J7*100+IF($G7=2,0.5,0)*$J7*100+IF($G7=4,0.25,0)*$J7*100) -> 100 | D46: =IF(D45>$F7+1,0,1)*(IF(E46=0,100,0)+IF($G7=1,1,0)*$J7*100+IF($G7=2,0.5,0)*$J7*100+IF($G7=4,0.25,0)*$J7*100) -> 0 | E46: 100 | F46: 0 | G46: 100 | H46: 0 | I46: 100 | J46: 0 | K46: 100 | L46: 0 | M46: 100 | N46: 0 | O46: 100 | P46: 0 | Q46: 100 | R46: 0 | S46: 100 | T46: 0 | U46: 100 | V46: 0 | W46: 100 | X46: 0 | Y46: 100 | Z46: 0 | AA46: 100 | AB46: 0 | AC46: 100 | AD46: 0 | AE46: 100 | AF46: 0 | AG46: 100 | AH46: 0 | AI46: 100 | AJ46: 0 | AK46: 100 | AL46: 0 | AM46: 100 | AN46: 0 | AO46: 100 | AP46: 0 | AQ46: 100 | AR46: 0 | AS46: 100 | AT46: 0 | AU46: 100 | AV46: 0 | AW46: 100 | AX46: 0 | AY46: 100 | AZ46: 0 | BA46: 100 | BB46: 0 | BC46: 100 | BD46: 0 | BE46: 100 | BF46: 0 | BG46: 100 | BH46: 0 | BI46: 100 | BJ46: 0 | BK46: 100 | BL46: 0 | BM46: 100 | BN46: 0 | BO46: 100 | BP46: =IF(BP45>$F7+1,0,1)*(IF(BQ46=0,100,0)+IF($G7=1,1,0)*$J7*100+IF($G7=2,0.5,0)*$J7*100+IF($G7=4,0.25,0)*$J7*100) -> 0 | BQ46: 100 | BR46: 0 | BS46: 100 | BT46: 0 | BU46: 100 | BV46: 0 | BW46: 100 | BX46: 0 | BY46: 100 | BZ46: 0 | CA46: 100 | CB46: 0 | CC46: 100 | CD46: 0 | CE46: 100 | CF46: 0 | CG46: 100 | CH46: 0 | CI46: 100 | CJ46: 0 | CK46: 100 | CL46: 0 | CM46: 100 | CN46: 0 | CO46: 100 | CP46: 0 | CQ46: 100 | CR46: 0 | CS46: 100 | CT46: 0 | CU46: 100 | CV46: 0 | CW46: 100 | CX46: 0 | CY46: 100 | CZ46: 0 | DA46: 100 | DB46: 0 | DC46: 100 | DD46: 0 | DE46: 100 | DF46: 0 | DG46: 100 | DH46: 0 | DI46: 100 | DJ46: 0 | DK46: 100 | DL46: 0 | DM46: 100 | DN46: 0 | DO46: 100 | DP46: 0 | DQ46: 100 | DR46: 0 | DS46: 100 | DT46: 0 | DU46: 100 | DV46: 0 | DW46: 100 | DX46: 0 | DY46: 100 | DZ46: 0 | EA46: 100 | EB46: =IF(EB45>$F7+1,0,1)*(IF(EC46=0,100,0)+IF($G7=1,1,0)*$J7*100+IF($G7=2,0.5,0)*$J7*100+IF($G7=4,0.25,0)*$J7*100) -> 0 | EC46: 100 | ED46: 0 | EE46: 100 | EF46: 0 | EG46: 100 | EH46: 0 | EI46: 100 | EJ46: 0 | EK46: 100 | EL46: 0 | EM46: 100 | EN46: 0 | EO46: 100 | EP46: 0 | EQ46: 100 | ER46: 0 | ES46: 100 | ET46: 0 | EU46: 100 | EV46: 0 | EW46: 100 | EX46: 0 | EY46: 100 | EZ46: 0 | FA46: 100 | FB46: 0 | FC46: 100 | FD46: 0 | FE46: 100 | FF46: 0 | FG46: 100 | FH46: 0 | FI46: 100 | FJ46: 0 | FK46: 100 | FL46: 0 | FM46: 100 | FN46: 0 | FO46: 100 | FP46: 0 | FQ46: 100 | FR46: 0 | FS46: 100 | FT46: 0 | FU46: 100 | FV46: 0 | FW46: 100 | FX46: 0 | FY46: 100 | FZ46: 0 | GA46: 100 | GB46: 0 | GC46: 100 | GD46: 0 | GE46: 100 | GF46: 0 | GG46: 100 | GH46: 0 | GI46: 100 | GJ46: 0 | GK46: 100 | GL46: 0 | GM46: 100 | GN46: =IF(GN45>$F7+1,0,1)*(IF(GO46=0,100,0)+IF($G7=1,1,0)*$J7*100+IF($G7=2,0.5,0)*$J7*100+IF($G7=4,0.25,0)*$J7*100) -> 0 | GO46: 100 | GP46: 0 | GQ46: 100 | GR46: 0 | GS46: 100
A47: Payment Dates | B47: =IF(E8=0,F8,E8) -> 00:00:00 | C47: =B47+IF($G8=1,365,0)+IF($G8=2,182.5,0)+IF($G8=4,91.25,0) -> 00:00:00 | D47: =C47+IF($G8=1,365,0)+IF($G8=2,182.5,0)+IF($G8=4,91.25,0) -> 00:00:00 | E47: 00:00:00 | F47: 00:00:00 | G47: 00:00:00 | H47: 00:00:00 | I47: 00:00:00 | J47: 00:00:00 | K47: 00:00:00 | L47: 00:00:00 | M47: 00:00:00 | N47: 00:00:00 | O47: 00:00:00 | P47: 00:00:00 | Q47: 00:00:00 | R47: 00:00:00 | S47: 00:00:00 | T47: 00:00:00 | U47: 00:00:00 | V47: 00:00:00 | W47: 00:00:00 | X47: 00:00:00 | Y47: 00:00:00 | Z47: 00:00:00 | AA47: 00:00:00 | AB47: 00:00:00 | AC47: 00:00:00 | AD47: 00:00:00 | AE47: 00:00:00 | AF47: 00:00:00 | AG47: 00:00:00 | AH47: 00:00:00 | AI47: 00:00:00 | AJ47: 00:00:00 | AK47: 00:00:00 | AL47: 00:00:00 | AM47: 00:00:00 | AN47: 00:00:00 | AO47: 00:00:00 | AP47: 00:00:00 | AQ47: 00:00:00 | AR47: 00:00:00 | AS47: 00:00:00 | AT47: 00:00:00 | AU47: 00:00:00 | AV47: 00:00:00 | AW47: 00:00:00 | AX47: 00:00:00 | AY47: 00:00:00 | AZ47: 00:00:00 | BA47: 00:00:00 | BB47: 00:00:00 | BC47: 00:00:00 | BD47: 00:00:00 | BE47: 00:00:00 | BF47: 00:00:00 | BG47: 00:00:00 | BH47: 00:00:00 | BI47: 00:00:00 | BJ47: 00:00:00 | BK47: 00:00:00 | BL47: 00:00:00 | BM47: 00:00:00 | BN47: 00:00:00 | BO47: 00:00:00 | BP47: =BO47+IF($G8=1,365,0)+IF($G8=2,182.5,0)+IF($G8=4,91.25,0) -> 00:00:00 | BQ47: 00:00:00 | BR47: 00:00:00 | BS47: 00:00:00 | BT47: 00:00:00 | BU47: 00:00:00 | BV47: 00:00:00 | BW47: 00:00:00 | BX47: 00:00:00 | BY47: 00:00:00 | BZ47: 00:00:00 | CA47: 00:00:00 | CB47: 00:00:00 | CC47: 00:00:00 | CD47: 00:00:00 | CE47: 00:00:00 | CF47: 00:00:00 | CG47: 00:00:00 | CH47: 00:00:00 | CI47: 00:00:00 | CJ47: 00:00:00 | CK47: 00:00:00 | CL47: 00:00:00 | CM47: 00:00:00 | CN47: 00:00:00 | CO47: 00:00:00 | CP47: 00:00:00 | CQ47: 00:00:00 | CR47: 00:00:00 | CS47: 00:00:00 | CT47: 00:00:00 | CU47: 00:00:00 | CV47: 00:00:00 | CW47: 00:00:00 | CX47: 00:00:00 | CY47: 00:00:00 | CZ47: 00:00:00 | DA47: 00:00:00 | DB47: 00:00:00 | DC47: 00:00:00 | DD47: 00:00:00 | DE47: 00:00:00 | DF47: 00:00:00 | DG47: 00:00:00 | DH47: 00:00:00 | DI47: 00:00:00 | DJ47: 00:00:00 | DK47: 00:00:00 | DL47: 00:00:00 | DM47: 00:00:00 | DN47: 00:00:00 | DO47: 00:00:00 | DP47: 00:00:00 | DQ47: 00:00:00 | DR47: 00:00:00 | DS47: 00:00:00 | DT47: 00:00:00 | DU47: 00:00:00 | DV47: 00:00:00 | DW47: 00:00:00 | DX47: 00:00:00 | DY47: 00:00:00 | DZ47: 00:00:00 | EA47: 00:00:00 | EB47: =EA47+IF($G8=1,365,0)+IF($G8=2,182.5,0)+IF($G8=4,91.25,0) -> 00:00:00 | EC47: 00:00:00 | ED47: 00:00:00 | EE47: 00:00:00 | EF47: 00:00:00 | EG47: 00:00:00 | EH47: 00:00:00 | EI47: 00:00:00 | EJ47: 00:00:00 | EK47: 00:00:00 | EL47: 00:00:00 | EM47: 00:00:00 | EN47: 00:00:00 | EO47: 00:00:00 | EP47: 00:00:00 | EQ47: 00:00:00 | ER47: 00:00:00 | ES47: 00:00:00 | ET47: 00:00:00 | EU47: 00:00:00 | EV47: 00:00:00 | EW47: 00:00:00 | EX47: 00:00:00 | EY47: 00:00:00 | EZ47: 00:00:00 | FA47: 00:00:00 | FB47: 00:00:00 | FC47: 00:00:00 | FD47: 00:00:00 | FE47: 00:00:00 | FF47: 00:00:00 | FG47: 00:00:00 | FH47: 00:00:00 | FI47: 00:00:00 | FJ47: 00:00:00 | FK47: 00:00:00 | FL47: 00:00:00 | FM47: 00:00:00 | FN47: 00:00:00 | FO47: 00:00:00 | FP47: 00:00:00 | FQ47: 00:00:00 | FR47: 00:00:00 | FS47: 00:00:00 | FT47: 00:00:00 | FU47: 00:00:00 | FV47: 00:00:00 | FW47: 00:00:00 | FX47: 00:00:00 | FY47: 00:00:00 | FZ47: 00:00:00 | GA47: 00:00:00 | GB47: 00:00:00 | GC47: 00:00:00 | GD47: 00:00:00 | GE47: 00:00:00 | GF47: 00:00:00 | GG47: 00:00:00 | GH47: 00:00:00 | GI47: 00:00:00 | GJ47: 00:00:00 | GK47: 00:00:00 | GL47: 00:00:00 | GM47: 00:00:00 | GN47: =GM47+IF($G8=1,365,0)+IF($G8=2,182.5,0)+IF($G8=4,91.25,0) -> 00:00:00 | GO47: 00:00:00 | GP47: 00:00:00 | GQ47: 00:00:00 | GR47: 00:00:00 | GS47: 00:00:00
A48: Bond 7 | B48: =(IF(B47=F8,100,0)+IF(G8=1,1,0)*J8*100+IF(G8=2,0.5,0)*J8*100+IF(G8=4,0.25,0)*J8*100)*IF(ISBLANK(F8)=TRUE,0,1) -> 0 | C48: =IF(C47>$F8+1,0,1)*(IF(D48=0,100,0)+IF($G8=1,1,0)*$J8*100+IF($G8=2,0.5,0)*$J8*100+IF($G8=4,0.25,0)*$J8*100) -> 100 | D48: =IF(D47>$F8+1,0,1)*(IF(E48=0,100,0)+IF($G8=1,1,0)*$J8*100+IF($G8=2,0.5,0)*$J8*100+IF($G8=4,0.25,0)*$J8*100) -> 0 | E48: 100 | F48: 0 | G48: 100 | H48: 0 | I48: 100 | J48: 0 | K48: 100 | L48: 0 | M48: 100 | N48: 0 | O48: 100 | P48: 0 | Q48: 100 | R48: 0 | S48: 100 | T48: 0 | U48: 100 | V48: 0 | W48: 100 | X48: 0 | Y48: 100 | Z48: 0 | AA48: 100 | AB48: 0 | AC48: 100 | AD48: 0 | AE48: 100 | AF48: 0 | AG48: 100 | AH48: 0 | AI48: 100 | AJ48: 0 | AK48: 100 | AL48: 0 | AM48: 100 | AN48: 0 | AO48: 100 | AP48: 0 | AQ48: 100 | AR48: 0 | AS48: 100 | AT48: 0 | AU48: 100 | AV48: 0 | AW48: 100 | AX48: 0 | AY48: 100 | AZ48: 0 | BA48: 100 | BB48: 0 | BC48: 100 | BD48: 0 | BE48: 100 | BF48: 0 | BG48: 100 | BH48: 0 | BI48: 100 | BJ48: 0 | BK48: 100 | BL48: 0 | BM48: 100 | BN48: 0 | BO48: 100 | BP48: =IF(BP47>$F8+1,0,1)*(IF(BQ48=0,100,0)+IF($G8=1,1,0)*$J8*100+IF($G8=2,0.5,0)*$J8*100+IF($G8=4,0.25,0)*$J8*100) -> 0 | BQ48: 100 | BR48: 0 | BS48: 100 | BT48: 0 | BU48: 100 | BV48: 0 | BW48: 100 | BX48: 0 | BY48: 100 | BZ48: 0 | CA48: 100 | CB48: 0 | CC48: 100 | CD48: 0 | CE48: 100 | CF48: 0 | CG48: 100 | CH48: 0 | CI48: 100 | CJ48: 0 | CK48: 100 | CL48: 0 | CM48: 100 | CN48: 0 | CO48: 100 | CP48: 0 | CQ48: 100 | CR48: 0 | CS48: 100 | CT48: 0 | CU48: 100 | CV48: 0 | CW48: 100 | CX48: 0 | CY48: 100 | CZ48: 0 | DA48: 100 | DB48: 0 | DC48: 100 | DD48: 0 | DE48: 100 | DF48: 0 | DG48: 100 | DH48: 0 | DI48: 100 | DJ48: 0 | DK48: 100 | DL48: 0 | DM48: 100 | DN48: 0 | DO48: 100 | DP48: 0 | DQ48: 100 | DR48: 0 | DS48: 100 | DT48: 0 | DU48: 100 | DV48: 0 | DW48: 100 | DX48: 0 | DY48: 100 | DZ48: 0 | EA48: 100 | EB48: =IF(EB47>$F8+1,0,1)*(IF(EC48=0,100,0)+IF($G8=1,1,0)*$J8*100+IF($G8=2,0.5,0)*$J8*100+IF($G8=4,0.25,0)*$J8*100) -> 0 | EC48: 100 | ED48: 0 | EE48: 100 | EF48: 0 | EG48: 100 | EH48: 0 | EI48: 100 | EJ48: 0 | EK48: 100 | EL48: 0 | EM48: 100 | EN48: 0 | EO48: 100 | EP48: 0 | EQ48: 100 | ER48: 0 | ES48: 100 | ET48: 0 | EU48: 100 | EV48: 0 | EW48: 100 | EX48: 0 | EY48: 100 | EZ48: 0 | FA48: 100 | FB48: 0 | FC48: 100 | FD48: 0 | FE48: 100 | FF48: 0 | FG48: 100 | FH48: 0 | FI48: 100 | FJ48: 0 | FK48: 100 | FL48: 0 | FM48: 100 | FN48: 0 | FO48: 100 | FP48: 0 | FQ48: 100 | FR48: 0 | FS48: 100 | FT48: 0 | FU48: 100 | FV48: 0 | FW48: 100 | FX48: 0 | FY48: 100 | FZ48: 0 | GA48: 100 | GB48: 0 | GC48: 100 | GD48: 0 | GE48: 100 | GF48: 0 | GG48: 100 | GH48: 0 | GI48: 100 | GJ48: 0 | GK48: 100 | GL48: 0 | GM48: 100 | GN48: =IF(GN47>$F8+1,0,1)*(IF(GO48=0,100,0)+IF($G8=1,1,0)*$J8*100+IF($G8=2,0.5,0)*$J8*100+IF($G8=4,0.25,0)*$J8*100) -> 0 | GO48: 100 | GP48: 0 | GQ48: 100 | GR48: 0 | GS48: 100
A49: Payment Dates | B49: =IF(E9=0,F9,E9) -> 00:00:00 | C49: =B49+IF($G9=1,365,0)+IF($G9=2,182.5,0)+IF($G9=4,91.25,0) -> 00:00:00 | D49: =C49+IF($G9=1,365,0)+IF($G9=2,182.5,0)+IF($G9=4,91.25,0) -> 00:00:00 | E49: 00:00:00 | F49: 00:00:00 | G49: 00:00:00 | H49: 00:00:00 | I49: 00:00:00 | J49: 00:00:00 | K49: 00:00:00 | L49: 00:00:00 | M49: 00:00:00 | N49: 00:00:00 | O49: 00:00:00 | P49: 00:00:00 | Q49: 00:00:00 | R49: 00:00:00 | S49: 00:00:00 | T49: 00:00:00 | U49: 00:00:00 | V49: 00:00:00 | W49: 00:00:00 | X49: 00:00:00 | Y49: 00:00:00 | Z49: 00:00:00 | AA49: 00:00:00 | AB49: 00:00:00 | AC49: 00:00:00 | AD49: 00:00:00 | AE49: 00:00:00 | AF49: 00:00:00 | AG49: 00:00:00 | AH49: 00:00:00 | AI49: 00:00:00 | AJ49: 00:00:00 | AK49: 00:00:00 | AL49: 00:00:00 | AM49: 00:00:00 | AN49: 00:00:00 | AO49: 00:00:00 | AP49: 00:00:00 | AQ49: 00:00:00 | AR49: 00:00:00 | AS49: 00:00:00 | AT49: 00:00:00 | AU49: 00:00:00 | AV49: 00:00:00 | AW49: 00:00:00 | AX49: 00:00:00 | AY49: 00:00:00 | AZ49: 00:00:00 | BA49: 00:00:00 | BB49: 00:00:00 | BC49: 00:00:00 | BD49: 00:00:00 | BE49: 00:00:00 | BF49: 00:00:00 | BG49: 00:00:00 | BH49: 00:00:00 | BI49: 00:00:00 | BJ49: 00:00:00 | BK49: 00:00:00 | BL49: 00:00:00 | BM49: 00:00:00 | BN49: 00:00:00 | BO49: 00:00:00 | BP49: =BO49+IF($G9=1,365,0)+IF($G9=2,182.5,0)+IF($G9=4,91.25,0) -> 00:00:00 | BQ49: 00:00:00 | BR49: 00:00:00 | BS49: 00:00:00 | BT49: 00:00:00 | BU49: 00:00:00 | BV49: 00:00:00 | BW49: 00:00:00 | BX49: 00:00:00 | BY49: 00:00:00 | BZ49: 00:00:00 | CA49: 00:00:00 | CB49: 00:00:00 | CC49: 00:00:00 | CD49: 00:00:00 | CE49: 00:00:00 | CF49: 00:00:00 | CG49: 00:00:00 | CH49: 00:00:00 | CI49: 00:00:00 | CJ49: 00:00:00 | CK49: 00:00:00 | CL49: 00:00:00 | CM49: 00:00:00 | CN49: 00:00:00 | CO49: 00:00:00 | CP49: 00:00:00 | CQ49: 00:00:00 | CR49: 00:00:00 | CS49: 00:00:00 | CT49: 00:00:00 | CU49: 00:00:00 | CV49: 00:00:00 | CW49: 00:00:00 | CX49: 00:00:00 | CY49: 00:00:00 | CZ49: 00:00:00 | DA49: 00:00:00 | DB49: 00:00:00 | DC49: 00:00:00 | DD49: 00:00:00 | DE49: 00:00:00 | DF49: 00:00:00 | DG49: 00:00:00 | DH49: 00:00:00 | DI49: 00:00:00 | DJ49: 00:00:00 | DK49: 00:00:00 | DL49: 00:00:00 | DM49: 00:00:00 | DN49: 00:00:00 | DO49: 00:00:00 | DP49: 00:00:00 | DQ49: 00:00:00 | DR49: 00:00:00 | DS49: 00:00:00 | DT49: 00:00:00 | DU49: 00:00:00 | DV49: 00:00:00 | DW49: 00:00:00 | DX49: 00:00:00 | DY49: 00:00:00 | DZ49: 00:00:00 | EA49: 00:00:00 | EB49: =EA49+IF($G9=1,365,0)+IF($G9=2,182.5,0)+IF($G9=4,91.25,0) -> 00:00:00 | EC49: 00:00:00 | ED49: 00:00:00 | EE49: 00:00:00 | EF49: 00:00:00 | EG49: 00:00:00 | EH49: 00:00:00 | EI49: 00:00:00 | EJ49: 00:00:00 | EK49: 00:00:00 | EL49: 00:00:00 | EM49: 00:00:00 | EN49: 00:00:00 | EO49: 00:00:00 | EP49: 00:00:00 | EQ49: 00:00:00 | ER49: 00:00:00 | ES49: 00:00:00 | ET49: 00:00:00 | EU49: 00:00:00 | EV49: 00:00:00 | EW49: 00:00:00 | EX49: 00:00:00 | EY49: 00:00:00 | EZ49: 00:00:00 | FA49: 00:00:00 | FB49: 00:00:00 | FC49: 00:00:00 | FD49: 00:00:00 | FE49: 00:00:00 | FF49: 00:00:00 | FG49: 00:00:00 | FH49: 00:00:00 | FI49: 00:00:00 | FJ49: 00:00:00 | FK49: 00:00:00 | FL49: 00:00:00 | FM49: 00:00:00 | FN49: 00:00:00 | FO49: 00:00:00 | FP49: 00:00:00 | FQ49: 00:00:00 | FR49: 00:00:00 | FS49: 00:00:00 | FT49: 00:00:00 | FU49: 00:00:00 | FV49: 00:00:00 | FW49: 00:00:00 | FX49: 00:00:00 | FY49: 00:00:00 | FZ49: 00:00:00 | GA49: 00:00:00 | GB49: 00:00:00 | GC49: 00:00:00 | GD49: 00:00:00 | GE49: 00:00:00 | GF49: 00:00:00 | GG49: 00:00:00 | GH49: 00:00:00 | GI49: 00:00:00 | GJ49: 00:00:00 | GK49: 00:00:00 | GL49: 00:00:00 | GM49: 00:00:00 | GN49: =GM49+IF($G9=1,365,0)+IF($G9=2,182.5,0)+IF($G9=4,91.25,0) -> 00:00:00 | GO49: 00:00:00 | GP49: 00:00:00 | GQ49: 00:00:00 | GR49: 00:00:00 | GS49: 00:00:00
A50: Bond 8 | B50: =(IF(B49=F9,100,0)+IF(G9=1,1,0)*J9*100+IF(G9=2,0.5,0)*J9*100+IF(G9=4,0.25,0)*J9*100)*IF(ISBLANK(F9)=TRUE,0,1) -> 0 | C50: =IF(C49>$F9+1,0,1)*(IF(D50=0,100,0)+IF($G9=1,1,0)*$J9*100+IF($G9=2,0.5,0)*$J9*100+IF($G9=4,0.25,0)*$J9*100) -> 100 | D50: =IF(D49>$F9+1,0,1)*(IF(E50=0,100,0)+IF($G9=1,1,0)*$J9*100+IF($G9=2,0.5,0)*$J9*100+IF($G9=4,0.25,0)*$J9*100) -> 0 | E50: 100 | F50: 0 | G50: 100 | H50: 0 | I50: 100 | J50: 0 | K50: 100 | L50: 0 | M50: 100 | N50: 0 | O50: 100 | P50: 0 | Q50: 100 | R50: 0 | S50: 100 | T50: 0 | U50: 100 | V50: 0 | W50: 100 | X50: 0 | Y50: 100 | Z50: 0 | AA50: 100 | AB50: 0 | AC50: 100 | AD50: 0 | AE50: 100 | AF50: 0 | AG50: 100 | AH50: 0 | AI50: 100 | AJ50: 0 | AK50: 100 | AL50: 0 | AM50: 100 | AN50: 0 | AO50: 100 | AP50: 0 | AQ50: 100 | AR50: 0 | AS50: 100 | AT50: 0 | AU50: 100 | AV50: 0 | AW50: 100 | AX50: 0 | AY50: 100 | AZ50: 0 | BA50: 100 | BB50: 0 | BC50: 100 | BD50: 0 | BE50: 100 | BF50: 0 | BG50: 100 | BH50: 0 | BI50: 100 | BJ50: 0 | BK50: 100 | BL50: 0 | BM50: 100 | BN50: 0 | BO50: 100 | BP50: =IF(BP49>$F9+1,0,1)*(IF(BQ50=0,100,0)+IF($G9=1,1,0)*$J9*100+IF($G9=2,0.5,0)*$J9*100+IF($G9=4,0.25,0)*$J9*100) -> 0 | BQ50: 100 | BR50: 0 | BS50: 100 | BT50: 0 | BU50: 100 | BV50: 0 | BW50: 100 | BX50: 0 | BY50: 100 | BZ50: 0 | CA50: 100 | CB50: 0 | CC50: 100 | CD50: 0 | CE50: 100 | CF50: 0 | CG50: 100 | CH50: 0 | CI50: 100 | CJ50: 0 | CK50: 100 | CL50: 0 | CM50: 100 | CN50: 0 | CO50: 100 | CP50: 0 | CQ50: 100 | CR50: 0 | CS50: 100 | CT50: 0 | CU50: 100 | CV50: 0 | CW50: 100 | CX50: 0 | CY50: 100 | CZ50: 0 | DA50: 100 | DB50: 0 | DC50: 100 | DD50: 0 | DE50: 100 | DF50: 0 | DG50: 100 | DH50: 0 | DI50: 100 | DJ50: 0 | DK50: 100 | DL50: 0 | DM50: 100 | DN50: 0 | DO50: 100 | DP50: 0 | DQ50: 100 | DR50: 0 | DS50: 100 | DT50: 0 | DU50: 100 | DV50: 0 | DW50: 100 | DX50: 0 | DY50: 100 | DZ50: 0 | EA50: 100 | EB50: =IF(EB49>$F9+1,0,1)*(IF(EC50=0,100,0)+IF($G9=1,1,0)*$J9*100+IF($G9=2,0.5,0)*$J9*100+IF($G9=4,0.25,0)*$J9*100) -> 0 | EC50: 100 | ED50: 0 | EE50: 100 | EF50: 0 | EG50: 100 | EH50: 0 | EI50: 100 | EJ50: 0 | EK50: 100 | EL50: 0 | EM50: 100 | EN50: 0 | EO50: 100 | EP50: 0 | EQ50: 100 | ER50: 0 | ES50: 100 | ET50: 0 | EU50: 100 | EV50: 0 | EW50: 100 | EX50: 0 | EY50: 100 | EZ50: 0 | FA50: 100 | FB50: 0 | FC50: 100 | FD50: 0 | FE50: 100 | FF50: 0 | FG50: 100 | FH50: 0 | FI50: 100 | FJ50: 0 | FK50: 100 | FL50: 0 | FM50: 100 | FN50: 0 | FO50: 100 | FP50: 0 | FQ50: 100 | FR50: 0 | FS50: 100 | FT50: 0 | FU50: 100 | FV50: 0 | FW50: 100 | FX50: 0 | FY50: 100 | FZ50: 0 | GA50: 100 | GB50: 0 | GC50: 100 | GD50: 0 | GE50: 100 | GF50: 0 | GG50: 100 | GH50: 0 | GI50: 100 | GJ50: 0 | GK50: 100 | GL50: 0 | GM50: 100 | GN50: =IF(GN49>$F9+1,0,1)*(IF(GO50=0,100,0)+IF($G9=1,1,0)*$J9*100+IF($G9=2,0.5,0)*$J9*100+IF($G9=4,0.25,0)*$J9*100) -> 0 | GO50: 100 | GP50: 0 | GQ50: 100 | GR50: 0 | GS50: 100
A51: Payment Dates | B51: =IF(E10=0,F10,E10) -> 00:00:00 | C51: =B51+IF($G10=1,365,0)+IF($G10=2,182.5,0)+IF($G10=4,91.25,0) -> 00:00:00 | D51: =C51+IF($G10=1,365,0)+IF($G10=2,182.5,0)+IF($G10=4,91.25,0) -> 00:00:00 | E51: 00:00:00 | F51: 00:00:00 | G51: 00:00:00 | H51: 00:00:00 | I51: 00:00:00 | J51: 00:00:00 | K51: 00:00:00 | L51: 00:00:00 | M51: 00:00:00 | N51: 00:00:00 | O51: 00:00:00 | P51: 00:00:00 | Q51: 00:00:00 | R51: 00:00:00 | S51: 00:00:00 | T51: 00:00:00 | U51: 00:00:00 | V51: 00:00:00 | W51: 00:00:00 | X51: 00:00:00 | Y51: 00:00:00 | Z51: 00:00:00 | AA51: 00:00:00 | AB51: 00:00:00 | AC51: 00:00:00 | AD51: 00:00:00 | AE51: 00:00:00 | AF51: 00:00:00 | AG51: 00:00:00 | AH51: 00:00:00 | AI51: 00:00:00 | AJ51: 00:00:00 | AK51: 00:00:00 | AL51: 00:00:00 | AM51: 00:00:00 | AN51: 00:00:00 | AO51: 00:00:00 | AP51: 00:00:00 | AQ51: 00:00:00 | AR51: 00:00:00 | AS51: 00:00:00 | AT51: 00:00:00 | AU51: 00:00:00 | AV51: 00:00:00 | AW51: 00:00:00 | AX51: 00:00:00 | AY51: 00:00:00 | AZ51: 00:00:00 | BA51: 00:00:00 | BB51: 00:00:00 | BC51: 00:00:00 | BD51: 00:00:00 | BE51: 00:00:00 | BF51: 00:00:00 | BG51: 00:00:00 | BH51: 00:00:00 | BI51: 00:00:00 | BJ51: 00:00:00 | BK51: 00:00:00 | BL51: 00:00:00 | BM51: 00:00:00 | BN51: 00:00:00 | BO51: 00:00:00 | BP51: =BO51+IF($G10=1,365,0)+IF($G10=2,182.5,0)+IF($G10=4,91.25,0) -> 00:00:00 | BQ51: 00:00:00 | BR51: 00:00:00 | BS51: 00:00:00 | BT51: 00:00:00 | BU51: 00:00:00 | BV51: 00:00:00 | BW51: 00:00:00 | BX51: 00:00:00 | BY51: 00:00:00 | BZ51: 00:00:00 | CA51: 00:00:00 | CB51: 00:00:00 | CC51: 00:00:00 | CD51: 00:00:00 | CE51: 00:00:00 | CF51: 00:00:00 | CG51: 00:00:00 | CH51: 00:00:00 | CI51: 00:00:00 | CJ51: 00:00:00 | CK51: 00:00:00 | CL51: 00:00:00 | CM51: 00:00:00 | CN51: 00:00:00 | CO51: 00:00:00 | CP51: 00:00:00 | CQ51: 00:00:00 | CR51: 00:00:00 | CS51: 00:00:00 | CT51: 00:00:00 | CU51: 00:00:00 | CV51: 00:00:00 | CW51: 00:00:00 | CX51: 00:00:00 | CY51: 00:00:00 | CZ51: 00:00:00 | DA51: 00:00:00 | DB51: 00:00:00 | DC51: 00:00:00 | DD51: 00:00:00 | DE51: 00:00:00 | DF51: 00:00:00 | DG51: 00:00:00 | DH51: 00:00:00 | DI51: 00:00:00 | DJ51: 00:00:00 | DK51: 00:00:00 | DL51: 00:00:00 | DM51: 00:00:00 | DN51: 00:00:00 | DO51: 00:00:00 | DP51: 00:00:00 | DQ51: 00:00:00 | DR51: 00:00:00 | DS51: 00:00:00 | DT51: 00:00:00 | DU51: 00:00:00 | DV51: 00:00:00 | DW51: 00:00:00 | DX51: 00:00:00 | DY51: 00:00:00 | DZ51: 00:00:00 | EA51: 00:00:00 | EB51: =EA51+IF($G10=1,365,0)+IF($G10=2,182.5,0)+IF($G10=4,91.25,0) -> 00:00:00 | EC51: 00:00:00 | ED51: 00:00:00 | EE51: 00:00:00 | EF51: 00:00:00 | EG51: 00:00:00 | EH51: 00:00:00 | EI51: 00:00:00 | EJ51: 00:00:00 | EK51: 00:00:00 | EL51: 00:00:00 | EM51: 00:00:00 | EN51: 00:00:00 | EO51: 00:00:00 | EP51: 00:00:00 | EQ51: 00:00:00 | ER51: 00:00:00 | ES51: 00:00:00 | ET51: 00:00:00 | EU51: 00:00:00 | EV51: 00:00:00 | EW51: 00:00:00 | EX51: 00:00:00 | EY51: 00:00:00 | EZ51: 00:00:00 | FA51: 00:00:00 | FB51: 00:00:00 | FC51: 00:00:00 | FD51: 00:00:00 | FE51: 00:00:00 | FF51: 00:00:00 | FG51: 00:00:00 | FH51: 00:00:00 | FI51: 00:00:00 | FJ51: 00:00:00 | FK51: 00:00:00 | FL51: 00:00:00 | FM51: 00:00:00 | FN51: 00:00:00 | FO51: 00:00:00 | FP51: 00:00:00 | FQ51: 00:00:00 | FR51: 00:00:00 | FS51: 00:00:00 | FT51: 00:00:00 | FU51: 00:00:00 | FV51: 00:00:00 | FW51: 00:00:00 | FX51: 00:00:00 | FY51: 00:00:00 | FZ51: 00:00:00 | GA51: 00:00:00 | GB51: 00:00:00 | GC51: 00:00:00 | GD51: 00:00:00 | GE51: 00:00:00 | GF51: 00:00:00 | GG51: 00:00:00 | GH51: 00:00:00 | GI51: 00:00:00 | GJ51: 00:00:00 | GK51: 00:00:00 | GL51: 00:00:00 | GM51: 00:00:00 | GN51: =GM51+IF($G10=1,365,0)+IF($G10=2,182.5,0)+IF($G10=4,91.25,0) -> 00:00:00 | GO51: 00:00:00 | GP51: 00:00:00 | GQ51: 00:00:00 | GR51: 00:00:00 | GS51: 00:00:00
A52: Bond 9 | B52: =(IF(B51=F10,100,0)+IF(G10=1,1,0)*J10*100+IF(G10=2,0.5,0)*J10*100+IF(G10=4,0.25,0)*J10*100)*IF(ISBLANK(F10)=TRUE,0,1) -> 0 | C52: =IF(C51>$F10+1,0,1)*(IF(D52=0,100,0)+IF($G10=1,1,0)*$J10*100+IF($G10=2,0.5,0)*$J10*100+IF($G10=4,0.25,0)*$J10*100) -> 100 | D52: =IF(D51>$F10+1,0,1)*(IF(E52=0,100,0)+IF($G10=1,1,0)*$J10*100+IF($G10=2,0.5,0)*$J10*100+IF($G10=4,0.25,0)*$J10*100) -> 0 | E52: 100 | F52: 0 | G52: 100 | H52: 0 | I52: 100 | J52: 0 | K52: 100 | L52: 0 | M52: 100 | N52: 0 | O52: 100 | P52: 0 | Q52: 100 | R52: 0 | S52: 100 | T52: 0 | U52: 100 | V52: 0 | W52: 100 | X52: 0 | Y52: 100 | Z52: 0 | AA52: 100 | AB52: 0 | AC52: 100 | AD52: 0 | AE52: 100 | AF52: 0 | AG52: 100 | AH52: 0 | AI52: 100 | AJ52: 0 | AK52: 100 | AL52: 0 | AM52: 100 | AN52: 0 | AO52: 100 | AP52: 0 | AQ52: 100 | AR52: 0 | AS52: 100 | AT52: 0 | AU52: 100 | AV52: 0 | AW52: 100 | AX52: 0 | AY52: 100 | AZ52: 0 | BA52: 100 | BB52: 0 | BC52: 100 | BD52: 0 | BE52: 100 | BF52: 0 | BG52: 100 | BH52: 0 | BI52: 100 | BJ52: 0 | BK52: 100 | BL52: 0 | BM52: 100 | BN52: 0 | BO52: 100 | BP52: =IF(BP51>$F10+1,0,1)*(IF(BQ52=0,100,0)+IF($G10=1,1,0)*$J10*100+IF($G10=2,0.5,0)*$J10*100+IF($G10=4,0.25,0)*$J10*100) -> 0 | BQ52: 100 | BR52: 0 | BS52: 100 | BT52: 0 | BU52: 100 | BV52: 0 | BW52: 100 | BX52: 0 | BY52: 100 | BZ52: 0 | CA52: 100 | CB52: 0 | CC52: 100 | CD52: 0 | CE52: 100 | CF52: 0 | CG52: 100 | CH52: 0 | CI52: 100 | CJ52: 0 | CK52: 100 | CL52: 0 | CM52: 100 | CN52: 0 | CO52: 100 | CP52: 0 | CQ52: 100 | CR52: 0 | CS52: 100 | CT52: 0 | CU52: 100 | CV52: 0 | CW52: 100 | CX52: 0 | CY52: 100 | CZ52: 0 | DA52: 100 | DB52: 0 | DC52: 100 | DD52: 0 | DE52: 100 | DF52: 0 | DG52: 100 | DH52: 0 | DI52: 100 | DJ52: 0 | DK52: 100 | DL52: 0 | DM52: 100 | DN52: 0 | DO52: 100 | DP52: 0 | DQ52: 100 | DR52: 0 | DS52: 100 | DT52: 0 | DU52: 100 | DV52: 0 | DW52: 100 | DX52: 0 | DY52: 100 | DZ52: 0 | EA52: 100 | EB52: =IF(EB51>$F10+1,0,1)*(IF(EC52=0,100,0)+IF($G10=1,1,0)*$J10*100+IF($G10=2,0.5,0)*$J10*100+IF($G10=4,0.25,0)*$J10*100) -> 0 | EC52: 100 | ED52: 0 | EE52: 100 | EF52: 0 | EG52: 100 | EH52: 0 | EI52: 100 | EJ52: 0 | EK52: 100 | EL52: 0 | EM52: 100 | EN52: 0 | EO52: 100 | EP52: 0 | EQ52: 100 | ER52: 0 | ES52: 100 | ET52: 0 | EU52: 100 | EV52: 0 | EW52: 100 | EX52: 0 | EY52: 100 | EZ52: 0 | FA52: 100 | FB52: 0 | FC52: 100 | FD52: 0 | FE52: 100 | FF52: 0 | FG52: 100 | FH52: 0 | FI52: 100 | FJ52: 0 | FK52: 100 | FL52: 0 | FM52: 100 | FN52: 0 | FO52: 100 | FP52: 0 | FQ52: 100 | FR52: 0 | FS52: 100 | FT52: 0 | FU52: 100 | FV52: 0 | FW52: 100 | FX52: 0 | FY52: 100 | FZ52: 0 | GA52: 100 | GB52: 0 | GC52: 100 | GD52: 0 | GE52: 100 | GF52: 0 | GG52: 100 | GH52: 0 | GI52: 100 | GJ52: 0 | GK52: 100 | GL52: 0 | GM52: 100 | GN52: =IF(GN51>$F10+1,0,1)*(IF(GO52=0,100,0)+IF($G10=1,1,0)*$J10*100+IF($G10=2,0.5,0)*$J10*100+IF($G10=4,0.25,0)*$J10*100) -> 0 | GO52: 100 | GP52: 0 | GQ52: 100 | GR52: 0 | GS52: 100
A53: Payment Dates | B53: =IF(E11=0,F11,E11) -> 00:00:00 | C53: =B53+IF($G11=1,365,0)+IF($G11=2,182.5,0)+IF($G11=4,91.25,0) -> 00:00:00 | D53: =C53+IF($G11=1,365,0)+IF($G11=2,182.5,0)+IF($G11=4,91.25,0) -> 00:00:00 | E53: 00:00:00 | F53: 00:00:00 | G53: 00:00:00 | H53: 00:00:00 | I53: 00:00:00 | J53: 00:00:00 | K53: 00:00:00 | L53: 00:00:00 | M53: 00:00:00 | N53: 00:00:00 | O53: 00:00:00 | P53: 00:00:00 | Q53: 00:00:00 | R53: 00:00:00 | S53: 00:00:00 | T53: 00:00:00 | U53: 00:00:00 | V53: 00:00:00 | W53: 00:00:00 | X53: 00:00:00 | Y53: 00:00:00 | Z53: 00:00:00 | AA53: 00:00:00 | AB53: 00:00:00 | AC53: 00:00:00 | AD53: 00:00:00 | AE53: 00:00:00 | AF53: 00:00:00 | AG53: 00:00:00 | AH53: 00:00:00 | AI53: 00:00:00 | AJ53: 00:00:00 | AK53: 00:00:00 | AL53: 00:00:00 | AM53: 00:00:00 | AN53: 00:00:00 | AO53: 00:00:00 | AP53: 00:00:00 | AQ53: 00:00:00 | AR53: 00:00:00 | AS53: 00:00:00 | AT53: 00:00:00 | AU53: 00:00:00 | AV53: 00:00:00 | AW53: 00:00:00 | AX53: 00:00:00 | AY53: 00:00:00 | AZ53: 00:00:00 | BA53: 00:00:00 | BB53: 00:00:00 | BC53: 00:00:00 | BD53: 00:00:00 | BE53: 00:00:00 | BF53: 00:00:00 | BG53: 00:00:00 | BH53: 00:00:00 | BI53: 00:00:00 | BJ53: 00:00:00 | BK53: 00:00:00 | BL53: 00:00:00 | BM53: 00:00:00 | BN53: 00:00:00 | BO53: 00:00:00 | BP53: =BO53+IF($G11=1,365,0)+IF($G11=2,182.5,0)+IF($G11=4,91.25,0) -> 00:00:00 | BQ53: 00:00:00 | BR53: 00:00:00 | BS53: 00:00:00 | BT53: 00:00:00 | BU53: 00:00:00 | BV53: 00:00:00 | BW53: 00:00:00 | BX53: 00:00:00 | BY53: 00:00:00 | BZ53: 00:00:00 | CA53: 00:00:00 | CB53: 00:00:00 | CC53: 00:00:00 | CD53: 00:00:00 | CE53: 00:00:00 | CF53: 00:00:00 | CG53: 00:00:00 | CH53: 00:00:00 | CI53: 00:00:00 | CJ53: 00:00:00 | CK53: 00:00:00 | CL53: 00:00:00 | CM53: 00:00:00 | CN53: 00:00:00 | CO53: 00:00:00 | CP53: 00:00:00 | CQ53: 00:00:00 | CR53: 00:00:00 | CS53: 00:00:00 | CT53: 00:00:00 | CU53: 00:00:00 | CV53: 00:00:00 | CW53: 00:00:00 | CX53: 00:00:00 | CY53: 00:00:00 | CZ53: 00:00:00 | DA53: 00:00:00 | DB53: 00:00:00 | DC53: 00:00:00 | DD53: 00:00:00 | DE53: 00:00:00 | DF53: 00:00:00 | DG53: 00:00:00 | DH53: 00:00:00 | DI53: 00:00:00 | DJ53: 00:00:00 | DK53: 00:00:00 | DL53: 00:00:00 | DM53: 00:00:00 | DN53: 00:00:00 | DO53: 00:00:00 | DP53: 00:00:00 | DQ53: 00:00:00 | DR53: 00:00:00 | DS53: 00:00:00 | DT53: 00:00:00 | DU53: 00:00:00 | DV53: 00:00:00 | DW53: 00:00:00 | DX53: 00:00:00 | DY53: 00:00:00 | DZ53: 00:00:00 | EA53: 00:00:00 | EB53: =EA53+IF($G11=1,365,0)+IF($G11=2,182.5,0)+IF($G11=4,91.25,0) -> 00:00:00 | EC53: 00:00:00 | ED53: 00:00:00 | EE53: 00:00:00 | EF53: 00:00:00 | EG53: 00:00:00 | EH53: 00:00:00 | EI53: 00:00:00 | EJ53: 00:00:00 | EK53: 00:00:00 | EL53: 00:00:00 | EM53: 00:00:00 | EN53: 00:00:00 | EO53: 00:00:00 | EP53: 00:00:00 | EQ53: 00:00:00 | ER53: 00:00:00 | ES53: 00:00:00 | ET53: 00:00:00 | EU53: 00:00:00 | EV53: 00:00:00 | EW53: 00:00:00 | EX53: 00:00:00 | EY53: 00:00:00 | EZ53: 00:00:00 | FA53: 00:00:00 | FB53: 00:00:00 | FC53: 00:00:00 | FD53: 00:00:00 | FE53: 00:00:00 | FF53: 00:00:00 | FG53: 00:00:00 | FH53: 00:00:00 | FI53: 00:00:00 | FJ53: 00:00:00 | FK53: 00:00:00 | FL53: 00:00:00 | FM53: 00:00:00 | FN53: 00:00:00 | FO53: 00:00:00 | FP53: 00:00:00 | FQ53: 00:00:00 | FR53: 00:00:00 | FS53: 00:00:00 | FT53: 00:00:00 | FU53: 00:00:00 | FV53: 00:00:00 | FW53: 00:00:00 | FX53: 00:00:00 | FY53: 00:00:00 | FZ53: 00:00:00 | GA53: 00:00:00 | GB53: 00:00:00 | GC53: 00:00:00 | GD53: 00:00:00 | GE53: 00:00:00 | GF53: 00:00:00 | GG53: 00:00:00 | GH53: 00:00:00 | GI53: 00:00:00 | GJ53: 00:00:00 | GK53: 00:00:00 | GL53: 00:00:00 | GM53: 00:00:00 | GN53: =GM53+IF($G11=1,365,0)+IF($G11=2,182.5,0)+IF($G11=4,91.25,0) -> 00:00:00 | GO53: 00:00:00 | GP53: 00:00:00 | GQ53: 00:00:00 | GR53: 00:00:00 | GS53: 00:00:00
A54: Bond 10 | B54: =(IF(B53=F11,100,0)+IF(G11=1,1,0)*J11*100+IF(G11=2,0.5,0)*J11*100+IF(G11=4,0.25,0)*J11*100)*IF(ISBLANK(F11)=TRUE,0,1) -> 0 | C54: =IF(C53>$F11+1,0,1)*(IF(D54=0,100,0)+IF($G11=1,1,0)*$J11*100+IF($G11=2,0.5,0)*$J11*100+IF($G11=4,0.25,0)*$J11*100) -> 100 | D54: =IF(D53>$F11+1,0,1)*(IF(E54=0,100,0)+IF($G11=1,1,0)*$J11*100+IF($G11=2,0.5,0)*$J11*100+IF($G11=4,0.25,0)*$J11*100) -> 0 | E54: 100 | F54: 0 | G54: 100 | H54: 0 | I54: 100 | J54: 0 | K54: 100 | L54: 0 | M54: 100 | N54: 0 | O54: 100 | P54: 0 | Q54: 100 | R54: 0 | S54: 100 | T54: 0 | U54: 100 | V54: 0 | W54: 100 | X54: 0 | Y54: 100 | Z54: 0 | AA54: 100 | AB54: 0 | AC54: 100 | AD54: 0 | AE54: 100 | AF54: 0 | AG54: 100 | AH54: 0 | AI54: 100 | AJ54: 0 | AK54: 100 | AL54: 0 | AM54: 100 | AN54: 0 | AO54: 100 | AP54: 0 | AQ54: 100 | AR54: 0 | AS54: 100 | AT54: 0 | AU54: 100 | AV54: 0 | AW54: 100 | AX54: 0 | AY54: 100 | AZ54: 0 | BA54: 100 | BB54: 0 | BC54: 100 | BD54: 0 | BE54: 100 | BF54: 0 | BG54: 100 | BH54: 0 | BI54: 100 | BJ54: 0 | BK54: 100 | BL54: 0 | BM54: 100 | BN54: 0 | BO54: 100 | BP54: =IF(BP53>$F11+1,0,1)*(IF(BQ54=0,100,0)+IF($G11=1,1,0)*$J11*100+IF($G11=2,0.5,0)*$J11*100+IF($G11=4,0.25,0)*$J11*100) -> 0 | BQ54: 100 | BR54: 0 | BS54: 100 | BT54: 0 | BU54: 100 | BV54: 0 | BW54: 100 | BX54: 0 | BY54: 100 | BZ54: 0 | CA54: 100 | CB54: 0 | CC54: 100 | CD54: 0 | CE54: 100 | CF54: 0 | CG54: 100 | CH54: 0 | CI54: 100 | CJ54: 0 | CK54: 100 | CL54: 0 | CM54: 100 | CN54: 0 | CO54: 100 | CP54: 0 | CQ54: 100 | CR54: 0 | CS54: 100 | CT54: 0 | CU54: 100 | CV54: 0 | CW54: 100 | CX54: 0 | CY54: 100 | CZ54: 0 | DA54: 100 | DB54: 0 | DC54: 100 | DD54: 0 | DE54: 100 | DF54: 0 | DG54: 100 | DH54: 0 | DI54: 100 | DJ54: 0 | DK54: 100 | DL54: 0 | DM54: 100 | DN54: 0 | DO54: 100 | DP54: 0 | DQ54: 100 | DR54: 0 | DS54: 100 | DT54: 0 | DU54: 100 | DV54: 0 | DW54: 100 | DX54: 0 | DY54: 100 | DZ54: 0 | EA54: 100 | EB54: =IF(EB53>$F11+1,0,1)*(IF(EC54=0,100,0)+IF($G11=1,1,0)*$J11*100+IF($G11=2,0.5,0)*$J11*100+IF($G11=4,0.25,0)*$J11*100) -> 0 | EC54: 100 | ED54: 0 | EE54: 100 | EF54: 0 | EG54: 100 | EH54: 0 | EI54: 100 | EJ54: 0 | EK54: 100 | EL54: 0 | EM54: 100 | EN54: 0 | EO54: 100 | EP54: 0 | EQ54: 100 | ER54: 0 | ES54: 100 | ET54: 0 | EU54: 100 | EV54: 0 | EW54: 100 | EX54: 0 | EY54: 100 | EZ54: 0 | FA54: 100 | FB54: 0 | FC54: 100 | FD54: 0 | FE54: 100 | FF54: 0 | FG54: 100 | FH54: 0 | FI54: 100 | FJ54: 0 | FK54: 100 | FL54: 0 | FM54: 100 | FN54: 0 | FO54: 100 | FP54: 0 | FQ54: 100 | FR54: 0 | FS54: 100 | FT54: 0 | FU54: 100 | FV54: 0 | FW54: 100 | FX54: 0 | FY54: 100 | FZ54: 0 | GA54: 100 | GB54: 0 | GC54: 100 | GD54: 0 | GE54: 100 | GF54: 0 | GG54: 100 | GH54: 0 | GI54: 100 | GJ54: 0 | GK54: 100 | GL54: 0 | GM54: 100 | GN54: =IF(GN53>$F11+1,0,1)*(IF(GO54=0,100,0)+IF($G11=1,1,0)*$J11*100+IF($G11=2,0.5,0)*$J11*100+IF($G11=4,0.25,0)*$J11*100) -> 0 | GO54: 100 | GP54: 0 | GQ54: 100 | GR54: 0 | GS54: 100
A55: Payment Dates | B55: =IF(E12=0,F12,E12) -> 00:00:00 | C55: =B55+IF($G12=1,365,0)+IF($G12=2,182.5,0)+IF($G12=4,91.25,0) -> 00:00:00 | D55: =C55+IF($G12=1,365,0)+IF($G12=2,182.5,0)+IF($G12=4,91.25,0) -> 00:00:00 | E55: 00:00:00 | F55: 00:00:00 | G55: 00:00:00 | H55: 00:00:00 | I55: 00:00:00 | J55: 00:00:00 | K55: 00:00:00 | L55: 00:00:00 | M55: 00:00:00 | N55: 00:00:00 | O55: 00:00:00 | P55: 00:00:00 | Q55: 00:00:00 | R55: 00:00:00 | S55: 00:00:00 | T55: 00:00:00 | U55: 00:00:00 | V55: 00:00:00 | W55: 00:00:00 | X55: 00:00:00 | Y55: 00:00:00 | Z55: 00:00:00 | AA55: 00:00:00 | AB55: 00:00:00 | AC55: 00:00:00 | AD55: 00:00:00 | AE55: 00:00:00 | AF55: 00:00:00 | AG55: 00:00:00 | AH55: 00:00:00 | AI55: 00:00:00 | AJ55: 00:00:00 | AK55: 00:00:00 | AL55: 00:00:00 | AM55: 00:00:00 | AN55: 00:00:00 | AO55: 00:00:00 | AP55: 00:00:00 | AQ55: 00:00:00 | AR55: 00:00:00 | AS55: 00:00:00 | AT55: 00:00:00 | AU55: 00:00:00 | AV55: 00:00:00 | AW55: 00:00:00 | AX55: 00:00:00 | AY55: 00:00:00 | AZ55: 00:00:00 | BA55: 00:00:00 | BB55: 00:00:00 | BC55: 00:00:00 | BD55: 00:00:00 | BE55: 00:00:00 | BF55: 00:00:00 | BG55: 00:00:00 | BH55: 00:00:00 | BI55: 00:00:00 | BJ55: 00:00:00 | BK55: 00:00:00 | BL55: 00:00:00 | BM55: 00:00:00 | BN55: 00:00:00 | BO55: 00:00:00 | BP55: =BO55+IF($G12=1,365,0)+IF($G12=2,182.5,0)+IF($G12=4,91.25,0) -> 00:00:00 | BQ55: 00:00:00 | BR55: 00:00:00 | BS55: 00:00:00 | BT55: 00:00:00 | BU55: 00:00:00 | BV55: 00:00:00 | BW55: 00:00:00 | BX55: 00:00:00 | BY55: 00:00:00 | BZ55: 00:00:00 | CA55: 00:00:00 | CB55: 00:00:00 | CC55: 00:00:00 | CD55: 00:00:00 | CE55: 00:00:00 | CF55: 00:00:00 | CG55: 00:00:00 | CH55: 00:00:00 | CI55: 00:00:00 | CJ55: 00:00:00 | CK55: 00:00:00 | CL55: 00:00:00 | CM55: 00:00:00 | CN55: 00:00:00 | CO55: 00:00:00 | CP55: 00:00:00 | CQ55: 00:00:00 | CR55: 00:00:00 | CS55: 00:00:00 | CT55: 00:00:00 | CU55: 00:00:00 | CV55: 00:00:00 | CW55: 00:00:00 | CX55: 00:00:00 | CY55: 00:00:00 | CZ55: 00:00:00 | DA55: 00:00:00 | DB55: 00:00:00 | DC55: 00:00:00 | DD55: 00:00:00 | DE55: 00:00:00 | DF55: 00:00:00 | DG55: 00:00:00 | DH55: 00:00:00 | DI55: 00:00:00 | DJ55: 00:00:00 | DK55: 00:00:00 | DL55: 00:00:00 | DM55: 00:00:00 | DN55: 00:00:00 | DO55: 00:00:00 | DP55: 00:00:00 | DQ55: 00:00:00 | DR55: 00:00:00 | DS55: 00:00:00 | DT55: 00:00:00 | DU55: 00:00:00 | DV55: 00:00:00 | DW55: 00:00:00 | DX55: 00:00:00 | DY55: 00:00:00 | DZ55: 00:00:00 | EA55: 00:00:00 | EB55: =EA55+IF($G12=1,365,0)+IF($G12=2,182.5,0)+IF($G12=4,91.25,0) -> 00:00:00 | EC55: 00:00:00 | ED55: 00:00:00 | EE55: 00:00:00 | EF55: 00:00:00 | EG55: 00:00:00 | EH55: 00:00:00 | EI55: 00:00:00 | EJ55: 00:00:00 | EK55: 00:00:00 | EL55: 00:00:00 | EM55: 00:00:00 | EN55: 00:00:00 | EO55: 00:00:00 | EP55: 00:00:00 | EQ55: 00:00:00 | ER55: 00:00:00 | ES55: 00:00:00 | ET55: 00:00:00 | EU55: 00:00:00 | EV55: 00:00:00 | EW55: 00:00:00 | EX55: 00:00:00 | EY55: 00:00:00 | EZ55: 00:00:00 | FA55: 00:00:00 | FB55: 00:00:00 | FC55: 00:00:00 | FD55: 00:00:00 | FE55: 00:00:00 | FF55: 00:00:00 | FG55: 00:00:00 | FH55: 00:00:00 | FI55: 00:00:00 | FJ55: 00:00:00 | FK55: 00:00:00 | FL55: 00:00:00 | FM55: 00:00:00 | FN55: 00:00:00 | FO55: 00:00:00 | FP55: 00:00:00 | FQ55: 00:00:00 | FR55: 00:00:00 | FS55: 00:00:00 | FT55: 00:00:00 | FU55: 00:00:00 | FV55: 00:00:00 | FW55: 00:00:00 | FX55: 00:00:00 | FY55: 00:00:00 | FZ55: 00:00:00 | GA55: 00:00:00 | GB55: 00:00:00 | GC55: 00:00:00 | GD55: 00:00:00 | GE55: 00:00:00 | GF55: 00:00:00 | GG55: 00:00:00 | GH55: 00:00:00 | GI55: 00:00:00 | GJ55: 00:00:00 | GK55: 00:00:00 | GL55: 00:00:00 | GM55: 00:00:00 | GN55: =GM55+IF($G12=1,365,0)+IF($G12=2,182.5,0)+IF($G12=4,91.25,0) -> 00:00:00 | GO55: 00:00:00 | GP55: 00:00:00 | GQ55: 00:00:00 | GR55: 00:00:00 | GS55: 00:00:00
A56: Bond 11 | B56: =(IF(B55=F12,100,0)+IF(G12=1,1,0)*J12*100+IF(G12=2,0.5,0)*J12*100+IF(G12=4,0.25,0)*J12*100)*IF(ISBLANK(F12)=TRUE,0,1) -> 0 | C56: =IF(C55>$F12+1,0,1)*(IF(D56=0,100,0)+IF($G12=1,1,0)*$J12*100+IF($G12=2,0.5,0)*$J12*100+IF($G12=4,0.25,0)*$J12*100) -> 100 | D56: =IF(D55>$F12+1,0,1)*(IF(E56=0,100,0)+IF($G12=1,1,0)*$J12*100+IF($G12=2,0.5,0)*$J12*100+IF($G12=4,0.25,0)*$J12*100) -> 0 | E56: 100 | F56: 0 | G56: 100 | H56: 0 | I56: 100 | J56: 0 | K56: 100 | L56: 0 | M56: 100 | N56: 0 | O56: 100 | P56: 0 | Q56: 100 | R56: 0 | S56: 100 | T56: 0 | U56: 100 | V56: 0 | W56: 100 | X56: 0 | Y56: 100 | Z56: 0 | AA56: 100 | AB56: 0 | AC56: 100 | AD56: 0 | AE56: 100 | AF56: 0 | AG56: 100 | AH56: 0 | AI56: 100 | AJ56: 0 | AK56: 100 | AL56: 0 | AM56: 100 | AN56: 0 | AO56: 100 | AP56: 0 | AQ56: 100 | AR56: 0 | AS56: 100 | AT56: 0 | AU56: 100 | AV56: 0 | AW56: 100 | AX56: 0 | AY56: 100 | AZ56: 0 | BA56: 100 | BB56: 0 | BC56: 100 | BD56: 0 | BE56: 100 | BF56: 0 | BG56: 100 | BH56: 0 | BI56: 100 | BJ56: 0 | BK56: 100 | BL56: 0 | BM56: 100 | BN56: 0 | BO56: 100 | BP56: =IF(BP55>$F12+1,0,1)*(IF(BQ56=0,100,0)+IF($G12=1,1,0)*$J12*100+IF($G12=2,0.5,0)*$J12*100+IF($G12=4,0.25,0)*$J12*100) -> 0 | BQ56: 100 | BR56: 0 | BS56: 100 | BT56: 0 | BU56: 100 | BV56: 0 | BW56: 100 | BX56: 0 | BY56: 100 | BZ56: 0 | CA56: 100 | CB56: 0 | CC56: 100 | CD56: 0 | CE56: 100 | CF56: 0 | CG56: 100 | CH56: 0 | CI56: 100 | CJ56: 0 | CK56: 100 | CL56: 0 | CM56: 100 | CN56: 0 | CO56: 100 | CP56: 0 | CQ56: 100 | CR56: 0 | CS56: 100 | CT56: 0 | CU56: 100 | CV56: 0 | CW56: 100 | CX56: 0 | CY56: 100 | CZ56: 0 | DA56: 100 | DB56: 0 | DC56: 100 | DD56: 0 | DE56: 100 | DF56: 0 | DG56: 100 | DH56: 0 | DI56: 100 | DJ56: 0 | DK56: 100 | DL56: 0 | DM56: 100 | DN56: 0 | DO56: 100 | DP56: 0 | DQ56: 100 | DR56: 0 | DS56: 100 | DT56: 0 | DU56: 100 | DV56: 0 | DW56: 100 | DX56: 0 | DY56: 100 | DZ56: 0 | EA56: 100 | EB56: =IF(EB55>$F12+1,0,1)*(IF(EC56=0,100,0)+IF($G12=1,1,0)*$J12*100+IF($G12=2,0.5,0)*$J12*100+IF($G12=4,0.25,0)*$J12*100) -> 0 | EC56: 100 | ED56: 0 | EE56: 100 | EF56: 0 | EG56: 100 | EH56: 0 | EI56: 100 | EJ56: 0 | EK56: 100 | EL56: 0 | EM56: 100 | EN56: 0 | EO56: 100 | EP56: 0 | EQ56: 100 | ER56: 0 | ES56: 100 | ET56: 0 | EU56: 100 | EV56: 0 | EW56: 100 | EX56: 0 | EY56: 100 | EZ56: 0 | FA56: 100 | FB56: 0 | FC56: 100 | FD56: 0 | FE56: 100 | FF56: 0 | FG56: 100 | FH56: 0 | FI56: 100 | FJ56: 0 | FK56: 100 | FL56: 0 | FM56: 100 | FN56: 0 | FO56: 100 | FP56: 0 | FQ56: 100 | FR56: 0 | FS56: 100 | FT56: 0 | FU56: 100 | FV56: 0 | FW56: 100 | FX56: 0 | FY56: 100 | FZ56: 0 | GA56: 100 | GB56: 0 | GC56: 100 | GD56: 0 | GE56: 100 | GF56: 0 | GG56: 100 | GH56: 0 | GI56: 100 | GJ56: 0 | GK56: 100 | GL56: 0 | GM56: 100 | GN56: =IF(GN55>$F12+1,0,1)*(IF(GO56=0,100,0)+IF($G12=1,1,0)*$J12*100+IF($G12=2,0.5,0)*$J12*100+IF($G12=4,0.25,0)*$J12*100) -> 0 | GO56: 100 | GP56: 0 | GQ56: 100 | GR56: 0 | GS56: 100
A57: Payment Dates | B57: =IF(E13=0,F13,E13) -> 00:00:00 | C57: =B57+IF($G13=1,365,0)+IF($G13=2,182.5,0)+IF($G13=4,91.25,0) -> 00:00:00 | D57: =C57+IF($G13=1,365,0)+IF($G13=2,182.5,0)+IF($G13=4,91.25,0) -> 00:00:00 | E57: 00:00:00 | F57: 00:00:00 | G57: 00:00:00 | H57: 00:00:00 | I57: 00:00:00 | J57: 00:00:00 | K57: 00:00:00 | L57: 00:00:00 | M57: 00:00:00 | N57: 00:00:00 | O57: 00:00:00 | P57: 00:00:00 | Q57: 00:00:00 | R57: 00:00:00 | S57: 00:00:00 | T57: 00:00:00 | U57: 00:00:00 | V57: 00:00:00 | W57: 00:00:00 | X57: 00:00:00 | Y57: 00:00:00 | Z57: 00:00:00 | AA57: 00:00:00 | AB57: 00:00:00 | AC57: 00:00:00 | AD57: 00:00:00 | AE57: 00:00:00 | AF57: 00:00:00 | AG57: 00:00:00 | AH57: 00:00:00 | AI57: 00:00:00 | AJ57: 00:00:00 | AK57: 00:00:00 | AL57: 00:00:00 | AM57: 00:00:00 | AN57: 00:00:00 | AO57: 00:00:00 | AP57: 00:00:00 | AQ57: 00:00:00 | AR57: 00:00:00 | AS57: 00:00:00 | AT57: 00:00:00 | AU57: 00:00:00 | AV57: 00:00:00 | AW57: 00:00:00 | AX57: 00:00:00 | AY57: 00:00:00 | AZ57: 00:00:00 | BA57: 00:00:00 | BB57: 00:00:00 | BC57: 00:00:00 | BD57: 00:00:00 | BE57: 00:00:00 | BF57: 00:00:00 | BG57: 00:00:00 | BH57: 00:00:00 | BI57: 00:00:00 | BJ57: 00:00:00 | BK57: 00:00:00 | BL57: 00:00:00 | BM57: 00:00:00 | BN57: 00:00:00 | BO57: 00:00:00 | BP57: =BO57+IF($G13=1,365,0)+IF($G13=2,182.5,0)+IF($G13=4,91.25,0) -> 00:00:00 | BQ57: 00:00:00 | BR57: 00:00:00 | BS57: 00:00:00 | BT57: 00:00:00 | BU57: 00:00:00 | BV57: 00:00:00 | BW57: 00:00:00 | BX57: 00:00:00 | BY57: 00:00:00 | BZ57: 00:00:00 | CA57: 00:00:00 | CB57: 00:00:00 | CC57: 00:00:00 | CD57: 00:00:00 | CE57: 00:00:00 | CF57: 00:00:00 | CG57: 00:00:00 | CH57: 00:00:00 | CI57: 00:00:00 | CJ57: 00:00:00 | CK57: 00:00:00 | CL57: 00:00:00 | CM57: 00:00:00 | CN57: 00:00:00 | CO57: 00:00:00 | CP57: 00:00:00 | CQ57: 00:00:00 | CR57: 00:00:00 | CS57: 00:00:00 | CT57: 00:00:00 | CU57: 00:00:00 | CV57: 00:00:00 | CW57: 00:00:00 | CX57: 00:00:00 | CY57: 00:00:00 | CZ57: 00:00:00 | DA57: 00:00:00 | DB57: 00:00:00 | DC57: 00:00:00 | DD57: 00:00:00 | DE57: 00:00:00 | DF57: 00:00:00 | DG57: 00:00:00 | DH57: 00:00:00 | DI57: 00:00:00 | DJ57: 00:00:00 | DK57: 00:00:00 | DL57: 00:00:00 | DM57: 00:00:00 | DN57: 00:00:00 | DO57: 00:00:00 | DP57: 00:00:00 | DQ57: 00:00:00 | DR57: 00:00:00 | DS57: 00:00:00 | DT57: 00:00:00 | DU57: 00:00:00 | DV57: 00:00:00 | DW57: 00:00:00 | DX57: 00:00:00 | DY57: 00:00:00 | DZ57: 00:00:00 | EA57: 00:00:00 | EB57: =EA57+IF($G13=1,365,0)+IF($G13=2,182.5,0)+IF($G13=4,91.25,0) -> 00:00:00 | EC57: 00:00:00 | ED57: 00:00:00 | EE57: 00:00:00 | EF57: 00:00:00 | EG57: 00:00:00 | EH57: 00:00:00 | EI57: 00:00:00 | EJ57: 00:00:00 | EK57: 00:00:00 | EL57: 00:00:00 | EM57: 00:00:00 | EN57: 00:00:00 | EO57: 00:00:00 | EP57: 00:00:00 | EQ57: 00:00:00 | ER57: 00:00:00 | ES57: 00:00:00 | ET57: 00:00:00 | EU57: 00:00:00 | EV57: 00:00:00 | EW57: 00:00:00 | EX57: 00:00:00 | EY57: 00:00:00 | EZ57: 00:00:00 | FA57: 00:00:00 | FB57: 00:00:00 | FC57: 00:00:00 | FD57: 00:00:00 | FE57: 00:00:00 | FF57: 00:00:00 | FG57: 00:00:00 | FH57: 00:00:00 | FI57: 00:00:00 | FJ57: 00:00:00 | FK57: 00:00:00 | FL57: 00:00:00 | FM57: 00:00:00 | FN57: 00:00:00 | FO57: 00:00:00 | FP57: 00:00:00 | FQ57: 00:00:00 | FR57: 00:00:00 | FS57: 00:00:00 | FT57: 00:00:00 | FU57: 00:00:00 | FV57: 00:00:00 | FW57: 00:00:00 | FX57: 00:00:00 | FY57: 00:00:00 | FZ57: 00:00:00 | GA57: 00:00:00 | GB57: 00:00:00 | GC57: 00:00:00 | GD57: 00:00:00 | GE57: 00:00:00 | GF57: 00:00:00 | GG57: 00:00:00 | GH57: 00:00:00 | GI57: 00:00:00 | GJ57: 00:00:00 | GK57: 00:00:00 | GL57: 00:00:00 | GM57: 00:00:00 | GN57: =GM57+IF($G13=1,365,0)+IF($G13=2,182.5,0)+IF($G13=4,91.25,0) -> 00:00:00 | GO57: 00:00:00 | GP57: 00:00:00 | GQ57: 00:00:00 | GR57: 00:00:00 | GS57: 00:00:00
A58: Bond 12 | B58: =(IF(B57=F13,100,0)+IF(G13=1,1,0)*J13*100+IF(G13=2,0.5,0)*J13*100+IF(G13=4,0.25,0)*J13*100)*IF(ISBLANK(F13)=TRUE,0,1) -> 0 | C58: =IF(C57>$F13+1,0,1)*(IF(D58=0,100,0)+IF($G13=1,1,0)*$J13*100+IF($G13=2,0.5,0)*$J13*100+IF($G13=4,0.25,0)*$J13*100) -> 100 | D58: =IF(D57>$F13+1,0,1)*(IF(E58=0,100,0)+IF($G13=1,1,0)*$J13*100+IF($G13=2,0.5,0)*$J13*100+IF($G13=4,0.25,0)*$J13*100) -> 0 | E58: 100 | F58: 0 | G58: 100 | H58: 0 | I58: 100 | J58: 0 | K58: 100 | L58: 0 | M58: 100 | N58: 0 | O58: 100 | P58: 0 | Q58: 100 | R58: 0 | S58: 100 | T58: 0 | U58: 100 | V58: 0 | W58: 100 | X58: 0 | Y58: 100 | Z58: 0 | AA58: 100 | AB58: 0 | AC58: 100 | AD58: 0 | AE58: 100 | AF58: 0 | AG58: 100 | AH58: 0 | AI58: 100 | AJ58: 0 | AK58: 100 | AL58: 0 | AM58: 100 | AN58: 0 | AO58: 100 | AP58: 0 | AQ58: 100 | AR58: 0 | AS58: 100 | AT58: 0 | AU58: 100 | AV58: 0 | AW58: 100 | AX58: 0 | AY58: 100 | AZ58: 0 | BA58: 100 | BB58: 0 | BC58: 100 | BD58: 0 | BE58: 100 | BF58: 0 | BG58: 100 | BH58: 0 | BI58: 100 | BJ58: 0 | BK58: 100 | BL58: 0 | BM58: 100 | BN58: 0 | BO58: 100 | BP58: =IF(BP57>$F13+1,0,1)*(IF(BQ58=0,100,0)+IF($G13=1,1,0)*$J13*100+IF($G13=2,0.5,0)*$J13*100+IF($G13=4,0.25,0)*$J13*100) -> 0 | BQ58: 100 | BR58: 0 | BS58: 100 | BT58: 0 | BU58: 100 | BV58: 0 | BW58: 100 | BX58: 0 | BY58: 100 | BZ58: 0 | CA58: 100 | CB58: 0 | CC58: 100 | CD58: 0 | CE58: 100 | CF58: 0 | CG58: 100 | CH58: 0 | CI58: 100 | CJ58: 0 | CK58: 100 | CL58: 0 | CM58: 100 | CN58: 0 | CO58: 100 | CP58: 0 | CQ58: 100 | CR58: 0 | CS58: 100 | CT58: 0 | CU58: 100 | CV58: 0 | CW58: 100 | CX58: 0 | CY58: 100 | CZ58: 0 | DA58: 100 | DB58: 0 | DC58: 100 | DD58: 0 | DE58: 100 | DF58: 0 | DG58: 100 | DH58: 0 | DI58: 100 | DJ58: 0 | DK58: 100 | DL58: 0 | DM58: 100 | DN58: 0 | DO58: 100 | DP58: 0 | DQ58: 100 | DR58: 0 | DS58: 100 | DT58: 0 | DU58: 100 | DV58: 0 | DW58: 100 | DX58: 0 | DY58: 100 | DZ58: 0 | EA58: 100 | EB58: =IF(EB57>$F13+1,0,1)*(IF(EC58=0,100,0)+IF($G13=1,1,0)*$J13*100+IF($G13=2,0.5,0)*$J13*100+IF($G13=4,0.25,0)*$J13*100) -> 0 | EC58: 100 | ED58: 0 | EE58: 100 | EF58: 0 | EG58: 100 | EH58: 0 | EI58: 100 | EJ58: 0 | EK58: 100 | EL58: 0 | EM58: 100 | EN58: 0 | EO58: 100 | EP58: 0 | EQ58: 100 | ER58: 0 | ES58: 100 | ET58: 0 | EU58: 100 | EV58: 0 | EW58: 100 | EX58: 0 | EY58: 100 | EZ58: 0 | FA58: 100 | FB58: 0 | FC58: 100 | FD58: 0 | FE58: 100 | FF58: 0 | FG58: 100 | FH58: 0 | FI58: 100 | FJ58: 0 | FK58: 100 | FL58: 0 | FM58: 100 | FN58: 0 | FO58: 100 | FP58: 0 | FQ58: 100 | FR58: 0 | FS58: 100 | FT58: 0 | FU58: 100 | FV58: 0 | FW58: 100 | FX58: 0 | FY58: 100 | FZ58: 0 | GA58: 100 | GB58: 0 | GC58: 100 | GD58: 0 | GE58: 100 | GF58: 0 | GG58: 100 | GH58: 0 | GI58: 100 | GJ58: 0 | GK58: 100 | GL58: 0 | GM58: 100 | GN58: =IF(GN57>$F13+1,0,1)*(IF(GO58=0,100,0)+IF($G13=1,1,0)*$J13*100+IF($G13=2,0.5,0)*$J13*100+IF($G13=4,0.25,0)*$J13*100) -> 0 | GO58: 100 | GP58: 0 | GQ58: 100 | GR58: 0 | GS58: 100
A59: Payment Dates | B59: =IF(E14=0,F14,E14) -> 00:00:00 | C59: =B59+IF($G14=1,365,0)+IF($G14=2,182.5,0)+IF($G14=4,91.25,0) -> 00:00:00 | D59: =C59+IF($G14=1,365,0)+IF($G14=2,182.5,0)+IF($G14=4,91.25,0) -> 00:00:00 | E59: 00:00:00 | F59: 00:00:00 | G59: 00:00:00 | H59: 00:00:00 | I59: 00:00:00 | J59: 00:00:00 | K59: 00:00:00 | L59: 00:00:00 | M59: 00:00:00 | N59: 00:00:00 | O59: 00:00:00 | P59: 00:00:00 | Q59: 00:00:00 | R59: 00:00:00 | S59: 00:00:00 | T59: 00:00:00 | U59: 00:00:00 | V59: 00:00:00 | W59: 00:00:00 | X59: 00:00:00 | Y59: 00:00:00 | Z59: 00:00:00 | AA59: 00:00:00 | AB59: 00:00:00 | AC59: 00:00:00 | AD59: 00:00:00 | AE59: 00:00:00 | AF59: 00:00:00 | AG59: 00:00:00 | AH59: 00:00:00 | AI59: 00:00:00 | AJ59: 00:00:00 | AK59: 00:00:00 | AL59: 00:00:00 | AM59: 00:00:00 | AN59: 00:00:00 | AO59: 00:00:00 | AP59: 00:00:00 | AQ59: 00:00:00 | AR59: 00:00:00 | AS59: 00:00:00 | AT59: 00:00:00 | AU59: 00:00:00 | AV59: 00:00:00 | AW59: 00:00:00 | AX59: 00:00:00 | AY59: 00:00:00 | AZ59: 00:00:00 | BA59: 00:00:00 | BB59: 00:00:00 | BC59: 00:00:00 | BD59: 00:00:00 | BE59: 00:00:00 | BF59: 00:00:00 | BG59: 00:00:00 | BH59: 00:00:00 | BI59: 00:00:00 | BJ59: 00:00:00 | BK59: 00:00:00 | BL59: 00:00:00 | BM59: 00:00:00 | BN59: 00:00:00 | BO59: 00:00:00 | BP59: =BO59+IF($G14=1,365,0)+IF($G14=2,182.5,0)+IF($G14=4,91.25,0) -> 00:00:00 | BQ59: 00:00:00 | BR59: 00:00:00 | BS59: 00:00:00 | BT59: 00:00:00 | BU59: 00:00:00 | BV59: 00:00:00 | BW59: 00:00:00 | BX59: 00:00:00 | BY59: 00:00:00 | BZ59: 00:00:00 | CA59: 00:00:00 | CB59: 00:00:00 | CC59: 00:00:00 | CD59: 00:00:00 | CE59: 00:00:00 | CF59: 00:00:00 | CG59: 00:00:00 | CH59: 00:00:00 | CI59: 00:00:00 | CJ59: 00:00:00 | CK59: 00:00:00 | CL59: 00:00:00 | CM59: 00:00:00 | CN59: 00:00:00 | CO59: 00:00:00 | CP59: 00:00:00 | CQ59: 00:00:00 | CR59: 00:00:00 | CS59: 00:00:00 | CT59: 00:00:00 | CU59: 00:00:00 | CV59: 00:00:00 | CW59: 00:00:00 | CX59: 00:00:00 | CY59: 00:00:00 | CZ59: 00:00:00 | DA59: 00:00:00 | DB59: 00:00:00 | DC59: 00:00:00 | DD59: 00:00:00 | DE59: 00:00:00 | DF59: 00:00:00 | DG59: 00:00:00 | DH59: 00:00:00 | DI59: 00:00:00 | DJ59: 00:00:00 | DK59: 00:00:00 | DL59: 00:00:00 | DM59: 00:00:00 | DN59: 00:00:00 | DO59: 00:00:00 | DP59: 00:00:00 | DQ59: 00:00:00 | DR59: 00:00:00 | DS59: 00:00:00 | DT59: 00:00:00 | DU59: 00:00:00 | DV59: 00:00:00 | DW59: 00:00:00 | DX59: 00:00:00 | DY59: 00:00:00 | DZ59: 00:00:00 | EA59: 00:00:00 | EB59: =EA59+IF($G14=1,365,0)+IF($G14=2,182.5,0)+IF($G14=4,91.25,0) -> 00:00:00 | EC59: 00:00:00 | ED59: 00:00:00 | EE59: 00:00:00 | EF59: 00:00:00 | EG59: 00:00:00 | EH59: 00:00:00 | EI59: 00:00:00 | EJ59: 00:00:00 | EK59: 00:00:00 | EL59: 00:00:00 | EM59: 00:00:00 | EN59: 00:00:00 | EO59: 00:00:00 | EP59: 00:00:00 | EQ59: 00:00:00 | ER59: 00:00:00 | ES59: 00:00:00 | ET59: 00:00:00 | EU59: 00:00:00 | EV59: 00:00:00 | EW59: 00:00:00 | EX59: 00:00:00 | EY59: 00:00:00 | EZ59: 00:00:00 | FA59: 00:00:00 | FB59: 00:00:00 | FC59: 00:00:00 | FD59: 00:00:00 | FE59: 00:00:00 | FF59: 00:00:00 | FG59: 00:00:00 | FH59: 00:00:00 | FI59: 00:00:00 | FJ59: 00:00:00 | FK59: 00:00:00 | FL59: 00:00:00 | FM59: 00:00:00 | FN59: 00:00:00 | FO59: 00:00:00 | FP59: 00:00:00 | FQ59: 00:00:00 | FR59: 00:00:00 | FS59: 00:00:00 | FT59: 00:00:00 | FU59: 00:00:00 | FV59: 00:00:00 | FW59: 00:00:00 | FX59: 00:00:00 | FY59: 00:00:00 | FZ59: 00:00:00 | GA59: 00:00:00 | GB59: 00:00:00 | GC59: 00:00:00 | GD59: 00:00:00 | GE59: 00:00:00 | GF59: 00:00:00 | GG59: 00:00:00 | GH59: 00:00:00 | GI59: 00:00:00 | GJ59: 00:00:00 | GK59: 00:00:00 | GL59: 00:00:00 | GM59: 00:00:00 | GN59: =GM59+IF($G14=1,365,0)+IF($G14=2,182.5,0)+IF($G14=4,91.25,0) -> 00:00:00 | GO59: 00:00:00 | GP59: 00:00:00 | GQ59: 00:00:00 | GR59: 00:00:00 | GS59: 00:00:00
A60: Bond 13 | B60: =(IF(B59=F14,100,0)+IF(G14=1,1,0)*J14*100+IF(G14=2,0.5,0)*J14*100+IF(G14=4,0.25,0)*J14*100)*IF(ISBLANK(F14)=TRUE,0,1) -> 0 | C60: =IF(C59>$F14+1,0,1)*(IF(D60=0,100,0)+IF($G14=1,1,0)*$J14*100+IF($G14=2,0.5,0)*$J14*100+IF($G14=4,0.25,0)*$J14*100) -> 100 | D60: =IF(D59>$F14+1,0,1)*(IF(E60=0,100,0)+IF($G14=1,1,0)*$J14*100+IF($G14=2,0.5,0)*$J14*100+IF($G14=4,0.25,0)*$J14*100) -> 0 | E60: 100 | F60: 0 | G60: 100 | H60: 0 | I60: 100 | J60: 0 | K60: 100 | L60: 0 | M60: 100 | N60: 0 | O60: 100 | P60: 0 | Q60: 100 | R60: 0 | S60: 100 | T60: 0 | U60: 100 | V60: 0 | W60: 100 | X60: 0 | Y60: 100 | Z60: 0 | AA60: 100 | AB60: 0 | AC60: 100 | AD60: 0 | AE60: 100 | AF60: 0 | AG60: 100 | AH60: 0 | AI60: 100 | AJ60: 0 | AK60: 100 | AL60: 0 | AM60: 100 | AN60: 0 | AO60: 100 | AP60: 0 | AQ60: 100 | AR60: 0 | AS60: 100 | AT60: 0 | AU60: 100 | AV60: 0 | AW60: 100 | AX60: 0 | AY60: 100 | AZ60: 0 | BA60: 100 | BB60: 0 | BC60: 100 | BD60: 0 | BE60: 100 | BF60: 0 | BG60: 100 | BH60: 0 | BI60: 100 | BJ60: 0 | BK60: 100 | BL60: 0 | BM60: 100 | BN60: 0 | BO60: 100 | BP60: =IF(BP59>$F14+1,0,1)*(IF(BQ60=0,100,0)+IF($G14=1,1,0)*$J14*100+IF($G14=2,0.5,0)*$J14*100+IF($G14=4,0.25,0)*$J14*100) -> 0 | BQ60: 100 | BR60: 0 | BS60: 100 | BT60: 0 | BU60: 100 | BV60: 0 | BW60: 100 | BX60: 0 | BY60: 100 | BZ60: 0 | CA60: 100 | CB60: 0 | CC60: 100 | CD60: 0 | CE60: 100 | CF60: 0 | CG60: 100 | CH60: 0 | CI60: 100 | CJ60: 0 | CK60: 100 | CL60: 0 | CM60: 100 | CN60: 0 | CO60: 100 | CP60: 0 | CQ60: 100 | CR60: 0 | CS60: 100 | CT60: 0 | CU60: 100 | CV60: 0 | CW60: 100 | CX60: 0 | CY60: 100 | CZ60: 0 | DA60: 100 | DB60: 0 | DC60: 100 | DD60: 0 | DE60: 100 | DF60: 0 | DG60: 100 | DH60: 0 | DI60: 100 | DJ60: 0 | DK60: 100 | DL60: 0 | DM60: 100 | DN60: 0 | DO60: 100 | DP60: 0 | DQ60: 100 | DR60: 0 | DS60: 100 | DT60: 0 | DU60: 100 | DV60: 0 | DW60: 100 | DX60: 0 | DY60: 100 | DZ60: 0 | EA60: 100 | EB60: =IF(EB59>$F14+1,0,1)*(IF(EC60=0,100,0)+IF($G14=1,1,0)*$J14*100+IF($G14=2,0.5,0)*$J14*100+IF($G14=4,0.25,0)*$J14*100) -> 0 | EC60: 100 | ED60: 0 | EE60: 100 | EF60: 0 | EG60: 100 | EH60: 0 | EI60: 100 | EJ60: 0 | EK60: 100 | EL60: 0 | EM60: 100 | EN60: 0 | EO60: 100 | EP60: 0 | EQ60: 100 | ER60: 0 | ES60: 100 | ET60: 0 | EU60: 100 | EV60: 0 | EW60: 100 | EX60: 0 | EY60: 100 | EZ60: 0 | FA60: 100 | FB60: 0 | FC60: 100 | FD60: 0 | FE60: 100 | FF60: 0 | FG60: 100 | FH60: 0 | FI60: 100 | FJ60: 0 | FK60: 100 | FL60: 0 | FM60: 100 | FN60: 0 | FO60: 100 | FP60: 0 | FQ60: 100 | FR60: 0 | FS60: 100 | FT60: 0 | FU60: 100 | FV60: 0 | FW60: 100 | FX60: 0 | FY60: 100 | FZ60: 0 | GA60: 100 | GB60: 0 | GC60: 100 | GD60: 0 | GE60: 100 | GF60: 0 | GG60: 100 | GH60: 0 | GI60: 100 | GJ60: 0 | GK60: 100 | GL60: 0 | GM60: 100 | GN60: =IF(GN59>$F14+1,0,1)*(IF(GO60=0,100,0)+IF($G14=1,1,0)*$J14*100+IF($G14=2,0.5,0)*$J14*100+IF($G14=4,0.25,0)*$J14*100) -> 0 | GO60: 100 | GP60: 0 | GQ60: 100 | GR60: 0 | GS60: 100
A61: Payment Dates | B61: =IF(E15=0,F15,E15) -> 00:00:00 | C61: =B61+IF($G15=1,365,0)+IF($G15=2,182.5,0)+IF($G15=4,91.25,0) -> 00:00:00 | D61: =C61+IF($G15=1,365,0)+IF($G15=2,182.5,0)+IF($G15=4,91.25,0) -> 00:00:00 | E61: 00:00:00 | F61: 00:00:00 | G61: 00:00:00 | H61: 00:00:00 | I61: 00:00:00 | J61: 00:00:00 | K61: 00:00:00 | L61: 00:00:00 | M61: 00:00:00 | N61: 00:00:00 | O61: 00:00:00 | P61: 00:00:00 | Q61: 00:00:00 | R61: 00:00:00 | S61: 00:00:00 | T61: 00:00:00 | U61: 00:00:00 | V61: 00:00:00 | W61: 00:00:00 | X61: 00:00:00 | Y61: 00:00:00 | Z61: 00:00:00 | AA61: 00:00:00 | AB61: 00:00:00 | AC61: 00:00:00 | AD61: 00:00:00 | AE61: 00:00:00 | AF61: 00:00:00 | AG61: 00:00:00 | AH61: 00:00:00 | AI61: 00:00:00 | AJ61: 00:00:00 | AK61: 00:00:00 | AL61: 00:00:00 | AM61: 00:00:00 | AN61: 00:00:00 | AO61: 00:00:00 | AP61: 00:00:00 | AQ61: 00:00:00 | AR61: 00:00:00 | AS61: 00:00:00 | AT61: 00:00:00 | AU61: 00:00:00 | AV61: 00:00:00 | AW61: 00:00:00 | AX61: 00:00:00 | AY61: 00:00:00 | AZ61: 00:00:00 | BA61: 00:00:00 | BB61: 00:00:00 | BC61: 00:00:00 | BD61: 00:00:00 | BE61: 00:00:00 | BF61: 00:00:00 | BG61: 00:00:00 | BH61: 00:00:00 | BI61: 00:00:00 | BJ61: 00:00:00 | BK61: 00:00:00 | BL61: 00:00:00 | BM61: 00:00:00 | BN61: 00:00:00 | BO61: 00:00:00 | BP61: =BO61+IF($G15=1,365,0)+IF($G15=2,182.5,0)+IF($G15=4,91.25,0) -> 00:00:00 | BQ61: 00:00:00 | BR61: 00:00:00 | BS61: 00:00:00 | BT61: 00:00:00 | BU61: 00:00:00 | BV61: 00:00:00 | BW61: 00:00:00 | BX61: 00:00:00 | BY61: 00:00:00 | BZ61: 00:00:00 | CA61: 00:00:00 | CB61: 00:00:00 | CC61: 00:00:00 | CD61: 00:00:00 | CE61: 00:00:00 | CF61: 00:00:00 | CG61: 00:00:00 | CH61: 00:00:00 | CI61: 00:00:00 | CJ61: 00:00:00 | CK61: 00:00:00 | CL61: 00:00:00 | CM61: 00:00:00 | CN61: 00:00:00 | CO61: 00:00:00 | CP61: 00:00:00 | CQ61: 00:00:00 | CR61: 00:00:00 | CS61: 00:00:00 | CT61: 00:00:00 | CU61: 00:00:00 | CV61: 00:00:00 | CW61: 00:00:00 | CX61: 00:00:00 | CY61: 00:00:00 | CZ61: 00:00:00 | DA61: 00:00:00 | DB61: 00:00:00 | DC61: 00:00:00 | DD61: 00:00:00 | DE61: 00:00:00 | DF61: 00:00:00 | DG61: 00:00:00 | DH61: 00:00:00 | DI61: 00:00:00 | DJ61: 00:00:00 | DK61: 00:00:00 | DL61: 00:00:00 | DM61: 00:00:00 | DN61: 00:00:00 | DO61: 00:00:00 | DP61: 00:00:00 | DQ61: 00:00:00 | DR61: 00:00:00 | DS61: 00:00:00 | DT61: 00:00:00 | DU61: 00:00:00 | DV61: 00:00:00 | DW61: 00:00:00 | DX61: 00:00:00 | DY61: 00:00:00 | DZ61: 00:00:00 | EA61: 00:00:00 | EB61: =EA61+IF($G15=1,365,0)+IF($G15=2,182.5,0)+IF($G15=4,91.25,0) -> 00:00:00 | EC61: 00:00:00 | ED61: 00:00:00 | EE61: 00:00:00 | EF61: 00:00:00 | EG61: 00:00:00 | EH61: 00:00:00 | EI61: 00:00:00 | EJ61: 00:00:00 | EK61: 00:00:00 | EL61: 00:00:00 | EM61: 00:00:00 | EN61: 00:00:00 | EO61: 00:00:00 | EP61: 00:00:00 | EQ61: 00:00:00 | ER61: 00:00:00 | ES61: 00:00:00 | ET61: 00:00:00 | EU61: 00:00:00 | EV61: 00:00:00 | EW61: 00:00:00 | EX61: 00:00:00 | EY61: 00:00:00 | EZ61: 00:00:00 | FA61: 00:00:00 | FB61: 00:00:00 | FC61: 00:00:00 | FD61: 00:00:00 | FE61: 00:00:00 | FF61: 00:00:00 | FG61: 00:00:00 | FH61: 00:00:00 | FI61: 00:00:00 | FJ61: 00:00:00 | FK61: 00:00:00 | FL61: 00:00:00 | FM61: 00:00:00 | FN61: 00:00:00 | FO61: 00:00:00 | FP61: 00:00:00 | FQ61: 00:00:00 | FR61: 00:00:00 | FS61: 00:00:00 | FT61: 00:00:00 | FU61: 00:00:00 | FV61: 00:00:00 | FW61: 00:00:00 | FX61: 00:00:00 | FY61: 00:00:00 | FZ61: 00:00:00 | GA61: 00:00:00 | GB61: 00:00:00 | GC61: 00:00:00 | GD61: 00:00:00 | GE61: 00:00:00 | GF61: 00:00:00 | GG61: 00:00:00 | GH61: 00:00:00 | GI61: 00:00:00 | GJ61: 00:00:00 | GK61: 00:00:00 | GL61: 00:00:00 | GM61: 00:00:00 | GN61: =GM61+IF($G15=1,365,0)+IF($G15=2,182.5,0)+IF($G15=4,91.25,0) -> 00:00:00 | GO61: 00:00:00 | GP61: 00:00:00 | GQ61: 00:00:00 | GR61: 00:00:00 | GS61: 00:00:00
A62: Bond 14 | B62: =(IF(B61=F15,100,0)+IF(G15=1,1,0)*J15*100+IF(G15=2,0.5,0)*J15*100+IF(G15=4,0.25,0)*J15*100)*IF(ISBLANK(F15)=TRUE,0,1) -> 0 | C62: =IF(C61>$F15+1,0,1)*(IF(D62=0,100,0)+IF($G15=1,1,0)*$J15*100+IF($G15=2,0.5,0)*$J15*100+IF($G15=4,0.25,0)*$J15*100) -> 100 | D62: =IF(D61>$F15+1,0,1)*(IF(E62=0,100,0)+IF($G15=1,1,0)*$J15*100+IF($G15=2,0.5,0)*$J15*100+IF($G15=4,0.25,0)*$J15*100) -> 0 | E62: 100 | F62: 0 | G62: 100 | H62: 0 | I62: 100 | J62: 0 | K62: 100 | L62: 0 | M62: 100 | N62: 0 | O62: 100 | P62: 0 | Q62: 100 | R62: 0 | S62: 100 | T62: 0 | U62: 100 | V62: 0 | W62: 100 | X62: 0 | Y62: 100 | Z62: 0 | AA62: 100 | AB62: 0 | AC62: 100 | AD62: 0 | AE62: 100 | AF62: 0 | AG62: 100 | AH62: 0 | AI62: 100 | AJ62: 0 | AK62: 100 | AL62: 0 | AM62: 100 | AN62: 0 | AO62: 100 | AP62: 0 | AQ62: 100 | AR62: 0 | AS62: 100 | AT62: 0 | AU62: 100 | AV62: 0 | AW62: 100 | AX62: 0 | AY62: 100 | AZ62: 0 | BA62: 100 | BB62: 0 | BC62: 100 | BD62: 0 | BE62: 100 | BF62: 0 | BG62: 100 | BH62: 0 | BI62: 100 | BJ62: 0 | BK62: 100 | BL62: 0 | BM62: 100 | BN62: 0 | BO62: 100 | BP62: =IF(BP61>$F15+1,0,1)*(IF(BQ62=0,100,0)+IF($G15=1,1,0)*$J15*100+IF($G15=2,0.5,0)*$J15*100+IF($G15=4,0.25,0)*$J15*100) -> 0 | BQ62: 100 | BR62: 0 | BS62: 100 | BT62: 0 | BU62: 100 | BV62: 0 | BW62: 100 | BX62: 0 | BY62: 100 | BZ62: 0 | CA62: 100 | CB62: 0 | CC62: 100 | CD62: 0 | CE62: 100 | CF62: 0 | CG62: 100 | CH62: 0 | CI62: 100 | CJ62: 0 | CK62: 100 | CL62: 0 | CM62: 100 | CN62: 0 | CO62: 100 | CP62: 0 | CQ62: 100 | CR62: 0 | CS62: 100 | CT62: 0 | CU62: 100 | CV62: 0 | CW62: 100 | CX62: 0 | CY62: 100 | CZ62: 0 | DA62: 100 | DB62: 0 | DC62: 100 | DD62: 0 | DE62: 100 | DF62: 0 | DG62: 100 | DH62: 0 | DI62: 100 | DJ62: 0 | DK62: 100 | DL62: 0 | DM62: 100 | DN62: 0 | DO62: 100 | DP62: 0 | DQ62: 100 | DR62: 0 | DS62: 100 | DT62: 0 | DU62: 100 | DV62: 0 | DW62: 100 | DX62: 0 | DY62: 100 | DZ62: 0 | EA62: 100 | EB62: =IF(EB61>$F15+1,0,1)*(IF(EC62=0,100,0)+IF($G15=1,1,0)*$J15*100+IF($G15=2,0.5,0)*$J15*100+IF($G15=4,0.25,0)*$J15*100) -> 0 | EC62: 100 | ED62: 0 | EE62: 100 | EF62: 0 | EG62: 100 | EH62: 0 | EI62: 100 | EJ62: 0 | EK62: 100 | EL62: 0 | EM62: 100 | EN62: 0 | EO62: 100 | EP62: 0 | EQ62: 100 | ER62: 0 | ES62: 100 | ET62: 0 | EU62: 100 | EV62: 0 | EW62: 100 | EX62: 0 | EY62: 100 | EZ62: 0 | FA62: 100 | FB62: 0 | FC62: 100 | FD62: 0 | FE62: 100 | FF62: 0 | FG62: 100 | FH62: 0 | FI62: 100 | FJ62: 0 | FK62: 100 | FL62: 0 | FM62: 100 | FN62: 0 | FO62: 100 | FP62: 0 | FQ62: 100 | FR62: 0 | FS62: 100 | FT62: 0 | FU62: 100 | FV62: 0 | FW62: 100 | FX62: 0 | FY62: 100 | FZ62: 0 | GA62: 100 | GB62: 0 | GC62: 100 | GD62: 0 | GE62: 100 | GF62: 0 | GG62: 100 | GH62: 0 | GI62: 100 | GJ62: 0 | GK62: 100 | GL62: 0 | GM62: 100 | GN62: =IF(GN61>$F15+1,0,1)*(IF(GO62=0,100,0)+IF($G15=1,1,0)*$J15*100+IF($G15=2,0.5,0)*$J15*100+IF($G15=4,0.25,0)*$J15*100) -> 0 | GO62: 100 | GP62: 0 | GQ62: 100 | GR62: 0 | GS62: 100
A63: Payment Dates | B63: =IF(E16=0,F16,E16) -> 00:00:00 | C63: =B63+IF($G16=1,365,0)+IF($G16=2,182.5,0)+IF($G16=4,91.25,0) -> 00:00:00 | D63: =C63+IF($G16=1,365,0)+IF($G16=2,182.5,0)+IF($G16=4,91.25,0) -> 00:00:00 | E63: 00:00:00 | F63: 00:00:00 | G63: 00:00:00 | H63: 00:00:00 | I63: 00:00:00 | J63: 00:00:00 | K63: 00:00:00 | L63: 00:00:00 | M63: 00:00:00 | N63: 00:00:00 | O63: 00:00:00 | P63: 00:00:00 | Q63: 00:00:00 | R63: 00:00:00 | S63: 00:00:00 | T63: 00:00:00 | U63: 00:00:00 | V63: 00:00:00 | W63: 00:00:00 | X63: 00:00:00 | Y63: 00:00:00 | Z63: 00:00:00 | AA63: 00:00:00 | AB63: 00:00:00 | AC63: 00:00:00 | AD63: 00:00:00 | AE63: 00:00:00 | AF63: 00:00:00 | AG63: 00:00:00 | AH63: 00:00:00 | AI63: 00:00:00 | AJ63: 00:00:00 | AK63: 00:00:00 | AL63: 00:00:00 | AM63: 00:00:00 | AN63: 00:00:00 | AO63: 00:00:00 | AP63: 00:00:00 | AQ63: 00:00:00 | AR63: 00:00:00 | AS63: 00:00:00 | AT63: 00:00:00 | AU63: 00:00:00 | AV63: 00:00:00 | AW63: 00:00:00 | AX63: 00:00:00 | AY63: 00:00:00 | AZ63: 00:00:00 | BA63: 00:00:00 | BB63: 00:00:00 | BC63: 00:00:00 | BD63: 00:00:00 | BE63: 00:00:00 | BF63: 00:00:00 | BG63: 00:00:00 | BH63: 00:00:00 | BI63: 00:00:00 | BJ63: 00:00:00 | BK63: 00:00:00 | BL63: 00:00:00 | BM63: 00:00:00 | BN63: 00:00:00 | BO63: 00:00:00 | BP63: =BO63+IF($G16=1,365,0)+IF($G16=2,182.5,0)+IF($G16=4,91.25,0) -> 00:00:00 | BQ63: 00:00:00 | BR63: 00:00:00 | BS63: 00:00:00 | BT63: 00:00:00 | BU63: 00:00:00 | BV63: 00:00:00 | BW63: 00:00:00 | BX63: 00:00:00 | BY63: 00:00:00 | BZ63: 00:00:00 | CA63: 00:00:00 | CB63: 00:00:00 | CC63: 00:00:00 | CD63: 00:00:00 | CE63: 00:00:00 | CF63: 00:00:00 | CG63: 00:00:00 | CH63: 00:00:00 | CI63: 00:00:00 | CJ63: 00:00:00 | CK63: 00:00:00 | CL63: 00:00:00 | CM63: 00:00:00 | CN63: 00:00:00 | CO63: 00:00:00 | CP63: 00:00:00 | CQ63: 00:00:00 | CR63: 00:00:00 | CS63: 00:00:00 | CT63: 00:00:00 | CU63: 00:00:00 | CV63: 00:00:00 | CW63: 00:00:00 | CX63: 00:00:00 | CY63: 00:00:00 | CZ63: 00:00:00 | DA63: 00:00:00 | DB63: 00:00:00 | DC63: 00:00:00 | DD63: 00:00:00 | DE63: 00:00:00 | DF63: 00:00:00 | DG63: 00:00:00 | DH63: 00:00:00 | DI63: 00:00:00 | DJ63: 00:00:00 | DK63: 00:00:00 | DL63: 00:00:00 | DM63: 00:00:00 | DN63: 00:00:00 | DO63: 00:00:00 | DP63: 00:00:00 | DQ63: 00:00:00 | DR63: 00:00:00 | DS63: 00:00:00 | DT63: 00:00:00 | DU63: 00:00:00 | DV63: 00:00:00 | DW63: 00:00:00 | DX63: 00:00:00 | DY63: 00:00:00 | DZ63: 00:00:00 | EA63: 00:00:00 | EB63: =EA63+IF($G16=1,365,0)+IF($G16=2,182.5,0)+IF($G16=4,91.25,0) -> 00:00:00 | EC63: 00:00:00 | ED63: 00:00:00 | EE63: 00:00:00 | EF63: 00:00:00 | EG63: 00:00:00 | EH63: 00:00:00 | EI63: 00:00:00 | EJ63: 00:00:00 | EK63: 00:00:00 | EL63: 00:00:00 | EM63: 00:00:00 | EN63: 00:00:00 | EO63: 00:00:00 | EP63: 00:00:00 | EQ63: 00:00:00 | ER63: 00:00:00 | ES63: 00:00:00 | ET63: 00:00:00 | EU63: 00:00:00 | EV63: 00:00:00 | EW63: 00:00:00 | EX63: 00:00:00 | EY63: 00:00:00 | EZ63: 00:00:00 | FA63: 00:00:00 | FB63: 00:00:00 | FC63: 00:00:00 | FD63: 00:00:00 | FE63: 00:00:00 | FF63: 00:00:00 | FG63: 00:00:00 | FH63: 00:00:00 | FI63: 00:00:00 | FJ63: 00:00:00 | FK63: 00:00:00 | FL63: 00:00:00 | FM63: 00:00:00 | FN63: 00:00:00 | FO63: 00:00:00 | FP63: 00:00:00 | FQ63: 00:00:00 | FR63: 00:00:00 | FS63: 00:00:00 | FT63: 00:00:00 | FU63: 00:00:00 | FV63: 00:00:00 | FW63: 00:00:00 | FX63: 00:00:00 | FY63: 00:00:00 | FZ63: 00:00:00 | GA63: 00:00:00 | GB63: 00:00:00 | GC63: 00:00:00 | GD63: 00:00:00 | GE63: 00:00:00 | GF63: 00:00:00 | GG63: 00:00:00 | GH63: 00:00:00 | GI63: 00:00:00 | GJ63: 00:00:00 | GK63: 00:00:00 | GL63: 00:00:00 | GM63: 00:00:00 | GN63: =GM63+IF($G16=1,365,0)+IF($G16=2,182.5,0)+IF($G16=4,91.25,0) -> 00:00:00 | GO63: 00:00:00 | GP63: 00:00:00 | GQ63: 00:00:00 | GR63: 00:00:00 | GS63: 00:00:00
A64: Bond 15 | B64: =(IF(B63=F16,100,0)+IF(G16=1,1,0)*J16*100+IF(G16=2,0.5,0)*J16*100+IF(G16=4,0.25,0)*J16*100)*IF(ISBLANK(F16)=TRUE,0,1) -> 0 | C64: =IF(C63>$F16+1,0,1)*(IF(D64=0,100,0)+IF($G16=1,1,0)*$J16*100+IF($G16=2,0.5,0)*$J16*100+IF($G16=4,0.25,0)*$J16*100) -> 100 | D64: =IF(D63>$F16+1,0,1)*(IF(E64=0,100,0)+IF($G16=1,1,0)*$J16*100+IF($G16=2,0.5,0)*$J16*100+IF($G16=4,0.25,0)*$J16*100) -> 0 | E64: 100 | F64: 0 | G64: 100 | H64: 0 | I64: 100 | J64: 0 | K64: 100 | L64: 0 | M64: 100 | N64: 0 | O64: 100 | P64: 0 | Q64: 100 | R64: 0 | S64: 100 | T64: 0 | U64: 100 | V64: 0 | W64: 100 | X64: 0 | Y64: 100 | Z64: 0 | AA64: 100 | AB64: 0 | AC64: 100 | AD64: 0 | AE64: 100 | AF64: 0 | AG64: 100 | AH64: 0 | AI64: 100 | AJ64: 0 | AK64: 100 | AL64: 0 | AM64: 100 | AN64: 0 | AO64: 100 | AP64: 0 | AQ64: 100 | AR64: 0 | AS64: 100 | AT64: 0 | AU64: 100 | AV64: 0 | AW64: 100 | AX64: 0 | AY64: 100 | AZ64: 0 | BA64: 100 | BB64: 0 | BC64: 100 | BD64: 0 | BE64: 100 | BF64: 0 | BG64: 100 | BH64: 0 | BI64: 100 | BJ64: 0 | BK64: 100 | BL64: 0 | BM64: 100 | BN64: 0 | BO64: 100 | BP64: =IF(BP63>$F16+1,0,1)*(IF(BQ64=0,100,0)+IF($G16=1,1,0)*$J16*100+IF($G16=2,0.5,0)*$J16*100+IF($G16=4,0.25,0)*$J16*100) -> 0 | BQ64: 100 | BR64: 0 | BS64: 100 | BT64: 0 | BU64: 100 | BV64: 0 | BW64: 100 | BX64: 0 | BY64: 100 | BZ64: 0 | CA64: 100 | CB64: 0 | CC64: 100 | CD64: 0 | CE64: 100 | CF64: 0 | CG64: 100 | CH64: 0 | CI64: 100 | CJ64: 0 | CK64: 100 | CL64: 0 | CM64: 100 | CN64: 0 | CO64: 100 | CP64: 0 | CQ64: 100 | CR64: 0 | CS64: 100 | CT64: 0 | CU64: 100 | CV64: 0 | CW64: 100 | CX64: 0 | CY64: 100 | CZ64: 0 | DA64: 100 | DB64: 0 | DC64: 100 | DD64: 0 | DE64: 100 | DF64: 0 | DG64: 100 | DH64: 0 | DI64: 100 | DJ64: 0 | DK64: 100 | DL64: 0 | DM64: 100 | DN64: 0 | DO64: 100 | DP64: 0 | DQ64: 100 | DR64: 0 | DS64: 100 | DT64: 0 | DU64: 100 | DV64: 0 | DW64: 100 | DX64: 0 | DY64: 100 | DZ64: 0 | EA64: 100 | EB64: =IF(EB63>$F16+1,0,1)*(IF(EC64=0,100,0)+IF($G16=1,1,0)*$J16*100+IF($G16=2,0.5,0)*$J16*100+IF($G16=4,0.25,0)*$J16*100) -> 0 | EC64: 100 | ED64: 0 | EE64: 100 | EF64: 0 | EG64: 100 | EH64: 0 | EI64: 100 | EJ64: 0 | EK64: 100 | EL64: 0 | EM64: 100 | EN64: 0 | EO64: 100 | EP64: 0 | EQ64: 100 | ER64: 0 | ES64: 100 | ET64: 0 | EU64: 100 | EV64: 0 | EW64: 100 | EX64: 0 | EY64: 100 | EZ64: 0 | FA64: 100 | FB64: 0 | FC64: 100 | FD64: 0 | FE64: 100 | FF64: 0 | FG64: 100 | FH64: 0 | FI64: 100 | FJ64: 0 | FK64: 100 | FL64: 0 | FM64: 100 | FN64: 0 | FO64: 100 | FP64: 0 | FQ64: 100 | FR64: 0 | FS64: 100 | FT64: 0 | FU64: 100 | FV64: 0 | FW64: 100 | FX64: 0 | FY64: 100 | FZ64: 0 | GA64: 100 | GB64: 0 | GC64: 100 | GD64: 0 | GE64: 100 | GF64: 0 | GG64: 100 | GH64: 0 | GI64: 100 | GJ64: 0 | GK64: 100 | GL64: 0 | GM64: 100 | GN64: =IF(GN63>$F16+1,0,1)*(IF(GO64=0,100,0)+IF($G16=1,1,0)*$J16*100+IF($G16=2,0.5,0)*$J16*100+IF($G16=4,0.25,0)*$J16*100) -> 0 | GO64: 100 | GP64: 0 | GQ64: 100 | GR64: 0 | GS64: 100
A65: Payment Dates | B65: =IF(E17=0,F17,E17) -> 00:00:00 | C65: =B65+IF($G17=1,365,0)+IF($G17=2,182.5,0)+IF($G17=4,91.25,0) -> 00:00:00 | D65: =C65+IF($G17=1,365,0)+IF($G17=2,182.5,0)+IF($G17=4,91.25,0) -> 00:00:00 | E65: 00:00:00 | F65: 00:00:00 | G65: 00:00:00 | H65: 00:00:00 | I65: 00:00:00 | J65: 00:00:00 | K65: 00:00:00 | L65: 00:00:00 | M65: 00:00:00 | N65: 00:00:00 | O65: 00:00:00 | P65: 00:00:00 | Q65: 00:00:00 | R65: 00:00:00 | S65: 00:00:00 | T65: 00:00:00 | U65: 00:00:00 | V65: 00:00:00 | W65: 00:00:00 | X65: 00:00:00 | Y65: 00:00:00 | Z65: 00:00:00 | AA65: 00:00:00 | AB65: 00:00:00 | AC65: 00:00:00 | AD65: 00:00:00 | AE65: 00:00:00 | AF65: 00:00:00 | AG65: 00:00:00 | AH65: 00:00:00 | AI65: 00:00:00 | AJ65: 00:00:00 | AK65: 00:00:00 | AL65: 00:00:00 | AM65: 00:00:00 | AN65: 00:00:00 | AO65: 00:00:00 | AP65: 00:00:00 | AQ65: 00:00:00 | AR65: 00:00:00 | AS65: 00:00:00 | AT65: 00:00:00 | AU65: 00:00:00 | AV65: 00:00:00 | AW65: 00:00:00 | AX65: 00:00:00 | AY65: 00:00:00 | AZ65: 00:00:00 | BA65: 00:00:00 | BB65: 00:00:00 | BC65: 00:00:00 | BD65: 00:00:00 | BE65: 00:00:00 | BF65: 00:00:00 | BG65: 00:00:00 | BH65: 00:00:00 | BI65: 00:00:00 | BJ65: 00:00:00 | BK65: 00:00:00 | BL65: 00:00:00 | BM65: 00:00:00 | BN65: 00:00:00 | BO65: 00:00:00 | BP65: =BO65+IF($G17=1,365,0)+IF($G17=2,182.5,0)+IF($G17=4,91.25,0) -> 00:00:00 | BQ65: 00:00:00 | BR65: 00:00:00 | BS65: 00:00:00 | BT65: 00:00:00 | BU65: 00:00:00 | BV65: 00:00:00 | BW65: 00:00:00 | BX65: 00:00:00 | BY65: 00:00:00 | BZ65: 00:00:00 | CA65: 00:00:00 | CB65: 00:00:00 | CC65: 00:00:00 | CD65: 00:00:00 | CE65: 00:00:00 | CF65: 00:00:00 | CG65: 00:00:00 | CH65: 00:00:00 | CI65: 00:00:00 | CJ65: 00:00:00 | CK65: 00:00:00 | CL65: 00:00:00 | CM65: 00:00:00 | CN65: 00:00:00 | CO65: 00:00:00 | CP65: 00:00:00 | CQ65: 00:00:00 | CR65: 00:00:00 | CS65: 00:00:00 | CT65: 00:00:00 | CU65: 00:00:00 | CV65: 00:00:00 | CW65: 00:00:00 | CX65: 00:00:00 | CY65: 00:00:00 | CZ65: 00:00:00 | DA65: 00:00:00 | DB65: 00:00:00 | DC65: 00:00:00 | DD65: 00:00:00 | DE65: 00:00:00 | DF65: 00:00:00 | DG65: 00:00:00 | DH65: 00:00:00 | DI65: 00:00:00 | DJ65: 00:00:00 | DK65: 00:00:00 | DL65: 00:00:00 | DM65: 00:00:00 | DN65: 00:00:00 | DO65: 00:00:00 | DP65: 00:00:00 | DQ65: 00:00:00 | DR65: 00:00:00 | DS65: 00:00:00 | DT65: 00:00:00 | DU65: 00:00:00 | DV65: 00:00:00 | DW65: 00:00:00 | DX65: 00:00:00 | DY65: 00:00:00 | DZ65: 00:00:00 | EA65: 00:00:00 | EB65: =EA65+IF($G17=1,365,0)+IF($G17=2,182.5,0)+IF($G17=4,91.25,0) -> 00:00:00 | EC65: 00:00:00 | ED65: 00:00:00 | EE65: 00:00:00 | EF65: 00:00:00 | EG65: 00:00:00 | EH65: 00:00:00 | EI65: 00:00:00 | EJ65: 00:00:00 | EK65: 00:00:00 | EL65: 00:00:00 | EM65: 00:00:00 | EN65: 00:00:00 | EO65: 00:00:00 | EP65: 00:00:00 | EQ65: 00:00:00 | ER65: 00:00:00 | ES65: 00:00:00 | ET65: 00:00:00 | EU65: 00:00:00 | EV65: 00:00:00 | EW65: 00:00:00 | EX65: 00:00:00 | EY65: 00:00:00 | EZ65: 00:00:00 | FA65: 00:00:00 | FB65: 00:00:00 | FC65: 00:00:00 | FD65: 00:00:00 | FE65: 00:00:00 | FF65: 00:00:00 | FG65: 00:00:00 | FH65: 00:00:00 | FI65: 00:00:00 | FJ65: 00:00:00 | FK65: 00:00:00 | FL65: 00:00:00 | FM65: 00:00:00 | FN65: 00:00:00 | FO65: 00:00:00 | FP65: 00:00:00 | FQ65: 00:00:00 | FR65: 00:00:00 | FS65: 00:00:00 | FT65: 00:00:00 | FU65: 00:00:00 | FV65: 00:00:00 | FW65: 00:00:00 | FX65: 00:00:00 | FY65: 00:00:00 | FZ65: 00:00:00 | GA65: 00:00:00 | GB65: 00:00:00 | GC65: 00:00:00 | GD65: 00:00:00 | GE65: 00:00:00 | GF65: 00:00:00 | GG65: 00:00:00 | GH65: 00:00:00 | GI65: 00:00:00 | GJ65: 00:00:00 | GK65: 00:00:00 | GL65: 00:00:00 | GM65: 00:00:00 | GN65: =GM65+IF($G17=1,365,0)+IF($G17=2,182.5,0)+IF($G17=4,91.25,0) -> 00:00:00 | GO65: 00:00:00 | GP65: 00:00:00 | GQ65: 00:00:00 | GR65: 00:00:00 | GS65: 00:00:00
A66: Bond 16 | B66: =(IF(B65=F17,100,0)+IF(G17=1,1,0)*J17*100+IF(G17=2,0.5,0)*J17*100+IF(G17=4,0.25,0)*J17*100)*IF(ISBLANK(F17)=TRUE,0,1) -> 0 | C66: =IF(C65>$F17+1,0,1)*(IF(D66=0,100,0)+IF($G17=1,1,0)*$J17*100+IF($G17=2,0.5,0)*$J17*100+IF($G17=4,0.25,0)*$J17*100) -> 100 | D66: =IF(D65>$F17+1,0,1)*(IF(E66=0,100,0)+IF($G17=1,1,0)*$J17*100+IF($G17=2,0.5,0)*$J17*100+IF($G17=4,0.25,0)*$J17*100) -> 0 | E66: 100 | F66: 0 | G66: 100 | H66: 0 | I66: 100 | J66: 0 | K66: 100 | L66: 0 | M66: 100 | N66: 0 | O66: 100 | P66: 0 | Q66: 100 | R66: 0 | S66: 100 | T66: 0 | U66: 100 | V66: 0 | W66: 100 | X66: 0 | Y66: 100 | Z66: 0 | AA66: 100 | AB66: 0 | AC66: 100 | AD66: 0 | AE66: 100 | AF66: 0 | AG66: 100 | AH66: 0 | AI66: 100 | AJ66: 0 | AK66: 100 | AL66: 0 | AM66: 100 | AN66: 0 | AO66: 100 | AP66: 0 | AQ66: 100 | AR66: 0 | AS66: 100 | AT66: 0 | AU66: 100 | AV66: 0 | AW66: 100 | AX66: 0 | AY66: 100 | AZ66: 0 | BA66: 100 | BB66: 0 | BC66: 100 | BD66: 0 | BE66: 100 | BF66: 0 | BG66: 100 | BH66: 0 | BI66: 100 | BJ66: 0 | BK66: 100 | BL66: 0 | BM66: 100 | BN66: 0 | BO66: 100 | BP66: =IF(BP65>$F17+1,0,1)*(IF(BQ66=0,100,0)+IF($G17=1,1,0)*$J17*100+IF($G17=2,0.5,0)*$J17*100+IF($G17=4,0.25,0)*$J17*100) -> 0 | BQ66: 100 | BR66: 0 | BS66: 100 | BT66: 0 | BU66: 100 | BV66: 0 | BW66: 100 | BX66: 0 | BY66: 100 | BZ66: 0 | CA66: 100 | CB66: 0 | CC66: 100 | CD66: 0 | CE66: 100 | CF66: 0 | CG66: 100 | CH66: 0 | CI66: 100 | CJ66: 0 | CK66: 100 | CL66: 0 | CM66: 100 | CN66: 0 | CO66: 100 | CP66: 0 | CQ66: 100 | CR66: 0 | CS66: 100 | CT66: 0 | CU66: 100 | CV66: 0 | CW66: 100 | CX66: 0 | CY66: 100 | CZ66: 0 | DA66: 100 | DB66: 0 | DC66: 100 | DD66: 0 | DE66: 100 | DF66: 0 | DG66: 100 | DH66: 0 | DI66: 100 | DJ66: 0 | DK66: 100 | DL66: 0 | DM66: 100 | DN66: 0 | DO66: 100 | DP66: 0 | DQ66: 100 | DR66: 0 | DS66: 100 | DT66: 0 | DU66: 100 | DV66: 0 | DW66: 100 | DX66: 0 | DY66: 100 | DZ66: 0 | EA66: 100 | EB66: =IF(EB65>$F17+1,0,1)*(IF(EC66=0,100,0)+IF($G17=1,1,0)*$J17*100+IF($G17=2,0.5,0)*$J17*100+IF($G17=4,0.25,0)*$J17*100) -> 0 | EC66: 100 | ED66: 0 | EE66: 100 | EF66: 0 | EG66: 100 | EH66: 0 | EI66: 100 | EJ66: 0 | EK66: 100 | EL66: 0 | EM66: 100 | EN66: 0 | EO66: 100 | EP66: 0 | EQ66: 100 | ER66: 0 | ES66: 100 | ET66: 0 | EU66: 100 | EV66: 0 | EW66: 100 | EX66: 0 | EY66: 100 | EZ66: 0 | FA66: 100 | FB66: 0 | FC66: 100 | FD66: 0 | FE66: 100 | FF66: 0 | FG66: 100 | FH66: 0 | FI66: 100 | FJ66: 0 | FK66: 100 | FL66: 0 | FM66: 100 | FN66: 0 | FO66: 100 | FP66: 0 | FQ66: 100 | FR66: 0 | FS66: 100 | FT66: 0 | FU66: 100 | FV66: 0 | FW66: 100 | FX66: 0 | FY66: 100 | FZ66: 0 | GA66: 100 | GB66: 0 | GC66: 100 | GD66: 0 | GE66: 100 | GF66: 0 | GG66: 100 | GH66: 0 | GI66: 100 | GJ66: 0 | GK66: 100 | GL66: 0 | GM66: 100 | GN66: =IF(GN65>$F17+1,0,1)*(IF(GO66=0,100,0)+IF($G17=1,1,0)*$J17*100+IF($G17=2,0.5,0)*$J17*100+IF($G17=4,0.25,0)*$J17*100) -> 0 | GO66: 100 | GP66: 0 | GQ66: 100 | GR66: 0 | GS66: 100
A67: Payment Dates | B67: =IF(E18=0,F18,E18) -> 00:00:00 | C67: =B67+IF($G18=1,365,0)+IF($G18=2,182.5,0)+IF($G18=4,91.25,0) -> 00:00:00 | D67: =C67+IF($G18=1,365,0)+IF($G18=2,182.5,0)+IF($G18=4,91.25,0) -> 00:00:00 | E67: 00:00:00 | F67: 00:00:00 | G67: 00:00:00 | H67: 00:00:00 | I67: 00:00:00 | J67: 00:00:00 | K67: 00:00:00 | L67: 00:00:00 | M67: 00:00:00 | N67: 00:00:00 | O67: 00:00:00 | P67: 00:00:00 | Q67: 00:00:00 | R67: 00:00:00 | S67: 00:00:00 | T67: 00:00:00 | U67: 00:00:00 | V67: 00:00:00 | W67: 00:00:00 | X67: 00:00:00 | Y67: 00:00:00 | Z67: 00:00:00 | AA67: 00:00:00 | AB67: 00:00:00 | AC67: 00:00:00 | AD67: 00:00:00 | AE67: 00:00:00 | AF67: 00:00:00 | AG67: 00:00:00 | AH67: 00:00:00 | AI67: 00:00:00 | AJ67: 00:00:00 | AK67: 00:00:00 | AL67: 00:00:00 | AM67: 00:00:00 | AN67: 00:00:00 | AO67: 00:00:00 | AP67: 00:00:00 | AQ67: 00:00:00 | AR67: 00:00:00 | AS67: 00:00:00 | AT67: 00:00:00 | AU67: 00:00:00 | AV67: 00:00:00 | AW67: 00:00:00 | AX67: 00:00:00 | AY67: 00:00:00 | AZ67: 00:00:00 | BA67: 00:00:00 | BB67: 00:00:00 | BC67: 00:00:00 | BD67: 00:00:00 | BE67: 00:00:00 | BF67: 00:00:00 | BG67: 00:00:00 | BH67: 00:00:00 | BI67: 00:00:00 | BJ67: 00:00:00 | BK67: 00:00:00 | BL67: 00:00:00 | BM67: 00:00:00 | BN67: 00:00:00 | BO67: 00:00:00 | BP67: =BO67+IF($G18=1,365,0)+IF($G18=2,182.5,0)+IF($G18=4,91.25,0) -> 00:00:00 | BQ67: 00:00:00 | BR67: 00:00:00 | BS67: 00:00:00 | BT67: 00:00:00 | BU67: 00:00:00 | BV67: 00:00:00 | BW67: 00:00:00 | BX67: 00:00:00 | BY67: 00:00:00 | BZ67: 00:00:00 | CA67: 00:00:00 | CB67: 00:00:00 | CC67: 00:00:00 | CD67: 00:00:00 | CE67: 00:00:00 | CF67: 00:00:00 | CG67: 00:00:00 | CH67: 00:00:00 | CI67: 00:00:00 | CJ67: 00:00:00 | CK67: 00:00:00 | CL67: 00:00:00 | CM67: 00:00:00 | CN67: 00:00:00 | CO67: 00:00:00 | CP67: 00:00:00 | CQ67: 00:00:00 | CR67: 00:00:00 | CS67: 00:00:00 | CT67: 00:00:00 | CU67: 00:00:00 | CV67: 00:00:00 | CW67: 00:00:00 | CX67: 00:00:00 | CY67: 00:00:00 | CZ67: 00:00:00 | DA67: 00:00:00 | DB67: 00:00:00 | DC67: 00:00:00 | DD67: 00:00:00 | DE67: 00:00:00 | DF67: 00:00:00 | DG67: 00:00:00 | DH67: 00:00:00 | DI67: 00:00:00 | DJ67: 00:00:00 | DK67: 00:00:00 | DL67: 00:00:00 | DM67: 00:00:00 | DN67: 00:00:00 | DO67: 00:00:00 | DP67: 00:00:00 | DQ67: 00:00:00 | DR67: 00:00:00 | DS67: 00:00:00 | DT67: 00:00:00 | DU67: 00:00:00 | DV67: 00:00:00 | DW67: 00:00:00 | DX67: 00:00:00 | DY67: 00:00:00 | DZ67: 00:00:00 | EA67: 00:00:00 | EB67: =EA67+IF($G18=1,365,0)+IF($G18=2,182.5,0)+IF($G18=4,91.25,0) -> 00:00:00 | EC67: 00:00:00 | ED67: 00:00:00 | EE67: 00:00:00 | EF67: 00:00:00 | EG67: 00:00:00 | EH67: 00:00:00 | EI67: 00:00:00 | EJ67: 00:00:00 | EK67: 00:00:00 | EL67: 00:00:00 | EM67: 00:00:00 | EN67: 00:00:00 | EO67: 00:00:00 | EP67: 00:00:00 | EQ67: 00:00:00 | ER67: 00:00:00 | ES67: 00:00:00 | ET67: 00:00:00 | EU67: 00:00:00 | EV67: 00:00:00 | EW67: 00:00:00 | EX67: 00:00:00 | EY67: 00:00:00 | EZ67: 00:00:00 | FA67: 00:00:00 | FB67: 00:00:00 | FC67: 00:00:00 | FD67: 00:00:00 | FE67: 00:00:00 | FF67: 00:00:00 | FG67: 00:00:00 | FH67: 00:00:00 | FI67: 00:00:00 | FJ67: 00:00:00 | FK67: 00:00:00 | FL67: 00:00:00 | FM67: 00:00:00 | FN67: 00:00:00 | FO67: 00:00:00 | FP67: 00:00:00 | FQ67: 00:00:00 | FR67: 00:00:00 | FS67: 00:00:00 | FT67: 00:00:00 | FU67: 00:00:00 | FV67: 00:00:00 | FW67: 00:00:00 | FX67: 00:00:00 | FY67: 00:00:00 | FZ67: 00:00:00 | GA67: 00:00:00 | GB67: 00:00:00 | GC67: 00:00:00 | GD67: 00:00:00 | GE67: 00:00:00 | GF67: 00:00:00 | GG67: 00:00:00 | GH67: 00:00:00 | GI67: 00:00:00 | GJ67: 00:00:00 | GK67: 00:00:00 | GL67: 00:00:00 | GM67: 00:00:00 | GN67: =GM67+IF($G18=1,365,0)+IF($G18=2,182.5,0)+IF($G18=4,91.25,0) -> 00:00:00 | GO67: 00:00:00 | GP67: 00:00:00 | GQ67: 00:00:00 | GR67: 00:00:00 | GS67: 00:00:00
A68: Bond 17 | B68: =(IF(B67=F18,100,0)+IF(G18=1,1,0)*J18*100+IF(G18=2,0.5,0)*J18*100+IF(G18=4,0.25,0)*J18*100)*IF(ISBLANK(F18)=TRUE,0,1) -> 0 | C68: =IF(C67>$F18+1,0,1)*(IF(D68=0,100,0)+IF($G18=1,1,0)*$J18*100+IF($G18=2,0.5,0)*$J18*100+IF($G18=4,0.25,0)*$J18*100) -> 100 | D68: =IF(D67>$F18+1,0,1)*(IF(E68=0,100,0)+IF($G18=1,1,0)*$J18*100+IF($G18=2,0.5,0)*$J18*100+IF($G18=4,0.25,0)*$J18*100) -> 0 | E68: 100 | F68: 0 | G68: 100 | H68: 0 | I68: 100 | J68: 0 | K68: 100 | L68: 0 | M68: 100 | N68: 0 | O68: 100 | P68: 0 | Q68: 100 | R68: 0 | S68: 100 | T68: 0 | U68: 100 | V68: 0 | W68: 100 | X68: 0 | Y68: 100 | Z68: 0 | AA68: 100 | AB68: 0 | AC68: 100 | AD68: 0 | AE68: 100 | AF68: 0 | AG68: 100 | AH68: 0 | AI68: 100 | AJ68: 0 | AK68: 100 | AL68: 0 | AM68: 100 | AN68: 0 | AO68: 100 | AP68: 0 | AQ68: 100 | AR68: 0 | AS68: 100 | AT68: 0 | AU68: 100 | AV68: 0 | AW68: 100 | AX68: 0 | AY68: 100 | AZ68: 0 | BA68: 100 | BB68: 0 | BC68: 100 | BD68: 0 | BE68: 100 | BF68: 0 | BG68: 100 | BH68: 0 | BI68: 100 | BJ68: 0 | BK68: 100 | BL68: 0 | BM68: 100 | BN68: 0 | BO68: 100 | BP68: =IF(BP67>$F18+1,0,1)*(IF(BQ68=0,100,0)+IF($G18=1,1,0)*$J18*100+IF($G18=2,0.5,0)*$J18*100+IF($G18=4,0.25,0)*$J18*100) -> 0 | BQ68: 100 | BR68: 0 | BS68: 100 | BT68: 0 | BU68: 100 | BV68: 0 | BW68: 100 | BX68: 0 | BY68: 100 | BZ68: 0 | CA68: 100 | CB68: 0 | CC68: 100 | CD68: 0 | CE68: 100 | CF68: 0 | CG68: 100 | CH68: 0 | CI68: 100 | CJ68: 0 | CK68: 100 | CL68: 0 | CM68: 100 | CN68: 0 | CO68: 100 | CP68: 0 | CQ68: 100 | CR68: 0 | CS68: 100 | CT68: 0 | CU68: 100 | CV68: 0 | CW68: 100 | CX68: 0 | CY68: 100 | CZ68: 0 | DA68: 100 | DB68: 0 | DC68: 100 | DD68: 0 | DE68: 100 | DF68: 0 | DG68: 100 | DH68: 0 | DI68: 100 | DJ68: 0 | DK68: 100 | DL68: 0 | DM68: 100 | DN68: 0 | DO68: 100 | DP68: 0 | DQ68: 100 | DR68: 0 | DS68: 100 | DT68: 0 | DU68: 100 | DV68: 0 | DW68: 100 | DX68: 0 | DY68: 100 | DZ68: 0 | EA68: 100 | EB68: =IF(EB67>$F18+1,0,1)*(IF(EC68=0,100,0)+IF($G18=1,1,0)*$J18*100+IF($G18=2,0.5,0)*$J18*100+IF($G18=4,0.25,0)*$J18*100) -> 0 | EC68: 100 | ED68: 0 | EE68: 100 | EF68: 0 | EG68: 100 | EH68: 0 | EI68: 100 | EJ68: 0 | EK68: 100 | EL68: 0 | EM68: 100 | EN68: 0 | EO68: 100 | EP68: 0 | EQ68: 100 | ER68: 0 | ES68: 100 | ET68: 0 | EU68: 100 | EV68: 0 | EW68: 100 | EX68: 0 | EY68: 100 | EZ68: 0 | FA68: 100 | FB68: 0 | FC68: 100 | FD68: 0 | FE68: 100 | FF68: 0 | FG68: 100 | FH68: 0 | FI68: 100 | FJ68: 0 | FK68: 100 | FL68: 0 | FM68: 100 | FN68: 0 | FO68: 100 | FP68: 0 | FQ68: 100 | FR68: 0 | FS68: 100 | FT68: 0 | FU68: 100 | FV68: 0 | FW68: 100 | FX68: 0 | FY68: 100 | FZ68: 0 | GA68: 100 | GB68: 0 | GC68: 100 | GD68: 0 | GE68: 100 | GF68: 0 | GG68: 100 | GH68: 0 | GI68: 100 | GJ68: 0 | GK68: 100 | GL68: 0 | GM68: 100 | GN68: =IF(GN67>$F18+1,0,1)*(IF(GO68=0,100,0)+IF($G18=1,1,0)*$J18*100+IF($G18=2,0.5,0)*$J18*100+IF($G18=4,0.25,0)*$J18*100) -> 0 | GO68: 100 | GP68: 0 | GQ68: 100 | GR68: 0 | GS68: 100
A69: Payment Dates | B69: =IF(E19=0,F19,E19) -> 00:00:00 | C69: =B69+IF($G19=1,365,0)+IF($G19=2,182.5,0)+IF($G19=4,91.25,0) -> 00:00:00 | D69: =C69+IF($G19=1,365,0)+IF($G19=2,182.5,0)+IF($G19=4,91.25,0) -> 00:00:00 | E69: 00:00:00 | F69: 00:00:00 | G69: 00:00:00 | H69: 00:00:00 | I69: 00:00:00 | J69: 00:00:00 | K69: 00:00:00 | L69: 00:00:00 | M69: 00:00:00 | N69: 00:00:00 | O69: 00:00:00 | P69: 00:00:00 | Q69: 00:00:00 | R69: 00:00:00 | S69: 00:00:00 | T69: 00:00:00 | U69: 00:00:00 | V69: 00:00:00 | W69: 00:00:00 | X69: 00:00:00 | Y69: 00:00:00 | Z69: 00:00:00 | AA69: 00:00:00 | AB69: 00:00:00 | AC69: 00:00:00 | AD69: 00:00:00 | AE69: 00:00:00 | AF69: 00:00:00 | AG69: 00:00:00 | AH69: 00:00:00 | AI69: 00:00:00 | AJ69: 00:00:00 | AK69: 00:00:00 | AL69: 00:00:00 | AM69: 00:00:00 | AN69: 00:00:00 | AO69: 00:00:00 | AP69: 00:00:00 | AQ69: 00:00:00 | AR69: 00:00:00 | AS69: 00:00:00 | AT69: 00:00:00 | AU69: 00:00:00 | AV69: 00:00:00 | AW69: 00:00:00 | AX69: 00:00:00 | AY69: 00:00:00 | AZ69: 00:00:00 | BA69: 00:00:00 | BB69: 00:00:00 | BC69: 00:00:00 | BD69: 00:00:00 | BE69: 00:00:00 | BF69: 00:00:00 | BG69: 00:00:00 | BH69: 00:00:00 | BI69: 00:00:00 | BJ69: 00:00:00 | BK69: 00:00:00 | BL69: 00:00:00 | BM69: 00:00:00 | BN69: 00:00:00 | BO69: 00:00:00 | BP69: =BO69+IF($G19=1,365,0)+IF($G19=2,182.5,0)+IF($G19=4,91.25,0) -> 00:00:00 | BQ69: 00:00:00 | BR69: 00:00:00 | BS69: 00:00:00 | BT69: 00:00:00 | BU69: 00:00:00 | BV69: 00:00:00 | BW69: 00:00:00 | BX69: 00:00:00 | BY69: 00:00:00 | BZ69: 00:00:00 | CA69: 00:00:00 | CB69: 00:00:00 | CC69: 00:00:00 | CD69: 00:00:00 | CE69: 00:00:00 | CF69: 00:00:00 | CG69: 00:00:00 | CH69: 00:00:00 | CI69: 00:00:00 | CJ69: 00:00:00 | CK69: 00:00:00 | CL69: 00:00:00 | CM69: 00:00:00 | CN69: 00:00:00 | CO69: 00:00:00 | CP69: 00:00:00 | CQ69: 00:00:00 | CR69: 00:00:00 | CS69: 00:00:00 | CT69: 00:00:00 | CU69: 00:00:00 | CV69: 00:00:00 | CW69: 00:00:00 | CX69: 00:00:00 | CY69: 00:00:00 | CZ69: 00:00:00 | DA69: 00:00:00 | DB69: 00:00:00 | DC69: 00:00:00 | DD69: 00:00:00 | DE69: 00:00:00 | DF69: 00:00:00 | DG69: 00:00:00 | DH69: 00:00:00 | DI69: 00:00:00 | DJ69: 00:00:00 | DK69: 00:00:00 | DL69: 00:00:00 | DM69: 00:00:00 | DN69: 00:00:00 | DO69: 00:00:00 | DP69: 00:00:00 | DQ69: 00:00:00 | DR69: 00:00:00 | DS69: 00:00:00 | DT69: 00:00:00 | DU69: 00:00:00 | DV69: 00:00:00 | DW69: 00:00:00 | DX69: 00:00:00 | DY69: 00:00:00 | DZ69: 00:00:00 | EA69: 00:00:00 | EB69: =EA69+IF($G19=1,365,0)+IF($G19=2,182.5,0)+IF($G19=4,91.25,0) -> 00:00:00 | EC69: 00:00:00 | ED69: 00:00:00 | EE69: 00:00:00 | EF69: 00:00:00 | EG69: 00:00:00 | EH69: 00:00:00 | EI69: 00:00:00 | EJ69: 00:00:00 | EK69: 00:00:00 | EL69: 00:00:00 | EM69: 00:00:00 | EN69: 00:00:00 | EO69: 00:00:00 | EP69: 00:00:00 | EQ69: 00:00:00 | ER69: 00:00:00 | ES69: 00:00:00 | ET69: 00:00:00 | EU69: 00:00:00 | EV69: 00:00:00 | EW69: 00:00:00 | EX69: 00:00:00 | EY69: 00:00:00 | EZ69: 00:00:00 | FA69: 00:00:00 | FB69: 00:00:00 | FC69: 00:00:00 | FD69: 00:00:00 | FE69: 00:00:00 | FF69: 00:00:00 | FG69: 00:00:00 | FH69: 00:00:00 | FI69: 00:00:00 | FJ69: 00:00:00 | FK69: 00:00:00 | FL69: 00:00:00 | FM69: 00:00:00 | FN69: 00:00:00 | FO69: 00:00:00 | FP69: 00:00:00 | FQ69: 00:00:00 | FR69: 00:00:00 | FS69: 00:00:00 | FT69: 00:00:00 | FU69: 00:00:00 | FV69: 00:00:00 | FW69: 00:00:00 | FX69: 00:00:00 | FY69: 00:00:00 | FZ69: 00:00:00 | GA69: 00:00:00 | GB69: 00:00:00 | GC69: 00:00:00 | GD69: 00:00:00 | GE69: 00:00:00 | GF69: 00:00:00 | GG69: 00:00:00 | GH69: 00:00:00 | GI69: 00:00:00 | GJ69: 00:00:00 | GK69: 00:00:00 | GL69: 00:00:00 | GM69: 00:00:00 | GN69: =GM69+IF($G19=1,365,0)+IF($G19=2,182.5,0)+IF($G19=4,91.25,0) -> 00:00:00 | GO69: 00:00:00 | GP69: 00:00:00 | GQ69: 00:00:00 | GR69: 00:00:00 | GS69: 00:00:00
A70: Bond 18 | B70: =(IF(B69=F19,100,0)+IF(G19=1,1,0)*J19*100+IF(G19=2,0.5,0)*J19*100+IF(G19=4,0.25,0)*J19*100)*IF(ISBLANK(F19)=TRUE,0,1) -> 0 | C70: =IF(C69>$F19+1,0,1)*(IF(D70=0,100,0)+IF($G19=1,1,0)*$J19*100+IF($G19=2,0.5,0)*$J19*100+IF($G19=4,0.25,0)*$J19*100) -> 100 | D70: =IF(D69>$F19+1,0,1)*(IF(E70=0,100,0)+IF($G19=1,1,0)*$J19*100+IF($G19=2,0.5,0)*$J19*100+IF($G19=4,0.25,0)*$J19*100) -> 0 | E70: 100 | F70: 0 | G70: 100 | H70: 0 | I70: 100 | J70: 0 | K70: 100 | L70: 0 | M70: 100 | N70: 0 | O70: 100 | P70: 0 | Q70: 100 | R70: 0 | S70: 100 | T70: 0 | U70: 100 | V70: 0 | W70: 100 | X70: 0 | Y70: 100 | Z70: 0 | AA70: 100 | AB70: 0 | AC70: 100 | AD70: 0 | AE70: 100 | AF70: 0 | AG70: 100 | AH70: 0 | AI70: 100 | AJ70: 0 | AK70: 100 | AL70: 0 | AM70: 100 | AN70: 0 | AO70: 100 | AP70: 0 | AQ70: 100 | AR70: 0 | AS70: 100 | AT70: 0 | AU70: 100 | AV70: 0 | AW70: 100 | AX70: 0 | AY70: 100 | AZ70: 0 | BA70: 100 | BB70: 0 | BC70: 100 | BD70: 0 | BE70: 100 | BF70: 0 | BG70: 100 | BH70: 0 | BI70: 100 | BJ70: 0 | BK70: 100 | BL70: 0 | BM70: 100 | BN70: 0 | BO70: 100 | BP70: =IF(BP69>$F19+1,0,1)*(IF(BQ70=0,100,0)+IF($G19=1,1,0)*$J19*100+IF($G19=2,0.5,0)*$J19*100+IF($G19=4,0.25,0)*$J19*100) -> 0 | BQ70: 100 | BR70: 0 | BS70: 100 | BT70: 0 | BU70: 100 | BV70: 0 | BW70: 100 | BX70: 0 | BY70: 100 | BZ70: 0 | CA70: 100 | CB70: 0 | CC70: 100 | CD70: 0 | CE70: 100 | CF70: 0 | CG70: 100 | CH70: 0 | CI70: 100 | CJ70: 0 | CK70: 100 | CL70: 0 | CM70: 100 | CN70: 0 | CO70: 100 | CP70: 0 | CQ70: 100 | CR70: 0 | CS70: 100 | CT70: 0 | CU70: 100 | CV70: 0 | CW70: 100 | CX70: 0 | CY70: 100 | CZ70: 0 | DA70: 100 | DB70: 0 | DC70: 100 | DD70: 0 | DE70: 100 | DF70: 0 | DG70: 100 | DH70: 0 | DI70: 100 | DJ70: 0 | DK70: 100 | DL70: 0 | DM70: 100 | DN70: 0 | DO70: 100 | DP70: 0 | DQ70: 100 | DR70: 0 | DS70: 100 | DT70: 0 | DU70: 100 | DV70: 0 | DW70: 100 | DX70: 0 | DY70: 100 | DZ70: 0 | EA70: 100 | EB70: =IF(EB69>$F19+1,0,1)*(IF(EC70=0,100,0)+IF($G19=1,1,0)*$J19*100+IF($G19=2,0.5,0)*$J19*100+IF($G19=4,0.25,0)*$J19*100) -> 0 | EC70: 100 | ED70: 0 | EE70: 100 | EF70: 0 | EG70: 100 | EH70: 0 | EI70: 100 | EJ70: 0 | EK70: 100 | EL70: 0 | EM70: 100 | EN70: 0 | EO70: 100 | EP70: 0 | EQ70: 100 | ER70: 0 | ES70: 100 | ET70: 0 | EU70: 100 | EV70: 0 | EW70: 100 | EX70: 0 | EY70: 100 | EZ70: 0 | FA70: 100 | FB70: 0 | FC70: 100 | FD70: 0 | FE70: 100 | FF70: 0 | FG70: 100 | FH70: 0 | FI70: 100 | FJ70: 0 | FK70: 100 | FL70: 0 | FM70: 100 | FN70: 0 | FO70: 100 | FP70: 0 | FQ70: 100 | FR70: 0 | FS70: 100 | FT70: 0 | FU70: 100 | FV70: 0 | FW70: 100 | FX70: 0 | FY70: 100 | FZ70: 0 | GA70: 100 | GB70: 0 | GC70: 100 | GD70: 0 | GE70: 100 | GF70: 0 | GG70: 100 | GH70: 0 | GI70: 100 | GJ70: 0 | GK70: 100 | GL70: 0 | GM70: 100 | GN70: =IF(GN69>$F19+1,0,1)*(IF(GO70=0,100,0)+IF($G19=1,1,0)*$J19*100+IF($G19=2,0.5,0)*$J19*100+IF($G19=4,0.25,0)*$J19*100) -> 0 | GO70: 100 | GP70: 0 | GQ70: 100 | GR70: 0 | GS70: 100
A71: Payment Dates | B71: =IF(E20=0,F20,E20) -> 00:00:00 | C71: =B71+IF($G20=1,365,0)+IF($G20=2,182.5,0)+IF($G20=4,91.25,0) -> 00:00:00 | D71: =C71+IF($G20=1,365,0)+IF($G20=2,182.5,0)+IF($G20=4,91.25,0) -> 00:00:00 | E71: 00:00:00 | F71: 00:00:00 | G71: 00:00:00 | H71: 00:00:00 | I71: 00:00:00 | J71: 00:00:00 | K71: 00:00:00 | L71: 00:00:00 | M71: 00:00:00 | N71: 00:00:00 | O71: 00:00:00 | P71: 00:00:00 | Q71: 00:00:00 | R71: 00:00:00 | S71: 00:00:00 | T71: 00:00:00 | U71: 00:00:00 | V71: 00:00:00 | W71: 00:00:00 | X71: 00:00:00 | Y71: 00:00:00 | Z71: 00:00:00 | AA71: 00:00:00 | AB71: 00:00:00 | AC71: 00:00:00 | AD71: 00:00:00 | AE71: 00:00:00 | AF71: 00:00:00 | AG71: 00:00:00 | AH71: 00:00:00 | AI71: 00:00:00 | AJ71: 00:00:00 | AK71: 00:00:00 | AL71: 00:00:00 | AM71: 00:00:00 | AN71: 00:00:00 | AO71: 00:00:00 | AP71: 00:00:00 | AQ71: 00:00:00 | AR71: 00:00:00 | AS71: 00:00:00 | AT71: 00:00:00 | AU71: 00:00:00 | AV71: 00:00:00 | AW71: 00:00:00 | AX71: 00:00:00 | AY71: 00:00:00 | AZ71: 00:00:00 | BA71: 00:00:00 | BB71: 00:00:00 | BC71: 00:00:00 | BD71: 00:00:00 | BE71: 00:00:00 | BF71: 00:00:00 | BG71: 00:00:00 | BH71: 00:00:00 | BI71: 00:00:00 | BJ71: 00:00:00 | BK71: 00:00:00 | BL71: 00:00:00 | BM71: 00:00:00 | BN71: 00:00:00 | BO71: 00:00:00 | BP71: =BO71+IF($G20=1,365,0)+IF($G20=2,182.5,0)+IF($G20=4,91.25,0) -> 00:00:00 | BQ71: 00:00:00 | BR71: 00:00:00 | BS71: 00:00:00 | BT71: 00:00:00 | BU71: 00:00:00 | BV71: 00:00:00 | BW71: 00:00:00 | BX71: 00:00:00 | BY71: 00:00:00 | BZ71: 00:00:00 | CA71: 00:00:00 | CB71: 00:00:00 | CC71: 00:00:00 | CD71: 00:00:00 | CE71: 00:00:00 | CF71: 00:00:00 | CG71: 00:00:00 | CH71: 00:00:00 | CI71: 00:00:00 | CJ71: 00:00:00 | CK71: 00:00:00 | CL71: 00:00:00 | CM71: 00:00:00 | CN71: 00:00:00 | CO71: 00:00:00 | CP71: 00:00:00 | CQ71: 00:00:00 | CR71: 00:00:00 | CS71: 00:00:00 | CT71: 00:00:00 | CU71: 00:00:00 | CV71: 00:00:00 | CW71: 00:00:00 | CX71: 00:00:00 | CY71: 00:00:00 | CZ71: 00:00:00 | DA71: 00:00:00 | DB71: 00:00:00 | DC71: 00:00:00 | DD71: 00:00:00 | DE71: 00:00:00 | DF71: 00:00:00 | DG71: 00:00:00 | DH71: 00:00:00 | DI71: 00:00:00 | DJ71: 00:00:00 | DK71: 00:00:00 | DL71: 00:00:00 | DM71: 00:00:00 | DN71: 00:00:00 | DO71: 00:00:00 | DP71: 00:00:00 | DQ71: 00:00:00 | DR71: 00:00:00 | DS71: 00:00:00 | DT71: 00:00:00 | DU71: 00:00:00 | DV71: 00:00:00 | DW71: 00:00:00 | DX71: 00:00:00 | DY71: 00:00:00 | DZ71: 00:00:00 | EA71: 00:00:00 | EB71: =EA71+IF($G20=1,365,0)+IF($G20=2,182.5,0)+IF($G20=4,91.25,0) -> 00:00:00 | EC71: 00:00:00 | ED71: 00:00:00 | EE71: 00:00:00 | EF71: 00:00:00 | EG71: 00:00:00 | EH71: 00:00:00 | EI71: 00:00:00 | EJ71: 00:00:00 | EK71: 00:00:00 | EL71: 00:00:00 | EM71: 00:00:00 | EN71: 00:00:00 | EO71: 00:00:00 | EP71: 00:00:00 | EQ71: 00:00:00 | ER71: 00:00:00 | ES71: 00:00:00 | ET71: 00:00:00 | EU71: 00:00:00 | EV71: 00:00:00 | EW71: 00:00:00 | EX71: 00:00:00 | EY71: 00:00:00 | EZ71: 00:00:00 | FA71: 00:00:00 | FB71: 00:00:00 | FC71: 00:00:00 | FD71: 00:00:00 | FE71: 00:00:00 | FF71: 00:00:00 | FG71: 00:00:00 | FH71: 00:00:00 | FI71: 00:00:00 | FJ71: 00:00:00 | FK71: 00:00:00 | FL71: 00:00:00 | FM71: 00:00:00 | FN71: 00:00:00 | FO71: 00:00:00 | FP71: 00:00:00 | FQ71: 00:00:00 | FR71: 00:00:00 | FS71: 00:00:00 | FT71: 00:00:00 | FU71: 00:00:00 | FV71: 00:00:00 | FW71: 00:00:00 | FX71: 00:00:00 | FY71: 00:00:00 | FZ71: 00:00:00 | GA71: 00:00:00 | GB71: 00:00:00 | GC71: 00:00:00 | GD71: 00:00:00 | GE71: 00:00:00 | GF71: 00:00:00 | GG71: 00:00:00 | GH71: 00:00:00 | GI71: 00:00:00 | GJ71: 00:00:00 | GK71: 00:00:00 | GL71: 00:00:00 | GM71: 00:00:00 | GN71: =GM71+IF($G20=1,365,0)+IF($G20=2,182.5,0)+IF($G20=4,91.25,0) -> 00:00:00 | GO71: 00:00:00 | GP71: 00:00:00 | GQ71: 00:00:00 | GR71: 00:00:00 | GS71: 00:00:00
A72: Bond 19 | B72: =(IF(B71=F20,100,0)+IF(G20=1,1,0)*J20*100+IF(G20=2,0.5,0)*J20*100+IF(G20=4,0.25,0)*J20*100)*IF(ISBLANK(F20)=TRUE,0,1) -> 0 | C72: =IF(C71>$F20+1,0,1)*(IF(D72=0,100,0)+IF($G20=1,1,0)*$J20*100+IF($G20=2,0.5,0)*$J20*100+IF($G20=4,0.25,0)*$J20*100) -> 100 | D72: =IF(D71>$F20+1,0,1)*(IF(E72=0,100,0)+IF($G20=1,1,0)*$J20*100+IF($G20=2,0.5,0)*$J20*100+IF($G20=4,0.25,0)*$J20*100) -> 0 | E72: 100 | F72: 0 | G72: 100 | H72: 0 | I72: 100 | J72: 0 | K72: 100 | L72: 0 | M72: 100 | N72: 0 | O72: 100 | P72: 0 | Q72: 100 | R72: 0 | S72: 100 | T72: 0 | U72: 100 | V72: 0 | W72: 100 | X72: 0 | Y72: 100 | Z72: 0 | AA72: 100 | AB72: 0 | AC72: 100 | AD72: 0 | AE72: 100 | AF72: 0 | AG72: 100 | AH72: 0 | AI72: 100 | AJ72: 0 | AK72: 100 | AL72: 0 | AM72: 100 | AN72: 0 | AO72: 100 | AP72: 0 | AQ72: 100 | AR72: 0 | AS72: 100 | AT72: 0 | AU72: 100 | AV72: 0 | AW72: 100 | AX72: 0 | AY72: 100 | AZ72: 0 | BA72: 100 | BB72: 0 | BC72: 100 | BD72: 0 | BE72: 100 | BF72: 0 | BG72: 100 | BH72: 0 | BI72: 100 | BJ72: 0 | BK72: 100 | BL72: 0 | BM72: 100 | BN72: 0 | BO72: 100 | BP72: =IF(BP71>$F20+1,0,1)*(IF(BQ72=0,100,0)+IF($G20=1,1,0)*$J20*100+IF($G20=2,0.5,0)*$J20*100+IF($G20=4,0.25,0)*$J20*100) -> 0 | BQ72: 100 | BR72: 0 | BS72: 100 | BT72: 0 | BU72: 100 | BV72: 0 | BW72: 100 | BX72: 0 | BY72: 100 | BZ72: 0 | CA72: 100 | CB72: 0 | CC72: 100 | CD72: 0 | CE72: 100 | CF72: 0 | CG72: 100 | CH72: 0 | CI72: 100 | CJ72: 0 | CK72: 100 | CL72: 0 | CM72: 100 | CN72: 0 | CO72: 100 | CP72: 0 | CQ72: 100 | CR72: 0 | CS72: 100 | CT72: 0 | CU72: 100 | CV72: 0 | CW72: 100 | CX72: 0 | CY72: 100 | CZ72: 0 | DA72: 100 | DB72: 0 | DC72: 100 | DD72: 0 | DE72: 100 | DF72: 0 | DG72: 100 | DH72: 0 | DI72: 100 | DJ72: 0 | DK72: 100 | DL72: 0 | DM72: 100 | DN72: 0 | DO72: 100 | DP72: 0 | DQ72: 100 | DR72: 0 | DS72: 100 | DT72: 0 | DU72: 100 | DV72: 0 | DW72: 100 | DX72: 0 | DY72: 100 | DZ72: 0 | EA72: 100 | EB72: =IF(EB71>$F20+1,0,1)*(IF(EC72=0,100,0)+IF($G20=1,1,0)*$J20*100+IF($G20=2,0.5,0)*$J20*100+IF($G20=4,0.25,0)*$J20*100) -> 0 | EC72: 100 | ED72: 0 | EE72: 100 | EF72: 0 | EG72: 100 | EH72: 0 | EI72: 100 | EJ72: 0 | EK72: 100 | EL72: 0 | EM72: 100 | EN72: 0 | EO72: 100 | EP72: 0 | EQ72: 100 | ER72: 0 | ES72: 100 | ET72: 0 | EU72: 100 | EV72: 0 | EW72: 100 | EX72: 0 | EY72: 100 | EZ72: 0 | FA72: 100 | FB72: 0 | FC72: 100 | FD72: 0 | FE72: 100 | FF72: 0 | FG72: 100 | FH72: 0 | FI72: 100 | FJ72: 0 | FK72: 100 | FL72: 0 | FM72: 100 | FN72: 0 | FO72: 100 | FP72: 0 | FQ72: 100 | FR72: 0 | FS72: 100 | FT72: 0 | FU72: 100 | FV72: 0 | FW72: 100 | FX72: 0 | FY72: 100 | FZ72: 0 | GA72: 100 | GB72: 0 | GC72: 100 | GD72: 0 | GE72: 100 | GF72: 0 | GG72: 100 | GH72: 0 | GI72: 100 | GJ72: 0 | GK72: 100 | GL72: 0 | GM72: 100 | GN72: =IF(GN71>$F20+1,0,1)*(IF(GO72=0,100,0)+IF($G20=1,1,0)*$J20*100+IF($G20=2,0.5,0)*$J20*100+IF($G20=4,0.25,0)*$J20*100) -> 0 | GO72: 100 | GP72: 0 | GQ72: 100 | GR72: 0 | GS72: 100
A73: Payment Dates | B73: =IF(E21=0,F21,E21) -> 00:00:00 | C73: =B73+IF($G21=1,365,0)+IF($G21=2,182.5,0)+IF($G21=4,91.25,0) -> 00:00:00 | D73: =C73+IF($G21=1,365,0)+IF($G21=2,182.5,0)+IF($G21=4,91.25,0) -> 00:00:00 | E73: 00:00:00 | F73: 00:00:00 | G73: 00:00:00 | H73: 00:00:00 | I73: 00:00:00 | J73: 00:00:00 | K73: 00:00:00 | L73: 00:00:00 | M73: 00:00:00 | N73: 00:00:00 | O73: 00:00:00 | P73: 00:00:00 | Q73: 00:00:00 | R73: 00:00:00 | S73: 00:00:00 | T73: 00:00:00 | U73: 00:00:00 | V73: 00:00:00 | W73: 00:00:00 | X73: 00:00:00 | Y73: 00:00:00 | Z73: 00:00:00 | AA73: 00:00:00 | AB73: 00:00:00 | AC73: 00:00:00 | AD73: 00:00:00 | AE73: 00:00:00 | AF73: 00:00:00 | AG73: 00:00:00 | AH73: 00:00:00 | AI73: 00:00:00 | AJ73: 00:00:00 | AK73: 00:00:00 | AL73: 00:00:00 | AM73: 00:00:00 | AN73: 00:00:00 | AO73: 00:00:00 | AP73: 00:00:00 | AQ73: 00:00:00 | AR73: 00:00:00 | AS73: 00:00:00 | AT73: 00:00:00 | AU73: 00:00:00 | AV73: 00:00:00 | AW73: 00:00:00 | AX73: 00:00:00 | AY73: 00:00:00 | AZ73: 00:00:00 | BA73: 00:00:00 | BB73: 00:00:00 | BC73: 00:00:00 | BD73: 00:00:00 | BE73: 00:00:00 | BF73: 00:00:00 | BG73: 00:00:00 | BH73: 00:00:00 | BI73: 00:00:00 | BJ73: 00:00:00 | BK73: 00:00:00 | BL73: 00:00:00 | BM73: 00:00:00 | BN73: 00:00:00 | BO73: 00:00:00 | BP73: =BO73+IF($G21=1,365,0)+IF($G21=2,182.5,0)+IF($G21=4,91.25,0) -> 00:00:00 | BQ73: 00:00:00 | BR73: 00:00:00 | BS73: 00:00:00 | BT73: 00:00:00 | BU73: 00:00:00 | BV73: 00:00:00 | BW73: 00:00:00 | BX73: 00:00:00 | BY73: 00:00:00 | BZ73: 00:00:00 | CA73: 00:00:00 | CB73: 00:00:00 | CC73: 00:00:00 | CD73: 00:00:00 | CE73: 00:00:00 | CF73: 00:00:00 | CG73: 00:00:00 | CH73: 00:00:00 | CI73: 00:00:00 | CJ73: 00:00:00 | CK73: 00:00:00 | CL73: 00:00:00 | CM73: 00:00:00 | CN73: 00:00:00 | CO73: 00:00:00 | CP73: 00:00:00 | CQ73: 00:00:00 | CR73: 00:00:00 | CS73: 00:00:00 | CT73: 00:00:00 | CU73: 00:00:00 | CV73: 00:00:00 | CW73: 00:00:00 | CX73: 00:00:00 | CY73: 00:00:00 | CZ73: 00:00:00 | DA73: 00:00:00 | DB73: 00:00:00 | DC73: 00:00:00 | DD73: 00:00:00 | DE73: 00:00:00 | DF73: 00:00:00 | DG73: 00:00:00 | DH73: 00:00:00 | DI73: 00:00:00 | DJ73: 00:00:00 | DK73: 00:00:00 | DL73: 00:00:00 | DM73: 00:00:00 | DN73: 00:00:00 | DO73: 00:00:00 | DP73: 00:00:00 | DQ73: 00:00:00 | DR73: 00:00:00 | DS73: 00:00:00 | DT73: 00:00:00 | DU73: 00:00:00 | DV73: 00:00:00 | DW73: 00:00:00 | DX73: 00:00:00 | DY73: 00:00:00 | DZ73: 00:00:00 | EA73: 00:00:00 | EB73: =EA73+IF($G21=1,365,0)+IF($G21=2,182.5,0)+IF($G21=4,91.25,0) -> 00:00:00 | EC73: 00:00:00 | ED73: 00:00:00 | EE73: 00:00:00 | EF73: 00:00:00 | EG73: 00:00:00 | EH73: 00:00:00 | EI73: 00:00:00 | EJ73: 00:00:00 | EK73: 00:00:00 | EL73: 00:00:00 | EM73: 00:00:00 | EN73: 00:00:00 | EO73: 00:00:00 | EP73: 00:00:00 | EQ73: 00:00:00 | ER73: 00:00:00 | ES73: 00:00:00 | ET73: 00:00:00 | EU73: 00:00:00 | EV73: 00:00:00 | EW73: 00:00:00 | EX73: 00:00:00 | EY73: 00:00:00 | EZ73: 00:00:00 | FA73: 00:00:00 | FB73: 00:00:00 | FC73: 00:00:00 | FD73: 00:00:00 | FE73: 00:00:00 | FF73: 00:00:00 | FG73: 00:00:00 | FH73: 00:00:00 | FI73: 00:00:00 | FJ73: 00:00:00 | FK73: 00:00:00 | FL73: 00:00:00 | FM73: 00:00:00 | FN73: 00:00:00 | FO73: 00:00:00 | FP73: 00:00:00 | FQ73: 00:00:00 | FR73: 00:00:00 | FS73: 00:00:00 | FT73: 00:00:00 | FU73: 00:00:00 | FV73: 00:00:00 | FW73: 00:00:00 | FX73: 00:00:00 | FY73: 00:00:00 | FZ73: 00:00:00 | GA73: 00:00:00 | GB73: 00:00:00 | GC73: 00:00:00 | GD73: 00:00:00 | GE73: 00:00:00 | GF73: 00:00:00 | GG73: 00:00:00 | GH73: 00:00:00 | GI73: 00:00:00 | GJ73: 00:00:00 | GK73: 00:00:00 | GL73: 00:00:00 | GM73: 00:00:00 | GN73: =GM73+IF($G21=1,365,0)+IF($G21=2,182.5,0)+IF($G21=4,91.25,0) -> 00:00:00 | GO73: 00:00:00 | GP73: 00:00:00 | GQ73: 00:00:00 | GR73: 00:00:00 | GS73: 00:00:00
A74: Bond 20 | B74: =(IF(B73=F2,100,0)+IF(G21=1,1,0)*J21*100+IF(G21=2,0.5,0)*J21*100+IF(G21=4,0.25,0)*J21*100)*IF(ISBLANK(F2)=TRUE,0,1) -> 100 | C74: =IF(C73>$F21+1,0,1)*(IF(D74=0,100,0)+IF($G21=1,1,0)*$J21*100+IF($G21=2,0.5,0)*$J21*100+IF($G21=4,0.25,0)*$J21*100) -> 100 | D74: =IF(D73>$F21+1,0,1)*(IF(E74=0,100,0)+IF($G21=1,1,0)*$J21*100+IF($G21=2,0.5,0)*$J21*100+IF($G21=4,0.25,0)*$J21*100) -> 0 | E74: 100 | F74: 0 | G74: 100 | H74: 0 | I74: 100 | J74: 0 | K74: 100 | L74: 0 | M74: 100 | N74: 0 | O74: 100 | P74: 0 | Q74: 100 | R74: 0 | S74: 100 | T74: 0 | U74: 100 | V74: 0 | W74: 100 | X74: 0 | Y74: 100 | Z74: 0 | AA74: 100 | AB74: 0 | AC74: 100 | AD74: 0 | AE74: 100 | AF74: 0 | AG74: 100 | AH74: 0 | AI74: 100 | AJ74: 0 | AK74: 100 | AL74: 0 | AM74: 100 | AN74: 0 | AO74: 100 | AP74: 0 | AQ74: 100 | AR74: 0 | AS74: 100 | AT74: 0 | AU74: 100 | AV74: 0 | AW74: 100 | AX74: 0 | AY74: 100 | AZ74: 0 | BA74: 100 | BB74: 0 | BC74: 100 | BD74: 0 | BE74: 100 | BF74: 0 | BG74: 100 | BH74: 0 | BI74: 100 | BJ74: 0 | BK74: 100 | BL74: 0 | BM74: 100 | BN74: 0 | BO74: 100 | BP74: =IF(BP73>$F21+1,0,1)*(IF(BQ74=0,100,0)+IF($G21=1,1,0)*$J21*100+IF($G21=2,0.5,0)*$J21*100+IF($G21=4,0.25,0)*$J21*100) -> 0 | BQ74: 100 | BR74: 0 | BS74: 100 | BT74: 0 | BU74: 100 | BV74: 0 | BW74: 100 | BX74: 0 | BY74: 100 | BZ74: 0 | CA74: 100 | CB74: 0 | CC74: 100 | CD74: 0 | CE74: 100 | CF74: 0 | CG74: 100 | CH74: 0 | CI74: 100 | CJ74: 0 | CK74: 100 | CL74: 0 | CM74: 100 | CN74: 0 | CO74: 100 | CP74: 0 | CQ74: 100 | CR74: 0 | CS74: 100 | CT74: 0 | CU74: 100 | CV74: 0 | CW74: 100 | CX74: 0 | CY74: 100 | CZ74: 0 | DA74: 100 | DB74: 0 | DC74: 100 | DD74: 0 | DE74: 100 | DF74: 0 | DG74: 100 | DH74: 0 | DI74: 100 | DJ74: 0 | DK74: 100 | DL74: 0 | DM74: 100 | DN74: 0 | DO74: 100 | DP74: 0 | DQ74: 100 | DR74: 0 | DS74: 100 | DT74: 0 | DU74: 100 | DV74: 0 | DW74: 100 | DX74: 0 | DY74: 100 | DZ74: 0 | EA74: 100 | EB74: =IF(EB73>$F21+1,0,1)*(IF(EC74=0,100,0)+IF($G21=1,1,0)*$J21*100+IF($G21=2,0.5,0)*$J21*100+IF($G21=4,0.25,0)*$J21*100) -> 0 | EC74: 100 | ED74: 0 | EE74: 100 | EF74: 0 | EG74: 100 | EH74: 0 | EI74: 100 | EJ74: 0 | EK74: 100 | EL74: 0 | EM74: 100 | EN74: 0 | EO74: 100 | EP74: 0 | EQ74: 100 | ER74: 0 | ES74: 100 | ET74: 0 | EU74: 100 | EV74: 0 | EW74: 100 | EX74: 0 | EY74: 100 | EZ74: 0 | FA74: 100 | FB74: 0 | FC74: 100 | FD74: 0 | FE74: 100 | FF74: 0 | FG74: 100 | FH74: 0 | FI74: 100 | FJ74: 0 | FK74: 100 | FL74: 0 | FM74: 100 | FN74: 0 | FO74: 100 | FP74: 0 | FQ74: 100 | FR74: 0 | FS74: 100 | FT74: 0 | FU74: 100 | FV74: 0 | FW74: 100 | FX74: 0 | FY74: 100 | FZ74: 0 | GA74: 100 | GB74: 0 | GC74: 100 | GD74: 0 | GE74: 100 | GF74: 0 | GG74: 100 | GH74: 0 | GI74: 100 | GJ74: 0 | GK74: 100 | GL74: 0 | GM74: 100 | GN74: =IF(GN73>$F21+1,0,1)*(IF(GO74=0,100,0)+IF($G21=1,1,0)*$J21*100+IF($G21=2,0.5,0)*$J21*100+IF($G21=4,0.25,0)*$J21*100) -> 0 | GO74: 100 | GP74: 0 | GQ74: 100 | GR74: 0 | GS74: 100
A75: Payment Dates | B75: =IF(E22=0,F22,E22) -> 00:00:00 | C75: =B75+IF($G22=1,365,0)+IF($G22=2,182.5,0)+IF($G22=4,91.25,0) -> 00:00:00 | D75: =C75+IF($G22=1,365,0)+IF($G22=2,182.5,0)+IF($G22=4,91.25,0) -> 00:00:00 | E75: 00:00:00 | F75: 00:00:00 | G75: 00:00:00 | H75: 00:00:00 | I75: 00:00:00 | J75: 00:00:00 | K75: 00:00:00 | L75: 00:00:00 | M75: 00:00:00 | N75: 00:00:00 | O75: 00:00:00 | P75: 00:00:00 | Q75: 00:00:00 | R75: 00:00:00 | S75: 00:00:00 | T75: 00:00:00 | U75: 00:00:00 | V75: 00:00:00 | W75: 00:00:00 | X75: 00:00:00 | Y75: 00:00:00 | Z75: 00:00:00 | AA75: 00:00:00 | AB75: 00:00:00 | AC75: 00:00:00 | AD75: 00:00:00 | AE75: 00:00:00 | AF75: 00:00:00 | AG75: 00:00:00 | AH75: 00:00:00 | AI75: 00:00:00 | AJ75: 00:00:00 | AK75: 00:00:00 | AL75: 00:00:00 | AM75: 00:00:00 | AN75: 00:00:00 | AO75: 00:00:00 | AP75: 00:00:00 | AQ75: 00:00:00 | AR75: 00:00:00 | AS75: 00:00:00 | AT75: 00:00:00 | AU75: 00:00:00 | AV75: 00:00:00 | AW75: 00:00:00 | AX75: 00:00:00 | AY75: 00:00:00 | AZ75: 00:00:00 | BA75: 00:00:00 | BB75: 00:00:00 | BC75: 00:00:00 | BD75: 00:00:00 | BE75: 00:00:00 | BF75: 00:00:00 | BG75: 00:00:00 | BH75: 00:00:00 | BI75: 00:00:00 | BJ75: 00:00:00 | BK75: 00:00:00 | BL75: 00:00:00 | BM75: 00:00:00 | BN75: 00:00:00 | BO75: 00:00:00 | BP75: =BO75+IF($G22=1,365,0)+IF($G22=2,182.5,0)+IF($G22=4,91.25,0) -> 00:00:00 | BQ75: 00:00:00 | BR75: 00:00:00 | BS75: 00:00:00 | BT75: 00:00:00 | BU75: 00:00:00 | BV75: 00:00:00 | BW75: 00:00:00 | BX75: 00:00:00 | BY75: 00:00:00 | BZ75: 00:00:00 | CA75: 00:00:00 | CB75: 00:00:00 | CC75: 00:00:00 | CD75: 00:00:00 | CE75: 00:00:00 | CF75: 00:00:00 | CG75: 00:00:00 | CH75: 00:00:00 | CI75: 00:00:00 | CJ75: 00:00:00 | CK75: 00:00:00 | CL75: 00:00:00 | CM75: 00:00:00 | CN75: 00:00:00 | CO75: 00:00:00 | CP75: 00:00:00 | CQ75: 00:00:00 | CR75: 00:00:00 | CS75: 00:00:00 | CT75: 00:00:00 | CU75: 00:00:00 | CV75: 00:00:00 | CW75: 00:00:00 | CX75: 00:00:00 | CY75: 00:00:00 | CZ75: 00:00:00 | DA75: 00:00:00 | DB75: 00:00:00 | DC75: 00:00:00 | DD75: 00:00:00 | DE75: 00:00:00 | DF75: 00:00:00 | DG75: 00:00:00 | DH75: 00:00:00 | DI75: 00:00:00 | DJ75: 00:00:00 | DK75: 00:00:00 | DL75: 00:00:00 | DM75: 00:00:00 | DN75: 00:00:00 | DO75: 00:00:00 | DP75: 00:00:00 | DQ75: 00:00:00 | DR75: 00:00:00 | DS75: 00:00:00 | DT75: 00:00:00 | DU75: 00:00:00 | DV75: 00:00:00 | DW75: 00:00:00 | DX75: 00:00:00 | DY75: 00:00:00 | DZ75: 00:00:00 | EA75: 00:00:00 | EB75: =EA75+IF($G22=1,365,0)+IF($G22=2,182.5,0)+IF($G22=4,91.25,0) -> 00:00:00 | EC75: 00:00:00 | ED75: 00:00:00 | EE75: 00:00:00 | EF75: 00:00:00 | EG75: 00:00:00 | EH75: 00:00:00 | EI75: 00:00:00 | EJ75: 00:00:00 | EK75: 00:00:00 | EL75: 00:00:00 | EM75: 00:00:00 | EN75: 00:00:00 | EO75: 00:00:00 | EP75: 00:00:00 | EQ75: 00:00:00 | ER75: 00:00:00 | ES75: 00:00:00 | ET75: 00:00:00 | EU75: 00:00:00 | EV75: 00:00:00 | EW75: 00:00:00 | EX75: 00:00:00 | EY75: 00:00:00 | EZ75: 00:00:00 | FA75: 00:00:00 | FB75: 00:00:00 | FC75: 00:00:00 | FD75: 00:00:00 | FE75: 00:00:00 | FF75: 00:00:00 | FG75: 00:00:00 | FH75: 00:00:00 | FI75: 00:00:00 | FJ75: 00:00:00 | FK75: 00:00:00 | FL75: 00:00:00 | FM75: 00:00:00 | FN75: 00:00:00 | FO75: 00:00:00 | FP75: 00:00:00 | FQ75: 00:00:00 | FR75: 00:00:00 | FS75: 00:00:00 | FT75: 00:00:00 | FU75: 00:00:00 | FV75: 00:00:00 | FW75: 00:00:00 | FX75: 00:00:00 | FY75: 00:00:00 | FZ75: 00:00:00 | GA75: 00:00:00 | GB75: 00:00:00 | GC75: 00:00:00 | GD75: 00:00:00 | GE75: 00:00:00 | GF75: 00:00:00 | GG75: 00:00:00 | GH75: 00:00:00 | GI75: 00:00:00 | GJ75: 00:00:00 | GK75: 00:00:00 | GL75: 00:00:00 | GM75: 00:00:00 | GN75: =GM75+IF($G22=1,365,0)+IF($G22=2,182.5,0)+IF($G22=4,91.25,0) -> 00:00:00 | GO75: 00:00:00 | GP75: 00:00:00 | GQ75: 00:00:00 | GR75: 00:00:00 | GS75: 00:00:00
A76: Bond 21 | B76: =(IF(B75=F22,100,0)+IF(G22=1,1,0)*J22*100+IF(G22=2,0.5,0)*J22*100+IF(G22=4,0.25,0)*J22*100)*IF(ISBLANK(F22)=TRUE,0,1) -> 0 | C76: =IF(C75>$F22+1,0,1)*(IF(D76=0,100,0)+IF($G22=1,1,0)*$J22*100+IF($G22=2,0.5,0)*$J22*100+IF($G22=4,0.25,0)*$J22*100) -> 100 | D76: =IF(D75>$F22+1,0,1)*(IF(E76=0,100,0)+IF($G22=1,1,0)*$J22*100+IF($G22=2,0.5,0)*$J22*100+IF($G22=4,0.25,0)*$J22*100) -> 0 | E76: 100 | F76: 0 | G76: 100 | H76: 0 | I76: 100 | J76: 0 | K76: 100 | L76: 0 | M76: 100 | N76: 0 | O76: 100 | P76: 0 | Q76: 100 | R76: 0 | S76: 100 | T76: 0 | U76: 100 | V76: 0 | W76: 100 | X76: 0 | Y76: 100 | Z76: 0 | AA76: 100 | AB76: 0 | AC76: 100 | AD76: 0 | AE76: 100 | AF76: 0 | AG76: 100 | AH76: 0 | AI76: 100 | AJ76: 0 | AK76: 100 | AL76: 0 | AM76: 100 | AN76: 0 | AO76: 100 | AP76: 0 | AQ76: 100 | AR76: 0 | AS76: 100 | AT76: 0 | AU76: 100 | AV76: 0 | AW76: 100 | AX76: 0 | AY76: 100 | AZ76: 0 | BA76: 100 | BB76: 0 | BC76: 100 | BD76: 0 | BE76: 100 | BF76: 0 | BG76: 100 | BH76: 0 | BI76: 100 | BJ76: 0 | BK76: 100 | BL76: 0 | BM76: 100 | BN76: 0 | BO76: 100 | BP76: =IF(BP75>$F22+1,0,1)*(IF(BQ76=0,100,0)+IF($G22=1,1,0)*$J22*100+IF($G22=2,0.5,0)*$J22*100+IF($G22=4,0.25,0)*$J22*100) -> 0 | BQ76: 100 | BR76: 0 | BS76: 100 | BT76: 0 | BU76: 100 | BV76: 0 | BW76: 100 | BX76: 0 | BY76: 100 | BZ76: 0 | CA76: 100 | CB76: 0 | CC76: 100 | CD76: 0 | CE76: 100 | CF76: 0 | CG76: 100 | CH76: 0 | CI76: 100 | CJ76: 0 | CK76: 100 | CL76: 0 | CM76: 100 | CN76: 0 | CO76: 100 | CP76: 0 | CQ76: 100 | CR76: 0 | CS76: 100 | CT76: 0 | CU76: 100 | CV76: 0 | CW76: 100 | CX76: 0 | CY76: 100 | CZ76: 0 | DA76: 100 | DB76: 0 | DC76: 100 | DD76: 0 | DE76: 100 | DF76: 0 | DG76: 100 | DH76: 0 | DI76: 100 | DJ76: 0 | DK76: 100 | DL76: 0 | DM76: 100 | DN76: 0 | DO76: 100 | DP76: 0 | DQ76: 100 | DR76: 0 | DS76: 100 | DT76: 0 | DU76: 100 | DV76: 0 | DW76: 100 | DX76: 0 | DY76: 100 | DZ76: 0 | EA76: 100 | EB76: =IF(EB75>$F22+1,0,1)*(IF(EC76=0,100,0)+IF($G22=1,1,0)*$J22*100+IF($G22=2,0.5,0)*$J22*100+IF($G22=4,0.25,0)*$J22*100) -> 0 | EC76: 100 | ED76: 0 | EE76: 100 | EF76: 0 | EG76: 100 | EH76: 0 | EI76: 100 | EJ76: 0 | EK76: 100 | EL76: 0 | EM76: 100 | EN76: 0 | EO76: 100 | EP76: 0 | EQ76: 100 | ER76: 0 | ES76: 100 | ET76: 0 | EU76: 100 | EV76: 0 | EW76: 100 | EX76: 0 | EY76: 100 | EZ76: 0 | FA76: 100 | FB76: 0 | FC76: 100 | FD76: 0 | FE76: 100 | FF76: 0 | FG76: 100 | FH76: 0 | FI76: 100 | FJ76: 0 | FK76: 100 | FL76: 0 | FM76: 100 | FN76: 0 | FO76: 100 | FP76: 0 | FQ76: 100 | FR76: 0 | FS76: 100 | FT76: 0 | FU76: 100 | FV76: 0 | FW76: 100 | FX76: 0 | FY76: 100 | FZ76: 0 | GA76: 100 | GB76: 0 | GC76: 100 | GD76: 0 | GE76: 100 | GF76: 0 | GG76: 100 | GH76: 0 | GI76: 100 | GJ76: 0 | GK76: 100 | GL76: 0 | GM76: 100 | GN76: =IF(GN75>$F22+1,0,1)*(IF(GO76=0,100,0)+IF($G22=1,1,0)*$J22*100+IF($G22=2,0.5,0)*$J22*100+IF($G22=4,0.25,0)*$J22*100) -> 0 | GO76: 100 | GP76: 0 | GQ76: 100 | GR76: 0 | GS76: 100
A77: Payment Dates | B77: =IF(E23=0,F23,E23) -> 00:00:00 | C77: =B77+IF($G23=1,365,0)+IF($G23=2,182.5,0)+IF($G23=4,91.25,0) -> 00:00:00 | D77: =C77+IF($G23=1,365,0)+IF($G23=2,182.5,0)+IF($G23=4,91.25,0) -> 00:00:00 | E77: 00:00:00 | F77: 00:00:00 | G77: 00:00:00 | H77: 00:00:00 | I77: 00:00:00 | J77: 00:00:00 | K77: 00:00:00 | L77: 00:00:00 | M77: 00:00:00 | N77: 00:00:00 | O77: 00:00:00 | P77: 00:00:00 | Q77: 00:00:00 | R77: 00:00:00 | S77: 00:00:00 | T77: 00:00:00 | U77: 00:00:00 | V77: 00:00:00 | W77: 00:00:00 | X77: 00:00:00 | Y77: 00:00:00 | Z77: 00:00:00 | AA77: 00:00:00 | AB77: 00:00:00 | AC77: 00:00:00 | AD77: 00:00:00 | AE77: 00:00:00 | AF77: 00:00:00 | AG77: 00:00:00 | AH77: 00:00:00 | AI77: 00:00:00 | AJ77: 00:00:00 | AK77: 00:00:00 | AL77: 00:00:00 | AM77: 00:00:00 | AN77: 00:00:00 | AO77: 00:00:00 | AP77: 00:00:00 | AQ77: 00:00:00 | AR77: 00:00:00 | AS77: 00:00:00 | AT77: 00:00:00 | AU77: 00:00:00 | AV77: 00:00:00 | AW77: 00:00:00 | AX77: 00:00:00 | AY77: 00:00:00 | AZ77: 00:00:00 | BA77: 00:00:00 | BB77: 00:00:00 | BC77: 00:00:00 | BD77: 00:00:00 | BE77: 00:00:00 | BF77: 00:00:00 | BG77: 00:00:00 | BH77: 00:00:00 | BI77: 00:00:00 | BJ77: 00:00:00 | BK77: 00:00:00 | BL77: 00:00:00 | BM77: 00:00:00 | BN77: 00:00:00 | BO77: 00:00:00 | BP77: =BO77+IF($G23=1,365,0)+IF($G23=2,182.5,0)+IF($G23=4,91.25,0) -> 00:00:00 | BQ77: 00:00:00 | BR77: 00:00:00 | BS77: 00:00:00 | BT77: 00:00:00 | BU77: 00:00:00 | BV77: 00:00:00 | BW77: 00:00:00 | BX77: 00:00:00 | BY77: 00:00:00 | BZ77: 00:00:00 | CA77: 00:00:00 | CB77: 00:00:00 | CC77: 00:00:00 | CD77: 00:00:00 | CE77: 00:00:00 | CF77: 00:00:00 | CG77: 00:00:00 | CH77: 00:00:00 | CI77: 00:00:00 | CJ77: 00:00:00 | CK77: 00:00:00 | CL77: 00:00:00 | CM77: 00:00:00 | CN77: 00:00:00 | CO77: 00:00:00 | CP77: 00:00:00 | CQ77: 00:00:00 | CR77: 00:00:00 | CS77: 00:00:00 | CT77: 00:00:00 | CU77: 00:00:00 | CV77: 00:00:00 | CW77: 00:00:00 | CX77: 00:00:00 | CY77: 00:00:00 | CZ77: 00:00:00 | DA77: 00:00:00 | DB77: 00:00:00 | DC77: 00:00:00 | DD77: 00:00:00 | DE77: 00:00:00 | DF77: 00:00:00 | DG77: 00:00:00 | DH77: 00:00:00 | DI77: 00:00:00 | DJ77: 00:00:00 | DK77: 00:00:00 | DL77: 00:00:00 | DM77: 00:00:00 | DN77: 00:00:00 | DO77: 00:00:00 | DP77: 00:00:00 | DQ77: 00:00:00 | DR77: 00:00:00 | DS77: 00:00:00 | DT77: 00:00:00 | DU77: 00:00:00 | DV77: 00:00:00 | DW77: 00:00:00 | DX77: 00:00:00 | DY77: 00:00:00 | DZ77: 00:00:00 | EA77: 00:00:00 | EB77: =EA77+IF($G23=1,365,0)+IF($G23=2,182.5,0)+IF($G23=4,91.25,0) -> 00:00:00 | EC77: 00:00:00 | ED77: 00:00:00 | EE77: 00:00:00 | EF77: 00:00:00 | EG77: 00:00:00 | EH77: 00:00:00 | EI77: 00:00:00 | EJ77: 00:00:00 | EK77: 00:00:00 | EL77: 00:00:00 | EM77: 00:00:00 | EN77: 00:00:00 | EO77: 00:00:00 | EP77: 00:00:00 | EQ77: 00:00:00 | ER77: 00:00:00 | ES77: 00:00:00 | ET77: 00:00:00 | EU77: 00:00:00 | EV77: 00:00:00 | EW77: 00:00:00 | EX77: 00:00:00 | EY77: 00:00:00 | EZ77: 00:00:00 | FA77: 00:00:00 | FB77: 00:00:00 | FC77: 00:00:00 | FD77: 00:00:00 | FE77: 00:00:00 | FF77: 00:00:00 | FG77: 00:00:00 | FH77: 00:00:00 | FI77: 00:00:00 | FJ77: 00:00:00 | FK77: 00:00:00 | FL77: 00:00:00 | FM77: 00:00:00 | FN77: 00:00:00 | FO77: 00:00:00 | FP77: 00:00:00 | FQ77: 00:00:00 | FR77: 00:00:00 | FS77: 00:00:00 | FT77: 00:00:00 | FU77: 00:00:00 | FV77: 00:00:00 | FW77: 00:00:00 | FX77: 00:00:00 | FY77: 00:00:00 | FZ77: 00:00:00 | GA77: 00:00:00 | GB77: 00:00:00 | GC77: 00:00:00 | GD77: 00:00:00 | GE77: 00:00:00 | GF77: 00:00:00 | GG77: 00:00:00 | GH77: 00:00:00 | GI77: 00:00:00 | GJ77: 00:00:00 | GK77: 00:00:00 | GL77: 00:00:00 | GM77: 00:00:00 | GN77: =GM77+IF($G23=1,365,0)+IF($G23=2,182.5,0)+IF($G23=4,91.25,0) -> 00:00:00 | GO77: 00:00:00 | GP77: 00:00:00 | GQ77: 00:00:00 | GR77: 00:00:00 | GS77: 00:00:00
A78: Bond 22 | B78: =(IF(B77=F23,100,0)+IF(G23=1,1,0)*J23*100+IF(G23=2,0.5,0)*J23*100+IF(G23=4,0.25,0)*J23*100)*IF(ISBLANK(F23)=TRUE,0,1) -> 0 | C78: =IF(C77>$F23+1,0,1)*(IF(D78=0,100,0)+IF($G23=1,1,0)*$J23*100+IF($G23=2,0.5,0)*$J23*100+IF($G23=4,0.25,0)*$J23*100) -> 100 | D78: =IF(D77>$F23+1,0,1)*(IF(E78=0,100,0)+IF($G23=1,1,0)*$J23*100+IF($G23=2,0.5,0)*$J23*100+IF($G23=4,0.25,0)*$J23*100) -> 0 | E78: 100 | F78: 0 | G78: 100 | H78: 0 | I78: 100 | J78: 0 | K78: 100 | L78: 0 | M78: 100 | N78: 0 | O78: 100 | P78: 0 | Q78: 100 | R78: 0 | S78: 100 | T78: 0 | U78: 100 | V78: 0 | W78: 100 | X78: 0 | Y78: 100 | Z78: 0 | AA78: 100 | AB78: 0 | AC78: 100 | AD78: 0 | AE78: 100 | AF78: 0 | AG78: 100 | AH78: 0 | AI78: 100 | AJ78: 0 | AK78: 100 | AL78: 0 | AM78: 100 | AN78: 0 | AO78: 100 | AP78: 0 | AQ78: 100 | AR78: 0 | AS78: 100 | AT78: 0 | AU78: 100 | AV78: 0 | AW78: 100 | AX78: 0 | AY78: 100 | AZ78: 0 | BA78: 100 | BB78: 0 | BC78: 100 | BD78: 0 | BE78: 100 | BF78: 0 | BG78: 100 | BH78: 0 | BI78: 100 | BJ78: 0 | BK78: 100 | BL78: 0 | BM78: 100 | BN78: 0 | BO78: 100 | BP78: =IF(BP77>$F23+1,0,1)*(IF(BQ78=0,100,0)+IF($G23=1,1,0)*$J23*100+IF($G23=2,0.5,0)*$J23*100+IF($G23=4,0.25,0)*$J23*100) -> 0 | BQ78: 100 | BR78: 0 | BS78: 100 | BT78: 0 | BU78: 100 | BV78: 0 | BW78: 100 | BX78: 0 | BY78: 100 | BZ78: 0 | CA78: 100 | CB78: 0 | CC78: 100 | CD78: 0 | CE78: 100 | CF78: 0 | CG78: 100 | CH78: 0 | CI78: 100 | CJ78: 0 | CK78: 100 | CL78: 0 | CM78: 100 | CN78: 0 | CO78: 100 | CP78: 0 | CQ78: 100 | CR78: 0 | CS78: 100 | CT78: 0 | CU78: 100 | CV78: 0 | CW78: 100 | CX78: 0 | CY78: 100 | CZ78: 0 | DA78: 100 | DB78: 0 | DC78: 100 | DD78: 0 | DE78: 100 | DF78: 0 | DG78: 100 | DH78: 0 | DI78: 100 | DJ78: 0 | DK78: 100 | DL78: 0 | DM78: 100 | DN78: 0 | DO78: 100 | DP78: 0 | DQ78: 100 | DR78: 0 | DS78: 100 | DT78: 0 | DU78: 100 | DV78: 0 | DW78: 100 | DX78: 0 | DY78: 100 | DZ78: 0 | EA78: 100 | EB78: =IF(EB77>$F23+1,0,1)*(IF(EC78=0,100,0)+IF($G23=1,1,0)*$J23*100+IF($G23=2,0.5,0)*$J23*100+IF($G23=4,0.25,0)*$J23*100) -> 0 | EC78: 100 | ED78: 0 | EE78: 100 | EF78: 0 | EG78: 100 | EH78: 0 | EI78: 100 | EJ78: 0 | EK78: 100 | EL78: 0 | EM78: 100 | EN78: 0 | EO78: 100 | EP78: 0 | EQ78: 100 | ER78: 0 | ES78: 100 | ET78: 0 | EU78: 100 | EV78: 0 | EW78: 100 | EX78: 0 | EY78: 100 | EZ78: 0 | FA78: 100 | FB78: 0 | FC78: 100 | FD78: 0 | FE78: 100 | FF78: 0 | FG78: 100 | FH78: 0 | FI78: 100 | FJ78: 0 | FK78: 100 | FL78: 0 | FM78: 100 | FN78: 0 | FO78: 100 | FP78: 0 | FQ78: 100 | FR78: 0 | FS78: 100 | FT78: 0 | FU78: 100 | FV78: 0 | FW78: 100 | FX78: 0 | FY78: 100 | FZ78: 0 | GA78: 100 | GB78: 0 | GC78: 100 | GD78: 0 | GE78: 100 | GF78: 0 | GG78: 100 | GH78: 0 | GI78: 100 | GJ78: 0 | GK78: 100 | GL78: 0 | GM78: 100 | GN78: =IF(GN77>$F23+1,0,1)*(IF(GO78=0,100,0)+IF($G23=1,1,0)*$J23*100+IF($G23=2,0.5,0)*$J23*100+IF($G23=4,0.25,0)*$J23*100) -> 0 | GO78: 100 | GP78: 0 | GQ78: 100 | GR78: 0 | GS78: 100
A79: Payment Dates | B79: =IF(E24=0,F24,E24) -> 00:00:00 | C79: =B79+IF($G24=1,365,0)+IF($G24=2,182.5,0)+IF($G24=4,91.25,0) -> 00:00:00 | D79: =C79+IF($G24=1,365,0)+IF($G24=2,182.5,0)+IF($G24=4,91.25,0) -> 00:00:00 | E79: 00:00:00 | F79: 00:00:00 | G79: 00:00:00 | H79: 00:00:00 | I79: 00:00:00 | J79: 00:00:00 | K79: 00:00:00 | L79: 00:00:00 | M79: 00:00:00 | N79: 00:00:00 | O79: 00:00:00 | P79: 00:00:00 | Q79: 00:00:00 | R79: 00:00:00 | S79: 00:00:00 | T79: 00:00:00 | U79: 00:00:00 | V79: 00:00:00 | W79: 00:00:00 | X79: 00:00:00 | Y79: 00:00:00 | Z79: 00:00:00 | AA79: 00:00:00 | AB79: 00:00:00 | AC79: 00:00:00 | AD79: 00:00:00 | AE79: 00:00:00 | AF79: 00:00:00 | AG79: 00:00:00 | AH79: 00:00:00 | AI79: 00:00:00 | AJ79: 00:00:00 | AK79: 00:00:00 | AL79: 00:00:00 | AM79: 00:00:00 | AN79: 00:00:00 | AO79: 00:00:00 | AP79: 00:00:00 | AQ79: 00:00:00 | AR79: 00:00:00 | AS79: 00:00:00 | AT79: 00:00:00 | AU79: 00:00:00 | AV79: 00:00:00 | AW79: 00:00:00 | AX79: 00:00:00 | AY79: 00:00:00 | AZ79: 00:00:00 | BA79: 00:00:00 | BB79: 00:00:00 | BC79: 00:00:00 | BD79: 00:00:00 | BE79: 00:00:00 | BF79: 00:00:00 | BG79: 00:00:00 | BH79: 00:00:00 | BI79: 00:00:00 | BJ79: 00:00:00 | BK79: 00:00:00 | BL79: 00:00:00 | BM79: 00:00:00 | BN79: 00:00:00 | BO79: 00:00:00 | BP79: =BO79+IF($G24=1,365,0)+IF($G24=2,182.5,0)+IF($G24=4,91.25,0) -> 00:00:00 | BQ79: 00:00:00 | BR79: 00:00:00 | BS79: 00:00:00 | BT79: 00:00:00 | BU79: 00:00:00 | BV79: 00:00:00 | BW79: 00:00:00 | BX79: 00:00:00 | BY79: 00:00:00 | BZ79: 00:00:00 | CA79: 00:00:00 | CB79: 00:00:00 | CC79: 00:00:00 | CD79: 00:00:00 | CE79: 00:00:00 | CF79: 00:00:00 | CG79: 00:00:00 | CH79: 00:00:00 | CI79: 00:00:00 | CJ79: 00:00:00 | CK79: 00:00:00 | CL79: 00:00:00 | CM79: 00:00:00 | CN79: 00:00:00 | CO79: 00:00:00 | CP79: 00:00:00 | CQ79: 00:00:00 | CR79: 00:00:00 | CS79: 00:00:00 | CT79: 00:00:00 | CU79: 00:00:00 | CV79: 00:00:00 | CW79: 00:00:00 | CX79: 00:00:00 | CY79: 00:00:00 | CZ79: 00:00:00 | DA79: 00:00:00 | DB79: 00:00:00 | DC79: 00:00:00 | DD79: 00:00:00 | DE79: 00:00:00 | DF79: 00:00:00 | DG79: 00:00:00 | DH79: 00:00:00 | DI79: 00:00:00 | DJ79: 00:00:00 | DK79: 00:00:00 | DL79: 00:00:00 | DM79: 00:00:00 | DN79: 00:00:00 | DO79: 00:00:00 | DP79: 00:00:00 | DQ79: 00:00:00 | DR79: 00:00:00 | DS79: 00:00:00 | DT79: 00:00:00 | DU79: 00:00:00 | DV79: 00:00:00 | DW79: 00:00:00 | DX79: 00:00:00 | DY79: 00:00:00 | DZ79: 00:00:00 | EA79: 00:00:00 | EB79: =EA79+IF($G24=1,365,0)+IF($G24=2,182.5,0)+IF($G24=4,91.25,0) -> 00:00:00 | EC79: 00:00:00 | ED79: 00:00:00 | EE79: 00:00:00 | EF79: 00:00:00 | EG79: 00:00:00 | EH79: 00:00:00 | EI79: 00:00:00 | EJ79: 00:00:00 | EK79: 00:00:00 | EL79: 00:00:00 | EM79: 00:00:00 | EN79: 00:00:00 | EO79: 00:00:00 | EP79: 00:00:00 | EQ79: 00:00:00 | ER79: 00:00:00 | ES79: 00:00:00 | ET79: 00:00:00 | EU79: 00:00:00 | EV79: 00:00:00 | EW79: 00:00:00 | EX79: 00:00:00 | EY79: 00:00:00 | EZ79: 00:00:00 | FA79: 00:00:00 | FB79: 00:00:00 | FC79: 00:00:00 | FD79: 00:00:00 | FE79: 00:00:00 | FF79: 00:00:00 | FG79: 00:00:00 | FH79: 00:00:00 | FI79: 00:00:00 | FJ79: 00:00:00 | FK79: 00:00:00 | FL79: 00:00:00 | FM79: 00:00:00 | FN79: 00:00:00 | FO79: 00:00:00 | FP79: 00:00:00 | FQ79: 00:00:00 | FR79: 00:00:00 | FS79: 00:00:00 | FT79: 00:00:00 | FU79: 00:00:00 | FV79: 00:00:00 | FW79: 00:00:00 | FX79: 00:00:00 | FY79: 00:00:00 | FZ79: 00:00:00 | GA79: 00:00:00 | GB79: 00:00:00 | GC79: 00:00:00 | GD79: 00:00:00 | GE79: 00:00:00 | GF79: 00:00:00 | GG79: 00:00:00 | GH79: 00:00:00 | GI79: 00:00:00 | GJ79: 00:00:00 | GK79: 00:00:00 | GL79: 00:00:00 | GM79: 00:00:00 | GN79: =GM79+IF($G24=1,365,0)+IF($G24=2,182.5,0)+IF($G24=4,91.25,0) -> 00:00:00 | GO79: 00:00:00 | GP79: 00:00:00 | GQ79: 00:00:00 | GR79: 00:00:00 | GS79: 00:00:00
A80: Bond 23 | B80: =(IF(B79=F24,100,0)+IF(G24=1,1,0)*J24*100+IF(G24=2,0.5,0)*J24*100+IF(G24=4,0.25,0)*J24*100)*IF(ISBLANK(F24)=TRUE,0,1) -> 0 | C80: =IF(C79>$F24+1,0,1)*(IF(D80=0,100,0)+IF($G24=1,1,0)*$J24*100+IF($G24=2,0.5,0)*$J24*100+IF($G24=4,0.25,0)*$J24*100) -> 100 | D80: =IF(D79>$F24+1,0,1)*(IF(E80=0,100,0)+IF($G24=1,1,0)*$J24*100+IF($G24=2,0.5,0)*$J24*100+IF($G24=4,0.25,0)*$J24*100) -> 0 | E80: 100 | F80: 0 | G80: 100 | H80: 0 | I80: 100 | J80: 0 | K80: 100 | L80: 0 | M80: 100 | N80: 0 | O80: 100 | P80: 0 | Q80: 100 | R80: 0 | S80: 100 | T80: 0 | U80: 100 | V80: 0 | W80: 100 | X80: 0 | Y80: 100 | Z80: 0 | AA80: 100 | AB80: 0 | AC80: 100 | AD80: 0 | AE80: 100 | AF80: 0 | AG80: 100 | AH80: 0 | AI80: 100 | AJ80: 0 | AK80: 100 | AL80: 0 | AM80: 100 | AN80: 0 | AO80: 100 | AP80: 0 | AQ80: 100 | AR80: 0 | AS80: 100 | AT80: 0 | AU80: 100 | AV80: 0 | AW80: 100 | AX80: 0 | AY80: 100 | AZ80: 0 | BA80: 100 | BB80: 0 | BC80: 100 | BD80: 0 | BE80: 100 | BF80: 0 | BG80: 100 | BH80: 0 | BI80: 100 | BJ80: 0 | BK80: 100 | BL80: 0 | BM80: 100 | BN80: 0 | BO80: 100 | BP80: =IF(BP79>$F24+1,0,1)*(IF(BQ80=0,100,0)+IF($G24=1,1,0)*$J24*100+IF($G24=2,0.5,0)*$J24*100+IF($G24=4,0.25,0)*$J24*100) -> 0 | BQ80: 100 | BR80: 0 | BS80: 100 | BT80: 0 | BU80: 100 | BV80: 0 | BW80: 100 | BX80: 0 | BY80: 100 | BZ80: 0 | CA80: 100 | CB80: 0 | CC80: 100 | CD80: 0 | CE80: 100 | CF80: 0 | CG80: 100 | CH80: 0 | CI80: 100 | CJ80: 0 | CK80: 100 | CL80: 0 | CM80: 100 | CN80: 0 | CO80: 100 | CP80: 0 | CQ80: 100 | CR80: 0 | CS80: 100 | CT80: 0 | CU80: 100 | CV80: 0 | CW80: 100 | CX80: 0 | CY80: 100 | CZ80: 0 | DA80: 100 | DB80: 0 | DC80: 100 | DD80: 0 | DE80: 100 | DF80: 0 | DG80: 100 | DH80: 0 | DI80: 100 | DJ80: 0 | DK80: 100 | DL80: 0 | DM80: 100 | DN80: 0 | DO80: 100 | DP80: 0 | DQ80: 100 | DR80: 0 | DS80: 100 | DT80: 0 | DU80: 100 | DV80: 0 | DW80: 100 | DX80: 0 | DY80: 100 | DZ80: 0 | EA80: 100 | EB80: =IF(EB79>$F24+1,0,1)*(IF(EC80=0,100,0)+IF($G24=1,1,0)*$J24*100+IF($G24=2,0.5,0)*$J24*100+IF($G24=4,0.25,0)*$J24*100) -> 0 | EC80: 100 | ED80: 0 | EE80: 100 | EF80: 0 | EG80: 100 | EH80: 0 | EI80: 100 | EJ80: 0 | EK80: 100 | EL80: 0 | EM80: 100 | EN80: 0 | EO80: 100 | EP80: 0 | EQ80: 100 | ER80: 0 | ES80: 100 | ET80: 0 | EU80: 100 | EV80: 0 | EW80: 100 | EX80: 0 | EY80: 100 | EZ80: 0 | FA80: 100 | FB80: 0 | FC80: 100 | FD80: 0 | FE80: 100 | FF80: 0 | FG80: 100 | FH80: 0 | FI80: 100 | FJ80: 0 | FK80: 100 | FL80: 0 | FM80: 100 | FN80: 0 | FO80: 100 | FP80: 0 | FQ80: 100 | FR80: 0 | FS80: 100 | FT80: 0 | FU80: 100 | FV80: 0 | FW80: 100 | FX80: 0 | FY80: 100 | FZ80: 0 | GA80: 100 | GB80: 0 | GC80: 100 | GD80: 0 | GE80: 100 | GF80: 0 | GG80: 100 | GH80: 0 | GI80: 100 | GJ80: 0 | GK80: 100 | GL80: 0 | GM80: 100 | GN80: =IF(GN79>$F24+1,0,1)*(IF(GO80=0,100,0)+IF($G24=1,1,0)*$J24*100+IF($G24=2,0.5,0)*$J24*100+IF($G24=4,0.25,0)*$J24*100) -> 0 | GO80: 100 | GP80: 0 | GQ80: 100 | GR80: 0 | GS80: 100
A81: Payment Dates | B81: =IF(E25=0,F25,E25) -> 00:00:00 | C81: =B81+IF($G25=1,365,0)+IF($G25=2,182.5,0)+IF($G25=4,91.25,0) -> 00:00:00 | D81: =C81+IF($G25=1,365,0)+IF($G25=2,182.5,0)+IF($G25=4,91.25,0) -> 00:00:00 | E81: 00:00:00 | F81: 00:00:00 | G81: 00:00:00 | H81: 00:00:00 | I81: 00:00:00 | J81: 00:00:00 | K81: 00:00:00 | L81: 00:00:00 | M81: 00:00:00 | N81: 00:00:00 | O81: 00:00:00 | P81: 00:00:00 | Q81: 00:00:00 | R81: 00:00:00 | S81: 00:00:00 | T81: 00:00:00 | U81: 00:00:00 | V81: 00:00:00 | W81: 00:00:00 | X81: 00:00:00 | Y81: 00:00:00 | Z81: 00:00:00 | AA81: 00:00:00 | AB81: 00:00:00 | AC81: 00:00:00 | AD81: 00:00:00 | AE81: 00:00:00 | AF81: 00:00:00 | AG81: 00:00:00 | AH81: 00:00:00 | AI81: 00:00:00 | AJ81: 00:00:00 | AK81: 00:00:00 | AL81: 00:00:00 | AM81: 00:00:00 | AN81: 00:00:00 | AO81: 00:00:00 | AP81: 00:00:00 | AQ81: 00:00:00 | AR81: 00:00:00 | AS81: 00:00:00 | AT81: 00:00:00 | AU81: 00:00:00 | AV81: 00:00:00 | AW81: 00:00:00 | AX81: 00:00:00 | AY81: 00:00:00 | AZ81: 00:00:00 | BA81: 00:00:00 | BB81: 00:00:00 | BC81: 00:00:00 | BD81: 00:00:00 | BE81: 00:00:00 | BF81: 00:00:00 | BG81: 00:00:00 | BH81: 00:00:00 | BI81: 00:00:00 | BJ81: 00:00:00 | BK81: 00:00:00 | BL81: 00:00:00 | BM81: 00:00:00 | BN81: 00:00:00 | BO81: 00:00:00 | BP81: =BO81+IF($G25=1,365,0)+IF($G25=2,182.5,0)+IF($G25=4,91.25,0) -> 00:00:00 | BQ81: 00:00:00 | BR81: 00:00:00 | BS81: 00:00:00 | BT81: 00:00:00 | BU81: 00:00:00 | BV81: 00:00:00 | BW81: 00:00:00 | BX81: 00:00:00 | BY81: 00:00:00 | BZ81: 00:00:00 | CA81: 00:00:00 | CB81: 00:00:00 | CC81: 00:00:00 | CD81: 00:00:00 | CE81: 00:00:00 | CF81: 00:00:00 | CG81: 00:00:00 | CH81: 00:00:00 | CI81: 00:00:00 | CJ81: 00:00:00 | CK81: 00:00:00 | CL81: 00:00:00 | CM81: 00:00:00 | CN81: 00:00:00 | CO81: 00:00:00 | CP81: 00:00:00 | CQ81: 00:00:00 | CR81: 00:00:00 | CS81: 00:00:00 | CT81: 00:00:00 | CU81: 00:00:00 | CV81: 00:00:00 | CW81: 00:00:00 | CX81: 00:00:00 | CY81: 00:00:00 | CZ81: 00:00:00 | DA81: 00:00:00 | DB81: 00:00:00 | DC81: 00:00:00 | DD81: 00:00:00 | DE81: 00:00:00 | DF81: 00:00:00 | DG81: 00:00:00 | DH81: 00:00:00 | DI81: 00:00:00 | DJ81: 00:00:00 | DK81: 00:00:00 | DL81: 00:00:00 | DM81: 00:00:00 | DN81: 00:00:00 | DO81: 00:00:00 | DP81: 00:00:00 | DQ81: 00:00:00 | DR81: 00:00:00 | DS81: 00:00:00 | DT81: 00:00:00 | DU81: 00:00:00 | DV81: 00:00:00 | DW81: 00:00:00 | DX81: 00:00:00 | DY81: 00:00:00 | DZ81: 00:00:00 | EA81: 00:00:00 | EB81: =EA81+IF($G25=1,365,0)+IF($G25=2,182.5,0)+IF($G25=4,91.25,0) -> 00:00:00 | EC81: 00:00:00 | ED81: 00:00:00 | EE81: 00:00:00 | EF81: 00:00:00 | EG81: 00:00:00 | EH81: 00:00:00 | EI81: 00:00:00 | EJ81: 00:00:00 | EK81: 00:00:00 | EL81: 00:00:00 | EM81: 00:00:00 | EN81: 00:00:00 | EO81: 00:00:00 | EP81: 00:00:00 | EQ81: 00:00:00 | ER81: 00:00:00 | ES81: 00:00:00 | ET81: 00:00:00 | EU81: 00:00:00 | EV81: 00:00:00 | EW81: 00:00:00 | EX81: 00:00:00 | EY81: 00:00:00 | EZ81: 00:00:00 | FA81: 00:00:00 | FB81: 00:00:00 | FC81: 00:00:00 | FD81: 00:00:00 | FE81: 00:00:00 | FF81: 00:00:00 | FG81: 00:00:00 | FH81: 00:00:00 | FI81: 00:00:00 | FJ81: 00:00:00 | FK81: 00:00:00 | FL81: 00:00:00 | FM81: 00:00:00 | FN81: 00:00:00 | FO81: 00:00:00 | FP81: 00:00:00 | FQ81: 00:00:00 | FR81: 00:00:00 | FS81: 00:00:00 | FT81: 00:00:00 | FU81: 00:00:00 | FV81: 00:00:00 | FW81: 00:00:00 | FX81: 00:00:00 | FY81: 00:00:00 | FZ81: 00:00:00 | GA81: 00:00:00 | GB81: 00:00:00 | GC81: 00:00:00 | GD81: 00:00:00 | GE81: 00:00:00 | GF81: 00:00:00 | GG81: 00:00:00 | GH81: 00:00:00 | GI81: 00:00:00 | GJ81: 00:00:00 | GK81: 00:00:00 | GL81: 00:00:00 | GM81: 00:00:00 | GN81: =GM81+IF($G25=1,365,0)+IF($G25=2,182.5,0)+IF($G25=4,91.25,0) -> 00:00:00 | GO81: 00:00:00 | GP81: 00:00:00 | GQ81: 00:00:00 | GR81: 00:00:00 | GS81: 00:00:00
A82: Bond 24 | B82: =(IF(B81=F25,100,0)+IF(G25=1,1,0)*J25*100+IF(G25=2,0.5,0)*J25*100+IF(G25=4,0.25,0)*J25*100)*IF(ISBLANK(F25)=TRUE,0,1) -> 0 | C82: =IF(C81>$F25+1,0,1)*(IF(D82=0,100,0)+IF($G25=1,1,0)*$J25*100+IF($G25=2,0.5,0)*$J25*100+IF($G25=4,0.25,0)*$J25*100) -> 100 | D82: =IF(D81>$F25+1,0,1)*(IF(E82=0,100,0)+IF($G25=1,1,0)*$J25*100+IF($G25=2,0.5,0)*$J25*100+IF($G25=4,0.25,0)*$J25*100) -> 0 | E82: 100 | F82: 0 | G82: 100 | H82: 0 | I82: 100 | J82: 0 | K82: 100 | L82: 0 | M82: 100 | N82: 0 | O82: 100 | P82: 0 | Q82: 100 | R82: 0 | S82: 100 | T82: 0 | U82: 100 | V82: 0 | W82: 100 | X82: 0 | Y82: 100 | Z82: 0 | AA82: 100 | AB82: 0 | AC82: 100 | AD82: 0 | AE82: 100 | AF82: 0 | AG82: 100 | AH82: 0 | AI82: 100 | AJ82: 0 | AK82: 100 | AL82: 0 | AM82: 100 | AN82: 0 | AO82: 100 | AP82: 0 | AQ82: 100 | AR82: 0 | AS82: 100 | AT82: 0 | AU82: 100 | AV82: 0 | AW82: 100 | AX82: 0 | AY82: 100 | AZ82: 0 | BA82: 100 | BB82: 0 | BC82: 100 | BD82: 0 | BE82: 100 | BF82: 0 | BG82: 100 | BH82: 0 | BI82: 100 | BJ82: 0 | BK82: 100 | BL82: 0 | BM82: 100 | BN82: 0 | BO82: 100 | BP82: =IF(BP81>$F25+1,0,1)*(IF(BQ82=0,100,0)+IF($G25=1,1,0)*$J25*100+IF($G25=2,0.5,0)*$J25*100+IF($G25=4,0.25,0)*$J25*100) -> 0 | BQ82: 100 | BR82: 0 | BS82: 100 | BT82: 0 | BU82: 100 | BV82: 0 | BW82: 100 | BX82: 0 | BY82: 100 | BZ82: 0 | CA82: 100 | CB82: 0 | CC82: 100 | CD82: 0 | CE82: 100 | CF82: 0 | CG82: 100 | CH82: 0 | CI82: 100 | CJ82: 0 | CK82: 100 | CL82: 0 | CM82: 100 | CN82: 0 | CO82: 100 | CP82: 0 | CQ82: 100 | CR82: 0 | CS82: 100 | CT82: 0 | CU82: 100 | CV82: 0 | CW82: 100 | CX82: 0 | CY82: 100 | CZ82: 0 | DA82: 100 | DB82: 0 | DC82: 100 | DD82: 0 | DE82: 100 | DF82: 0 | DG82: 100 | DH82: 0 | DI82: 100 | DJ82: 0 | DK82: 100 | DL82: 0 | DM82: 100 | DN82: 0 | DO82: 100 | DP82: 0 | DQ82: 100 | DR82: 0 | DS82: 100 | DT82: 0 | DU82: 100 | DV82: 0 | DW82: 100 | DX82: 0 | DY82: 100 | DZ82: 0 | EA82: 100 | EB82: =IF(EB81>$F25+1,0,1)*(IF(EC82=0,100,0)+IF($G25=1,1,0)*$J25*100+IF($G25=2,0.5,0)*$J25*100+IF($G25=4,0.25,0)*$J25*100) -> 0 | EC82: 100 | ED82: 0 | EE82: 100 | EF82: 0 | EG82: 100 | EH82: 0 | EI82: 100 | EJ82: 0 | EK82: 100 | EL82: 0 | EM82: 100 | EN82: 0 | EO82: 100 | EP82: 0 | EQ82: 100 | ER82: 0 | ES82: 100 | ET82: 0 | EU82: 100 | EV82: 0 | EW82: 100 | EX82: 0 | EY82: 100 | EZ82: 0 | FA82: 100 | FB82: 0 | FC82: 100 | FD82: 0 | FE82: 100 | FF82: 0 | FG82: 100 | FH82: 0 | FI82: 100 | FJ82: 0 | FK82: 100 | FL82: 0 | FM82: 100 | FN82: 0 | FO82: 100 | FP82: 0 | FQ82: 100 | FR82: 0 | FS82: 100 | FT82: 0 | FU82: 100 | FV82: 0 | FW82: 100 | FX82: 0 | FY82: 100 | FZ82: 0 | GA82: 100 | GB82: 0 | GC82: 100 | GD82: 0 | GE82: 100 | GF82: 0 | GG82: 100 | GH82: 0 | GI82: 100 | GJ82: 0 | GK82: 100 | GL82: 0 | GM82: 100 | GN82: =IF(GN81>$F25+1,0,1)*(IF(GO82=0,100,0)+IF($G25=1,1,0)*$J25*100+IF($G25=2,0.5,0)*$J25*100+IF($G25=4,0.25,0)*$J25*100) -> 0 | GO82: 100 | GP82: 0 | GQ82: 100 | GR82: 0 | GS82: 100
A83: Payment Dates | B83: =IF(E26=0,F26,E26) -> 00:00:00 | C83: =B83+IF($G26=1,365,0)+IF($G26=2,182.5,0)+IF($G26=4,91.25,0) -> 00:00:00 | D83: =C83+IF($G26=1,365,0)+IF($G26=2,182.5,0)+IF($G26=4,91.25,0) -> 00:00:00 | E83: 00:00:00 | F83: 00:00:00 | G83: 00:00:00 | H83: 00:00:00 | I83: 00:00:00 | J83: 00:00:00 | K83: 00:00:00 | L83: 00:00:00 | M83: 00:00:00 | N83: 00:00:00 | O83: 00:00:00 | P83: 00:00:00 | Q83: 00:00:00 | R83: 00:00:00 | S83: 00:00:00 | T83: 00:00:00 | U83: 00:00:00 | V83: 00:00:00 | W83: 00:00:00 | X83: 00:00:00 | Y83: 00:00:00 | Z83: 00:00:00 | AA83: 00:00:00 | AB83: 00:00:00 | AC83: 00:00:00 | AD83: 00:00:00 | AE83: 00:00:00 | AF83: 00:00:00 | AG83: 00:00:00 | AH83: 00:00:00 | AI83: 00:00:00 | AJ83: 00:00:00 | AK83: 00:00:00 | AL83: 00:00:00 | AM83: 00:00:00 | AN83: 00:00:00 | AO83: 00:00:00 | AP83: 00:00:00 | AQ83: 00:00:00 | AR83: 00:00:00 | AS83: 00:00:00 | AT83: 00:00:00 | AU83: 00:00:00 | AV83: 00:00:00 | AW83: 00:00:00 | AX83: 00:00:00 | AY83: 00:00:00 | AZ83: 00:00:00 | BA83: 00:00:00 | BB83: 00:00:00 | BC83: 00:00:00 | BD83: 00:00:00 | BE83: 00:00:00 | BF83: 00:00:00 | BG83: 00:00:00 | BH83: 00:00:00 | BI83: 00:00:00 | BJ83: 00:00:00 | BK83: 00:00:00 | BL83: 00:00:00 | BM83: 00:00:00 | BN83: 00:00:00 | BO83: 00:00:00 | BP83: =BO83+IF($G26=1,365,0)+IF($G26=2,182.5,0)+IF($G26=4,91.25,0) -> 00:00:00 | BQ83: 00:00:00 | BR83: 00:00:00 | BS83: 00:00:00 | BT83: 00:00:00 | BU83: 00:00:00 | BV83: 00:00:00 | BW83: 00:00:00 | BX83: 00:00:00 | BY83: 00:00:00 | BZ83: 00:00:00 | CA83: 00:00:00 | CB83: 00:00:00 | CC83: 00:00:00 | CD83: 00:00:00 | CE83: 00:00:00 | CF83: 00:00:00 | CG83: 00:00:00 | CH83: 00:00:00 | CI83: 00:00:00 | CJ83: 00:00:00 | CK83: 00:00:00 | CL83: 00:00:00 | CM83: 00:00:00 | CN83: 00:00:00 | CO83: 00:00:00 | CP83: 00:00:00 | CQ83: 00:00:00 | CR83: 00:00:00 | CS83: 00:00:00 | CT83: 00:00:00 | CU83: 00:00:00 | CV83: 00:00:00 | CW83: 00:00:00 | CX83: 00:00:00 | CY83: 00:00:00 | CZ83: 00:00:00 | DA83: 00:00:00 | DB83: 00:00:00 | DC83: 00:00:00 | DD83: 00:00:00 | DE83: 00:00:00 | DF83: 00:00:00 | DG83: 00:00:00 | DH83: 00:00:00 | DI83: 00:00:00 | DJ83: 00:00:00 | DK83: 00:00:00 | DL83: 00:00:00 | DM83: 00:00:00 | DN83: 00:00:00 | DO83: 00:00:00 | DP83: 00:00:00 | DQ83: 00:00:00 | DR83: 00:00:00 | DS83: 00:00:00 | DT83: 00:00:00 | DU83: 00:00:00 | DV83: 00:00:00 | DW83: 00:00:00 | DX83: 00:00:00 | DY83: 00:00:00 | DZ83: 00:00:00 | EA83: 00:00:00 | EB83: =EA83+IF($G26=1,365,0)+IF($G26=2,182.5,0)+IF($G26=4,91.25,0) -> 00:00:00 | EC83: 00:00:00 | ED83: 00:00:00 | EE83: 00:00:00 | EF83: 00:00:00 | EG83: 00:00:00 | EH83: 00:00:00 | EI83: 00:00:00 | EJ83: 00:00:00 | EK83: 00:00:00 | EL83: 00:00:00 | EM83: 00:00:00 | EN83: 00:00:00 | EO83: 00:00:00 | EP83: 00:00:00 | EQ83: 00:00:00 | ER83: 00:00:00 | ES83: 00:00:00 | ET83: 00:00:00 | EU83: 00:00:00 | EV83: 00:00:00 | EW83: 00:00:00 | EX83: 00:00:00 | EY83: 00:00:00 | EZ83: 00:00:00 | FA83: 00:00:00 | FB83: 00:00:00 | FC83: 00:00:00 | FD83: 00:00:00 | FE83: 00:00:00 | FF83: 00:00:00 | FG83: 00:00:00 | FH83: 00:00:00 | FI83: 00:00:00 | FJ83: 00:00:00 | FK83: 00:00:00 | FL83: 00:00:00 | FM83: 00:00:00 | FN83: 00:00:00 | FO83: 00:00:00 | FP83: 00:00:00 | FQ83: 00:00:00 | FR83: 00:00:00 | FS83: 00:00:00 | FT83: 00:00:00 | FU83: 00:00:00 | FV83: 00:00:00 | FW83: 00:00:00 | FX83: 00:00:00 | FY83: 00:00:00 | FZ83: 00:00:00 | GA83: 00:00:00 | GB83: 00:00:00 | GC83: 00:00:00 | GD83: 00:00:00 | GE83: 00:00:00 | GF83: 00:00:00 | GG83: 00:00:00 | GH83: 00:00:00 | GI83: 00:00:00 | GJ83: 00:00:00 | GK83: 00:00:00 | GL83: 00:00:00 | GM83: 00:00:00 | GN83: =GM83+IF($G26=1,365,0)+IF($G26=2,182.5,0)+IF($G26=4,91.25,0) -> 00:00:00 | GO83: 00:00:00 | GP83: 00:00:00 | GQ83: 00:00:00 | GR83: 00:00:00 | GS83: 00:00:00
A84: Bond 25 | B84: =(IF(B83=F26,100,0)+IF(G26=1,1,0)*J26*100+IF(G26=2,0.5,0)*J26*100+IF(G26=4,0.25,0)*J26*100)*IF(ISBLANK(F26)=TRUE,0,1) -> 0 | C84: =IF(C83>$F26+1,0,1)*(IF(D84=0,100,0)+IF($G26=1,1,0)*$J26*100+IF($G26=2,0.5,0)*$J26*100+IF($G26=4,0.25,0)*$J26*100) -> 100 | D84: =IF(D83>$F26+1,0,1)*(IF(E84=0,100,0)+IF($G26=1,1,0)*$J26*100+IF($G26=2,0.5,0)*$J26*100+IF($G26=4,0.25,0)*$J26*100) -> 0 | E84: 100 | F84: 0 | G84: 100 | H84: 0 | I84: 100 | J84: 0 | K84: 100 | L84: 0 | M84: 100 | N84: 0 | O84: 100 | P84: 0 | Q84: 100 | R84: 0 | S84: 100 | T84: 0 | U84: 100 | V84: 0 | W84: 100 | X84: 0 | Y84: 100 | Z84: 0 | AA84: 100 | AB84: 0 | AC84: 100 | AD84: 0 | AE84: 100 | AF84: 0 | AG84: 100 | AH84: 0 | AI84: 100 | AJ84: 0 | AK84: 100 | AL84: 0 | AM84: 100 | AN84: 0 | AO84: 100 | AP84: 0 | AQ84: 100 | AR84: 0 | AS84: 100 | AT84: 0 | AU84: 100 | AV84: 0 | AW84: 100 | AX84: 0 | AY84: 100 | AZ84: 0 | BA84: 100 | BB84: 0 | BC84: 100 | BD84: 0 | BE84: 100 | BF84: 0 | BG84: 100 | BH84: 0 | BI84: 100 | BJ84: 0 | BK84: 100 | BL84: 0 | BM84: 100 | BN84: 0 | BO84: 100 | BP84: =IF(BP83>$F26+1,0,1)*(IF(BQ84=0,100,0)+IF($G26=1,1,0)*$J26*100+IF($G26=2,0.5,0)*$J26*100+IF($G26=4,0.25,0)*$J26*100) -> 0 | BQ84: 100 | BR84: 0 | BS84: 100 | BT84: 0 | BU84: 100 | BV84: 0 | BW84: 100 | BX84: 0 | BY84: 100 | BZ84: 0 | CA84: 100 | CB84: 0 | CC84: 100 | CD84: 0 | CE84: 100 | CF84: 0 | CG84: 100 | CH84: 0 | CI84: 100 | CJ84: 0 | CK84: 100 | CL84: 0 | CM84: 100 | CN84: 0 | CO84: 100 | CP84: 0 | CQ84: 100 | CR84: 0 | CS84: 100 | CT84: 0 | CU84: 100 | CV84: 0 | CW84: 100 | CX84: 0 | CY84: 100 | CZ84: 0 | DA84: 100 | DB84: 0 | DC84: 100 | DD84: 0 | DE84: 100 | DF84: 0 | DG84: 100 | DH84: 0 | DI84: 100 | DJ84: 0 | DK84: 100 | DL84: 0 | DM84: 100 | DN84: 0 | DO84: 100 | DP84: 0 | DQ84: 100 | DR84: 0 | DS84: 100 | DT84: 0 | DU84: 100 | DV84: 0 | DW84: 100 | DX84: 0 | DY84: 100 | DZ84: 0 | EA84: 100 | EB84: =IF(EB83>$F26+1,0,1)*(IF(EC84=0,100,0)+IF($G26=1,1,0)*$J26*100+IF($G26=2,0.5,0)*$J26*100+IF($G26=4,0.25,0)*$J26*100) -> 0 | EC84: 100 | ED84: 0 | EE84: 100 | EF84: 0 | EG84: 100 | EH84: 0 | EI84: 100 | EJ84: 0 | EK84: 100 | EL84: 0 | EM84: 100 | EN84: 0 | EO84: 100 | EP84: 0 | EQ84: 100 | ER84: 0 | ES84: 100 | ET84: 0 | EU84: 100 | EV84: 0 | EW84: 100 | EX84: 0 | EY84: 100 | EZ84: 0 | FA84: 100 | FB84: 0 | FC84: 100 | FD84: 0 | FE84: 100 | FF84: 0 | FG84: 100 | FH84: 0 | FI84: 100 | FJ84: 0 | FK84: 100 | FL84: 0 | FM84: 100 | FN84: 0 | FO84: 100 | FP84: 0 | FQ84: 100 | FR84: 0 | FS84: 100 | FT84: 0 | FU84: 100 | FV84: 0 | FW84: 100 | FX84: 0 | FY84: 100 | FZ84: 0 | GA84: 100 | GB84: 0 | GC84: 100 | GD84: 0 | GE84: 100 | GF84: 0 | GG84: 100 | GH84: 0 | GI84: 100 | GJ84: 0 | GK84: 100 | GL84: 0 | GM84: 100 | GN84: =IF(GN83>$F26+1,0,1)*(IF(GO84=0,100,0)+IF($G26=1,1,0)*$J26*100+IF($G26=2,0.5,0)*$J26*100+IF($G26=4,0.25,0)*$J26*100) -> 0 | GO84: 100 | GP84: 0 | GQ84: 100 | GR84: 0 | GS84: 100
A85: Payment Dates | B85: =IF(E27=0,F27,E27) -> 00:00:00 | C85: =B85+IF($G27=1,365,0)+IF($G27=2,182.5,0)+IF($G27=4,91.25,0) -> 00:00:00 | D85: =C85+IF($G27=1,365,0)+IF($G27=2,182.5,0)+IF($G27=4,91.25,0) -> 00:00:00 | E85: 00:00:00 | F85: 00:00:00 | G85: 00:00:00 | H85: 00:00:00 | I85: 00:00:00 | J85: 00:00:00 | K85: 00:00:00 | L85: 00:00:00 | M85: 00:00:00 | N85: 00:00:00 | O85: 00:00:00 | P85: 00:00:00 | Q85: 00:00:00 | R85: 00:00:00 | S85: 00:00:00 | T85: 00:00:00 | U85: 00:00:00 | V85: 00:00:00 | W85: 00:00:00 | X85: 00:00:00 | Y85: 00:00:00 | Z85: 00:00:00 | AA85: 00:00:00 | AB85: 00:00:00 | AC85: 00:00:00 | AD85: 00:00:00 | AE85: 00:00:00 | AF85: 00:00:00 | AG85: 00:00:00 | AH85: 00:00:00 | AI85: 00:00:00 | AJ85: 00:00:00 | AK85: 00:00:00 | AL85: 00:00:00 | AM85: 00:00:00 | AN85: 00:00:00 | AO85: 00:00:00 | AP85: 00:00:00 | AQ85: 00:00:00 | AR85: 00:00:00 | AS85: 00:00:00 | AT85: 00:00:00 | AU85: 00:00:00 | AV85: 00:00:00 | AW85: 00:00:00 | AX85: 00:00:00 | AY85: 00:00:00 | AZ85: 00:00:00 | BA85: 00:00:00 | BB85: 00:00:00 | BC85: 00:00:00 | BD85: 00:00:00 | BE85: 00:00:00 | BF85: 00:00:00 | BG85: 00:00:00 | BH85: 00:00:00 | BI85: 00:00:00 | BJ85: 00:00:00 | BK85: 00:00:00 | BL85: 00:00:00 | BM85: 00:00:00 | BN85: 00:00:00 | BO85: 00:00:00 | BP85: =BO85+IF($G27=1,365,0)+IF($G27=2,182.5,0)+IF($G27=4,91.25,0) -> 00:00:00 | BQ85: 00:00:00 | BR85: 00:00:00 | BS85: 00:00:00 | BT85: 00:00:00 | BU85: 00:00:00 | BV85: 00:00:00 | BW85: 00:00:00 | BX85: 00:00:00 | BY85: 00:00:00 | BZ85: 00:00:00 | CA85: 00:00:00 | CB85: 00:00:00 | CC85: 00:00:00 | CD85: 00:00:00 | CE85: 00:00:00 | CF85: 00:00:00 | CG85: 00:00:00 | CH85: 00:00:00 | CI85: 00:00:00 | CJ85: 00:00:00 | CK85: 00:00:00 | CL85: 00:00:00 | CM85: 00:00:00 | CN85: 00:00:00 | CO85: 00:00:00 | CP85: 00:00:00 | CQ85: 00:00:00 | CR85: 00:00:00 | CS85: 00:00:00 | CT85: 00:00:00 | CU85: 00:00:00 | CV85: 00:00:00 | CW85: 00:00:00 | CX85: 00:00:00 | CY85: 00:00:00 | CZ85: 00:00:00 | DA85: 00:00:00 | DB85: 00:00:00 | DC85: 00:00:00 | DD85: 00:00:00 | DE85: 00:00:00 | DF85: 00:00:00 | DG85: 00:00:00 | DH85: 00:00:00 | DI85: 00:00:00 | DJ85: 00:00:00 | DK85: 00:00:00 | DL85: 00:00:00 | DM85: 00:00:00 | DN85: 00:00:00 | DO85: 00:00:00 | DP85: 00:00:00 | DQ85: 00:00:00 | DR85: 00:00:00 | DS85: 00:00:00 | DT85: 00:00:00 | DU85: 00:00:00 | DV85: 00:00:00 | DW85: 00:00:00 | DX85: 00:00:00 | DY85: 00:00:00 | DZ85: 00:00:00 | EA85: 00:00:00 | EB85: =EA85+IF($G27=1,365,0)+IF($G27=2,182.5,0)+IF($G27=4,91.25,0) -> 00:00:00 | EC85: 00:00:00 | ED85: 00:00:00 | EE85: 00:00:00 | EF85: 00:00:00 | EG85: 00:00:00 | EH85: 00:00:00 | EI85: 00:00:00 | EJ85: 00:00:00 | EK85: 00:00:00 | EL85: 00:00:00 | EM85: 00:00:00 | EN85: 00:00:00 | EO85: 00:00:00 | EP85: 00:00:00 | EQ85: 00:00:00 | ER85: 00:00:00 | ES85: 00:00:00 | ET85: 00:00:00 | EU85: 00:00:00 | EV85: 00:00:00 | EW85: 00:00:00 | EX85: 00:00:00 | EY85: 00:00:00 | EZ85: 00:00:00 | FA85: 00:00:00 | FB85: 00:00:00 | FC85: 00:00:00 | FD85: 00:00:00 | FE85: 00:00:00 | FF85: 00:00:00 | FG85: 00:00:00 | FH85: 00:00:00 | FI85: 00:00:00 | FJ85: 00:00:00 | FK85: 00:00:00 | FL85: 00:00:00 | FM85: 00:00:00 | FN85: 00:00:00 | FO85: 00:00:00 | FP85: 00:00:00 | FQ85: 00:00:00 | FR85: 00:00:00 | FS85: 00:00:00 | FT85: 00:00:00 | FU85: 00:00:00 | FV85: 00:00:00 | FW85: 00:00:00 | FX85: 00:00:00 | FY85: 00:00:00 | FZ85: 00:00:00 | GA85: 00:00:00 | GB85: 00:00:00 | GC85: 00:00:00 | GD85: 00:00:00 | GE85: 00:00:00 | GF85: 00:00:00 | GG85: 00:00:00 | GH85: 00:00:00 | GI85: 00:00:00 | GJ85: 00:00:00 | GK85: 00:00:00 | GL85: 00:00:00 | GM85: 00:00:00 | GN85: =GM85+IF($G27=1,365,0)+IF($G27=2,182.5,0)+IF($G27=4,91.25,0) -> 00:00:00 | GO85: 00:00:00 | GP85: 00:00:00 | GQ85: 00:00:00 | GR85: 00:00:00 | GS85: 00:00:00
A86: Bond 26 | B86: =(IF(B85=F27,100,0)+IF(G27=1,1,0)*J27*100+IF(G27=2,0.5,0)*J27*100+IF(G27=4,0.25,0)*J27*100)*IF(ISBLANK(F27)=TRUE,0,1) -> 0 | C86: =IF(C85>$F27+1,0,1)*(IF(D86=0,100,0)+IF($G27=1,1,0)*$J27*100+IF($G27=2,0.5,0)*$J27*100+IF($G27=4,0.25,0)*$J27*100) -> 100 | D86: =IF(D85>$F27+1,0,1)*(IF(E86=0,100,0)+IF($G27=1,1,0)*$J27*100+IF($G27=2,0.5,0)*$J27*100+IF($G27=4,0.25,0)*$J27*100) -> 0 | E86: 100 | F86: 0 | G86: 100 | H86: 0 | I86: 100 | J86: 0 | K86: 100 | L86: 0 | M86: 100 | N86: 0 | O86: 100 | P86: 0 | Q86: 100 | R86: 0 | S86: 100 | T86: 0 | U86: 100 | V86: 0 | W86: 100 | X86: 0 | Y86: 100 | Z86: 0 | AA86: 100 | AB86: 0 | AC86: 100 | AD86: 0 | AE86: 100 | AF86: 0 | AG86: 100 | AH86: 0 | AI86: 100 | AJ86: 0 | AK86: 100 | AL86: 0 | AM86: 100 | AN86: 0 | AO86: 100 | AP86: 0 | AQ86: 100 | AR86: 0 | AS86: 100 | AT86: 0 | AU86: 100 | AV86: 0 | AW86: 100 | AX86: 0 | AY86: 100 | AZ86: 0 | BA86: 100 | BB86: 0 | BC86: 100 | BD86: 0 | BE86: 100 | BF86: 0 | BG86: 100 | BH86: 0 | BI86: 100 | BJ86: 0 | BK86: 100 | BL86: 0 | BM86: 100 | BN86: 0 | BO86: 100 | BP86: =IF(BP85>$F27+1,0,1)*(IF(BQ86=0,100,0)+IF($G27=1,1,0)*$J27*100+IF($G27=2,0.5,0)*$J27*100+IF($G27=4,0.25,0)*$J27*100) -> 0 | BQ86: 100 | BR86: 0 | BS86: 100 | BT86: 0 | BU86: 100 | BV86: 0 | BW86: 100 | BX86: 0 | BY86: 100 | BZ86: 0 | CA86: 100 | CB86: 0 | CC86: 100 | CD86: 0 | CE86: 100 | CF86: 0 | CG86: 100 | CH86: 0 | CI86: 100 | CJ86: 0 | CK86: 100 | CL86: 0 | CM86: 100 | CN86: 0 | CO86: 100 | CP86: 0 | CQ86: 100 | CR86: 0 | CS86: 100 | CT86: 0 | CU86: 100 | CV86: 0 | CW86: 100 | CX86: 0 | CY86: 100 | CZ86: 0 | DA86: 100 | DB86: 0 | DC86: 100 | DD86: 0 | DE86: 100 | DF86: 0 | DG86: 100 | DH86: 0 | DI86: 100 | DJ86: 0 | DK86: 100 | DL86: 0 | DM86: 100 | DN86: 0 | DO86: 100 | DP86: 0 | DQ86: 100 | DR86: 0 | DS86: 100 | DT86: 0 | DU86: 100 | DV86: 0 | DW86: 100 | DX86: 0 | DY86: 100 | DZ86: 0 | EA86: 100 | EB86: =IF(EB85>$F27+1,0,1)*(IF(EC86=0,100,0)+IF($G27=1,1,0)*$J27*100+IF($G27=2,0.5,0)*$J27*100+IF($G27=4,0.25,0)*$J27*100) -> 0 | EC86: 100 | ED86: 0 | EE86: 100 | EF86: 0 | EG86: 100 | EH86: 0 | EI86: 100 | EJ86: 0 | EK86: 100 | EL86: 0 | EM86: 100 | EN86: 0 | EO86: 100 | EP86: 0 | EQ86: 100 | ER86: 0 | ES86: 100 | ET86: 0 | EU86: 100 | EV86: 0 | EW86: 100 | EX86: 0 | EY86: 100 | EZ86: 0 | FA86: 100 | FB86: 0 | FC86: 100 | FD86: 0 | FE86: 100 | FF86: 0 | FG86: 100 | FH86: 0 | FI86: 100 | FJ86: 0 | FK86: 100 | FL86: 0 | FM86: 100 | FN86: 0 | FO86: 100 | FP86: 0 | FQ86: 100 | FR86: 0 | FS86: 100 | FT86: 0 | FU86: 100 | FV86: 0 | FW86: 100 | FX86: 0 | FY86: 100 | FZ86: 0 | GA86: 100 | GB86: 0 | GC86: 100 | GD86: 0 | GE86: 100 | GF86: 0 | GG86: 100 | GH86: 0 | GI86: 100 | GJ86: 0 | GK86: 100 | GL86: 0 | GM86: 100 | GN86: =IF(GN85>$F27+1,0,1)*(IF(GO86=0,100,0)+IF($G27=1,1,0)*$J27*100+IF($G27=2,0.5,0)*$J27*100+IF($G27=4,0.25,0)*$J27*100) -> 0 | GO86: 100 | GP86: 0 | GQ86: 100 | GR86: 0 | GS86: 100
A87: Payment Dates | B87: =IF(E28=0,F28,E28) -> 00:00:00 | C87: =B87+IF($G28=1,365,0)+IF($G28=2,182.5,0)+IF($G28=4,91.25,0) -> 00:00:00 | D87: =C87+IF($G28=1,365,0)+IF($G28=2,182.5,0)+IF($G28=4,91.25,0) -> 00:00:00 | E87: 00:00:00 | F87: 00:00:00 | G87: 00:00:00 | H87: 00:00:00 | I87: 00:00:00 | J87: 00:00:00 | K87: 00:00:00 | L87: 00:00:00 | M87: 00:00:00 | N87: 00:00:00 | O87: 00:00:00 | P87: 00:00:00 | Q87: 00:00:00 | R87: 00:00:00 | S87: 00:00:00 | T87: 00:00:00 | U87: 00:00:00 | V87: 00:00:00 | W87: 00:00:00 | X87: 00:00:00 | Y87: 00:00:00 | Z87: 00:00:00 | AA87: 00:00:00 | AB87: 00:00:00 | AC87: 00:00:00 | AD87: 00:00:00 | AE87: 00:00:00 | AF87: 00:00:00 | AG87: 00:00:00 | AH87: 00:00:00 | AI87: 00:00:00 | AJ87: 00:00:00 | AK87: 00:00:00 | AL87: 00:00:00 | AM87: 00:00:00 | AN87: 00:00:00 | AO87: 00:00:00 | AP87: 00:00:00 | AQ87: 00:00:00 | AR87: 00:00:00 | AS87: 00:00:00 | AT87: 00:00:00 | AU87: 00:00:00 | AV87: 00:00:00 | AW87: 00:00:00 | AX87: 00:00:00 | AY87: 00:00:00 | AZ87: 00:00:00 | BA87: 00:00:00 | BB87: 00:00:00 | BC87: 00:00:00 | BD87: 00:00:00 | BE87: 00:00:00 | BF87: 00:00:00 | BG87: 00:00:00 | BH87: 00:00:00 | BI87: 00:00:00 | BJ87: 00:00:00 | BK87: 00:00:00 | BL87: 00:00:00 | BM87: 00:00:00 | BN87: 00:00:00 | BO87: 00:00:00 | BP87: =BO87+IF($G28=1,365,0)+IF($G28=2,182.5,0)+IF($G28=4,91.25,0) -> 00:00:00 | BQ87: 00:00:00 | BR87: 00:00:00 | BS87: 00:00:00 | BT87: 00:00:00 | BU87: 00:00:00 | BV87: 00:00:00 | BW87: 00:00:00 | BX87: 00:00:00 | BY87: 00:00:00 | BZ87: 00:00:00 | CA87: 00:00:00 | CB87: 00:00:00 | CC87: 00:00:00 | CD87: 00:00:00 | CE87: 00:00:00 | CF87: 00:00:00 | CG87: 00:00:00 | CH87: 00:00:00 | CI87: 00:00:00 | CJ87: 00:00:00 | CK87: 00:00:00 | CL87: 00:00:00 | CM87: 00:00:00 | CN87: 00:00:00 | CO87: 00:00:00 | CP87: 00:00:00 | CQ87: 00:00:00 | CR87: 00:00:00 | CS87: 00:00:00 | CT87: 00:00:00 | CU87: 00:00:00 | CV87: 00:00:00 | CW87: 00:00:00 | CX87: 00:00:00 | CY87: 00:00:00 | CZ87: 00:00:00 | DA87: 00:00:00 | DB87: 00:00:00 | DC87: 00:00:00 | DD87: 00:00:00 | DE87: 00:00:00 | DF87: 00:00:00 | DG87: 00:00:00 | DH87: 00:00:00 | DI87: 00:00:00 | DJ87: 00:00:00 | DK87: 00:00:00 | DL87: 00:00:00 | DM87: 00:00:00 | DN87: 00:00:00 | DO87: 00:00:00 | DP87: 00:00:00 | DQ87: 00:00:00 | DR87: 00:00:00 | DS87: 00:00:00 | DT87: 00:00:00 | DU87: 00:00:00 | DV87: 00:00:00 | DW87: 00:00:00 | DX87: 00:00:00 | DY87: 00:00:00 | DZ87: 00:00:00 | EA87: 00:00:00 | EB87: =EA87+IF($G28=1,365,0)+IF($G28=2,182.5,0)+IF($G28=4,91.25,0) -> 00:00:00 | EC87: 00:00:00 | ED87: 00:00:00 | EE87: 00:00:00 | EF87: 00:00:00 | EG87: 00:00:00 | EH87: 00:00:00 | EI87: 00:00:00 | EJ87: 00:00:00 | EK87: 00:00:00 | EL87: 00:00:00 | EM87: 00:00:00 | EN87: 00:00:00 | EO87: 00:00:00 | EP87: 00:00:00 | EQ87: 00:00:00 | ER87: 00:00:00 | ES87: 00:00:00 | ET87: 00:00:00 | EU87: 00:00:00 | EV87: 00:00:00 | EW87: 00:00:00 | EX87: 00:00:00 | EY87: 00:00:00 | EZ87: 00:00:00 | FA87: 00:00:00 | FB87: 00:00:00 | FC87: 00:00:00 | FD87: 00:00:00 | FE87: 00:00:00 | FF87: 00:00:00 | FG87: 00:00:00 | FH87: 00:00:00 | FI87: 00:00:00 | FJ87: 00:00:00 | FK87: 00:00:00 | FL87: 00:00:00 | FM87: 00:00:00 | FN87: 00:00:00 | FO87: 00:00:00 | FP87: 00:00:00 | FQ87: 00:00:00 | FR87: 00:00:00 | FS87: 00:00:00 | FT87: 00:00:00 | FU87: 00:00:00 | FV87: 00:00:00 | FW87: 00:00:00 | FX87: 00:00:00 | FY87: 00:00:00 | FZ87: 00:00:00 | GA87: 00:00:00 | GB87: 00:00:00 | GC87: 00:00:00 | GD87: 00:00:00 | GE87: 00:00:00 | GF87: 00:00:00 | GG87: 00:00:00 | GH87: 00:00:00 | GI87: 00:00:00 | GJ87: 00:00:00 | GK87: 00:00:00 | GL87: 00:00:00 | GM87: 00:00:00 | GN87: =GM87+IF($G28=1,365,0)+IF($G28=2,182.5,0)+IF($G28=4,91.25,0) -> 00:00:00 | GO87: 00:00:00 | GP87: 00:00:00 | GQ87: 00:00:00 | GR87: 00:00:00 | GS87: 00:00:00
A88: Bond 27 | B88: =(IF(B87=F28,100,0)+IF(G28=1,1,0)*J28*100+IF(G28=2,0.5,0)*J28*100+IF(G28=4,0.25,0)*J28*100)*IF(ISBLANK(F28)=TRUE,0,1) -> 0 | C88: =IF(C87>$F28+1,0,1)*(IF(D88=0,100,0)+IF($G28=1,1,0)*$J28*100+IF($G28=2,0.5,0)*$J28*100+IF($G28=4,0.25,0)*$J28*100) -> 100 | D88: =IF(D87>$F28+1,0,1)*(IF(E88=0,100,0)+IF($G28=1,1,0)*$J28*100+IF($G28=2,0.5,0)*$J28*100+IF($G28=4,0.25,0)*$J28*100) -> 0 | E88: 100 | F88: 0 | G88: 100 | H88: 0 | I88: 100 | J88: 0 | K88: 100 | L88: 0 | M88: 100 | N88: 0 | O88: 100 | P88: 0 | Q88: 100 | R88: 0 | S88: 100 | T88: 0 | U88: 100 | V88: 0 | W88: 100 | X88: 0 | Y88: 100 | Z88: 0 | AA88: 100 | AB88: 0 | AC88: 100 | AD88: 0 | AE88: 100 | AF88: 0 | AG88: 100 | AH88: 0 | AI88: 100 | AJ88: 0 | AK88: 100 | AL88: 0 | AM88: 100 | AN88: 0 | AO88: 100 | AP88: 0 | AQ88: 100 | AR88: 0 | AS88: 100 | AT88: 0 | AU88: 100 | AV88: 0 | AW88: 100 | AX88: 0 | AY88: 100 | AZ88: 0 | BA88: 100 | BB88: 0 | BC88: 100 | BD88: 0 | BE88: 100 | BF88: 0 | BG88: 100 | BH88: 0 | BI88: 100 | BJ88: 0 | BK88: 100 | BL88: 0 | BM88: 100 | BN88: 0 | BO88: 100 | BP88: =IF(BP87>$F28+1,0,1)*(IF(BQ88=0,100,0)+IF($G28=1,1,0)*$J28*100+IF($G28=2,0.5,0)*$J28*100+IF($G28=4,0.25,0)*$J28*100) -> 0 | BQ88: 100 | BR88: 0 | BS88: 100 | BT88: 0 | BU88: 100 | BV88: 0 | BW88: 100 | BX88: 0 | BY88: 100 | BZ88: 0 | CA88: 100 | CB88: 0 | CC88: 100 | CD88: 0 | CE88: 100 | CF88: 0 | CG88: 100 | CH88: 0 | CI88: 100 | CJ88: 0 | CK88: 100 | CL88: 0 | CM88: 100 | CN88: 0 | CO88: 100 | CP88: 0 | CQ88: 100 | CR88: 0 | CS88: 100 | CT88: 0 | CU88: 100 | CV88: 0 | CW88: 100 | CX88: 0 | CY88: 100 | CZ88: 0 | DA88: 100 | DB88: 0 | DC88: 100 | DD88: 0 | DE88: 100 | DF88: 0 | DG88: 100 | DH88: 0 | DI88: 100 | DJ88: 0 | DK88: 100 | DL88: 0 | DM88: 100 | DN88: 0 | DO88: 100 | DP88: 0 | DQ88: 100 | DR88: 0 | DS88: 100 | DT88: 0 | DU88: 100 | DV88: 0 | DW88: 100 | DX88: 0 | DY88: 100 | DZ88: 0 | EA88: 100 | EB88: =IF(EB87>$F28+1,0,1)*(IF(EC88=0,100,0)+IF($G28=1,1,0)*$J28*100+IF($G28=2,0.5,0)*$J28*100+IF($G28=4,0.25,0)*$J28*100) -> 0 | EC88: 100 | ED88: 0 | EE88: 100 | EF88: 0 | EG88: 100 | EH88: 0 | EI88: 100 | EJ88: 0 | EK88: 100 | EL88: 0 | EM88: 100 | EN88: 0 | EO88: 100 | EP88: 0 | EQ88: 100 | ER88: 0 | ES88: 100 | ET88: 0 | EU88: 100 | EV88: 0 | EW88: 100 | EX88: 0 | EY88: 100 | EZ88: 0 | FA88: 100 | FB88: 0 | FC88: 100 | FD88: 0 | FE88: 100 | FF88: 0 | FG88: 100 | FH88: 0 | FI88: 100 | FJ88: 0 | FK88: 100 | FL88: 0 | FM88: 100 | FN88: 0 | FO88: 100 | FP88: 0 | FQ88: 100 | FR88: 0 | FS88: 100 | FT88: 0 | FU88: 100 | FV88: 0 | FW88: 100 | FX88: 0 | FY88: 100 | FZ88: 0 | GA88: 100 | GB88: 0 | GC88: 100 | GD88: 0 | GE88: 100 | GF88: 0 | GG88: 100 | GH88: 0 | GI88: 100 | GJ88: 0 | GK88: 100 | GL88: 0 | GM88: 100 | GN88: =IF(GN87>$F28+1,0,1)*(IF(GO88=0,100,0)+IF($G28=1,1,0)*$J28*100+IF($G28=2,0.5,0)*$J28*100+IF($G28=4,0.25,0)*$J28*100) -> 0 | GO88: 100 | GP88: 0 | GQ88: 100 | GR88: 0 | GS88: 100
A89: Payment Dates | B89: =IF(E29=0,F29,E29) -> 00:00:00 | C89: =B89+IF($G29=1,365,0)+IF($G29=2,182.5,0)+IF($G29=4,91.25,0) -> 00:00:00 | D89: =C89+IF($G29=1,365,0)+IF($G29=2,182.5,0)+IF($G29=4,91.25,0) -> 00:00:00 | E89: 00:00:00 | F89: 00:00:00 | G89: 00:00:00 | H89: 00:00:00 | I89: 00:00:00 | J89: 00:00:00 | K89: 00:00:00 | L89: 00:00:00 | M89: 00:00:00 | N89: 00:00:00 | O89: 00:00:00 | P89: 00:00:00 | Q89: 00:00:00 | R89: 00:00:00 | S89: 00:00:00 | T89: 00:00:00 | U89: 00:00:00 | V89: 00:00:00 | W89: 00:00:00 | X89: 00:00:00 | Y89: 00:00:00 | Z89: 00:00:00 | AA89: 00:00:00 | AB89: 00:00:00 | AC89: 00:00:00 | AD89: 00:00:00 | AE89: 00:00:00 | AF89: 00:00:00 | AG89: 00:00:00 | AH89: 00:00:00 | AI89: 00:00:00 | AJ89: 00:00:00 | AK89: 00:00:00 | AL89: 00:00:00 | AM89: 00:00:00 | AN89: 00:00:00 | AO89: 00:00:00 | AP89: 00:00:00 | AQ89: 00:00:00 | AR89: 00:00:00 | AS89: 00:00:00 | AT89: 00:00:00 | AU89: 00:00:00 | AV89: 00:00:00 | AW89: 00:00:00 | AX89: 00:00:00 | AY89: 00:00:00 | AZ89: 00:00:00 | BA89: 00:00:00 | BB89: 00:00:00 | BC89: 00:00:00 | BD89: 00:00:00 | BE89: 00:00:00 | BF89: 00:00:00 | BG89: 00:00:00 | BH89: 00:00:00 | BI89: 00:00:00 | BJ89: 00:00:00 | BK89: 00:00:00 | BL89: 00:00:00 | BM89: 00:00:00 | BN89: 00:00:00 | BO89: 00:00:00 | BP89: =BO89+IF($G29=1,365,0)+IF($G29=2,182.5,0)+IF($G29=4,91.25,0) -> 00:00:00 | BQ89: 00:00:00 | BR89: 00:00:00 | BS89: 00:00:00 | BT89: 00:00:00 | BU89: 00:00:00 | BV89: 00:00:00 | BW89: 00:00:00 | BX89: 00:00:00 | BY89: 00:00:00 | BZ89: 00:00:00 | CA89: 00:00:00 | CB89: 00:00:00 | CC89: 00:00:00 | CD89: 00:00:00 | CE89: 00:00:00 | CF89: 00:00:00 | CG89: 00:00:00 | CH89: 00:00:00 | CI89: 00:00:00 | CJ89: 00:00:00 | CK89: 00:00:00 | CL89: 00:00:00 | CM89: 00:00:00 | CN89: 00:00:00 | CO89: 00:00:00 | CP89: 00:00:00 | CQ89: 00:00:00 | CR89: 00:00:00 | CS89: 00:00:00 | CT89: 00:00:00 | CU89: 00:00:00 | CV89: 00:00:00 | CW89: 00:00:00 | CX89: 00:00:00 | CY89: 00:00:00 | CZ89: 00:00:00 | DA89: 00:00:00 | DB89: 00:00:00 | DC89: 00:00:00 | DD89: 00:00:00 | DE89: 00:00:00 | DF89: 00:00:00 | DG89: 00:00:00 | DH89: 00:00:00 | DI89: 00:00:00 | DJ89: 00:00:00 | DK89: 00:00:00 | DL89: 00:00:00 | DM89: 00:00:00 | DN89: 00:00:00 | DO89: 00:00:00 | DP89: 00:00:00 | DQ89: 00:00:00 | DR89: 00:00:00 | DS89: 00:00:00 | DT89: 00:00:00 | DU89: 00:00:00 | DV89: 00:00:00 | DW89: 00:00:00 | DX89: 00:00:00 | DY89: 00:00:00 | DZ89: 00:00:00 | EA89: 00:00:00 | EB89: =EA89+IF($G29=1,365,0)+IF($G29=2,182.5,0)+IF($G29=4,91.25,0) -> 00:00:00 | EC89: 00:00:00 | ED89: 00:00:00 | EE89: 00:00:00 | EF89: 00:00:00 | EG89: 00:00:00 | EH89: 00:00:00 | EI89: 00:00:00 | EJ89: 00:00:00 | EK89: 00:00:00 | EL89: 00:00:00 | EM89: 00:00:00 | EN89: 00:00:00 | EO89: 00:00:00 | EP89: 00:00:00 | EQ89: 00:00:00 | ER89: 00:00:00 | ES89: 00:00:00 | ET89: 00:00:00 | EU89: 00:00:00 | EV89: 00:00:00 | EW89: 00:00:00 | EX89: 00:00:00 | EY89: 00:00:00 | EZ89: 00:00:00 | FA89: 00:00:00 | FB89: 00:00:00 | FC89: 00:00:00 | FD89: 00:00:00 | FE89: 00:00:00 | FF89: 00:00:00 | FG89: 00:00:00 | FH89: 00:00:00 | FI89: 00:00:00 | FJ89: 00:00:00 | FK89: 00:00:00 | FL89: 00:00:00 | FM89: 00:00:00 | FN89: 00:00:00 | FO89: 00:00:00 | FP89: 00:00:00 | FQ89: 00:00:00 | FR89: 00:00:00 | FS89: 00:00:00 | FT89: 00:00:00 | FU89: 00:00:00 | FV89: 00:00:00 | FW89: 00:00:00 | FX89: 00:00:00 | FY89: 00:00:00 | FZ89: 00:00:00 | GA89: 00:00:00 | GB89: 00:00:00 | GC89: 00:00:00 | GD89: 00:00:00 | GE89: 00:00:00 | GF89: 00:00:00 | GG89: 00:00:00 | GH89: 00:00:00 | GI89: 00:00:00 | GJ89: 00:00:00 | GK89: 00:00:00 | GL89: 00:00:00 | GM89: 00:00:00 | GN89: =GM89+IF($G29=1,365,0)+IF($G29=2,182.5,0)+IF($G29=4,91.25,0) -> 00:00:00 | GO89: 00:00:00 | GP89: 00:00:00 | GQ89: 00:00:00 | GR89: 00:00:00 | GS89: 00:00:00
